Workbook

Sheet Data (hidden)
A1: 1 | B1: 2 | C1: 3 | D1: 4 | E1: 5 | F1: 6 | G1: 7 | H1: 8 | I1: 9 | J1: 10 | K1: 11 | L1: 12 | M1: 13 | N1: 14 | O1: 15 | P1: 16 | Q1: 17 | R1: 18 | S1: 19 | T1: 20 | U1: 21 | V1: 22 | W1: 23 | X1: 24 | Y1: 25 | Z1: 26 | AA1: 27 | AB1: 28 | AC1: 29 | AD1: 30 | AE1: 31 | AF1: 32 | AG1: 33 | AH1: 34 | AI1: 35 | AJ1: 36 | AK1: 37 | AL1: 38 | AM1: 39 | AN1: 40 | AO1: 41 | AP1: 42 | AQ1: 43 | AR1: 44 | AS1: 45 | AT1: 46 | AU1: 47 | AV1: 48 | AW1: 49 | AX1: 50 | AY1: 51 | AZ1: 52 | BA1: 53 | BB1: 54 | BC1: 55 | BD1: 56 | BE1: 57 | BF1: 58 | BG1: 59 | BH1: 60 | BI1: 61 | BJ1: 62 | BK1: 63 | BL1: 64 | BM1: 65 | BN1: 66 | BO1: 67 | BP1: 68 | BQ1: 69 | BR1: 70 | BS1: 71 | BT1: 72 | BU1: 73 | BV1: 74 | BW1: 75 | BX1: 76 | BY1: 77 | BZ1: 78 | CA1: 79 | CB1: 80
A2: final list | B2: School Name | C2: Phase | D2: F1 - Pri | E2: F1 -KS3 | F2: F1 - KS4 | G2: F2 - FSM Pri | H2: F2 - FSM Sec | I2: F2 - E6FSM Pri | J2: F2 - E6FSM Sec | K2: F2 - IDACI F - Pri | L2: F2 - IDACI E - Pri | M2: F2 - IDACI D - Pri | N2: F2 - IDACI C - Pri | O2: F2 - IDACI B - Pri | P2: F2 - IDACI A - Pri | Q2: F2 - IDACI F - Sec | R2: F2 - IDACI E - Sec | S2: F2 - IDACI D - Sec | T2: F2 - IDACI C - Sec | U2: F2 - IDACI B - Sec | V2: F2 - IDACI A - Sec | W2: F4 - EAL Pri | X2: F4 - EAL Sec | Y2: F6 - EYFS Pri | Z2: F6 - EYFS Sec | AA2: Mobility Pri | AB2: Mobility Sec | AC2: F7 - Lump Sum | AD2: F8 - Sparsity Pri | AE2: F8 - Sparsity Sec | AF2: F9 - ACA | AG2: F10 - Split Site | AH2: F11 - Rates | AI2: F12 - PFI | AJ2: F13 - Exceptional Circumstances | AK2: MFL Rate | AL2: SBS 22-23 | AM2: Protected Grants 22-23 | AN2: Rates - 22-23 | AO2: Pupils - Oct 21 | AP2: PFI Funding - Future Year? | AR2: Early Years - Base Rate | AS2: Early Years - QTS | AT2: Early Years - Disadvantage | AV2: SRP Des1 Pre | AW2: SRP Des2 Pre | AX2: SRP Des1 Post | AY2: SRP Des2 Post | AZ2: SRP Places Apr - Aug PRE | BA2: SRP Places Apr - Aug POST | BB2: SRP Places Sep - Mar PRE | BC2: SRP Places Sep - Mar Post | BD2: SRP actuals PRE (OCT) | BE2: SRP actuals POST (OCT) | BI2: TPG
A3: 1001 | B3: Northfleet Nursery | C3: 6 | D3: 0 | E3: 0 | F3: 0 | G3: 0 | H3: 0 | I3: 0 | J3: 0 | K3: 0 | L3: 0 | M3: 0 | N3: 0 | O3: 0 | P3: 0 | Q3: 0 | R3: 0 | S3: 0 | T3: 0 | U3: 0 | V3: 0 | W3: 0 | X3: 0 | Y3: 0 | Z3: 0 | AA3: 0 | AB3: 0 | AC3: 0 | AD3: 0 | AE3: 0 | AF3: 0 | AG3: 0 | AH3: 0 | AI3: 0 | AJ3: 0 | AK3: 0 | AL3: 0 | AM3: 0 | AN3: 0 | AO3: 0 | AP3: 0 | AR3: 4.55 | AS3: 1.05 | AT3: 0.07 | BI3: y | CC3: 0
A4: 2000 | B4: St Johns Church of England Primary School | C4: 1 | D4: 401 | E4: 0 | F4: 0 | G4: 0.5236907731 | H4: 0 | I4: 0.5286783042 | J4: 0 | K4: 0.072319202 | L4: 0.1795511222 | M4: 0.08478802993 | N4: 0.2942643392 | O4: 0.1571072319 | P4: 0 | Q4: 0 | R4: 0 | S4: 0 | T4: 0 | U4: 0 | V4: 0 | W4: 0.2631578947 | X4: 0 | Y4: 0.4268394649 | Z4: 0 | AA4: 0.1346633416 | AB4: 0 | AC4: 125894.7077 | AD4: 0 | AE4: 0 | AF4: 1 | AG4: 0 | AH4: 24576 | AI4: 0 | AJ4: 0 | AK4: 4384 | AL4: 1821940.418 | AM4: 57849.0437 | AN4: 24576 | AO4: 374 | AP4: 0 | AR4: 4.55 | AS4: 1.05 | AT4: 0.09 | BI4: y | CC4: 0
A5: 2002 | B5: Repton Manor Primary School | C5: 1 | D5: 471 | E5: 0 | F5: 0 | G5: 0.1762208068 | H5: 0 | I5: 0.186836518 | J5: 0 | K5: 0.04246284501 | L5: 0.05307855626 | M5: 0.02547770701 | N5: 0.0127388535 | O5: 0.02335456476 | P5: 0 | Q5: 0 | R5: 0 | S5: 0 | T5: 0 | U5: 0 | V5: 0 | W5: 0.06569343066 | X5: 0 | Y5: 0.2313781936 | Z5: 0 | AA5: 0.04246284501 | AB5: 0 | AC5: 125894.7077 | AD5: 0 | AE5: 0 | AF5: 1 | AG5: 0 | AH5: 10650 | AI5: 0 | AJ5: 0 | AK5: 4384 | AL5: 2047161 | AM5: 58235.3177 | AN5: 12756 | AO5: 477 | AR5: 0 | AS5: 0 | AT5: 0 | BI5: n | CC5: 0
A6: 2065 | B6: The Discovery School | C6: 1 | D6: 618 | E6: 0 | F6: 0 | G6: 0.07443365696 | H6: 0 | I6: 0.07766990291 | J6: 0 | K6: 0.04207119741 | L6: 0.006472491909 | M6: 0 | N6: 0.01132686084 | O6: 0.006472491909 | P6: 0 | Q6: 0 | R6: 0 | S6: 0 | T6: 0 | U6: 0 | V6: 0 | W6: 0.04621072089 | X6: 0 | Y6: 0.1675438596 | Z6: 0 | AA6: 0.06472491909 | AB6: 0 | AC6: 125894.7077 | AD6: 0 | AE6: 0 | AF6: 1 | AG6: 0 | AH6: 75264 | AI6: 0 | AJ6: 0 | AK6: 4384 | AL6: 2736624 | AM6: 67315.7603 | AN6: 75264 | AO6: 624 | AR6: 0 | AS6: 0 | AT6: 0 | BI6: n | CC6: 0
A7: 2066 | B7: Maypole Primary School | C7: 1 | D7: 418 | E7: 0 | F7: 0 | G7: 0.1220095694 | H7: 0 | I7: 0.1244019139 | J7: 0 | K7: 0.07177033493 | L7: 0.01913875598 | M7: 0.03110047847 | N7: 0.004784688995 | O7: 0.01913875598 | P7: 0 | Q7: 0 | R7: 0 | S7: 0 | T7: 0 | U7: 0 | V7: 0 | W7: 0.0782122905 | X7: 0 | Y7: 0.2708455094 | Z7: 0 | AA7: 0.05995203837 | AB7: 0 | AC7: 125894.7077 | AD7: 0 | AE7: 0 | AF7: 1.0377 | AG7: 0 | AH7: 38144 | AI7: 0 | AJ7: 0 | AK7: 4384 | AL7: 1773999 | AM7: 49827.672 | AN7: 38144 | AO7: 407 | AR7: 0 | AS7: 0 | AT7: 0 | BI7: n | CC7: 0
A8: 2079 | B8: Woodlands Primary School | C8: 1 | D8: 640 | E8: 0 | F8: 0 | G8: 0.1984375 | H8: 0 | I8: 0.203125 | J8: 0 | K8: 0.3265625 | L8: 0.0046875 | M8: 0.05 | N8: 0 | O8: 0 | P8: 0 | Q8: 0 | R8: 0 | S8: 0 | T8: 0 | U8: 0 | V8: 0 | W8: 0.04371584699 | X8: 0 | Y8: 0.2190971553 | Z8: 0 | AA8: 0.028125 | AB8: 0 | AC8: 125894.7077 | AD8: 0 | AE8: 0 | AF8: 1 | AG8: 0 | AH8: 57856 | AI8: 0 | AJ8: 0 | AK8: 4384 | AL8: 2783191 | AM8: 76427.2248 | AN8: 57856 | AO8: 639 | AR8: 0 | AS8: 0 | AT8: 0 | BI8: n | CC8: 0
A9: 2088 | B9: Crockenhill Primary School | C9: 1 | D9: 198 | E9: 0 | F9: 0 | G9: 0.297979798 | H9: 0 | I9: 0.297979798 | J9: 0 | K9: 0.06565656566 | L9: 0.01515151515 | M9: 0 | N9: 0.01515151515 | O9: 0.1060606061 | P9: 0 | Q9: 0 | R9: 0 | S9: 0 | T9: 0 | U9: 0 | V9: 0 | W9: 0.02976190476 | X9: 0 | Y9: 0.2969322344 | Z9: 0 | AA9: 0.0404040404 | AB9: 0 | AC9: 125894.7077 | AD9: 0 | AE9: 0 | AF9: 1.0377 | AG9: 0 | AH9: 24116 | AI9: 0 | AJ9: 0 | AK9: 4384 | AL9: 946001.859 | AM9: 29376.155 | AN9: 24116 | AO9: 203 | AR9: 0 | AS9: 0 | AT9: 0 | BI9: n | CC9: 0
A10: 2089 | B10: The Anthony Roper Primary School | C10: 1 | D10: 304 | E10: 0 | F10: 0 | G10: 0.09210526316 | H10: 0 | I10: 0.09868421053 | J10: 0 | K10: 0.09539473684 | L10: 0.003289473684 | M10: 0.009868421053 | N10: 0.01315789474 | O10: 0.01644736842 | P10: 0 | Q10: 0 | R10: 0 | S10: 0 | T10: 0 | U10: 0 | V10: 0 | W10: 0.01158301158 | X10: 0 | Y10: 0.1812397571 | Z10: 0 | AA10: 0.0198019802 | AB10: 0 | AC10: 125894.7077 | AD10: 0 | AE10: 0 | AF10: 1.0377 | AG10: 0 | AH10: 6656 | AI10: 0 | AJ10: 0 | AK10: 4384 | AL10: 1281891 | AM10: 36836.1891 | AN10: 6656 | AO10: 299 | AR10: 0 | AS10: 0 | AT10: 0 | BI10: n | CC10: 0
A11: 2094 | B11: Cobham Primary School | C11: 1 | D11: 218 | E11: 0 | F11: 0 | G11: 0.06422018349 | H11: 0 | I11: 0.06422018349 | J11: 0 | K11: 0.004587155963 | L11: 0.009174311927 | M11: 0 | N11: 0.02293577982 | O11: 0 | P11: 0 | Q11: 0 | R11: 0 | S11: 0 | T11: 0 | U11: 0 | V11: 0 | W11: 0.02127659574 | X11: 0 | Y11: 0.1850066489 | Z11: 0 | AA11: 0.009174311927 | AB11: 0 | AC11: 125894.7077 | AD11: 0 | AE11: 0 | AF11: 1 | AG11: 0 | AH11: 17216 | AI11: 0 | AJ11: 0 | AK11: 4384 | AL11: 951251 | AM11: 25961.4195 | AN11: 17216 | AO11: 219 | AR11: 0 | AS11: 0 | AT11: 0 | BI11: n | CC11: 0
A12: 2095 | B12: Cecil Road Primary and Nursery School | C12: 1 | D12: 373 | E12: 0 | F12: 0 | G12: 0.163538874 | H12: 0 | I12: 0.1689008043 | J12: 0 | K12: 0.2810810811 | L12: 0.1297297297 | M12: 0.01891891892 | N12: 0.01351351351 | O12: 0.01081081081 | P12: 0 | Q12: 0 | R12: 0 | S12: 0 | T12: 0 | U12: 0 | V12: 0 | W12: 0.2169811321 | X12: 0 | Y12: 0.2605399987 | Z12: 0 | AA12: 0.0509383378 | AB12: 0 | AC12: 125894.7077 | AD12: 0 | AE12: 0 | AF12: 1 | AG12: 0 | AH12: 34048 | AI12: 0 | AJ12: 0 | AK12: 4384 | AL12: 1633423 | AM12: 45442.2411 | AN12: 34048 | AO12: 375 | AR12: 4.55 | AS12: 1.05 | AT12: 0.05 | BI12: y | CC12: 0
A13: 2109 | B13: Higham Primary School | C13: 1 | D13: 207 | E13: 0 | F13: 0 | G13: 0.1111111111 | H13: 0 | I13: 0.115942029 | J13: 0 | K13: 0.01449275362 | L13: 0.04347826087 | M13: 0.004830917874 | N13: 0.009661835749 | O13: 0 | P13: 0 | Q13: 0 | R13: 0 | S13: 0 | T13: 0 | U13: 0 | V13: 0 | W13: 0.01694915254 | X13: 0 | Y13: 0.3125 | Z13: 0 | AA13: 0.04347826087 | AB13: 0 | AC13: 125894.7077 | AD13: 0 | AE13: 0 | AF13: 1 | AG13: 0 | AH13: 22330 | AI13: 0 | AJ13: 0 | AK13: 4384 | AL13: 909450 | AM13: 25659.2051 | AN13: 22330 | AO13: 208 | AR13: 0 | AS13: 0 | AT13: 0 | BI13: n | CC13: 0
A14: 2116 | B14: Lawn Primary School | C14: 1 | D14: 195 | E14: 0 | F14: 0 | G14: 0.5538461538 | H14: 0 | I14: 0.5538461538 | J14: 0 | K14: 0.04639175258 | L14: 0.0206185567 | M14: 0.1391752577 | N14: 0.01030927835 | O14: 0.6391752577 | P14: 0 | Q14: 0 | R14: 0 | S14: 0 | T14: 0 | U14: 0 | V14: 0 | W14: 0.3023255814 | X14: 0 | Y14: 0.3831168831 | Z14: 0 | AA14: 0.05641025641 | AB14: 0 | AC14: 125894.7077 | AD14: 0 | AE14: 0 | AF14: 1 | AG14: 0 | AH14: 20709 | AI14: 0 | AJ14: 0 | AK14: 4384 | AL14: 1018271.152 | AM14: 31543.3799 | AN14: 20709 | AO14: 188 | AR14: 4.55 | AS14: 1.05 | AT14: 0.46 | BI14: y | CC14: 0
A15: 2120 | B15: Bean Primary School | C15: 1 | D15: 183 | E15: 0 | F15: 0 | G15: 0.1967213115 | H15: 0 | I15: 0.2131147541 | J15: 0 | K15: 0.5792349727 | L15: 0.03825136612 | M15: 0 | N15: 0 | O15: 0.01092896175 | P15: 0 | Q15: 0 | R15: 0 | S15: 0 | T15: 0 | U15: 0 | V15: 0 | W15: 0.09433962264 | X15: 0 | Y15: 0.2387096774 | Z15: 0 | AA15: 0.06557377049 | AB15: 0 | AC15: 125894.7077 | AD15: 0 | AE15: 0 | AF15: 1.0377 | AG15: 0 | AH15: 16093 | AI15: 0 | AJ15: 0 | AK15: 4384 | AL15: 892354.7994 | AM15: 26768.7241 | AN15: 16093 | AO15: 192 | AR15: 0 | AS15: 0 | AT15: 0 | BI15: n | CC15: 0
A16: 2128 | B16: Capel Primary School | C16: 1 | D16: 206 | E16: 0 | F16: 0 | G16: 0.1601941748 | H16: 0 | I16: 0.1650485437 | J16: 0 | K16: 0.09223300971 | L16: 0.009708737864 | M16: 0.04368932039 | N16: 0.009708737864 | O16: 0 | P16: 0 | Q16: 0 | R16: 0 | S16: 0 | T16: 0 | U16: 0 | V16: 0 | W16: 0.01136363636 | X16: 0 | Y16: 0.2115606936 | Z16: 0 | AA16: 0.02912621359 | AB16: 0 | AC16: 125894.7077 | AD16: 0 | AE16: 0 | AF16: 1 | AG16: 0 | AH16: 21457 | AI16: 0 | AJ16: 0 | AK16: 4384 | AL16: 900047 | AM16: 26400.7312 | AN16: 21457 | AO16: 206 | AR16: 0 | AS16: 0 | AT16: 0 | BI16: n | CC16: 0
A17: 2130 | B17: Dunton Green Primary School | C17: 1 | D17: 184 | E17: 0 | F17: 0 | G17: 0.3206521739 | H17: 0 | I17: 0.3315217391 | J17: 0 | K17: 0.01630434783 | L17: 0 | M17: 0.005434782609 | N17: 0 | O17: 0 | P17: 0 | Q17: 0 | R17: 0 | S17: 0 | T17: 0 | U17: 0 | V17: 0 | W17: 0.09803921569 | X17: 0 | Y17: 0.2125040492 | Z17: 0 | AA17: 0.1195652174 | AB17: 0 | AC17: 125894.7077 | AD17: 0 | AE17: 0 | AF17: 1.0377 | AG17: 0 | AH17: 24576 | AI17: 0 | AJ17: 0 | AK17: 4384 | AL17: 843261.4109 | AM17: 27023.0317 | AN17: 24576 | AO17: 177 | AR17: 0 | AS17: 0 | AT17: 0 | BI17: n | CC17: 0
A18: 2132 | B18: Hadlow Primary School | C18: 1 | D18: 186 | E18: 0 | F18: 0 | G18: 0.3709677419 | H18: 0 | I18: 0.3709677419 | J18: 0 | K18: 0.05376344086 | L18: 0.5 | M18: 0.01612903226 | N18: 0 | O18: 0 | P18: 0 | Q18: 0 | R18: 0 | S18: 0 | T18: 0 | U18: 0 | V18: 0 | W18: 0.03846153846 | X18: 0 | Y18: 0.3471889952 | Z18: 0 | AA18: 0.05376344086 | AB18: 0 | AC18: 125894.7077 | AD18: 0 | AE18: 0 | AF18: 1 | AG18: 0 | AH18: 24326 | AI18: 0 | AJ18: 0 | AK18: 4384 | AL18: 844932.4862 | AM18: 25384.0099 | AN18: 24326 | AO18: 178 | AR18: 0 | AS18: 0 | AT18: 0 | BI18: n | CC18: 0
A19: 2134 | B19: Four Elms Primary School | C19: 1 | D19: 110 | E19: 0 | F19: 0 | G19: 0.06363636364 | H19: 0 | I19: 0.06363636364 | J19: 0 | K19: 0.1181818182 | L19: 0 | M19: 0.2090909091 | N19: 0 | O19: 0 | P19: 0 | Q19: 0 | R19: 0 | S19: 0 | T19: 0 | U19: 0 | V19: 0 | W19: 0 | X19: 0 | Y19: 0.2831541219 | Z19: 0 | AA19: 0.07272727273 | AB19: 0 | AC19: 125894.7077 | AD19: 29424.36711 | AE19: 0 | AF19: 1.0377 | AG19: 0 | AH19: 13348 | AI19: 0 | AJ19: 0 | AK19: 4384 | AL19: 586391.037 | AM19: 15576.0779 | AN19: 13348 | AO19: 108 | AR19: 0 | AS19: 0 | AT19: 0 | BI19: n | CC19: 0
A20: 2136 | B20: Kemsing Primary School | C20: 1 | D20: 180 | E20: 0 | F20: 0 | G20: 0.1277777778 | H20: 0 | I20: 0.1277777778 | J20: 0 | K20: 0 | L20: 0 | M20: 0 | N20: 0 | O20: 0.005586592179 | P20: 0 | Q20: 0 | R20: 0 | S20: 0 | T20: 0 | U20: 0 | V20: 0 | W20: 0.03311258278 | X20: 0 | Y20: 0.2445887446 | Z20: 0 | AA20: 0.03888888889 | AB20: 0 | AC20: 125894.7077 | AD20: 0 | AE20: 0 | AF20: 1.0377 | AG20: 0 | AH20: 21956 | AI20: 0 | AJ20: 0 | AK20: 4384 | AL20: 781513.1026 | AM20: 23053.7579 | AN20: 21956 | AO20: 170 | AR20: 0 | AS20: 0 | AT20: 0 | BI20: n | CC20: 0
A21: 2137 | B21: Leigh Primary School | C21: 1 | D21: 161 | E21: 0 | F21: 0 | G21: 0.1863354037 | H21: 0 | I21: 0.198757764 | J21: 0 | K21: 0.04347826087 | L21: 0 | M21: 0.01863354037 | N21: 0 | O21: 0 | P21: 0 | Q21: 0 | R21: 0 | S21: 0 | T21: 0 | U21: 0 | V21: 0 | W21: 0.01459854015 | X21: 0 | Y21: 0.2313432836 | Z21: 0 | AA21: 0.01863354037 | AB21: 0 | AC21: 125894.7077 | AD21: 0 | AE21: 0 | AF21: 1.0377 | AG21: 0 | AH21: 12200 | AI21: 0 | AJ21: 0 | AK21: 4384 | AL21: 739935.5736 | AM21: 22512.9651 | AN21: 12200 | AO21: 162 | AR21: 0 | AS21: 0 | AT21: 0 | BI21: n | CC21: 0
A22: 2138 | B22: Otford Primary School | C22: 1 | D22: 338 | E22: 0 | F22: 0 | G22: 0.1272189349 | H22: 0 | I22: 0.1301775148 | J22: 0 | K22: 0.02662721893 | L22: 0.005917159763 | M22: 0 | N22: 0 | O22: 0 | P22: 0 | Q22: 0 | R22: 0 | S22: 0 | T22: 0 | U22: 0 | V22: 0 | W22: 0.01333333333 | X22: 0 | Y22: 0.1375953159 | Z22: 0 | AA22: 0.04747774481 | AB22: 0 | AC22: 125894.7077 | AD22: 0 | AE22: 0 | AF22: 1.0377 | AG22: 0 | AH22: 29440 | AI22: 0 | AJ22: 0 | AK22: 4384 | AL22: 1598960 | AM22: 44489.2894 | AN22: 29440 | AO22: 368 | AR22: 0 | AS22: 0 | AT22: 0 | BI22: n | CC22: 0
A23: 2139 | B23: Pembury School | C23: 1 | D23: 400 | E23: 0 | F23: 0 | G23: 0.1125 | H23: 0 | I23: 0.115 | J23: 0 | K23: 0.05 | L23: 0 | M23: 0 | N23: 0.0025 | O23: 0 | P23: 0 | Q23: 0 | R23: 0 | S23: 0 | T23: 0 | U23: 0 | V23: 0 | W23: 0.07803468208 | X23: 0 | Y23: 0.1884309325 | Z23: 0 | AA23: 0.0425 | AB23: 0 | AC23: 125894.7077 | AD23: 0 | AE23: 0 | AF23: 1 | AG23: 0 | AH23: 42496 | AI23: 0 | AJ23: 0 | AK23: 4384 | AL23: 1718641 | AM23: 45488.2738 | AN23: 42496 | AO23: 393 | AR23: 0 | AS23: 0 | AT23: 0 | BI23: n | CC23: 0
A24: 2142 | B24: Sandhurst Primary School | C24: 1 | D24: 153 | E24: 0 | F24: 0 | G24: 0.2418300654 | H24: 0 | I24: 0.2549019608 | J24: 0 | K24: 0.03267973856 | L24: 0.01307189542 | M24: 0 | N24: 0 | O24: 0 | P24: 0 | Q24: 0 | R24: 0 | S24: 0 | T24: 0 | U24: 0 | V24: 0 | W24: 0.06870229008 | X24: 0 | Y24: 0.218969555 | Z24: 0 | AA24: 0.09150326797 | AB24: 0 | AC24: 125894.7077 | AD24: 0 | AE24: 0 | AF24: 1 | AG24: 0 | AH24: 21582 | AI24: 0 | AJ24: 0 | AK24: 4384 | AL24: 732270.6935 | AM24: 22530.9857 | AN24: 21582 | AO24: 160 | AR24: 0 | AS24: 0 | AT24: 0 | BI24: n | CC24: 0
A25: 2147 | B25: Weald Community Primary School | C25: 1 | D25: 121 | E25: 0 | F25: 0 | G25: 0.1157024793 | H25: 0 | I25: 0.1157024793 | J25: 0 | K25: 0.00826446281 | L25: 0 | M25: 0.00826446281 | N25: 0.00826446281 | O25: 0 | P25: 0 | Q25: 0 | R25: 0 | S25: 0 | T25: 0 | U25: 0 | V25: 0 | W25: 0.0495049505 | X25: 0 | Y25: 0.125 | Z25: 0 | AA25: 0.07438016529 | AB25: 0 | AC25: 125894.7077 | AD25: 21292.00434 | AE25: 0 | AF25: 1.0377 | AG25: 0 | AH25: 15220 | AI25: 0 | AJ25: 0 | AK25: 4384 | AL25: 602874.1915 | AM25: 16923.389 | AN25: 15220 | AO25: 117 | AR25: 0 | AS25: 0 | AT25: 0 | BI25: n | CC25: 0
A26: 2148 | B26: Shoreham Village School | C26: 1 | D26: 86 | E26: 0 | F26: 0 | G26: 0.2209302326 | H26: 0 | I26: 0.2558139535 | J26: 0 | K26: 0.04651162791 | L26: 0 | M26: 0 | N26: 0 | O26: 0 | P26: 0 | Q26: 0 | R26: 0 | S26: 0 | T26: 0 | U26: 0 | V26: 0 | W26: 0 | X26: 0 | Y26: 0.2675438596 | Z26: 0 | AA26: 0.02325581395 | AB26: 0 | AC26: 125894.7077 | AD26: 47167.70406 | AE26: 0 | AF26: 1.0377 | AG26: 0 | AH26: 14097 | AI26: 0 | AJ26: 0 | AK26: 4384 | AL26: 530938.5969 | AM26: 14582.7215 | AN26: 14097 | AO26: 92 | AR26: 0 | AS26: 0 | AT26: 0 | BI26: n | CC26: 0
A27: 2155 | B27: Slade Primary School and Attached Unit for Children with Hearing Impairment | C27: 1 | D27: 421 | E27: 0 | F27: 0 | G27: 0.1306413302 | H27: 0 | I27: 0.1306413302 | J27: 0 | K27: 0.1995249406 | L27: 0.004750593824 | M27: 0.04038004751 | N27: 0.002375296912 | O27: 0 | P27: 0 | Q27: 0 | R27: 0 | S27: 0 | T27: 0 | U27: 0 | V27: 0 | W27: 0.1689750693 | X27: 0 | Y27: 0.3074476544 | Z27: 0 | AA27: 0.06413301663 | AB27: 0 | AC27: 125894.7077 | AD27: 0 | AE27: 0 | AF27: 1 | AG27: 0 | AH27: 29952 | AI27: 0 | AJ27: 0 | AK27: 4384 | AL27: 1812722 | AM27: 48000.0559 | AN27: 29952 | AO27: 418 | AR27: 0 | AS27: 0 | AT27: 0 | BI27: n | CC27: 0
A28: 2156 | B28: Sussex Road Community Primary School | C28: 1 | D28: 420 | E28: 0 | F28: 0 | G28: 0.1380952381 | H28: 0 | I28: 0.1404761905 | J28: 0 | K28: 0.1095238095 | L28: 0.009523809524 | M28: 0.03095238095 | N28: 0.007142857143 | O28: 0 | P28: 0 | Q28: 0 | R28: 0 | S28: 0 | T28: 0 | U28: 0 | V28: 0 | W28: 0.08611111111 | X28: 0 | Y28: 0.1766023768 | Z28: 0 | AA28: 0.05 | AB28: 0 | AC28: 125894.7077 | AD28: 0 | AE28: 0 | AF28: 1 | AG28: 0 | AH28: 44544 | AI28: 0 | AJ28: 0 | AK28: 4384 | AL28: 1955264 | AM28: 52783.4497 | AN28: 44544 | AO28: 448 | AR28: 0 | AS28: 0 | AT28: 0 | BI28: n | CC28: 0
A29: 2161 | B29: Boughton Monchelsea Primary School | C29: 1 | D29: 204 | E29: 0 | F29: 0 | G29: 0.1911764706 | H29: 0 | I29: 0.1960784314 | J29: 0 | K29: 0.1568627451 | L29: 0.004901960784 | M29: 0 | N29: 0.009803921569 | O29: 0.01960784314 | P29: 0 | Q29: 0 | R29: 0 | S29: 0 | T29: 0 | U29: 0 | V29: 0 | W29: 0.01744186047 | X29: 0 | Y29: 0.2847953216 | Z29: 0 | AA29: 0.05392156863 | AB29: 0 | AC29: 125894.7077 | AD29: 0 | AE29: 0 | AF29: 1 | AG29: 0 | AH29: 22580 | AI29: 0 | AJ29: 0 | AK29: 4384 | AL29: 909700 | AM29: 26509.8086 | AN29: 22580 | AO29: 208 | AR29: 0 | AS29: 0 | AT29: 0 | BI29: n | CC29: 0
A30: 2163 | B30: East Farleigh Primary School | C30: 1 | D30: 207 | E30: 0 | F30: 0 | G30: 0.1207729469 | H30: 0 | I30: 0.1304347826 | J30: 0 | K30: 0.09661835749 | L30: 0.038647343 | M30: 0.004830917874 | N30: 0 | O30: 0.05797101449 | P30: 0 | Q30: 0 | R30: 0 | S30: 0 | T30: 0 | U30: 0 | V30: 0 | W30: 0.02824858757 | X30: 0 | Y30: 0.2464633068 | Z30: 0 | AA30: 0.0193236715 | AB30: 0 | AC30: 125894.7077 | AD30: 0 | AE30: 0 | AF30: 1 | AG30: 0 | AH30: 16717 | AI30: 0 | AJ30: 0 | AK30: 4384 | AL30: 891042 | AM30: 25623.1795 | AN30: 16717 | AO30: 205 | AR30: 0 | AS30: 0 | AT30: 0 | BI30: n | CC30: 0
A31: 2164 | B31: East Peckham Primary School | C31: 1 | D31: 170 | E31: 0 | F31: 0 | G31: 0.1470588235 | H31: 0 | I31: 0.1647058824 | J31: 0 | K31: 0.5294117647 | L31: 0.04117647059 | M31: 0 | N31: 0 | O31: 0.01764705882 | P31: 0 | Q31: 0 | R31: 0 | S31: 0 | T31: 0 | U31: 0 | V31: 0 | W31: 0.01428571429 | X31: 0 | Y31: 0.2230019493 | Z31: 0 | AA31: 0.08823529412 | AB31: 0 | AC31: 125894.7077 | AD31: 0 | AE31: 0 | AF31: 1 | AG31: 0 | AH31: 20709 | AI31: 0 | AJ31: 0 | AK31: 4384 | AL31: 715473.3315 | AM31: 20951.8653 | AN31: 20709 | AO31: 156 | AR31: 0 | AS31: 0 | AT31: 0 | BI31: n | CC31: 0
A32: 2165 | B32: Headcorn Primary School | C32: 1 | D32: 386 | E32: 0 | F32: 0 | G32: 0.189119171 | H32: 0 | I32: 0.1943005181 | J32: 0 | K32: 0.0103626943 | L32: 0 | M32: 0.2694300518 | N32: 0.002590673575 | O32: 0 | P32: 0 | Q32: 0 | R32: 0 | S32: 0 | T32: 0 | U32: 0 | V32: 0 | W32: 0.05487804878 | X32: 0 | Y32: 0.1742936943 | Z32: 0 | AA32: 0.0518134715 | AB32: 0 | AC32: 125894.7077 | AD32: 0 | AE32: 0 | AF32: 1 | AG32: 0 | AH32: 40918 | AI32: 0 | AJ32: 0 | AK32: 4384 | AL32: 1534734 | AM32: 42930.459 | AN32: 41984 | AO32: 350 | AR32: 0 | AS32: 0 | AT32: 0 | BI32: n | CC32: 0
A33: 2166 | B33: Hollingbourne Primary School | C33: 1 | D33: 98 | E33: 0 | F33: 0 | G33: 0.2346938776 | H33: 0 | I33: 0.2346938776 | J33: 0 | K33: 0.0306122449 | L33: 0 | M33: 0 | N33: 0 | O33: 0 | P33: 0 | Q33: 0 | R33: 0 | S33: 0 | T33: 0 | U33: 0 | V33: 0 | W33: 0.02325581395 | X33: 0 | Y33: 0.3495934959 | Z33: 0 | AA33: 0.07142857143 | AB33: 0 | AC33: 125894.7077 | AD33: 38296.03558 | AE33: 0 | AF33: 1 | AG33: 0 | AH33: 13723 | AI33: 0 | AJ33: 0 | AK33: 4384 | AL33: 548096.4369 | AM33: 14835.5258 | AN33: 13723 | AO33: 100 | AR33: 0 | AS33: 0 | AT33: 0 | BI33: n | CC33: 0
A34: 2167 | B34: Ightham Primary School | C34: 1 | D34: 209 | E34: 0 | F34: 0 | G34: 0.03349282297 | H34: 0 | I34: 0.03349282297 | J34: 0 | K34: 0.05314009662 | L34: 0 | M34: 0 | N34: 0 | O34: 0 | P34: 0 | Q34: 0 | R34: 0 | S34: 0 | T34: 0 | U34: 0 | V34: 0 | W34: 0.02234636872 | X34: 0 | Y34: 0.1412429379 | Z34: 0 | AA34: 0.02392344498 | AB34: 0 | AC34: 125894.7077 | AD34: 0 | AE34: 0 | AF34: 1 | AG34: 0 | AH34: 21457 | AI34: 0 | AJ34: 0 | AK34: 4384 | AL34: 874457 | AM34: 23606.7489 | AN34: 21457 | AO34: 200 | AR34: 0 | AS34: 0 | AT34: 0 | BI34: n | CC34: 0
A35: 2168 | B35: Lenham Primary School | C35: 1 | D35: 211 | E35: 0 | F35: 0 | G35: 0.1943127962 | H35: 0 | I35: 0.1990521327 | J35: 0 | K35: 0.009523809524 | L35: 0.01428571429 | M35: 0 | N35: 0 | O35: 0 | P35: 0.004761904762 | Q35: 0 | R35: 0 | S35: 0 | T35: 0 | U35: 0 | V35: 0 | W35: 0.02762430939 | X35: 0 | Y35: 0.3351955307 | Z35: 0 | AA35: 0.04739336493 | AB35: 0 | AC35: 125894.7077 | AD35: 0 | AE35: 0 | AF35: 1 | AG35: 0 | AH35: 18837 | AI35: 0 | AJ35: 0 | AK35: 4384 | AL35: 905957 | AM35: 26935.1104 | AN35: 18837 | AO35: 208 | AR35: 0 | AS35: 0 | AT35: 0 | BI35: n | CC35: 0
A36: 2169 | B36: Platts Heath Primary School | C36: 1 | D36: 62 | E36: 0 | F36: 0 | G36: 0.2903225806 | H36: 0 | I36: 0.3064516129 | J36: 0 | K36: 0.03225806452 | L36: 0 | M36: 0.09677419355 | N36: 0.01612903226 | O36: 0 | P36: 0 | Q36: 0 | R36: 0 | S36: 0 | T36: 0 | U36: 0 | V36: 0 | W36: 0.01818181818 | X36: 0 | Y36: 0.3518518519 | Z36: 0 | AA36: 0.08064516129 | AB36: 0 | AC36: 125894.7077 | AD36: 15504.71927 | AE36: 0 | AF36: 1 | AG36: 0 | AH36: 2345 | AI36: 0 | AJ36: 0 | AK36: 4384 | AL36: 345594.7408 | AM36: 10249.2718 | AN36: 2345 | AO36: 51 | AR36: 0 | AS36: 0 | AT36: 0 | BI36: n | CC36: 0
A37: 2171 | B37: Brunswick House Primary School | C37: 1 | D37: 420 | E37: 0 | F37: 0 | G37: 0.25 | H37: 0 | I37: 0.2547619048 | J37: 0 | K37: 0.1007194245 | L37: 0.00479616307 | M37: 0.00479616307 | N37: 0.01199040767 | O37: 0.002398081535 | P37: 0 | Q37: 0 | R37: 0 | S37: 0 | T37: 0 | U37: 0 | V37: 0 | W37: 0.1361111111 | X37: 0 | Y37: 0.2856157635 | Z37: 0 | AA37: 0.04761904762 | AB37: 0 | AC37: 125894.7077 | AD37: 0 | AE37: 0 | AF37: 1 | AG37: 0 | AH37: 66048 | AI37: 0 | AJ37: 0 | AK37: 4384 | AL37: 1853083 | AM37: 52520.2629 | AN37: 66048 | AO37: 419 | AR37: 0 | AS37: 0 | AT37: 0 | BI37: n | CC37: 0
A38: 2175 | B38: North Borough Junior School | C38: 1 | D38: 348 | E38: 0 | F38: 0 | G38: 0.2701149425 | H38: 0 | I38: 0.2787356322 | J38: 0 | K38: 0.2873563218 | L38: 0.02298850575 | M38: 0.005747126437 | N38: 0.005747126437 | O38: 0.01149425287 | P38: 0 | Q38: 0 | R38: 0 | S38: 0 | T38: 0 | U38: 0 | V38: 0 | W38: 0.1729106628 | X38: 0 | Y38: 0.2687353325 | Z38: 0 | AA38: 0.08620689655 | AB38: 0 | AC38: 125894.7077 | AD38: 0 | AE38: 0 | AF38: 1 | AG38: 0 | AH38: 23328 | AI38: 0 | AJ38: 0 | AK38: 4384 | AL38: 1472332 | AM38: 43831.098 | AN38: 22232 | AO38: 340 | AR38: 0 | AS38: 0 | AT38: 0 | BI38: n | CC38: 0
A39: 2176 | B39: Park Way Primary School | C39: 1 | D39: 309 | E39: 0 | F39: 0 | G39: 0.2524271845 | H39: 0 | I39: 0.2621359223 | J39: 0 | K39: 0.2071197411 | L39: 0.2718446602 | M39: 0.0355987055 | N39: 0.009708737864 | O39: 0.08090614887 | P39: 0 | Q39: 0 | R39: 0 | S39: 0 | T39: 0 | U39: 0 | V39: 0 | W39: 0.2113207547 | X39: 0 | Y39: 0.342035061 | Z39: 0 | AA39: 0.08090614887 | AB39: 0 | AC39: 125894.7077 | AD39: 0 | AE39: 0 | AF39: 1 | AG39: 0 | AH39: 28416 | AI39: 0 | AJ39: 0 | AK39: 4384 | AL39: 1394366.313 | AM39: 41842.6872 | AN39: 28416 | AO39: 309 | AR39: 0 | AS39: 0 | AT39: 0 | BI39: n | CC39: 0
A40: 2185 | B40: Mereworth Community Primary School | C40: 1 | D40: 203 | E40: 0 | F40: 0 | G40: 0.1625615764 | H40: 0 | I40: 0.1625615764 | J40: 0 | K40: 0.1343283582 | L40: 0.01492537313 | M40: 0.004975124378 | N40: 0.004975124378 | O40: 0.004975124378 | P40: 0 | Q40: 0 | R40: 0 | S40: 0 | T40: 0 | U40: 0 | V40: 0 | W40: 0.02312138728 | X40: 0 | Y40: 0.1813515825 | Z40: 0 | AA40: 0.04433497537 | AB40: 0 | AC40: 125894.7077 | AD40: 0 | AE40: 0 | AF40: 1 | AG40: 0 | AH40: 26368 | AI40: 0 | AJ40: 0 | AK40: 4384 | AL40: 917753 | AM40: 26947.1189 | AN40: 26368 | AO40: 209 | AR40: 0 | AS40: 0 | AT40: 0 | BI40: n | CC40: 0
A41: 2187 | B41: Offham Primary School | C41: 1 | D41: 209 | E41: 0 | F41: 0 | G41: 0.05741626794 | H41: 0 | I41: 0.05741626794 | J41: 0 | K41: 0.1346153846 | L41: 0.004807692308 | M41: 0 | N41: 0 | O41: 0.01442307692 | P41: 0 | Q41: 0 | R41: 0 | S41: 0 | T41: 0 | U41: 0 | V41: 0 | W41: 0.01675977654 | X41: 0 | Y41: 0.1536507937 | Z41: 0 | AA41: 0.01913875598 | AB41: 0 | AC41: 125894.7077 | AD41: 0 | AE41: 0 | AF41: 1 | AG41: 0 | AH41: 23827 | AI41: 0 | AJ41: 0 | AK41: 4384 | AL41: 932272 | AM41: 25208.8856 | AN41: 23827 | AO41: 213 | AR41: 0 | AS41: 0 | AT41: 0 | BI41: n | CC41: 0
A42: 2188 | B42: Plaxtol Primary School | C42: 1 | D42: 101 | E42: 0 | F42: 0 | G42: 0.1188118812 | H42: 0 | I42: 0.1188118812 | J42: 0 | K42: 0.08910891089 | L42: 0.009900990099 | M42: 0 | N42: 0 | O42: 0 | P42: 0 | Q42: 0 | R42: 0 | S42: 0 | T42: 0 | U42: 0 | V42: 0 | W42: 0.01149425287 | X42: 0 | Y42: 0.2094117647 | Z42: 0 | AA42: 0.08910891089 | AB42: 0 | AC42: 125894.7077 | AD42: 33552.65017 | AE42: 0 | AF42: 1 | AG42: 0 | AH42: 13847 | AI42: 0 | AJ42: 0 | AK42: 4384 | AL42: 515719.1304 | AM42: 14131.0259 | AN42: 13847 | AO42: 98 | AR42: 0 | AS42: 0 | AT42: 0 | BI42: n | CC42: 0
A43: 2189 | B43: Ryarsh Primary School | C43: 1 | D43: 209 | E43: 0 | F43: 0 | G43: 0.07177033493 | H43: 0 | I43: 0.07177033493 | J43: 0 | K43: 0.02870813397 | L43: 0.00956937799 | M43: 0 | N43: 0.004784688995 | O43: 0 | P43: 0 | Q43: 0 | R43: 0 | S43: 0 | T43: 0 | U43: 0 | V43: 0 | W43: 0.005586592179 | X43: 0 | Y43: 0.1843575419 | Z43: 0 | AA43: 0.03827751196 | AB43: 0 | AC43: 125894.7077 | AD43: 0 | AE43: 0 | AF43: 1 | AG43: 0 | AH43: 17964 | AI43: 0 | AJ43: 0 | AK43: 4384 | AL43: 913614 | AM43: 25087.7997 | AN43: 17964 | AO43: 210 | AR43: 0 | AS43: 0 | AT43: 0 | BI43: n | CC43: 0
A44: 2190 | B44: Shipbourne School | C44: 1 | D44: 60 | E44: 0 | F44: 0 | G44: 0.1833333333 | H44: 0 | I44: 0.1833333333 | J44: 0 | K44: 0.1355932203 | L44: 0.05084745763 | M44: 0.05084745763 | N44: 0 | O44: 0 | P44: 0 | Q44: 0 | R44: 0 | S44: 0 | T44: 0 | U44: 0 | V44: 0 | W44: 0.09615384615 | X44: 0 | Y44: 0.1995464853 | Z44: 0 | AA44: 0.1333333333 | AB44: 0 | AC44: 125894.7077 | AD44: 0 | AE44: 0 | AF44: 1 | AG44: 0 | AH44: 6737 | AI44: 0 | AJ44: 0 | AK44: 4384 | AL44: 338458.2178 | AM44: 10357.3485 | AN44: 6737 | AO44: 60 | AR44: 0 | AS44: 0 | AT44: 0 | BI44: n | CC44: 0
A45: 2192 | B45: Staplehurst School | C45: 1 | D45: 404 | E45: 0 | F45: 0 | G45: 0.1955445545 | H45: 0 | I45: 0.2004950495 | J45: 0 | K45: 0.01243781095 | L45: 0.01741293532 | M45: 0.002487562189 | N45: 0 | O45: 0 | P45: 0 | Q45: 0 | R45: 0 | S45: 0 | T45: 0 | U45: 0 | V45: 0 | W45: 0.0296735905 | X45: 0 | Y45: 0.3082183027 | Z45: 0 | AA45: 0.06930693069 | AB45: 0 | AC45: 125894.7077 | AD45: 0 | AE45: 0 | AF45: 1 | AG45: 0 | AH45: 37632 | AI45: 0 | AJ45: 0 | AK45: 4384 | AL45: 1615682 | AM45: 45637.3796 | AN45: 37632 | AO45: 370 | AR45: 0 | AS45: 0 | AT45: 0 | BI45: n | CC45: 0
A46: 2193 | B46: Sutton Valence Primary School | C46: 1 | D46: 207 | E46: 0 | F46: 0 | G46: 0.2028985507 | H46: 0 | I46: 0.2077294686 | J46: 0 | K46: 0.1256038647 | L46: 0.04347826087 | M46: 0.038647343 | N46: 0.038647343 | O46: 0.004830917874 | P46: 0 | Q46: 0 | R46: 0 | S46: 0 | T46: 0 | U46: 0 | V46: 0 | W46: 0.07344632768 | X46: 0 | Y46: 0.1953017043 | Z46: 0 | AA46: 0.08212560386 | AB46: 0 | AC46: 125894.7077 | AD46: 0 | AE46: 0 | AF46: 1 | AG46: 0 | AH46: 19835 | AI46: 0 | AJ46: 0 | AK46: 4384 | AL46: 889946.8706 | AM46: 26972.1366 | AN46: 19835 | AO46: 204 | AR46: 0 | AS46: 0 | AT46: 0 | BI46: n | CC46: 0
A47: 2226 | B47: Eastling Primary School | C47: 1 | D47: 104 | E47: 0 | F47: 0 | G47: 0.1538461538 | H47: 0 | I47: 0.1538461538 | J47: 0 | K47: 0.1346153846 | L47: 0 | M47: 0.01923076923 | N47: 0 | O47: 0.05769230769 | P47: 0 | Q47: 0 | R47: 0 | S47: 0 | T47: 0 | U47: 0 | V47: 0 | W47: 0.09782608696 | X47: 0 | Y47: 0.247464503 | Z47: 0 | AA47: 0.125 | AB47: 0 | AC47: 125894.7077 | AD47: 33860.20134 | AE47: 0 | AF47: 1 | AG47: 0 | AH47: 12974 | AI47: 0 | AJ47: 0 | AK47: 4384 | AL47: 529818.7829 | AM47: 14544.3191 | AN47: 12725 | AO47: 97 | AR47: 0 | AS47: 0 | AT47: 0 | BI47: n | CC47: 0
A48: 2227 | B48: Ethelbert Road Primary School | C48: 1 | D48: 210 | E48: 0 | F48: 0 | G48: 0.06666666667 | H48: 0 | I48: 0.06666666667 | J48: 0 | K48: 0.02857142857 | L48: 0.0619047619 | M48: 0.02380952381 | N48: 0.004761904762 | O48: 0.02380952381 | P48: 0 | Q48: 0 | R48: 0 | S48: 0 | T48: 0 | U48: 0 | V48: 0 | W48: 0.05027932961 | X48: 0 | Y48: 0.2055555556 | Z48: 0 | AA48: 0.01428571429 | AB48: 0 | AC48: 125894.7077 | AD48: 0 | AE48: 0 | AF48: 1 | AG48: 0 | AH48: 11477 | AI48: 0 | AJ48: 0 | AK48: 4384 | AL48: 902862 | AM48: 25245.9119 | AN48: 11477 | AO48: 209 | AR48: 0 | AS48: 0 | AT48: 0 | BI48: n | CC48: 0
A49: 2228 | B49: Davington Primary School | C49: 1 | D49: 409 | E49: 0 | F49: 0 | G49: 0.2004889976 | H49: 0 | I49: 0.2004889976 | J49: 0 | K49: 0.1393643032 | L49: 0.05378973105 | M49: 0.03178484108 | N49: 0 | O49: 0.3251833741 | P49: 0.007334963325 | Q49: 0 | R49: 0 | S49: 0 | T49: 0 | U49: 0 | V49: 0 | W49: 0.03151862464 | X49: 0 | Y49: 0.2641749301 | Z49: 0 | AA49: 0.05134474328 | AB49: 0 | AC49: 125894.7077 | AD49: 0 | AE49: 0 | AF49: 1 | AG49: 0 | AH49: 39424 | AI49: 0 | AJ49: 0 | AK49: 4384 | AL49: 1800869 | AM49: 50576.8841 | AN49: 39424 | AO49: 413 | AR49: 0 | AS49: 0 | AT49: 0 | BI49: n | CC49: 0
A50: 2231 | B50: Lower Halstow Primary School | C50: 1 | D50: 186 | E50: 0 | F50: 0 | G50: 0.09139784946 | H50: 0 | I50: 0.1129032258 | J50: 0 | K50: 0.08152173913 | L50: 0.152173913 | M50: 0.005434782609 | N50: 0.02173913043 | O50: 0.005434782609 | P50: 0 | Q50: 0 | R50: 0 | S50: 0 | T50: 0 | U50: 0 | V50: 0 | W50: 0.03205128205 | X50: 0 | Y50: 0.2747203579 | Z50: 0 | AA50: 0.06451612903 | AB50: 0 | AC50: 125894.7077 | AD50: 0 | AE50: 0 | AF50: 1 | AG50: 0 | AH50: 20833 | AI50: 0 | AJ50: 0 | AK50: 4384 | AL50: 740468.7379 | AM50: 21655.3644 | AN50: 20833 | AO50: 165 | AR50: 0 | AS50: 0 | AT50: 0 | BI50: n | CC50: 0
A51: 2239 | B51: Rodmersham School | C51: 1 | D51: 113 | E51: 0 | F51: 0 | G51: 0.01769911504 | H51: 0 | I51: 0.02654867257 | J51: 0 | K51: 0.05309734513 | L51: 0.0796460177 | M51: 0.04424778761 | N51: 0.008849557522 | O51: 0 | P51: 0.02654867257 | Q51: 0 | R51: 0 | S51: 0 | T51: 0 | U51: 0 | V51: 0 | W51: 0.0202020202 | X51: 0 | Y51: 0.2255319149 | Z51: 0 | AA51: 0.01769911504 | AB51: 0 | AC51: 125894.7077 | AD51: 0 | AE51: 0 | AF51: 1 | AG51: 0 | AH51: 5863 | AI51: 0 | AJ51: 8100 | AK51: 4384 | AL51: 492389.3386 | AM51: 13923.8789 | AN51: 5863 | AO51: 102 | AR51: 0 | AS51: 0 | AT51: 0 | BI51: n | CC51: 0
A52: 2245 | B52: Rose Street Primary School | C52: 1 | D52: 390 | E52: 0 | F52: 0 | G52: 0.6051282051 | H52: 0 | I52: 0.6179487179 | J52: 0 | K52: 0.02051282051 | L52: 0.01025641026 | M52: 0.007692307692 | N52: 0.1666666667 | O52: 0.341025641 | P52: 0.441025641 | Q52: 0 | R52: 0 | S52: 0 | T52: 0 | U52: 0 | V52: 0 | W52: 0.04819277108 | X52: 0 | Y52: 0.3376362221 | Z52: 0 | AA52: 0.0822622108 | AB52: 0 | AC52: 125894.7077 | AD52: 0 | AE52: 0 | AF52: 1 | AG52: 0 | AH52: 79872 | AI52: 0 | AJ52: 0 | AK52: 4384 | AL52: 1976419.238 | AM52: 61055.3185 | AN52: 79872 | AO52: 386 | AR52: 4.55 | AS52: 1.05 | AT52: 0.7 | BI52: n | CC52: 0
A53: 2254 | B53: Canterbury Road Primary School | C53: 1 | D53: 207 | E53: 0 | F53: 0 | G53: 0.3188405797 | H53: 0 | I53: 0.3188405797 | J53: 0 | K53: 0.1014492754 | L53: 0.4057971014 | M53: 0.1256038647 | N53: 0.004830917874 | O53: 0.004830917874 | P53: 0.1304347826 | Q53: 0 | R53: 0 | S53: 0 | T53: 0 | U53: 0 | V53: 0 | W53: 0.1011235955 | X53: 0 | Y53: 0.3333333333 | Z53: 0 | AA53: 0.06763285024 | AB53: 0 | AC53: 125894.7077 | AD53: 0 | AE53: 0 | AF53: 1 | AG53: 0 | AH53: 29952 | AI53: 0 | AJ53: 0 | AK53: 4384 | AL53: 1001960.12 | AM53: 28697.3607 | AN53: 29952 | AO53: 206 | AR53: 0 | AS53: 0 | AT53: 0 | BI53: n | CC53: 0
A54: 2258 | B54: Blean Primary School | C54: 1 | D54: 430 | E54: 0 | F54: 0 | G54: 0.06744186047 | H54: 0 | I54: 0.07441860465 | J54: 0 | K54: 0.02093023256 | L54: 0.02093023256 | M54: 0.009302325581 | N54: 0.04651162791 | O54: 0.02558139535 | P54: 0 | Q54: 0 | R54: 0 | S54: 0 | T54: 0 | U54: 0 | V54: 0 | W54: 0.1081081081 | X54: 0 | Y54: 0.1756232687 | Z54: 0 | AA54: 0.02558139535 | AB54: 0 | AC54: 125894.7077 | AD54: 0 | AE54: 0 | AF54: 1 | AG54: 0 | AH54: 37632 | AI54: 0 | AJ54: 0 | AK54: 4384 | AL54: 1858787 | AM54: 48448.3739 | AN54: 37632 | AO54: 427 | AR54: 0 | AS54: 0 | AT54: 0 | BI54: y | CC54: 0
A55: 2263 | B55: Herne Bay Infant School | C55: 1 | D55: 266 | E55: 0 | F55: 0 | G55: 0.3496240602 | H55: 0 | I55: 0.3496240602 | J55: 0 | K55: 0.1616541353 | L55: 0.01879699248 | M55: 0.1165413534 | N55: 0.05639097744 | O55: 0.1616541353 | P55: 0 | Q55: 0 | R55: 0 | S55: 0 | T55: 0 | U55: 0 | V55: 0 | W55: 0.08620689655 | X55: 0 | Y55: 0.3273268576 | Z55: 0 | AA55: 0.03383458647 | AB55: 0 | AC55: 125894.7077 | AD55: 0 | AE55: 0 | AF55: 1 | AG55: 0 | AH55: 15968 | AI55: 0 | AJ55: 0 | AK55: 4384 | AL55: 1195709.576 | AM55: 37486.5966 | AN55: 15968 | AO55: 265 | AR55: 4.55 | AS55: 1.05 | AT55: 0.18 | BI55: n | CC55: 0
A56: 2265 | B56: Hoath Primary School | C56: 1 | D56: 103 | E56: 0 | F56: 0 | G56: 0.1650485437 | H56: 0 | I56: 0.1650485437 | J56: 0 | K56: 0.213592233 | L56: 0.05825242718 | M56: 0 | N56: 0.01941747573 | O56: 0.01941747573 | P56: 0.01941747573 | Q56: 0 | R56: 0 | S56: 0 | T56: 0 | U56: 0 | V56: 0 | W56: 0.01136363636 | X56: 0 | Y56: 0.2864721485 | Z56: 0 | AA56: 0.06796116505 | AB56: 0 | AC56: 125894.7077 | AD56: 518.9926058 | AE56: 0 | AF56: 1 | AG56: 0 | AH56: 14346 | AI56: 0 | AJ56: 0 | AK56: 4384 | AL56: 486939.9837 | AM56: 14009.94 | AN56: 14346 | AO56: 95 | AR56: 0 | AS56: 0 | AT56: 0 | BI56: n | CC56: 0
A57: 2268 | B57: Westmeads Community Infant School | C57: 1 | D57: 150 | E57: 0 | F57: 0 | G57: 0.1666666667 | H57: 0 | I57: 0.18 | J57: 0 | K57: 0 | L57: 0.006666666667 | M57: 0.04666666667 | N57: 0.01333333333 | O57: 0.006666666667 | P57: 0 | Q57: 0 | R57: 0 | S57: 0 | T57: 0 | U57: 0 | V57: 0 | W57: 0.08163265306 | X57: 0 | Y57: 0.2671551524 | Z57: 0 | AA57: 0.006666666667 | AB57: 0 | AC57: 125894.7077 | AD57: 0 | AE57: 0 | AF57: 1 | AG57: 0 | AH57: 19711 | AI57: 0 | AJ57: 0 | AK57: 4384 | AL57: 711325.6814 | AM57: 21121.986 | AN57: 19711 | AO57: 156 | AR57: 0 | AS57: 0 | AT57: 0 | BI57: y | CC57: 0
A58: 2269 | B58: Whitstable Junior School | C58: 1 | D58: 231 | E58: 0 | F58: 0 | G58: 0.2857142857 | H58: 0 | I58: 0.3116883117 | J58: 0 | K58: 0 | L58: 0.01731601732 | M58: 0.1341991342 | N58: 0.05194805195 | O58: 0.008658008658 | P58: 0 | Q58: 0 | R58: 0 | S58: 0 | T58: 0 | U58: 0 | V58: 0 | W58: 0.004347826087 | X58: 0 | Y58: 0.283110119 | Z58: 0 | AA58: 0.04329004329 | AB58: 0 | AC58: 125894.7077 | AD58: 0 | AE58: 0 | AF58: 1 | AG58: 0 | AH58: 3866 | AI58: 0 | AJ58: 0 | AK58: 4384 | AL58: 1076852.737 | AM58: 33964.0974 | AN58: -11105 | AO58: 255 | AR58: 0 | AS58: 0 | AT58: 0 | BI58: n | CC58: 0
A59: 2270 | B59: Aldington Primary School | C59: 1 | D59: 191 | E59: 0 | F59: 0 | G59: 0.1047120419 | H59: 0 | I59: 0.1047120419 | J59: 0 | K59: 0.005235602094 | L59: 0.01570680628 | M59: 0.01047120419 | N59: 0 | O59: 0.005235602094 | P59: 0 | Q59: 0 | R59: 0 | S59: 0 | T59: 0 | U59: 0 | V59: 0 | W59: 0.005917159763 | X59: 0 | Y59: 0.2936746988 | Z59: 0 | AA59: 0.02617801047 | AB59: 0 | AC59: 125894.7077 | AD59: 0 | AE59: 0 | AF59: 1 | AG59: 0 | AH59: 29952 | AI59: 0 | AJ59: 0 | AK59: 4384 | AL59: 891482 | AM59: 25672.2143 | AN59: 29952 | AO59: 202 | AR59: 0 | AS59: 0 | AT59: 0 | BI59: y | CC59: 0
A60: 2275 | B60: Victoria Road Primary School | C60: 1 | D60: 211 | E60: 0 | F60: 0 | G60: 0.2559241706 | H60: 0 | I60: 0.2701421801 | J60: 0 | K60: 0.07109004739 | L60: 0.05213270142 | M60: 0.009478672986 | N60: 0 | O60: 0.0663507109 | P60: 0 | Q60: 0 | R60: 0 | S60: 0 | T60: 0 | U60: 0 | V60: 0 | W60: 0.1104972376 | X60: 0 | Y60: 0.2736042693 | Z60: 0 | AA60: 0.05213270142 | AB60: 0 | AC60: 125894.7077 | AD60: 0 | AE60: 0 | AF60: 1 | AG60: 0 | AH60: 15095 | AI60: 0 | AJ60: 0 | AK60: 4384 | AL60: 932574.2908 | AM60: 28830.4551 | AN60: 15095 | AO60: 210 | AR60: 0 | AS60: 0 | AT60: 0 | BI60: n | CC60: 0
A61: 2276 | B61: Willesborough Infant School | C61: 1 | D61: 344 | E61: 0 | F61: 0 | G61: 0.148255814 | H61: 0 | I61: 0.148255814 | J61: 0 | K61: 0.1220930233 | L61: 0.1337209302 | M61: 0 | N61: 0.002906976744 | O61: 0.008720930233 | P61: 0 | Q61: 0 | R61: 0 | S61: 0 | T61: 0 | U61: 0 | V61: 0 | W61: 0.1966527197 | X61: 0 | Y61: 0.2552515169 | Z61: 0 | AA61: 0.01162790698 | AB61: 0 | AC61: 125894.7077 | AD61: 0 | AE61: 0 | AF61: 1 | AG61: 0 | AH61: 23079 | AI61: 0 | AJ61: 0 | AK61: 4384 | AL61: 1532889 | AM61: 43233.6741 | AN61: 23079 | AO61: 354 | AR61: 0 | AS61: 0 | AT61: 0 | BI61: n | CC61: 0
A62: 2278 | B62: Bethersden Primary School | C62: 1 | D62: 135 | E62: 0 | F62: 0 | G62: 0.2518518519 | H62: 0 | I62: 0.2518518519 | J62: 0 | K62: 0.007407407407 | L62: 0.01481481481 | M62: 0.007407407407 | N62: 0.007407407407 | O62: 0.05185185185 | P62: 0 | Q62: 0 | R62: 0 | S62: 0 | T62: 0 | U62: 0 | V62: 0 | W62: 0.0350877193 | X62: 0 | Y62: 0.1927927928 | Z62: 0 | AA62: 0.1111111111 | AB62: 0 | AC62: 125894.7077 | AD62: 10941.72445 | AE62: 0 | AF62: 1 | AG62: 0 | AH62: 10978 | AI62: 0 | AJ62: 0 | AK62: 4384 | AL62: 617337.3994 | AM62: 18489.118 | AN62: 10978 | AO62: 128 | AR62: 0 | AS62: 0 | AT62: 0 | BI62: y | CC62: 0
A63: 2279 | B63: Brook Community Primary School | C63: 1 | D63: 75 | E63: 0 | F63: 0 | G63: 0.12 | H63: 0 | I63: 0.16 | J63: 0 | K63: 0.02666666667 | L63: 0.05333333333 | M63: 0 | N63: 0 | O63: 0.06666666667 | P63: 0 | Q63: 0 | R63: 0 | S63: 0 | T63: 0 | U63: 0 | V63: 0 | W63: 0.02941176471 | X63: 0 | Y63: 0.1194029851 | Z63: 0 | AA63: 0.09333333333 | AB63: 0 | AC63: 125894.7077 | AD63: 55300.06682 | AE63: 0 | AF63: 1 | AG63: 0 | AH63: 8608 | AI63: 0 | AJ63: 0 | AK63: 4384 | AL63: 468764.2171 | AM63: 12699.0099 | AN63: 8608 | AO63: 85 | AR63: 0 | AS63: 0 | AT63: 0 | BI63: n | CC63: 0
A64: 2280 | B64: Challock Primary School | C64: 1 | D64: 207 | E64: 0 | F64: 0 | G64: 0.07246376812 | H64: 0 | I64: 0.07729468599 | J64: 0 | K64: 0 | L64: 0.1116504854 | M64: 0.004854368932 | N64: 0.02427184466 | O64: 0 | P64: 0 | Q64: 0 | R64: 0 | S64: 0 | T64: 0 | U64: 0 | V64: 0 | W64: 0.01648351648 | X64: 0 | Y64: 0.2062615101 | Z64: 0 | AA64: 0.06280193237 | AB64: 0 | AC64: 125894.7077 | AD64: 0 | AE64: 0 | AF64: 1 | AG64: 0 | AH64: 19711 | AI64: 0 | AJ64: 0 | AK64: 4384 | AL64: 911096 | AM64: 24990.7308 | AN64: 19711 | AO64: 209 | AR64: 0 | AS64: 0 | AT64: 0 | BI64: n | CC64: 0
A65: 2282 | B65: Great Chart Primary School | C65: 1 | D65: 422 | E65: 0 | F65: 0 | G65: 0.172985782 | H65: 0 | I65: 0.172985782 | J65: 0 | K65: 0.009478672986 | L65: 0.02606635071 | M65: 0.009478672986 | N65: 0.002369668246 | O65: 0.04739336493 | P65: 0 | Q65: 0 | R65: 0 | S65: 0 | T65: 0 | U65: 0 | V65: 0 | W65: 0.07282913165 | X65: 0 | Y65: 0.1666666667 | Z65: 0 | AA65: 0.01421800948 | AB65: 0 | AC65: 125894.7077 | AD65: 0 | AE65: 0 | AF65: 1 | AG65: 0 | AH65: 38656 | AI65: 0 | AJ65: 0 | AK65: 4384 | AL65: 1838486 | AM65: 50429.7797 | AN65: 38656 | AO65: 422 | AR65: 0 | AS65: 0 | AT65: 0 | BI65: n | CC65: 0
A66: 2285 | B66: Mersham Primary School | C66: 1 | D66: 177 | E66: 0 | F66: 0 | G66: 0.1468926554 | H66: 0 | I66: 0.1638418079 | J66: 0 | K66: 0.0395480226 | L66: 0.0395480226 | M66: 0 | N66: 0.005649717514 | O66: 0.05084745763 | P66: 0 | Q66: 0 | R66: 0 | S66: 0 | T66: 0 | U66: 0 | V66: 0 | W66: 0.08176100629 | X66: 0 | Y66: 0.2478632479 | Z66: 0 | AA66: 0.06214689266 | AB66: 0 | AC66: 125894.7077 | AD66: 0 | AE66: 0 | AF66: 1 | AG66: 0 | AH66: 7859 | AI66: 0 | AJ66: 0 | AK66: 4384 | AL66: 781788.8421 | AM66: 23330.5529 | AN66: 7859 | AO66: 177 | AR66: 0 | AS66: 0 | AT66: 0 | BI66: n | CC66: 0
A67: 2289 | B67: Smeeth Community Primary School | C67: 1 | D67: 123 | E67: 0 | F67: 0 | G67: 0.1219512195 | H67: 0 | I67: 0.1219512195 | J67: 0 | K67: 0.04918032787 | L67: 0.03278688525 | M67: 0 | N67: 0.008196721311 | O67: 0 | P67: 0 | Q67: 0 | R67: 0 | S67: 0 | T67: 0 | U67: 0 | V67: 0 | W67: 0 | X67: 0 | Y67: 0.1555555556 | Z67: 0 | AA67: 0.0487804878 | AB67: 0 | AC67: 125894.7077 | AD67: 0 | AE67: 0 | AF67: 1 | AG67: 0 | AH67: 14845 | AI67: 0 | AJ67: 0 | AK67: 4384 | AL67: 589568.7664 | AM67: 17468.3938 | AN67: 14845 | AO67: 128 | AR67: 0 | AS67: 0 | AT67: 0 | BI67: n | CC67: 0
A68: 2298 | B68: Hawkinge Primary School | C68: 1 | D68: 400 | E68: 0 | F68: 0 | G68: 0.1825 | H68: 0 | I68: 0.1925 | J68: 0 | K68: 0.29 | L68: 0.005 | M68: 0.0175 | N68: 0.02 | O68: 0.025 | P68: 0 | Q68: 0 | R68: 0 | S68: 0 | T68: 0 | U68: 0 | V68: 0 | W68: 0.03197674419 | X68: 0 | Y68: 0.3232536897 | Z68: 0 | AA68: 0.0375 | AB68: 0 | AC68: 125894.7077 | AD68: 0 | AE68: 0 | AF68: 1 | AG68: 0 | AH68: 8243 | AI68: 0 | AJ68: 0 | AK68: 4384 | AL68: 1692918 | AM68: 48149.1616 | AN68: 8243 | AO68: 395 | AR68: 0 | AS68: 0 | AT68: 0 | BI68: n | CC68: 0
A69: 2300 | B69: Sellindge Primary School | C69: 1 | D69: 141 | E69: 0 | F69: 0 | G69: 0.134751773 | H69: 0 | I69: 0.134751773 | J69: 0 | K69: 0.02127659574 | L69: 0 | M69: 0.007092198582 | N69: 0.007092198582 | O69: 0 | P69: 0 | Q69: 0 | R69: 0 | S69: 0 | T69: 0 | U69: 0 | V69: 0 | W69: 0.03278688525 | X69: 0 | Y69: 0.2194444444 | Z69: 0 | AA69: 0.09929078014 | AB69: 0 | AC69: 125894.7077 | AD69: 6505.890215 | AE69: 0 | AF69: 1 | AG69: 0 | AH69: 17216 | AI69: 0 | AJ69: 0 | AK69: 4384 | AL69: 572166.5373 | AM69: 16072.4033 | AN69: 17216 | AO69: 118 | AR69: 0 | AS69: 0 | AT69: 0 | BI69: n | CC69: 0
A70: 2312 | B70: River Primary School | C70: 1 | D70: 410 | E70: 0 | F70: 0 | G70: 0.1731707317 | H70: 0 | I70: 0.1756097561 | J70: 0 | K70: 0.1540342298 | L70: 0.04645476773 | M70: 0.1173594132 | N70: 0.02200488998 | O70: 0.03422982885 | P70: 0.02689486553 | Q70: 0 | R70: 0 | S70: 0 | T70: 0 | U70: 0 | V70: 0 | W70: 0.01685393258 | X70: 0 | Y70: 0.245527307 | Z70: 0 | AA70: 0.05365853659 | AB70: 0 | AC70: 125894.7077 | AD70: 0 | AE70: 0 | AF70: 1 | AG70: 0 | AH70: 40960 | AI70: 0 | AJ70: 0 | AK70: 4384 | AL70: 1793875 | AM70: 49447.0825 | AN70: 40960 | AO70: 411 | AR70: 0 | AS70: 0 | AT70: 0 | BI70: n | CC70: 0
A71: 2318 | B71: Langdon Primary School | C71: 1 | D71: 84 | E71: 0 | F71: 0 | G71: 0.1785714286 | H71: 0 | I71: 0.1785714286 | J71: 0 | K71: 0.1666666667 | L71: 0.05952380952 | M71: 0.04761904762 | N71: 0 | O71: 0.07142857143 | P71: 0.0119047619 | Q71: 0 | R71: 0 | S71: 0 | T71: 0 | U71: 0 | V71: 0 | W71: 0.05633802817 | X71: 0 | Y71: 0.2457142857 | Z71: 0 | AA71: 0.1071428571 | AB71: 0 | AC71: 125894.7077 | AD71: 48646.31547 | AE71: 0 | AF71: 1 | AG71: 0 | AH71: 4990 | AI71: 0 | AJ71: 0 | AK71: 4384 | AL71: 491851.1675 | AM71: 13415.5183 | AN71: 4990 | AO71: 88 | AR71: 0 | AS71: 0 | AT71: 0 | BI71: n | CC71: 0
A72: 2320 | B72: Eythorne Elvington Community Primary School | C72: 1 | D72: 102 | E72: 0 | F72: 0 | G72: 0.4803921569 | H72: 0 | I72: 0.4803921569 | J72: 0 | K72: 0 | L72: 0.568627451 | M72: 0.01960784314 | N72: 0 | O72: 0.009803921569 | P72: 0 | Q72: 0 | R72: 0 | S72: 0 | T72: 0 | U72: 0 | V72: 0 | W72: 0.01149425287 | X72: 0 | Y72: 0.2062015504 | Z72: 0 | AA72: 0.1078431373 | AB72: 0 | AC72: 125894.7077 | AD72: 35338.81276 | AE72: 0 | AF72: 1 | AG72: 0 | AH72: 17340 | AI72: 0 | AJ72: 0 | AK72: 4384 | AL72: 613838.4044 | AM72: 19038.5078 | AN72: 17340 | AO72: 110 | AR72: 0 | AS72: 0 | AT72: 0 | BI72: n | CC72: 0
A73: 2321 | B73: Lydden Primary School | C73: 1 | D73: 76 | E73: 0 | F73: 0 | G73: 0.1184210526 | H73: 0 | I73: 0.1184210526 | J73: 0 | K73: 0.1184210526 | L73: 0.09210526316 | M73: 0.09210526316 | N73: 0.02631578947 | O73: 0.01315789474 | P73: 0 | Q73: 0 | R73: 0 | S73: 0 | T73: 0 | U73: 0 | V73: 0 | W73: 0.01515151515 | X73: 0 | Y73: 0.2554112554 | Z73: 0 | AA73: 0.1447368421 | AB73: 0 | AC73: 125894.7077 | AD73: 20187.48161 | AE73: 0 | AF73: 1 | AG73: 0 | AH73: 8483 | AI73: 0 | AJ73: 0 | AK73: 4384 | AL73: 440747.9738 | AM73: 12736.0362 | AN73: 4291 | AO73: 81 | AR73: 0 | AS73: 0 | AT73: 0 | BI73: n | CC73: 0
A74: 2322 | B74: Preston Primary School | C74: 1 | D74: 115 | E74: 0 | F74: 0 | G74: 0.07826086957 | H74: 0 | I74: 0.1043478261 | J74: 0 | K74: 0.1238938053 | L74: 0.008849557522 | M74: 0 | N74: 0.02654867257 | O74: 0.008849557522 | P74: 0 | Q74: 0 | R74: 0 | S74: 0 | T74: 0 | U74: 0 | V74: 0 | W74: 0 | X74: 0 | Y74: 0.2394220846 | Z74: 0 | AA74: 0.05217391304 | AB74: 0 | AC74: 125894.7077 | AD74: 25727.83858 | AE74: 0 | AF74: 1 | AG74: 0 | AH74: 17964 | AI74: 0 | AJ74: 0 | AK74: 4384 | AL74: 620940.6653 | AM74: 17917.7126 | AN74: 17372 | AO74: 130 | AR74: 0 | AS74: 0 | AT74: 0 | BI74: n | CC74: 0
A75: 2326 | B75: Wingham Primary School | C75: 1 | D75: 195 | E75: 0 | F75: 0 | G75: 0.1692307692 | H75: 0 | I75: 0.1794871795 | J75: 0 | K75: 0.1076923077 | L75: 0.02564102564 | M75: 0 | N75: 0.02564102564 | O75: 0 | P75: 0 | Q75: 0 | R75: 0 | S75: 0 | T75: 0 | U75: 0 | V75: 0 | W75: 0.03550295858 | X75: 0 | Y75: 0.2115768463 | Z75: 0 | AA75: 0.04615384615 | AB75: 0 | AC75: 125894.7077 | AD75: 0 | AE75: 0 | AF75: 1 | AG75: 0 | AH75: 31232 | AI75: 0 | AJ75: 0 | AK75: 4384 | AL75: 862907 | AM75: 25503.0943 | AN75: 31232 | AO75: 195 | AR75: 0 | AS75: 0 | AT75: 0 | BI75: n | CC75: 0
A76: 2328 | B76: St Mildred's Primary Infant School | C76: 1 | D76: 270 | E76: 0 | F76: 0 | G76: 0.2185185185 | H76: 0 | I76: 0.2185185185 | J76: 0 | K76: 0.05185185185 | L76: 0.06296296296 | M76: 0.08518518519 | N76: 0.02592592593 | O76: 0.03333333333 | P76: 0.003703703704 | Q76: 0 | R76: 0 | S76: 0 | T76: 0 | U76: 0 | V76: 0 | W76: 0.1388888889 | X76: 0 | Y76: 0.3107195472 | Z76: 0 | AA76: 0.01111111111 | AB76: 0 | AC76: 125894.7077 | AD76: 0 | AE76: 0 | AF76: 1 | AG76: 0 | AH76: 24950 | AI76: 0 | AJ76: 0 | AK76: 4384 | AL76: 1176500 | AM76: 35079.889 | AN76: 24950 | AO76: 270 | AR76: 0 | AS76: 0 | AT76: 0 | BI76: n | CC76: 0
A77: 2329 | B77: Callis Grange Nursery and Infant School | C77: 1 | D77: 258 | E77: 0 | F77: 0 | G77: 0.2364341085 | H77: 0 | I77: 0.2364341085 | J77: 0 | K77: 0.02713178295 | L77: 0.3255813953 | M77: 0.007751937984 | N77: 0.03100775194 | O77: 0.0503875969 | P77: 0.03875968992 | Q77: 0 | R77: 0 | S77: 0 | T77: 0 | U77: 0 | V77: 0 | W77: 0.07058823529 | X77: 0 | Y77: 0.2159483054 | Z77: 0 | AA77: 0.02325581395 | AB77: 0 | AC77: 125894.7077 | AD77: 0 | AE77: 0 | AF77: 1 | AG77: 0 | AH77: 43520 | AI77: 0 | AJ77: 0 | AK77: 4384 | AL77: 1164208.683 | AM77: 34158.2351 | AN77: 43520 | AO77: 257 | AR77: 4.55 | AS77: 1.05 | AT77: 0 | BI77: n | CC77: 0
A78: 2337 | B78: St Crispin's Community Primary Infant School | C78: 1 | D78: 253 | E78: 0 | F78: 0 | G78: 0.2608695652 | H78: 0 | I78: 0.2687747036 | J78: 0 | K78: 0.09486166008 | L78: 0.2173913043 | M78: 0 | N78: 0.04743083004 | O78: 0.00395256917 | P78: 0.01976284585 | Q78: 0 | R78: 0 | S78: 0 | T78: 0 | U78: 0 | V78: 0 | W78: 0.02840909091 | X78: 0 | Y78: 0.3401047149 | Z78: 0 | AA78: 0.01581027668 | AB78: 0 | AC78: 125894.7077 | AD78: 0 | AE78: 0 | AF78: 1 | AG78: 0 | AH78: 20085 | AI78: 0 | AJ78: 0 | AK78: 4384 | AL78: 1168195.472 | AM78: 36501.898 | AN78: 20085 | AO78: 268 | AR78: 0 | AS78: 0 | AT78: 0 | BI78: n | CC78: 0
A79: 2340 | B79: Ellington Infant School | C79: 1 | D79: 125 | E79: 0 | F79: 0 | G79: 0.448 | H79: 0 | I79: 0.448 | J79: 0 | K79: 0.248 | L79: 0.088 | M79: 0.112 | N79: 0.232 | O79: 0.096 | P79: 0.056 | Q79: 0 | R79: 0 | S79: 0 | T79: 0 | U79: 0 | V79: 0 | W79: 0.09210526316 | X79: 0 | Y79: 0.4001153502 | Z79: 0 | AA79: 0.008 | AB79: 0 | AC79: 125894.7077 | AD79: 0 | AE79: 0 | AF79: 1 | AG79: 0 | AH79: 27648 | AI79: 0 | AJ79: 0 | AK79: 4384 | AL79: 601078.0866 | AM79: 17896.6976 | AN79: 28929 | AO79: 107 | AR79: 0 | AS79: 0 | AT79: 0 | BI79: n | CC79: 0
A80: 2345 | B80: Priory Infant School | C80: 1 | D80: 159 | E80: 0 | F80: 0 | G80: 0.3270440252 | H80: 0 | I80: 0.3270440252 | J80: 0 | K80: 0.1132075472 | L80: 0.2201257862 | M80: 0.106918239 | N80: 0.2012578616 | O80: 0.106918239 | P80: 0.006289308176 | Q80: 0 | R80: 0 | S80: 0 | T80: 0 | U80: 0 | V80: 0 | W80: 0.12 | X80: 0 | Y80: 0.3278811874 | Z80: 0 | AA80: 0.03773584906 | AB80: 0 | AC80: 125894.7077 | AD80: 0 | AE80: 0 | AF80: 1 | AG80: 0 | AH80: 30976 | AI80: 0 | AJ80: 0 | AK80: 4384 | AL80: 817711.7237 | AM80: 23260.5032 | AN80: 30976 | AO80: 157 | AR80: 0 | AS80: 0 | AT80: 0 | BI80: y | CC80: 0
A81: 2431 | B81: Shears Green Junior School | C81: 1 | D81: 484 | E81: 0 | F81: 0 | G81: 0.2665289256 | H81: 0 | I81: 0.2727272727 | J81: 0 | K81: 0.1363636364 | L81: 0.3595041322 | M81: 0.01446280992 | N81: 0.01446280992 | O81: 0.00826446281 | P81: 0 | Q81: 0 | R81: 0 | S81: 0 | T81: 0 | U81: 0 | V81: 0 | W81: 0.04545454545 | X81: 0 | Y81: 0.1568941823 | Z81: 0 | AA81: 0.03719008264 | AB81: 0 | AC81: 125894.7077 | AD81: 0 | AE81: 0 | AF81: 1 | AG81: 0 | AH81: 21760 | AI81: 0 | AJ81: 0 | AK81: 4384 | AL81: 2039105 | AM81: 61249.4563 | AN81: 21760 | AO81: 473 | AR81: 0 | AS81: 0 | AT81: 0 | BI81: n | CC81: 0
A82: 2434 | B82: West Minster Primary School | C82: 1 | D82: 462 | E82: 0 | F82: 0 | G82: 0.5735930736 | H82: 0 | I82: 0.5930735931 | J82: 0 | K82: 0.0367965368 | L82: 0.02164502165 | M82: 0.008658008658 | N82: 0.06060606061 | O82: 0.6125541126 | P82: 0.2207792208 | Q82: 0 | R82: 0 | S82: 0 | T82: 0 | U82: 0 | V82: 0 | W82: 0.01965601966 | X82: 0 | Y82: 0.2461445052 | Z82: 0 | AA82: 0.05844155844 | AB82: 0 | AC82: 125894.7077 | AD82: 0 | AE82: 0 | AF82: 1 | AG82: 0 | AH82: 80384 | AI82: 0 | AJ82: 0 | AK82: 4384 | AL82: 2315789.204 | AM82: 73083.8527 | AN82: 80384 | AO82: 481 | AR82: 4.55 | AS82: 1.05 | AT82: 0.74 | BI82: n | CC82: 0
A83: 2454 | B83: Aycliffe Community Primary School | C83: 1 | D83: 89 | E83: 0 | F83: 0 | G83: 0.606741573 | H83: 0 | I83: 0.6179775281 | J83: 0 | K83: 0.04494382022 | L83: 0.01123595506 | M83: 0.808988764 | N83: 0.06741573034 | O83: 0.04494382022 | P83: 0.02247191011 | Q83: 0 | R83: 0 | S83: 0 | T83: 0 | U83: 0 | V83: 0 | W83: 0.0641025641 | X83: 0 | Y83: 0.2623376623 | Z83: 0 | AA83: 0.08988764045 | AB83: 0 | AC83: 125894.7077 | AD83: 23486.26368 | AE83: 0 | AF83: 1 | AG83: 0 | AH83: 22829 | AI83: 0 | AJ83: 0 | AK83: 4384 | AL83: 630467.6353 | AM83: 19463.8095 | AN83: 22829 | AO83: 110 | AR83: 0 | AS83: 0 | AT83: 0 | BI83: n | CC83: 0
A84: 2459 | B84: Riverhead Infants' School | C84: 1 | D84: 265 | E84: 0 | F84: 0 | G84: 0.03773584906 | H84: 0 | I84: 0.03773584906 | J84: 0 | K84: 0 | L84: 0 | M84: 0 | N84: 0 | O84: 0 | P84: 0 | Q84: 0 | R84: 0 | S84: 0 | T84: 0 | U84: 0 | V84: 0 | W84: 0.1011235955 | X84: 0 | Y84: 0.2510858523 | Z84: 0 | AA84: 0.007547169811 | AB84: 0 | AC84: 125894.7077 | AD84: 0 | AE84: 0 | AF84: 1.0377 | AG84: 0 | AH84: 38912 | AI84: 0 | AJ84: 0 | AK84: 4384 | AL84: 1186197 | AM84: 32051.0552 | AN84: 38912 | AO84: 269 | AR84: 0 | AS84: 0 | AT84: 0 | BI84: n | CC84: 0
A85: 2465 | B85: Claremont Primary School | C85: 1 | D85: 438 | E85: 0 | F85: 0 | G85: 0.02739726027 | H85: 0 | I85: 0.0296803653 | J85: 0 | K85: 0.009132420091 | L85: 0 | M85: 0 | N85: 0 | O85: 0 | P85: 0 | Q85: 0 | R85: 0 | S85: 0 | T85: 0 | U85: 0 | V85: 0 | W85: 0.1220159151 | X85: 0 | Y85: 0.1559387144 | Z85: 0 | AA85: 0.03652968037 | AB85: 0 | AC85: 125894.7077 | AD85: 0 | AE85: 0 | AF85: 1 | AG85: 0 | AH85: 38656 | AI85: 0 | AJ85: 0 | AK85: 4384 | AL85: 1893931 | AM85: 47013.3558 | AN85: 38656 | AO85: 435 | AR85: 0 | AS85: 0 | AT85: 0 | BI85: y | CC85: 0
A86: 2471 | B86: Whitfield Aspen School | C86: 1 | D86: 577 | E86: 0 | F86: 0 | G86: 0.3414211438 | H86: 0 | I86: 0.3483535529 | J86: 0 | K86: 0.2651646447 | L86: 0.0883882149 | M86: 0.06585788562 | N86: 0.0589254766 | O86: 0.06759098787 | P86: 0.01733102253 | Q86: 0 | R86: 0 | S86: 0 | T86: 0 | U86: 0 | V86: 0 | W86: 0.02805611222 | X86: 0 | Y86: 0.4221822171 | Z86: 0 | AA86: 0.07291666667 | AB86: 0 | AC86: 125894.7077 | AD86: 0 | AE86: 0 | AF86: 1 | AG86: 33000 | AH86: 65024 | AI86: 0 | AJ86: 0 | AK86: 4384 | AL86: 2396187.04 | AM86: 69371.2186 | AN86: 65024 | AO86: 526 | AR86: 0 | AS86: 0 | AT86: 0 | BI86: n | CC86: 0
A87: 2474 | B87: St Paul's Infant School | C87: 1 | D87: 260 | E87: 0 | F87: 0 | G87: 0.2730769231 | H87: 0 | I87: 0.2769230769 | J87: 0 | K87: 0.2653846154 | L87: 0.01923076923 | M87: 0.007692307692 | N87: 0 | O87: 0.003846153846 | P87: 0 | Q87: 0 | R87: 0 | S87: 0 | T87: 0 | U87: 0 | V87: 0 | W87: 0.3274853801 | X87: 0 | Y87: 0.3642769913 | Z87: 0 | AA87: 0.04615384615 | AB87: 0 | AC87: 125894.7077 | AD87: 0 | AE87: 0 | AF87: 1 | AG87: 0 | AH87: 11477 | AI87: 0 | AJ87: 0 | AK87: 4384 | AL87: 1123797.773 | AM87: 33672.8908 | AN87: 11477 | AO87: 252 | AR87: 0 | AS87: 0 | AT87: 0 | BI87: n | CC87: 0
A88: 2482 | B88: Langton Green Primary School | C88: 1 | D88: 411 | E88: 0 | F88: 0 | G88: 0.04866180049 | H88: 0 | I88: 0.04866180049 | J88: 0 | K88: 0.04379562044 | L88: 0 | M88: 0 | N88: 0 | O88: 0 | P88: 0 | Q88: 0 | R88: 0 | S88: 0 | T88: 0 | U88: 0 | V88: 0 | W88: 0.03133903134 | X88: 0 | Y88: 0.1356932153 | Z88: 0 | AA88: 0.04136253041 | AB88: 0 | AC88: 125894.7077 | AD88: 0 | AE88: 0 | AF88: 1 | AG88: 0 | AH88: 39168 | AI88: 0 | AJ88: 0 | AK88: 4384 | AL88: 1775023 | AM88: 44635.6688 | AN88: 39168 | AO88: 407 | AR88: 0 | AS88: 0 | AT88: 0 | BI88: n | CC88: 0
A89: 2490 | B89: Bishops Down Primary School | C89: 1 | D89: 205 | E89: 0 | F89: 0 | G89: 0.1170731707 | H89: 0 | I89: 0.1170731707 | J89: 0 | K89: 0.1951219512 | L89: 0 | M89: 0 | N89: 0 | O89: 0 | P89: 0 | Q89: 0 | R89: 0 | S89: 0 | T89: 0 | U89: 0 | V89: 0 | W89: 0.07865168539 | X89: 0 | Y89: 0.2857142857 | Z89: 0 | AA89: 0.0487804878 | AB89: 0 | AC89: 125894.7077 | AD89: 0 | AE89: 0 | AF89: 1 | AG89: 0 | AH89: 31232 | AI89: 0 | AJ89: 0 | AK89: 4384 | AL89: 897027 | AM89: 25939.4039 | AN89: 31232 | AO89: 203 | AR89: 4.55 | AS89: 1.05 | AT89: 0 | BI89: y | CC89: 0
A90: 2509 | B90: Singlewell Primary School | C90: 1 | D90: 393 | E90: 0 | F90: 0 | G90: 0.1882951654 | H90: 0 | I90: 0.2010178117 | J90: 0 | K90: 0.05612244898 | L90: 0.05612244898 | M90: 0.02040816327 | N90: 0.09693877551 | O90: 0 | P90: 0 | Q90: 0 | R90: 0 | S90: 0 | T90: 0 | U90: 0 | V90: 0 | W90: 0.1023391813 | X90: 0 | Y90: 0.2567164179 | Z90: 0 | AA90: 0.04580152672 | AB90: 0 | AC90: 125894.7077 | AD90: 0 | AE90: 0 | AF90: 1 | AG90: 0 | AH90: 51712 | AI90: 0 | AJ90: 0 | AK90: 4384 | AL90: 1629762 | AM90: 46062.6813 | AN90: 51712 | AO90: 370 | AR90: 0 | AS90: 0 | AT90: 0 | BI90: n | CC90: 0
A91: 2510 | B91: Cheriton Primary School | C91: 1 | D91: 382 | E91: 0 | F91: 0 | G91: 0.2408376963 | H91: 0 | I91: 0.2513089005 | J91: 0 | K91: 0.164921466 | L91: 0.01570680628 | M91: 0.01047120419 | N91: 0.005235602094 | O91: 0.02094240838 | P91: 0.002617801047 | Q91: 0 | R91: 0 | S91: 0 | T91: 0 | U91: 0 | V91: 0 | W91: 0.2012383901 | X91: 0 | Y91: 0.2784090909 | Z91: 0 | AA91: 0.05497382199 | AB91: 0 | AC91: 125894.7077 | AD91: 0 | AE91: 0 | AF91: 1 | AG91: 0 | AH91: 8909 | AI91: 0 | AJ91: 0 | AK91: 4384 | AL91: 1672259 | AM91: 49875.3864 | AN91: 8909 | AO91: 390 | AR91: 0 | AS91: 0 | AT91: 0 | BI91: n | CC91: 0
A92: 2514 | B92: Brookfield Infant School | C92: 1 | D92: 180 | E92: 0 | F92: 0 | G92: 0.1833333333 | H92: 0 | I92: 0.1833333333 | J92: 0 | K92: 0.1611111111 | L92: 0.005555555556 | M92: 0 | N92: 0.03888888889 | O92: 0.08888888889 | P92: 0 | Q92: 0 | R92: 0 | S92: 0 | T92: 0 | U92: 0 | V92: 0 | W92: 0.075 | X92: 0 | Y92: 0.2718306583 | Z92: 0 | AA92: 0.03333333333 | AB92: 0 | AC92: 125894.7077 | AD92: 0 | AE92: 0 | AF92: 1 | AG92: 0 | AH92: 20210 | AI92: 0 | AJ92: 0 | AK92: 4384 | AL92: 811718.9363 | AM92: 24084.0876 | AN92: 20210 | AO92: 176 | AR92: 0 | AS92: 0 | AT92: 0 | BI92: y | CC92: 0
A93: 2519 | B93: Vigo Village School | C93: 1 | D93: 144 | E93: 0 | F93: 0 | G93: 0.1458333333 | H93: 0 | I93: 0.1458333333 | J93: 0 | K93: 0.02083333333 | L93: 0.006944444444 | M93: 0 | N93: 0.01388888889 | O93: 0.006944444444 | P93: 0 | Q93: 0 | R93: 0 | S93: 0 | T93: 0 | U93: 0 | V93: 0 | W93: 0.007874015748 | X93: 0 | Y93: 0.2756363636 | Z93: 0 | AA93: 0.08333333333 | AB93: 0 | AC93: 125894.7077 | AD93: 4287.973096 | AE93: 0 | AF93: 1 | AG93: 0 | AH93: 22081 | AI93: 0 | AJ93: 0 | AK93: 4384 | AL93: 728266.0947 | AM93: 21108.9767 | AN93: 22081 | AO93: 162 | AR93: 0 | AS93: 0 | AT93: 0 | BI93: n | CC93: 0
A94: 2520 | B94: Madginford Primary School | C94: 1 | D94: 635 | E94: 0 | F94: 0 | G94: 0.08818897638 | H94: 0 | I94: 0.09448818898 | J94: 0 | K94: 0.1324921136 | L94: 0.01735015773 | M94: 0.03470031546 | N94: 0.05993690852 | O94: 0.03154574132 | P94: 0 | Q94: 0 | R94: 0 | S94: 0 | T94: 0 | U94: 0 | V94: 0 | W94: 0.06215722121 | X94: 0 | Y94: 0.1815091211 | Z94: 0 | AA94: 0.03307086614 | AB94: 0 | AC94: 125894.7077 | AD94: 0 | AE94: 0 | AF94: 1 | AG94: 0 | AH94: 58880 | AI94: 0 | AJ94: 0 | AK94: 4384 | AL94: 2792745 | AM94: 70582.0777 | AN94: 58880 | AO94: 641 | AR94: 0 | AS94: 0 | AT94: 0 | BI94: n | CC94: 0
A95: 2524 | B95: Palmarsh Primary School | C95: 1 | D95: 196 | E95: 0 | F95: 0 | G95: 0.2908163265 | H95: 0 | I95: 0.2959183673 | J95: 0 | K95: 0.1275510204 | L95: 0.1275510204 | M95: 0.03571428571 | N95: 0 | O95: 0 | P95: 0.005102040816 | Q95: 0 | R95: 0 | S95: 0 | T95: 0 | U95: 0 | V95: 0 | W95: 0.02994011976 | X95: 0 | Y95: 0.2989417989 | Z95: 0 | AA95: 0.09693877551 | AB95: 0 | AC95: 125894.7077 | AD95: 0 | AE95: 0 | AF95: 1 | AG95: 0 | AH95: 16218 | AI95: 0 | AJ95: 0 | AK95: 4384 | AL95: 847067.1375 | AM95: 25966.4231 | AN95: 16218 | AO95: 184 | AR95: 0 | AS95: 0 | AT95: 0 | BI95: n | CC95: 0
A96: 2525 | B96: Painters Ash Primary School | C96: 1 | D96: 401 | E96: 0 | F96: 0 | G96: 0.2319201995 | H96: 0 | I96: 0.2443890274 | J96: 0 | K96: 0.1645885287 | L96: 0.349127182 | M96: 0.02992518703 | N96: 0.01995012469 | O96: 0.004987531172 | P96: 0 | Q96: 0 | R96: 0 | S96: 0 | T96: 0 | U96: 0 | V96: 0 | W96: 0.1224489796 | X96: 0 | Y96: 0.2402570904 | Z96: 0 | AA96: 0.05985037406 | AB96: 0 | AC96: 125894.7077 | AD96: 0 | AE96: 0 | AF96: 1 | AG96: 0 | AH96: 41728 | AI96: 0 | AJ96: 0 | AK96: 4384 | AL96: 1692283 | AM96: 48308.2745 | AN96: 41728 | AO96: 387 | AR96: 0 | AS96: 0 | AT96: 0 | BI96: n | CC96: 0
A97: 2530 | B97: Tunbury Primary School | C97: 1 | D97: 584 | E97: 0 | F97: 0 | G97: 0.07020547945 | H97: 0 | I97: 0.07363013699 | J97: 0 | K97: 0.01198630137 | L97: 0.07191780822 | M97: 0.05136986301 | N97: 0.001712328767 | O97: 0.01883561644 | P97: 0 | Q97: 0 | R97: 0 | S97: 0 | T97: 0 | U97: 0 | V97: 0 | W97: 0.01744186047 | X97: 0 | Y97: 0.153460796 | Z97: 0 | AA97: 0.03938356164 | AB97: 0 | AC97: 125894.7077 | AD97: 0 | AE97: 0 | AF97: 1 | AG97: 0 | AH97: 46336 | AI97: 0 | AJ97: 0 | AK97: 4384 | AL97: 2558421 | AM97: 64683.893 | AN97: 46336 | AO97: 589 | AR97: 0 | AS97: 0 | AT97: 0 | BI97: n | CC97: 0
A98: 2532 | B98: St Margaret's-at-Cliffe Primary School | C98: 1 | D98: 193 | E98: 0 | F98: 0 | G98: 0.08808290155 | H98: 0 | I98: 0.0932642487 | J98: 0 | K98: 0.09844559585 | L98: 0.02590673575 | M98: 0.0414507772 | N98: 0.01554404145 | O98: 0.00518134715 | P98: 0 | Q98: 0 | R98: 0 | S98: 0 | T98: 0 | U98: 0 | V98: 0 | W98: 0.04268292683 | X98: 0 | Y98: 0.1544642857 | Z98: 0 | AA98: 0.04663212435 | AB98: 0 | AC98: 125894.7077 | AD98: 0 | AE98: 0 | AF98: 1 | AG98: 0 | AH98: 18713 | AI98: 0 | AJ98: 0 | AK98: 4384 | AL98: 863183 | AM98: 24348.275 | AN98: 18713 | AO98: 198 | AR98: 0 | AS98: 0 | AT98: 0 | BI98: n | CC98: 0
A99: 2539 | B99: Stocks Green Primary School | C99: 1 | D99: 216 | E99: 0 | F99: 0 | G99: 0.03703703704 | H99: 0 | I99: 0.03703703704 | J99: 0 | K99: 0.05555555556 | L99: 0.009259259259 | M99: 0.00462962963 | N99: 0 | O99: 0 | P99: 0 | Q99: 0 | R99: 0 | S99: 0 | T99: 0 | U99: 0 | V99: 0 | W99: 0.0376344086 | X99: 0 | Y99: 0.1573153409 | Z99: 0 | AA99: 0.05555555556 | AB99: 0 | AC99: 125894.7077 | AD99: 0 | AE99: 0 | AF99: 1 | AG99: 0 | AH99: 23204 | AI99: 0 | AJ99: 0 | AK99: 4384 | AL99: 897529 | AM99: 24602.4554 | AN99: 23204 | AO99: 205 | AR99: 0 | AS99: 0 | AT99: 0 | BI99: n | CC99: 0
A100: 2545 | B100: Sandgate Primary School | C100: 1 | D100: 419 | E100: 0 | F100: 0 | G100: 0.09785202864 | H100: 0 | I100: 0.1002386635 | J100: 0 | K100: 0.09069212411 | L100: 0.03102625298 | M100: 0.007159904535 | N100: 0.002386634845 | O100: 0.01909307876 | P100: 0.002386634845 | Q100: 0 | R100: 0 | S100: 0 | T100: 0 | U100: 0 | V100: 0 | W100: 0.0278551532 | X100: 0 | Y100: 0.1727019499 | Z100: 0 | AA100: 0.0214797136 | AB100: 0 | AC100: 125894.7077 | AD100: 0 | AE100: 0 | AF100: 1 | AG100: 0 | AH100: 46592 | AI100: 0 | AJ100: 0 | AK100: 4384 | AL100: 1837892 | AM100: 48449.3747 | AN100: 46592 | AO100: 420 | AR100: 0 | AS100: 0 | AT100: 0 | BI100: n | CC100: 0
A101: 2552 | B101: Sandling Primary School | C101: 1 | D101: 420 | E101: 0 | F101: 0 | G101: 0.04761904762 | H101: 0 | I101: 0.05 | J101: 0 | K101: 0.07142857143 | L101: 0 | M101: 0 | N101: 0.002380952381 | O101: 0.004761904762 | P101: 0 | Q101: 0 | R101: 0 | S101: 0 | T101: 0 | U101: 0 | V101: 0 | W101: 0.05013927577 | X101: 0 | Y101: 0.2241904762 | Z101: 0 | AA101: 0.03333333333 | AB101: 0 | AC101: 125894.7077 | AD101: 0 | AE101: 0 | AF101: 1 | AG101: 0 | AH101: 30720 | AI101: 0 | AJ101: 0 | AK101: 4384 | AL101: 1813490 | AM101: 46383.9092 | AN101: 30720 | AO101: 418 | AR101: 0 | AS101: 0 | AT101: 0 | BI101: n | CC101: 0
A102: 2559 | B102: Capel-le-Ferne Primary School | C102: 1 | D102: 178 | E102: 0 | F102: 0 | G102: 0.2191011236 | H102: 0 | I102: 0.2247191011 | J102: 0 | K102: 0.0393258427 | L102: 0.03370786517 | M102: 0.0393258427 | N102: 0.02808988764 | O102: 0.1741573034 | P102: 0.01123595506 | Q102: 0 | R102: 0 | S102: 0 | T102: 0 | U102: 0 | V102: 0 | W102: 0 | X102: 0 | Y102: 0.2255291005 | Z102: 0 | AA102: 0.0395480226 | AB102: 0 | AC102: 125894.7077 | AD102: 0 | AE102: 0 | AF102: 1 | AG102: 0 | AH102: 19336 | AI102: 0 | AJ102: 0 | AK102: 4384 | AL102: 860694.7475 | AM102: 25843.3357 | AN102: 19336 | AO102: 195 | AR102: 0 | AS102: 0 | AT102: 0 | BI102: n | CC102: 0
A103: 2562 | B103: Lunsford Primary School | C103: 1 | D103: 209 | E103: 0 | F103: 0 | G103: 0.1866028708 | H103: 0 | I103: 0.1866028708 | J103: 0 | K103: 0.1531100478 | L103: 0.004784688995 | M103: 0 | N103: 0.07177033493 | O103: 0.02870813397 | P103: 0 | Q103: 0 | R103: 0 | S103: 0 | T103: 0 | U103: 0 | V103: 0 | W103: 0.03910614525 | X103: 0 | Y103: 0.2630257376 | Z103: 0 | AA103: 0.05263157895 | AB103: 0 | AC103: 125894.7077 | AD103: 0 | AE103: 0 | AF103: 1 | AG103: 0 | AH103: 19087 | AI103: 0 | AJ103: 0 | AK103: 4384 | AL103: 905252.7361 | AM103: 26558.8434 | AN103: 19087 | AO103: 205 | AR103: 0 | AS103: 0 | AT103: 0 | BI103: n | CC103: 0
A104: 2574 | B104: Downs View Infant School | C104: 1 | D104: 255 | E104: 0 | F104: 0 | G104: 0.1411764706 | H104: 0 | I104: 0.1411764706 | J104: 0 | K104: 0.003921568627 | L104: 0.09019607843 | M104: 0.08235294118 | N104: 0.1294117647 | O104: 0.003921568627 | P104: 0 | Q104: 0 | R104: 0 | S104: 0 | T104: 0 | U104: 0 | V104: 0 | W104: 0.07228915663 | X104: 0 | Y104: 0.2480576878 | Z104: 0 | AA104: 0.02745098039 | AB104: 0 | AC104: 125894.7077 | AD104: 0 | AE104: 0 | AF104: 1 | AG104: 0 | AH104: 27648 | AI104: 0 | AJ104: 0 | AK104: 4384 | AL104: 1115223 | AM104: 32688.1921 | AN104: 27648 | AO104: 255 | AR104: 0 | AS104: 0 | AT104: 0 | BI104: n | CC104: 0
A105: 2578 | B105: Kingswood Primary School | C105: 1 | D105: 129 | E105: 0 | F105: 0 | G105: 0.1007751938 | H105: 0 | I105: 0.1240310078 | J105: 0 | K105: 0.03149606299 | L105: 0 | M105: 0.007874015748 | N105: 0 | O105: 0.007874015748 | P105: 0 | Q105: 0 | R105: 0 | S105: 0 | T105: 0 | U105: 0 | V105: 0 | W105: 0.03669724771 | X105: 0 | Y105: 0.2702546296 | Z105: 0 | AA105: 0.06976744186 | AB105: 0 | AC105: 125894.7077 | AD105: 8803.65235 | AE105: 0 | AF105: 1 | AG105: 0 | AH105: 16093 | AI105: 0 | AJ105: 0 | AK105: 4384 | AL105: 608947.8031 | AM105: 17468.3938 | AN105: 14737 | AO105: 128 | AR105: 0 | AS105: 0 | AT105: 0 | BI105: n | CC105: 0
A106: 2586 | B106: Senacre Wood Primary School | C106: 1 | D106: 210 | E106: 0 | F106: 0 | G106: 0.3142857143 | H106: 0 | I106: 0.3238095238 | J106: 0 | K106: 0.05714285714 | L106: 0.05714285714 | M106: 0.3571428571 | N106: 0.05714285714 | O106: 0.1095238095 | P106: 0 | Q106: 0 | R106: 0 | S106: 0 | T106: 0 | U106: 0 | V106: 0 | W106: 0.08888888889 | X106: 0 | Y106: 0.2253061224 | Z106: 0 | AA106: 0.06666666667 | AB106: 0 | AC106: 125894.7077 | AD106: 0 | AE106: 0 | AF106: 1 | AG106: 0 | AH106: 21332 | AI106: 0 | AJ106: 0 | AK106: 4384 | AL106: 979410.9479 | AM106: 29498.9294 | AN106: 21332 | AO106: 209 | AR106: 0 | AS106: 0 | AT106: 0 | BI106: n | CC106: 0
A107: 2603 | B107: Bromstone Primary School, Broadstairs | C107: 1 | D107: 406 | E107: 0 | F107: 0 | G107: 0.3842364532 | H107: 0 | I107: 0.3965517241 | J107: 0 | K107: 0.1206896552 | L107: 0.1600985222 | M107: 0.1206896552 | N107: 0.06403940887 | O107: 0.1206896552 | P107: 0.02955665025 | Q107: 0 | R107: 0 | S107: 0 | T107: 0 | U107: 0 | V107: 0 | W107: 0.06936416185 | X107: 0 | Y107: 0.3510611859 | Z107: 0 | AA107: 0.07389162562 | AB107: 0 | AC107: 125894.7077 | AD107: 0 | AE107: 0 | AF107: 1 | AG107: 0 | AH107: 45056 | AI107: 0 | AJ107: 0 | AK107: 4384 | AL107: 1901672.959 | AM107: 58389.4271 | AN107: 45056 | AO107: 419 | AR107: 0 | AS107: 0 | AT107: 0 | BI107: n | CC107: 0
A108: 2607 | B108: Parkside Community Primary School | C108: 1 | D108: 164 | E108: 0 | F108: 0 | G108: 0.737804878 | H108: 0 | I108: 0.756097561 | J108: 0 | K108: 0.01829268293 | L108: 0.1280487805 | M108: 0 | N108: 0.243902439 | O108: 0.2865853659 | P108: 0 | Q108: 0 | R108: 0 | S108: 0 | T108: 0 | U108: 0 | V108: 0 | W108: 0.4353741497 | X108: 0 | Y108: 0.4772727273 | Z108: 0 | AA108: 0.262195122 | AB108: 0 | AC108: 125894.7077 | AD108: 0 | AE108: 0 | AF108: 1 | AG108: 0 | AH108: 20958 | AI108: 0 | AJ108: 0 | AK108: 4384 | AL108: 756013.7689 | AM108: 23483.6616 | AN108: 20958 | AO108: 126 | AR108: 4.55 | AS108: 1.05 | AT108: 0 | BI108: n | CC108: 0
A109: 2615 | B109: High Firs Primary School | C109: 1 | D109: 195 | E109: 0 | F109: 0 | G109: 0.1230769231 | H109: 0 | I109: 0.1384615385 | J109: 0 | K109: 0.207253886 | L109: 0.0621761658 | M109: 0 | N109: 0.01554404145 | O109: 0.2227979275 | P109: 0 | Q109: 0 | R109: 0 | S109: 0 | T109: 0 | U109: 0 | V109: 0 | W109: 0.08982035928 | X109: 0 | Y109: 0.2988878591 | Z109: 0 | AA109: 0.0206185567 | AB109: 0 | AC109: 125894.7077 | AD109: 0 | AE109: 0 | AF109: 1.0377 | AG109: 0 | AH109: 24950 | AI109: 0 | AJ109: 0 | AK109: 4384 | AL109: 955589.401 | AM109: 27233.7436 | AN109: 24950 | AO109: 201 | AR109: 0 | AS109: 0 | AT109: 0 | BI109: n | CC109: 0
A110: 2627 | B110: Sandwich Junior School | C110: 1 | D110: 202 | E110: 0 | F110: 0 | G110: 0.2326732673 | H110: 0 | I110: 0.2326732673 | J110: 0 | K110: 0.09900990099 | L110: 0.0297029703 | M110: 0.01485148515 | N110: 0.0396039604 | O110: 0 | P110: 0 | Q110: 0 | R110: 0 | S110: 0 | T110: 0 | U110: 0 | V110: 0 | W110: 0.04455445545 | X110: 0 | Y110: 0.2578534031 | Z110: 0 | AA110: 0.06435643564 | AB110: 0 | AC110: 125894.7077 | AD110: 0 | AE110: 0 | AF110: 1 | AG110: 0 | AH110: 28160 | AI110: 0 | AJ110: 0 | AK110: 4384 | AL110: 930373.8019 | AM110: 28149.9723 | AN110: 28160 | AO110: 210 | AR110: 0 | AS110: 0 | AT110: 0 | BI110: n | CC110: 0
A111: 2632 | B111: Sevenoaks Primary School | C111: 1 | D111: 592 | E111: 0 | F111: 0 | G111: 0.1452702703 | H111: 0 | I111: 0.1486486486 | J111: 0 | K111: 0.01182432432 | L111: 0.005067567568 | M111: 0 | N111: 0.003378378378 | O111: 0.003378378378 | P111: 0 | Q111: 0 | R111: 0 | S111: 0 | T111: 0 | U111: 0 | V111: 0 | W111: 0.1214421252 | X111: 0 | Y111: 0.1812616725 | Z111: 0 | AA111: 0.06081081081 | AB111: 0 | AC111: 125894.7077 | AD111: 0 | AE111: 0 | AF111: 1.0377 | AG111: 0 | AH111: 75264 | AI111: 0 | AJ111: 0 | AK111: 4384 | AL111: 2659854 | AM111: 71452.1176 | AN111: 75264 | AO111: 606 | AR111: 0 | AS111: 0 | AT111: 0 | BI111: n | CC111: 0
A112: 2643 | B112: Swalecliffe Community Primary School | C112: 1 | D112: 573 | E112: 0 | F112: 0 | G112: 0.167539267 | H112: 0 | I112: 0.1780104712 | J112: 0 | K112: 0.08551483421 | L112: 0.01221640489 | M112: 0.03490401396 | N112: 0.01745200698 | O112: 0.01396160558 | P112: 0 | Q112: 0 | R112: 0 | S112: 0 | T112: 0 | U112: 0 | V112: 0 | W112: 0.01419878296 | X112: 0 | Y112: 0.2356441929 | Z112: 0 | AA112: 0.02792321117 | AB112: 0 | AC112: 125894.7077 | AD112: 0 | AE112: 0 | AF112: 1 | AG112: 0 | AH112: 11981 | AI112: 0 | AJ112: 0 | AK112: 4384 | AL112: 2454818 | AM112: 69217.1093 | AN112: -35942 | AO112: 584 | AR112: 0 | AS112: 0 | AT112: 0 | BI112: n | CC112: 0
A113: 2648 | B113: Aylesham Primary School | C113: 1 | D113: 392 | E113: 0 | F113: 0 | G113: 0.3954081633 | H113: 0 | I113: 0.4107142857 | J113: 0 | K113: 0.5535714286 | L113: 0.3239795918 | M113: 0.005102040816 | N113: 0.007653061224 | O113: 0 | P113: 0 | Q113: 0 | R113: 0 | S113: 0 | T113: 0 | U113: 0 | V113: 0 | W113: 0.04885057471 | X113: 0 | Y113: 0.2720465019 | Z113: 0 | AA113: 0.08928571429 | AB113: 0 | AC113: 125894.7077 | AD113: 0 | AE113: 0 | AF113: 1 | AG113: 0 | AH113: 27136 | AI113: 0 | AJ113: 0 | AK113: 4384 | AL113: 1580030.045 | AM113: 50305.6917 | AN113: 27136 | AO113: 355 | AR113: 0 | AS113: 0 | AT113: 0 | BI113: n | CC113: 0
A114: 2651 | B114: Broadwater Down Primary School | C114: 1 | D114: 153 | E114: 0 | F114: 0 | G114: 0.3333333333 | H114: 0 | I114: 0.3464052288 | J114: 0 | K114: 0.3790849673 | L114: 0 | M114: 0 | N114: 0.01307189542 | O114: 0 | P114: 0 | Q114: 0 | R114: 0 | S114: 0 | T114: 0 | U114: 0 | V114: 0 | W114: 0.2846715328 | X114: 0 | Y114: 0.3716814159 | Z114: 0 | AA114: 0.1699346405 | AB114: 0 | AC114: 125894.7077 | AD114: 0 | AE114: 0 | AF114: 1 | AG114: 0 | AH114: 18837 | AI114: 0 | AJ114: 0 | AK114: 4384 | AL114: 693420.3887 | AM114: 21319.1258 | AN114: 18837 | AO114: 137 | AR114: 0 | AS114: 0 | AT114: 0 | BI114: n | CC114: 0
A115: 2653 | B115: West Borough Primary School | C115: 1 | D115: 450 | E115: 0 | F115: 0 | G115: 0.2222222222 | H115: 0 | I115: 0.2244444444 | J115: 0 | K115: 0.1555555556 | L115: 0.09111111111 | M115: 0 | N115: 0.01111111111 | O115: 0.008888888889 | P115: 0 | Q115: 0 | R115: 0 | S115: 0 | T115: 0 | U115: 0 | V115: 0 | W115: 0.1923076923 | X115: 0 | Y115: 0.2276504659 | Z115: 0 | AA115: 0.03777777778 | AB115: 0 | AC115: 125894.7077 | AD115: 0 | AE115: 0 | AF115: 1 | AG115: 0 | AH115: 58368 | AI115: 0 | AJ115: 0 | AK115: 4384 | AL115: 1986148 | AM115: 56914.3805 | AN115: 58368 | AO115: 452 | AR115: 4.55 | AS115: 1.05 | AT115: 0 | BI115: n | CC115: 0
A116: 2662 | B116: Long Mead Community Primary School | C116: 1 | D116: 115 | E116: 0 | F116: 0 | G116: 0.6086956522 | H116: 0 | I116: 0.6173913043 | J116: 0 | K116: 0.2956521739 | L116: 0 | M116: 0.3913043478 | N116: 0.02608695652 | O116: 0 | P116: 0 | Q116: 0 | R116: 0 | S116: 0 | T116: 0 | U116: 0 | V116: 0 | W116: 0.07446808511 | X116: 0 | Y116: 0.4070855615 | Z116: 0 | AA116: 0.07826086957 | AB116: 0 | AC116: 125894.7077 | AD116: 0 | AE116: 0 | AF116: 1 | AG116: 0 | AH116: 18463 | AI116: 0 | AJ116: 0 | AK116: 4384 | AL116: 648402.2696 | AM116: 21078.9554 | AN116: 18463 | AO116: 117 | AR116: 4.55 | AS116: 1.05 | AT116: 0.17 | BI116: n | CC116: 0
A117: 2674 | B117: King's Farm Primary School | C117: 1 | D117: 376 | E117: 0 | F117: 0 | G117: 0.539893617 | H117: 0 | I117: 0.5611702128 | J117: 0 | K117: 0.1143617021 | L117: 0.05585106383 | M117: 0.02925531915 | N117: 0.5212765957 | O117: 0.02659574468 | P117: 0 | Q117: 0 | R117: 0 | S117: 0 | T117: 0 | U117: 0 | V117: 0 | W117: 0.09779179811 | X117: 0 | Y117: 0.317800789 | Z117: 0 | AA117: 0.07712765957 | AB117: 0 | AC117: 125894.7077 | AD117: 0 | AE117: 0 | AF117: 1 | AG117: 0 | AH117: 43264 | AI117: 0 | AJ117: 0 | AK117: 4384 | AL117: 1994926.395 | AM117: 58383.4228 | AN117: 43264 | AO117: 376 | AR117: 4.55 | AS117: 1.05 | AT117: 0.29 | BI117: n | CC117: 0
A118: 2680 | B118: Kings Hill School Primary and Nursery | C118: 1 | D118: 420 | E118: 0 | F118: 0 | G118: 0.0880952381 | H118: 0 | I118: 0.09285714286 | J118: 0 | K118: 0.03333333333 | L118: 0.009523809524 | M118: 0 | N118: 0.009523809524 | O118: 0.004761904762 | P118: 0 | Q118: 0 | R118: 0 | S118: 0 | T118: 0 | U118: 0 | V118: 0 | W118: 0.04166666667 | X118: 0 | Y118: 0.1538573933 | Z118: 0 | AA118: 0.04047619048 | AB118: 0 | AC118: 125894.7077 | AD118: 0 | AE118: 0 | AF118: 1 | AG118: 0 | AH118: 52224 | AI118: 0 | AJ118: 0 | AK118: 4384 | AL118: 1826464 | AM118: 47295.556 | AN118: 52224 | AO118: 416 | AR118: 0 | AS118: 0 | AT118: 0 | BI118: y | CC118: 0
A119: 2682 | B119: New Ash Green Primary School | C119: 1 | D119: 413 | E119: 0 | F119: 0 | G119: 0.1234866828 | H119: 0 | I119: 0.1283292978 | J119: 0 | K119: 0.01210653753 | L119: 0 | M119: 0.009685230024 | N119: 0 | O119: 0 | P119: 0 | Q119: 0 | R119: 0 | S119: 0 | T119: 0 | U119: 0 | V119: 0 | W119: 0.0197740113 | X119: 0 | Y119: 0.3250550986 | Z119: 0 | AA119: 0.03631961259 | AB119: 0 | AC119: 125894.7077 | AD119: 0 | AE119: 0 | AF119: 1.0377 | AG119: 0 | AH119: 33792 | AI119: 0 | AJ119: 0 | AK119: 4384 | AL119: 1778177 | AM119: 49499.6671 | AN119: 33792 | AO119: 409 | AR119: 0 | AS119: 0 | AT119: 0 | BI119: y | CC119: 0
A120: 2689 | B120: The Craylands School | C120: 1 | D120: 412 | E120: 0 | F120: 0 | G120: 0.2354368932 | H120: 0 | I120: 0.2378640777 | J120: 0 | K120: 0.286407767 | L120: 0.1917475728 | M120: 0.002427184466 | N120: 0.002427184466 | O120: 0.1019417476 | P120: 0 | Q120: 0 | R120: 0 | S120: 0 | T120: 0 | U120: 0 | V120: 0 | W120: 0.03977272727 | X120: 0 | Y120: 0.3100085457 | Z120: 0 | AA120: 0.05097087379 | AB120: 0 | AC120: 125894.7077 | AD120: 0 | AE120: 0 | AF120: 1.0377 | AG120: 0 | AH120: 61952 | AI120: 89570.69769 | AJ120: 0 | AK120: 4384 | AL120: 1840656.155 | AM120: 51267.3641 | AN120: 61952 | AO120: 388 | AR120: 0 | AS120: 0 | AT120: 0 | BI120: n | CC120: 0
A121: 2692 | B121: The Churchill School | C121: 1 | D121: 363 | E121: 0 | F121: 0 | G121: 0.2424242424 | H121: 0 | I121: 0.2451790634 | J121: 0 | K121: 0.2203856749 | L121: 0.01652892562 | M121: 0.03581267218 | N121: 0.02479338843 | O121: 0.04407713499 | P121: 0.002754820937 | Q121: 0 | R121: 0 | S121: 0 | T121: 0 | U121: 0 | V121: 0 | W121: 0.03416149068 | X121: 0 | Y121: 0.1886163522 | Z121: 0 | AA121: 0.07162534435 | AB121: 0 | AC121: 125894.7077 | AD121: 0 | AE121: 0 | AF121: 1 | AG121: 0 | AH121: 12595 | AI121: 0 | AJ121: 0 | AK121: 4384 | AL121: 1624765 | AM121: 47604.7754 | AN121: 12595 | AO121: 378 | AR121: 0 | AS121: 0 | AT121: 0 | BI121: y | CC121: 0
A122: 3010 | B122: St Pauls' Church of England Voluntary Controlled Primary School | C122: 1 | D122: 109 | E122: 0 | F122: 0 | G122: 0.1100917431 | H122: 0 | I122: 0.1100917431 | J122: 0 | K122: 0.06481481481 | L122: 0.1296296296 | M122: 0 | N122: 0.03703703704 | O122: 0.08333333333 | P122: 0 | Q122: 0 | R122: 0 | S122: 0 | T122: 0 | U122: 0 | V122: 0 | W122: 0.04255319149 | X122: 0 | Y122: 0.1304347826 | Z122: 0 | AA122: 0.03669724771 | AB122: 0 | AC122: 125894.7077 | AD122: 0 | AE122: 0 | AF122: 1.0377 | AG122: 0 | AH122: 10729 | AI122: 0 | AJ122: 0 | AK122: 4384 | AL122: 535604.6257 | AM122: 15752.5362 | AN122: 10729 | AO122: 108 | AR122: 0 | AS122: 0 | AT122: 0 | BI122: y | CC122: 0
A123: 3015 | B123: Fawkham Church of England Voluntary Controlled Primary School | C123: 1 | D123: 104 | E123: 0 | F123: 0 | G123: 0.05769230769 | H123: 0 | I123: 0.05769230769 | J123: 0 | K123: 0 | L123: 0.009615384615 | M123: 0.01923076923 | N123: 0 | O123: 0 | P123: 0 | Q123: 0 | R123: 0 | S123: 0 | T123: 0 | U123: 0 | V123: 0 | W123: 0 | X123: 0 | Y123: 0.2423756019 | Z123: 0 | AA123: 0.03846153846 | AB123: 0 | AC123: 125894.7077 | AD123: 4825.078692 | AE123: 0 | AF123: 1.0377 | AG123: 0 | AH123: 21083 | AI123: 0 | AJ123: 0 | AK123: 4384 | AL123: 526955.3264 | AM123: 14631.507 | AN123: 21083 | AO123: 103 | AR123: 0 | AS123: 0 | AT123: 0 | BI123: n | CC123: 0
A124: 3022 | B124: Benenden Church of England Primary School | C124: 1 | D124: 210 | E124: 0 | F124: 0 | G124: 0.1142857143 | H124: 0 | I124: 0.1142857143 | J124: 0 | K124: 0.1435406699 | L124: 0.01435406699 | M124: 0 | N124: 0 | O124: 0 | P124: 0 | Q124: 0 | R124: 0 | S124: 0 | T124: 0 | U124: 0 | V124: 0 | W124: 0.01666666667 | X124: 0 | Y124: 0.1575510204 | Z124: 0 | AA124: 0.0380952381 | AB124: 0 | AC124: 125894.7077 | AD124: 0 | AE124: 0 | AF124: 1 | AG124: 0 | AH124: 34431 | AI124: 0 | AJ124: 0 | AK124: 4384 | AL124: 908756 | AM124: 25282.9381 | AN124: 34431 | AO124: 205 | AR124: 0 | AS124: 0 | AT124: 0 | BI124: n | CC124: 0
A125: 3023 | B125: Bidborough Church of England Voluntary Controlled Primary School | C125: 1 | D125: 206 | E125: 0 | F125: 0 | G125: 0.06310679612 | H125: 0 | I125: 0.06310679612 | J125: 0 | K125: 0.09708737864 | L125: 0 | M125: 0.009708737864 | N125: 0 | O125: 0 | P125: 0 | Q125: 0 | R125: 0 | S125: 0 | T125: 0 | U125: 0 | V125: 0 | W125: 0.07386363636 | X125: 0 | Y125: 0.2458574181 | Z125: 0 | AA125: 0.05825242718 | AB125: 0 | AC125: 125894.7077 | AD125: 0 | AE125: 0 | AF125: 1 | AG125: 0 | AH125: 14970 | AI125: 0 | AJ125: 0 | AK125: 4384 | AL125: 876500 | AM125: 24056.0677 | AN125: 14970 | AO125: 202 | AR125: 0 | AS125: 0 | AT125: 0 | BI125: n | CC125: 0
A126: 3027 | B126: Cranbrook Church of England Primary School | C126: 1 | D126: 203 | E126: 0 | F126: 0 | G126: 0.3399014778 | H126: 0 | I126: 0.3596059113 | J126: 0 | K126: 0.4532019704 | L126: 0 | M126: 0 | N126: 0 | O126: 0 | P126: 0 | Q126: 0 | R126: 0 | S126: 0 | T126: 0 | U126: 0 | V126: 0 | W126: 0.04022988506 | X126: 0 | Y126: 0.2217890405 | Z126: 0 | AA126: 0.08374384236 | AB126: 0 | AC126: 125894.7077 | AD126: 0 | AE126: 0 | AF126: 1 | AG126: 0 | AH126: 26112 | AI126: 0 | AJ126: 0 | AK126: 4384 | AL126: 922897.2189 | AM126: 29609.0075 | AN126: 26112 | AO126: 204 | AR126: 0 | AS126: 0 | AT126: 0 | BI126: n | CC126: 0
A127: 3029 | B127: Goudhurst and Kilndown Church of England Primary School | C127: 1 | D127: 212 | E127: 0 | F127: 0 | G127: 0.1462264151 | H127: 0 | I127: 0.1509433962 | J127: 0 | K127: 0.05188679245 | L127: 0.03773584906 | M127: 0 | N127: 0 | O127: 0 | P127: 0 | Q127: 0 | R127: 0 | S127: 0 | T127: 0 | U127: 0 | V127: 0 | W127: 0.01648351648 | X127: 0 | Y127: 0.1384430177 | Z127: 0 | AA127: 0.03773584906 | AB127: 0 | AC127: 125894.7077 | AD127: 0 | AE127: 0 | AF127: 1 | AG127: 0 | AH127: 27904 | AI127: 0 | AJ127: 0 | AK127: 4384 | AL127: 927819 | AM127: 26120.5324 | AN127: 27904 | AO127: 211 | AR127: 0 | AS127: 0 | AT127: 0 | BI127: n | CC127: 0
A128: 3032 | B128: Hawkhurst Church of England Primary School | C128: 1 | D128: 182 | E128: 0 | F128: 0 | G128: 0.4010989011 | H128: 0 | I128: 0.4010989011 | J128: 0 | K128: 0.06593406593 | L128: 0.005494505495 | M128: 0 | N128: 0.005494505495 | O128: 0 | P128: 0 | Q128: 0 | R128: 0 | S128: 0 | T128: 0 | U128: 0 | V128: 0 | W128: 0.03048780488 | X128: 0 | Y128: 0.1956730769 | Z128: 0 | AA128: 0.06593406593 | AB128: 0 | AC128: 125894.7077 | AD128: 0 | AE128: 0 | AF128: 1 | AG128: 0 | AH128: 34560 | AI128: 0 | AJ128: 0 | AK128: 4384 | AL128: 894357.3828 | AM128: 29233.7412 | AN128: 34560 | AO128: 194 | AR128: 0 | AS128: 0 | AT128: 0 | BI128: n | CC128: 0
A129: 3033 | B129: Hildenborough Church of England Primary School | C129: 1 | D129: 188 | E129: 0 | F129: 0 | G129: 0.06914893617 | H129: 0 | I129: 0.07446808511 | J129: 0 | K129: 0.1223404255 | L129: 0.005319148936 | M129: 0.04255319149 | N129: 0 | O129: 0 | P129: 0 | Q129: 0 | R129: 0 | S129: 0 | T129: 0 | U129: 0 | V129: 0 | W129: 0.03067484663 | X129: 0 | Y129: 0.1934667587 | Z129: 0 | AA129: 0.03723404255 | AB129: 0 | AC129: 125894.7077 | AD129: 0 | AE129: 0 | AF129: 1 | AG129: 0 | AH129: 22580 | AI129: 0 | AJ129: 0 | AK129: 4384 | AL129: 820135 | AM129: 22685.095 | AN129: 22580 | AO129: 187 | AR129: 0 | AS129: 0 | AT129: 0 | BI129: n | CC129: 0
A130: 3034 | B130: Lamberhurst St Mary's CofE (Voluntary Controlled) Primary School | C130: 1 | D130: 204 | E130: 0 | F130: 0 | G130: 0.07843137255 | H130: 0 | I130: 0.07843137255 | J130: 0 | K130: 0.009803921569 | L130: 0.009803921569 | M130: 0 | N130: 0 | O130: 0 | P130: 0 | Q130: 0 | R130: 0 | S130: 0 | T130: 0 | U130: 0 | V130: 0 | W130: 0.06358381503 | X130: 0 | Y130: 0.2024539877 | Z130: 0 | AA130: 0.112745098 | AB130: 0 | AC130: 125894.7077 | AD130: 0 | AE130: 0 | AF130: 1 | AG130: 0 | AH130: 27904 | AI130: 0 | AJ130: 0 | AK130: 4384 | AL130: 876639 | AM130: 24360.2835 | AN130: 27904 | AO130: 199 | AR130: 0 | AS130: 0 | AT130: 0 | BI130: n | CC130: 0
A131: 3035 | B131: Seal Church of England Voluntary Controlled Primary School | C131: 1 | D131: 352 | E131: 0 | F131: 0 | G131: 0.21875 | H131: 0 | I131: 0.2301136364 | J131: 0 | K131: 0.01988636364 | L131: 0.002840909091 | M131: 0.005681818182 | N131: 0 | O131: 0 | P131: 0 | Q131: 0 | R131: 0 | S131: 0 | T131: 0 | U131: 0 | V131: 0 | W131: 0.02310231023 | X131: 0 | Y131: 0.2059558517 | Z131: 0 | AA131: 0.07670454545 | AB131: 0 | AC131: 125894.7077 | AD131: 0 | AE131: 0 | AF131: 1.0377 | AG131: 0 | AH131: 17839 | AI131: 0 | AJ131: 0 | AK131: 4384 | AL131: 1514854 | AM131: 46659.7265 | AN131: 17839 | AO131: 351 | AR131: 0 | AS131: 0 | AT131: 0 | BI131: n | CC131: 0
A132: 3037 | B132: St John's Church of England Primary School, Sevenoaks | C132: 1 | D132: 201 | E132: 0 | F132: 0 | G132: 0.09950248756 | H132: 0 | I132: 0.09950248756 | J132: 0 | K132: 0 | L132: 0 | M132: 0 | N132: 0 | O132: 0 | P132: 0 | Q132: 0 | R132: 0 | S132: 0 | T132: 0 | U132: 0 | V132: 0 | W132: 0.06741573034 | X132: 0 | Y132: 0.1476890756 | Z132: 0 | AA132: 0.009950248756 | AB132: 0 | AC132: 125894.7077 | AD132: 0 | AE132: 0 | AF132: 1.0377 | AG132: 0 | AH132: 22330 | AI132: 0 | AJ132: 0 | AK132: 4384 | AL132: 921163.6203 | AM132: 26048.359 | AN132: 22330 | AO132: 205 | AR132: 0 | AS132: 0 | AT132: 0 | BI132: n | CC132: 0
A133: 3042 | B133: Speldhurst Church of England Voluntary Aided Primary School | C133: 1 | D133: 210 | E133: 0 | F133: 0 | G133: 0.07619047619 | H133: 0 | I133: 0.07619047619 | J133: 0 | K133: 0.01428571429 | L133: 0 | M133: 0 | N133: 0 | O133: 0 | P133: 0 | Q133: 0 | R133: 0 | S133: 0 | T133: 0 | U133: 0 | V133: 0 | W133: 0.05 | X133: 0 | Y133: 0.1220930233 | Z133: 0 | AA133: 0.04285714286 | AB133: 0 | AC133: 125894.7077 | AD133: 0 | AE133: 0 | AF133: 1 | AG133: 0 | AH133: 3840 | AI133: 0 | AJ133: 0 | AK133: 4384 | AL133: 908762 | AM133: 25281.9374 | AN133: 4582 | AO133: 212 | AR133: 0 | AS133: 0 | AT133: 0 | BI133: n | CC133: 0
A134: 3043 | B134: Sundridge and Brasted Church of England Voluntary Controlled Primary School | C134: 1 | D134: 58 | E134: 0 | F134: 0 | G134: 0.3620689655 | H134: 0 | I134: 0.3793103448 | J134: 0 | K134: 0.2068965517 | L134: 0.01724137931 | M134: 0 | N134: 0 | O134: 0.03448275862 | P134: 0 | Q134: 0 | R134: 0 | S134: 0 | T134: 0 | U134: 0 | V134: 0 | W134: 0.02 | X134: 0 | Y134: 0.2569444444 | Z134: 0 | AA134: 0.05172413793 | AB134: 0 | AC134: 125894.7077 | AD134: 55373.9974 | AE134: 0 | AF134: 1.0377 | AG134: 0 | AH134: 7485 | AI134: 0 | AJ134: 0 | AK134: 4384 | AL134: 428649.0527 | AM134: 11726.173 | AN134: 7485 | AO134: 61 | AR134: 0 | AS134: 0 | AT134: 0 | BI134: n | CC134: 0
A135: 3050 | B135: St John's Church of England Primary School | C135: 1 | D135: 629 | E135: 0 | F135: 0 | G135: 0.1176470588 | H135: 0 | I135: 0.1192368839 | J135: 0 | K135: 0.08903020668 | L135: 0.003179650238 | M135: 0 | N135: 0.03815580286 | O135: 0 | P135: 0 | Q135: 0 | R135: 0 | S135: 0 | T135: 0 | U135: 0 | V135: 0 | W135: 0.104283054 | X135: 0 | Y135: 0.2556842557 | Z135: 0 | AA135: 0.04451510334 | AB135: 0 | AC135: 125894.7077 | AD135: 0 | AE135: 0 | AF135: 1 | AG135: 0 | AH135: 73216 | AI135: 0 | AJ135: 0 | AK135: 4384 | AL135: 2772961 | AM135: 71251.5527 | AN135: 73216 | AO135: 633 | AR135: 0 | AS135: 0 | AT135: 0 | BI135: n | CC135: 0
A136: 3052 | B136: St Mark's Church of England Primary School | C136: 1 | D136: 349 | E136: 0 | F136: 0 | G136: 0.229226361 | H136: 0 | I136: 0.2320916905 | J136: 0 | K136: 0.2865329513 | L136: 0 | M136: 0 | N136: 0.005730659026 | O136: 0 | P136: 0.008595988539 | Q136: 0 | R136: 0 | S136: 0 | T136: 0 | U136: 0 | V136: 0 | W136: 0.171875 | X136: 0 | Y136: 0.2376289561 | Z136: 0 | AA136: 0.08595988539 | AB136: 0 | AC136: 125894.7077 | AD136: 0 | AE136: 0 | AF136: 1 | AG136: 0 | AH136: 45568 | AI136: 0 | AJ136: 0 | AK136: 4384 | AL136: 1555378 | AM136: 45530.3036 | AN136: 45568 | AO136: 354 | AR136: 0 | AS136: 0 | AT136: 0 | BI136: y | CC136: 0
A137: 3053 | B137: St Peter's Church of England Primary School | C137: 1 | D137: 212 | E137: 0 | F137: 0 | G137: 0.1226415094 | H137: 0 | I137: 0.1273584906 | J137: 0 | K137: 0.02358490566 | L137: 0 | M137: 0 | N137: 0 | O137: 0 | P137: 0 | Q137: 0 | R137: 0 | S137: 0 | T137: 0 | U137: 0 | V137: 0 | W137: 0.1988950276 | X137: 0 | Y137: 0.1779141104 | Z137: 0 | AA137: 0.03301886792 | AB137: 0 | AC137: 125894.7077 | AD137: 0 | AE137: 0 | AF137: 1 | AG137: 0 | AH137: 36677 | AI137: 0 | AJ137: 0 | AK137: 4384 | AL137: 958857 | AM137: 26436.7568 | AN137: 67472 | AO137: 209 | AR137: 0 | AS137: 0 | AT137: 0 | BI137: n | CC137: 0
A138: 3054 | B138: Crockham Hill Church of England Voluntary Controlled Primary School | C138: 1 | D138: 138 | E138: 0 | F138: 0 | G138: 0.007246376812 | H138: 0 | I138: 0.007246376812 | J138: 0 | K138: 0.05109489051 | L138: 0 | M138: 0.08759124088 | N138: 0 | O138: 0 | P138: 0 | Q138: 0 | R138: 0 | S138: 0 | T138: 0 | U138: 0 | V138: 0 | W138: 0.01694915254 | X138: 0 | Y138: 0.1809787627 | Z138: 0 | AA138: 0.04347826087 | AB138: 0 | AC138: 125894.7077 | AD138: 8723.807333 | AE138: 0 | AF138: 1.0377 | AG138: 0 | AH138: 17964 | AI138: 0 | AJ138: 15600 | AK138: 4384 | AL138: 662367.9256 | AM138: 17613.6523 | AN138: 17964 | AO138: 137 | AR138: 0 | AS138: 0 | AT138: 0 | BI138: n | CC138: 0
A139: 3055 | B139: Churchill Church of England Voluntary Controlled Primary School | C139: 1 | D139: 205 | E139: 0 | F139: 0 | G139: 0.2780487805 | H139: 0 | I139: 0.2780487805 | J139: 0 | K139: 0.487804878 | L139: 0.00487804878 | M139: 0.01463414634 | N139: 0.009756097561 | O139: 0 | P139: 0 | Q139: 0 | R139: 0 | S139: 0 | T139: 0 | U139: 0 | V139: 0 | W139: 0.01714285714 | X139: 0 | Y139: 0.2529069767 | Z139: 0 | AA139: 0.07804878049 | AB139: 0 | AC139: 125894.7077 | AD139: 0 | AE139: 0 | AF139: 1.0377 | AG139: 0 | AH139: 28928 | AI139: 0 | AJ139: 0 | AK139: 4384 | AL139: 958094.0495 | AM139: 29476.84 | AN139: 28928 | AO139: 204 | AR139: 0 | AS139: 0 | AT139: 0 | BI139: n | CC139: 0
A140: 3057 | B140: St Peter's Church of England Primary School | C140: 1 | D140: 193 | E140: 0 | F140: 0 | G140: 0.1502590674 | H140: 0 | I140: 0.1606217617 | J140: 0 | K140: 0.08333333333 | L140: 0.005208333333 | M140: 0 | N140: 0.203125 | O140: 0.02604166667 | P140: 0 | Q140: 0 | R140: 0 | S140: 0 | T140: 0 | U140: 0 | V140: 0 | W140: 0.03067484663 | X140: 0 | Y140: 0.1782608696 | Z140: 0 | AA140: 0.02590673575 | AB140: 0 | AC140: 125894.7077 | AD140: 0 | AE140: 0 | AF140: 1 | AG140: 0 | AH140: 16342 | AI140: 0 | AJ140: 8680 | AK140: 4384 | AL140: 818551.1631 | AM140: 23912.9662 | AN140: 16342 | AO140: 183 | AR140: 0 | AS140: 0 | AT140: 0 | BI140: n | CC140: 0
A141: 3061 | B141: Bredhurst Church of England Voluntary Controlled Primary School | C141: 1 | D141: 127 | E141: 0 | F141: 0 | G141: 0.05511811024 | H141: 0 | I141: 0.05511811024 | J141: 0 | K141: 0.007874015748 | L141: 0 | M141: 0 | N141: 0.007874015748 | O141: 0.007874015748 | P141: 0 | Q141: 0 | R141: 0 | S141: 0 | T141: 0 | U141: 0 | V141: 0 | W141: 0.03773584906 | X141: 0 | Y141: 0.1909385113 | Z141: 0 | AA141: 0 | AB141: 0 | AC141: 125894.7077 | AD141: 0 | AE141: 0 | AF141: 1 | AG141: 0 | AH141: 15220 | AI141: 0 | AJ141: 0 | AK141: 4384 | AL141: 569524.3478 | AM141: 16654.8165 | AN141: 15220 | AO141: 124 | AR141: 0 | AS141: 0 | AT141: 0 | BI141: n | CC141: 0
A142: 3062 | B142: Burham Church of England Primary School | C142: 1 | D142: 144 | E142: 0 | F142: 0 | G142: 0.06944444444 | H142: 0 | I142: 0.08333333333 | J142: 0 | K142: 0.006993006993 | L142: 0.04195804196 | M142: 0 | N142: 0.02797202797 | O142: 0.02797202797 | P142: 0 | Q142: 0 | R142: 0 | S142: 0 | T142: 0 | U142: 0 | V142: 0 | W142: 0.02479338843 | X142: 0 | Y142: 0.1865546218 | Z142: 0 | AA142: 0.06944444444 | AB142: 0 | AC142: 125894.7077 | AD142: 0 | AE142: 0 | AF142: 1 | AG142: 0 | AH142: 22081 | AI142: 0 | AJ142: 0 | AK142: 4384 | AL142: 693386.258 | AM142: 20162.3051 | AN142: 22081 | AO142: 154 | AR142: 0 | AS142: 0 | AT142: 0 | BI142: n | CC142: 0
A143: 3067 | B143: Harrietsham Church of England Primary School | C143: 1 | D143: 303 | E143: 0 | F143: 0 | G143: 0.1716171617 | H143: 0 | I143: 0.1716171617 | J143: 0 | K143: 0 | L143: 0.003300330033 | M143: 0.006600660066 | N143: 0 | O143: 0.009900990099 | P143: 0 | Q143: 0 | R143: 0 | S143: 0 | T143: 0 | U143: 0 | V143: 0 | W143: 0.04330708661 | X143: 0 | Y143: 0.2456709957 | Z143: 0 | AA143: 0.08910891089 | AB143: 0 | AC143: 125894.7077 | AD143: 0 | AE143: 0 | AF143: 1 | AG143: 0 | AH143: 31232 | AI143: 0 | AJ143: 0 | AK143: 4384 | AL143: 1140507 | AM143: 32493.0537 | AN143: 31607 | AO143: 260 | AR143: 0 | AS143: 0 | AT143: 0 | BI143: n | CC143: 0
A144: 3069 | B144: Leeds and Broomfield Church of England Primary School | C144: 1 | D144: 82 | E144: 0 | F144: 0 | G144: 0.243902439 | H144: 0 | I144: 0.2682926829 | J144: 0 | K144: 0.08974358974 | L144: 0.01282051282 | M144: 0.03846153846 | N144: 0.02564102564 | O144: 0.02564102564 | P144: 0 | Q144: 0 | R144: 0 | S144: 0 | T144: 0 | U144: 0 | V144: 0 | W144: 0.07692307692 | X144: 0 | Y144: 0.3111111111 | Z144: 0 | AA144: 0.2317073171 | AB144: 0 | AC144: 125894.7077 | AD144: 27318.08515 | AE144: 0 | AF144: 1 | AG144: 0 | AH144: 5489 | AI144: 0 | AJ144: 0 | AK144: 4384 | AL144: 405558.6345 | AM144: 11790.3652 | AN144: 5489 | AO144: 66 | AR144: 0 | AS144: 0 | AT144: 0 | BI144: n | CC144: 0
A145: 3072 | B145: Maidstone, St Michael's Church of England Junior School | C145: 1 | D145: 177 | E145: 0 | F145: 0 | G145: 0.1807909605 | H145: 0 | I145: 0.1807909605 | J145: 0 | K145: 0.07954545455 | L145: 0.01704545455 | M145: 0 | N145: 0.005681818182 | O145: 0.02840909091 | P145: 0 | Q145: 0 | R145: 0 | S145: 0 | T145: 0 | U145: 0 | V145: 0 | W145: 0.1412429379 | X145: 0 | Y145: 0.2465799132 | Z145: 0 | AA145: 0.06214689266 | AB145: 0 | AC145: 125894.7077 | AD145: 0 | AE145: 0 | AF145: 1 | AG145: 0 | AH145: 10230 | AI145: 0 | AJ145: 0 | AK145: 4384 | AL145: 778071.2578 | AM145: 22869.2256 | AN145: 10230 | AO145: 174 | AR145: 0 | AS145: 0 | AT145: 0 | BI145: n | CC145: 0
A146: 3073 | B146: St Michael's Church of England Infant School Maidstone | C146: 1 | D146: 120 | E146: 0 | F146: 0 | G146: 0.15 | H146: 0 | I146: 0.15 | J146: 0 | K146: 0.03333333333 | L146: 0 | M146: 0 | N146: 0.008333333333 | O146: 0 | P146: 0 | Q146: 0 | R146: 0 | S146: 0 | T146: 0 | U146: 0 | V146: 0 | W146: 0.35 | X146: 0 | Y146: 0.2718306583 | Z146: 0 | AA146: 0.025 | AB146: 0 | AC146: 125894.7077 | AD146: 0 | AE146: 0 | AF146: 1 | AG146: 0 | AH146: 10105 | AI146: 0 | AJ146: 0 | AK146: 4384 | AL146: 583502.5458 | AM146: 16849.955 | AN146: 10105 | AO146: 119 | AR146: 0 | AS146: 0 | AT146: 0 | BI146: n | CC146: 0
A147: 3081 | B147: Thurnham Church of England Infant School | C147: 1 | D147: 270 | E147: 0 | F147: 0 | G147: 0.01851851852 | H147: 0 | I147: 0.02592592593 | J147: 0 | K147: 0.01486988848 | L147: 0.007434944238 | M147: 0 | N147: 0.003717472119 | O147: 0 | P147: 0 | Q147: 0 | R147: 0 | S147: 0 | T147: 0 | U147: 0 | V147: 0 | W147: 0.08379888268 | X147: 0 | Y147: 0.2662751027 | Z147: 0 | AA147: 0.003703703704 | AB147: 0 | AC147: 125894.7077 | AD147: 0 | AE147: 0 | AF147: 1 | AG147: 0 | AH147: 26368 | AI147: 0 | AJ147: 0 | AK147: 4384 | AL147: 1177918 | AM147: 30741.8112 | AN147: 26368 | AO147: 270 | AR147: 0 | AS147: 0 | AT147: 0 | BI147: n | CC147: 0
A148: 3082 | B148: Trottiscliffe Church of England Primary School | C148: 1 | D148: 84 | E148: 0 | F148: 0 | G148: 0.04761904762 | H148: 0 | I148: 0.05952380952 | J148: 0 | K148: 0.02380952381 | L148: 0 | M148: 0 | N148: 0 | O148: 0 | P148: 0 | Q148: 0 | R148: 0 | S148: 0 | T148: 0 | U148: 0 | V148: 0 | W148: 0.05555555556 | X148: 0 | Y148: 0.21875 | Z148: 0 | AA148: 0.05952380952 | AB148: 0 | AC148: 125894.7077 | AD148: 48646.31547 | AE148: 0 | AF148: 1 | AG148: 0 | AH148: 6362 | AI148: 0 | AJ148: 0 | AK148: 4384 | AL148: 486261.9614 | AM148: 12820.0958 | AN148: 6362 | AO148: 88 | AR148: 0 | AS148: 0 | AT148: 0 | BI148: n | CC148: 0
A149: 3083 | B149: Ulcombe Church of England Primary School | C149: 1 | D149: 70 | E149: 0 | F149: 0 | G149: 0.5142857143 | H149: 0 | I149: 0.5142857143 | J149: 0 | K149: 0 | L149: 0.01428571429 | M149: 0.2428571429 | N149: 0 | O149: 0 | P149: 0 | Q149: 0 | R149: 0 | S149: 0 | T149: 0 | U149: 0 | V149: 0 | W149: 0 | X149: 0 | Y149: 0.4215976331 | Z149: 0 | AA149: 0.1617647059 | AB149: 0 | AC149: 125894.7077 | AD149: 55373.9974 | AE149: 0 | AF149: 1 | AG149: 0 | AH149: 7236 | AI149: 0 | AJ149: 0 | AK149: 4384 | AL149: 435752.5 | AM149: 12325.7451 | AN149: 6422 | AO149: 61 | AR149: 0 | AS149: 0 | AT149: 0 | BI149: n | CC149: 0
A150: 3084 | B150: Wateringbury Church of England Primary School | C150: 1 | D150: 173 | E150: 0 | F150: 0 | G150: 0.1734104046 | H150: 0 | I150: 0.1791907514 | J150: 0 | K150: 0.05263157895 | L150: 0.01754385965 | M150: 0 | N150: 0.02339181287 | O150: 0.005847953216 | P150: 0 | Q150: 0 | R150: 0 | S150: 0 | T150: 0 | U150: 0 | V150: 0 | W150: 0.03311258278 | X150: 0 | Y150: 0.2103448276 | Z150: 0 | AA150: 0.07514450867 | AB150: 0 | AC150: 125894.7077 | AD150: 0 | AE150: 0 | AF150: 1 | AG150: 0 | AH150: 4890 | AI150: 0 | AJ150: 0 | AK150: 4384 | AL150: 739338.7937 | AM150: 22736.1312 | AN150: 4890 | AO150: 170 | AR150: 0 | AS150: 0 | AT150: 0 | BI150: n | CC150: 0
A151: 3088 | B151: Wouldham, All Saints Church of England Voluntary Controlled Primary School | C151: 1 | D151: 403 | E151: 0 | F151: 0 | G151: 0.1290322581 | H151: 0 | I151: 0.1538461538 | J151: 0 | K151: 0.07213930348 | L151: 0.08457711443 | M151: 0.01243781095 | N151: 0.05223880597 | O151: 0.009950248756 | P151: 0 | Q151: 0 | R151: 0 | S151: 0 | T151: 0 | U151: 0 | V151: 0 | W151: 0.03133903134 | X151: 0 | Y151: 0.3194570136 | Z151: 0 | AA151: 0.05210918114 | AB151: 0 | AC151: 125894.7077 | AD151: 0 | AE151: 0 | AF151: 1 | AG151: 0 | AH151: 70656 | AI151: 0 | AJ151: 0 | AK151: 4384 | AL151: 1857691 | AM151: 50904.1163 | AN151: 70656 | AO151: 419 | AR151: 0 | AS151: 0 | AT151: 0 | BI151: n | CC151: 0
A152: 3089 | B152: St George's Church of England Voluntary Controlled Primary School | C152: 1 | D152: 201 | E152: 0 | F152: 0 | G152: 0.184079602 | H152: 0 | I152: 0.184079602 | J152: 0 | K152: 0.06467661692 | L152: 0.01492537313 | M152: 0 | N152: 0 | O152: 0 | P152: 0 | Q152: 0 | R152: 0 | S152: 0 | T152: 0 | U152: 0 | V152: 0 | W152: 0.005847953216 | X152: 0 | Y152: 0.2764705882 | Z152: 0 | AA152: 0.02985074627 | AB152: 0 | AC152: 125894.7077 | AD152: 0 | AE152: 0 | AF152: 1 | AG152: 0 | AH152: 18214 | AI152: 0 | AJ152: 0 | AK152: 4384 | AL152: 877629.792 | AM152: 26486.7923 | AN152: 18214 | AO152: 199 | AR152: 0 | AS152: 0 | AT152: 0 | BI152: n | CC152: 0
A153: 3090 | B153: St Margaret's, Collier Street Church of England Voluntary Controlled School | C153: 1 | D153: 123 | E153: 0 | F153: 0 | G153: 0.0406504065 | H153: 0 | I153: 0.0406504065 | J153: 0 | K153: 0.008130081301 | L153: 0.07317073171 | M153: 0 | N153: 0.0162601626 | O153: 0.008130081301 | P153: 0 | Q153: 0 | R153: 0 | S153: 0 | T153: 0 | U153: 0 | V153: 0 | W153: 0.0380952381 | X153: 0 | Y153: 0.3361344538 | Z153: 0 | AA153: 0.0325203252 | AB153: 0 | AC153: 125894.7077 | AD153: 19813.39293 | AE153: 0 | AF153: 1 | AG153: 0 | AH153: 13972 | AI153: 0 | AJ153: 0 | AK153: 4384 | AL153: 603824.9696 | AM153: 15962.3252 | AN153: 13972 | AO153: 123 | AR153: 0 | AS153: 0 | AT153: 0 | BI153: n | CC153: 0
A154: 3091 | B154: Laddingford St Mary's Church of England Voluntary Controlled Primary School | C154: 1 | D154: 83 | E154: 0 | F154: 0 | G154: 0.2409638554 | H154: 0 | I154: 0.2530120482 | J154: 0 | K154: 0.04819277108 | L154: 0.01204819277 | M154: 0 | N154: 0.01204819277 | O154: 0 | P154: 0 | Q154: 0 | R154: 0 | S154: 0 | T154: 0 | U154: 0 | V154: 0 | W154: 0.05882352941 | X154: 0 | Y154: 0.3582417582 | Z154: 0 | AA154: 0.0843373494 | AB154: 0 | AC154: 125894.7077 | AD154: 25063.20275 | AE154: 0 | AF154: 1 | AG154: 0 | AH154: 5240 | AI154: 0 | AJ154: 8673 | AK154: 4384 | AL154: 454615.2915 | AM154: 12566.9162 | AN154: 5240 | AO154: 74 | AR154: 0 | AS154: 0 | AT154: 0 | BI154: n | CC154: 0
A155: 3092 | B155: Yalding, St Peter and St Paul Church of England Voluntary Controlled Primary School | C155: 1 | D155: 172 | E155: 0 | F155: 0 | G155: 0.0988372093 | H155: 0 | I155: 0.0988372093 | J155: 0 | K155: 0.05813953488 | L155: 0.01744186047 | M155: 0 | N155: 0.005813953488 | O155: 0 | P155: 0 | Q155: 0 | R155: 0 | S155: 0 | T155: 0 | U155: 0 | V155: 0 | W155: 0.02040816327 | X155: 0 | Y155: 0.2448979592 | Z155: 0 | AA155: 0.04651162791 | AB155: 0 | AC155: 125894.7077 | AD155: 0 | AE155: 0 | AF155: 1 | AG155: 0 | AH155: 14222 | AI155: 0 | AJ155: 0 | AK155: 4384 | AL155: 745002.4248 | AM155: 21897.5362 | AN155: 14222 | AO155: 171 | AR155: 0 | AS155: 0 | AT155: 0 | BI155: n | CC155: 0
A156: 3108 | B156: Ospringe Church of England Primary School | C156: 1 | D156: 210 | E156: 0 | F156: 0 | G156: 0.3095238095 | H156: 0 | I156: 0.3142857143 | J156: 0 | K156: 0.1333333333 | L156: 0.0619047619 | M156: 0.3619047619 | N156: 0 | O156: 0.07142857143 | P156: 0 | Q156: 0 | R156: 0 | S156: 0 | T156: 0 | U156: 0 | V156: 0 | W156: 0.03846153846 | X156: 0 | Y156: 0.2532251352 | Z156: 0 | AA156: 0.07142857143 | AB156: 0 | AC156: 125894.7077 | AD156: 0 | AE156: 0 | AF156: 1 | AG156: 0 | AH156: 23079 | AI156: 0 | AJ156: 0 | AK156: 4384 | AL156: 964802.7778 | AM156: 29547.9642 | AN156: 23079 | AO156: 206 | AR156: 0 | AS156: 0 | AT156: 0 | BI156: n | CC156: 0
A157: 3109 | B157: Hernhill Church of England Primary School | C157: 1 | D157: 210 | E157: 0 | F157: 0 | G157: 0.1047619048 | H157: 0 | I157: 0.1095238095 | J157: 0 | K157: 0.08095238095 | L157: 0.1 | M157: 0.009523809524 | N157: 0.02857142857 | O157: 0.01428571429 | P157: 0 | Q157: 0 | R157: 0 | S157: 0 | T157: 0 | U157: 0 | V157: 0 | W157: 0.01666666667 | X157: 0 | Y157: 0.2919278997 | Z157: 0 | AA157: 0.03333333333 | AB157: 0 | AC157: 125894.7077 | AD157: 0 | AE157: 0 | AF157: 1 | AG157: 0 | AH157: 31744 | AI157: 0 | AJ157: 0 | AK157: 4384 | AL157: 889009 | AM157: 24809.6023 | AN157: 31744 | AO157: 201 | AR157: 0 | AS157: 0 | AT157: 0 | BI157: n | CC157: 0
A158: 3111 | B158: Newington Church of England Primary School | C158: 1 | D158: 205 | E158: 0 | F158: 0 | G158: 0.3902439024 | H158: 0 | I158: 0.4048780488 | J158: 0 | K158: 0.3235294118 | L158: 0.3921568627 | M158: 0.004901960784 | N158: 0 | O158: 0 | P158: 0.009803921569 | Q158: 0 | R158: 0 | S158: 0 | T158: 0 | U158: 0 | V158: 0 | W158: 0 | X158: 0 | Y158: 0.2672912099 | Z158: 0 | AA158: 0.1512195122 | AB158: 0 | AC158: 125894.7077 | AD158: 0 | AE158: 0 | AF158: 1 | AG158: 0 | AH158: 34048 | AI158: 0 | AJ158: 0 | AK158: 4384 | AL158: 919970.1781 | AM158: 28274.0603 | AN158: 34048 | AO158: 192 | AR158: 0 | AS158: 0 | AT158: 0 | BI158: n | CC158: 0
A159: 3117 | B159: Teynham Parochial Church of England Primary School | C159: 1 | D159: 200 | E159: 0 | F159: 0 | G159: 0.305 | H159: 0 | I159: 0.325 | J159: 0 | K159: 0.685 | L159: 0.03 | M159: 0.02 | N159: 0.02 | O159: 0.015 | P159: 0.005 | Q159: 0 | R159: 0 | S159: 0 | T159: 0 | U159: 0 | V159: 0 | W159: 0.03448275862 | X159: 0 | Y159: 0.3016949153 | Z159: 0 | AA159: 0.06 | AB159: 0 | AC159: 125894.7077 | AD159: 0 | AE159: 0 | AF159: 1 | AG159: 0 | AH159: 23827 | AI159: 0 | AJ159: 0 | AK159: 4384 | AL159: 968293.8563 | AM159: 28879.4899 | AN159: 23827 | AO159: 207 | AR159: 0 | AS159: 0 | AT159: 0 | BI159: n | CC159: 0
A160: 3120 | B160: Barham Church of England Primary School | C160: 1 | D160: 210 | E160: 0 | F160: 0 | G160: 0.119047619 | H160: 0 | I160: 0.119047619 | J160: 0 | K160: 0.219047619 | L160: 0.09047619048 | M160: 0 | N160: 0 | O160: 0.01904761905 | P160: 0 | Q160: 0 | R160: 0 | S160: 0 | T160: 0 | U160: 0 | V160: 0 | W160: 0.05 | X160: 0 | Y160: 0.2088014981 | Z160: 0 | AA160: 0.01428571429 | AB160: 0 | AC160: 125894.7077 | AD160: 0 | AE160: 0 | AF160: 1 | AG160: 0 | AH160: 28672 | AI160: 0 | AJ160: 0 | AK160: 4384 | AL160: 924322 | AM160: 25598.1618 | AN160: 28672 | AO160: 210 | AR160: 0 | AS160: 0 | AT160: 0 | BI160: n | CC160: 0
A161: 3122 | B161: Bridge and Patrixbourne Church of England Primary School | C161: 1 | D161: 402 | E161: 0 | F161: 0 | G161: 0.0223880597 | H161: 0 | I161: 0.0223880597 | J161: 0 | K161: 0.01990049751 | L161: 0.05970149254 | M161: 0 | N161: 0.03233830846 | O161: 0.01741293532 | P161: 0 | Q161: 0 | R161: 0 | S161: 0 | T161: 0 | U161: 0 | V161: 0 | W161: 0.08695652174 | X161: 0 | Y161: 0.1552861746 | Z161: 0 | AA161: 0.01990049751 | AB161: 0 | AC161: 125894.7077 | AD161: 0 | AE161: 0 | AF161: 1 | AG161: 0 | AH161: 35072 | AI161: 0 | AJ161: 0 | AK161: 4384 | AL161: 1779457 | AM161: 44319.4445 | AN161: 35072 | AO161: 409 | AR161: 0 | AS161: 0 | AT161: 0 | BI161: n | CC161: 0
A162: 3123 | B162: Chislet Church of England Primary School | C162: 1 | D162: 96 | E162: 0 | F162: 0 | G162: 0.1458333333 | H162: 0 | I162: 0.15625 | J162: 0 | K162: 0.2291666667 | L162: 0.0625 | M162: 0.01041666667 | N162: 0.03125 | O162: 0.01041666667 | P162: 0 | Q162: 0 | R162: 0 | S162: 0 | T162: 0 | U162: 0 | V162: 0 | W162: 0 | X162: 0 | Y162: 0.2991666667 | Z162: 0 | AA162: 0.04166666667 | AB162: 0 | AC162: 125894.7077 | AD162: 23268.16849 | AE162: 0 | AF162: 1 | AG162: 0 | AH162: 6113 | AI162: 0 | AJ162: 0 | AK162: 4384 | AL162: 514010.827 | AM162: 14726.4484 | AN162: 6113 | AO162: 98 | AR162: 0 | AS162: 0 | AT162: 0 | BI162: n | CC162: 0
A163: 3126 | B163: Littlebourne Church of England Primary School | C163: 1 | D163: 98 | E163: 0 | F163: 0 | G163: 0.2653061224 | H163: 0 | I163: 0.2653061224 | J163: 0 | K163: 0.05102040816 | L163: 0.2040816327 | M163: 0 | N163: 0.112244898 | O163: 0.01020408163 | P163: 0 | Q163: 0 | R163: 0 | S163: 0 | T163: 0 | U163: 0 | V163: 0 | W163: 0.1204819277 | X163: 0 | Y163: 0.2514071295 | Z163: 0 | AA163: 0.0306122449 | AB163: 0 | AC163: 125894.7077 | AD163: 0 | AE163: 0 | AF163: 1 | AG163: 0 | AH163: 11228 | AI163: 0 | AJ163: 0 | AK163: 4384 | AL163: 536672.309 | AM163: 16317.5773 | AN163: 11228 | AO163: 103 | AR163: 0 | AS163: 0 | AT163: 0 | BI163: n | CC163: 0
A164: 3129 | B164: St Alphege Church of England Infant School | C164: 1 | D164: 169 | E164: 0 | F164: 0 | G164: 0.1715976331 | H164: 0 | I164: 0.1775147929 | J164: 0 | K164: 0 | L164: 0.005917159763 | M164: 0.1124260355 | N164: 0.005917159763 | O164: 0.005917159763 | P164: 0 | Q164: 0 | R164: 0 | S164: 0 | T164: 0 | U164: 0 | V164: 0 | W164: 0.08256880734 | X164: 0 | Y164: 0.3314895079 | Z164: 0 | AA164: 0.02366863905 | AB164: 0 | AC164: 125894.7077 | AD164: 0 | AE164: 0 | AF164: 1 | AG164: 0 | AH164: 31488 | AI164: 0 | AJ164: 0 | AK164: 4384 | AL164: 684525.6537 | AM164: 20188.3235 | AN164: 31488 | AO164: 142 | AR164: 4.55 | AS164: 1.05 | AT164: 0 | BI164: n | CC164: 0
A165: 3130 | B165: Wickhambreaux Church of England Primary School | C165: 1 | D165: 118 | E165: 0 | F165: 0 | G165: 0.1101694915 | H165: 0 | I165: 0.1101694915 | J165: 0 | K165: 0.08547008547 | L165: 0.08547008547 | M165: 0 | N165: 0 | O165: 0.02564102564 | P165: 0 | Q165: 0 | R165: 0 | S165: 0 | T165: 0 | U165: 0 | V165: 0 | W165: 0.1262135922 | X165: 0 | Y165: 0.09533333333 | Z165: 0 | AA165: 0.02542372881 | AB165: 0 | AC165: 125894.7077 | AD165: 0 | AE165: 0 | AF165: 1 | AG165: 0 | AH165: 8733 | AI165: 0 | AJ165: 0 | AK165: 4384 | AL165: 573390.5263 | AM165: 17310.2816 | AN165: 8733 | AO165: 129 | AR165: 0 | AS165: 0 | AT165: 0 | BI165: n | CC165: 0
A166: 3134 | B166: John Mayne Church of England Primary School, Biddenden | C166: 1 | D166: 111 | E166: 0 | F166: 0 | G166: 0.1531531532 | H166: 0 | I166: 0.1531531532 | J166: 0 | K166: 0 | L166: 0.009090909091 | M166: 0.06363636364 | N166: 0 | O166: 0 | P166: 0 | Q166: 0 | R166: 0 | S166: 0 | T166: 0 | U166: 0 | V166: 0 | W166: 0.02197802198 | X166: 0 | Y166: 0.2638888889 | Z166: 0 | AA166: 0.08108108108 | AB166: 0 | AC166: 125894.7077 | AD166: 28685.0614 | AE166: 0 | AF166: 1 | AG166: 0 | AH166: 14222 | AI166: 0 | AJ166: 0 | AK166: 4384 | AL166: 521711.486 | AM166: 14119.0174 | AN166: 14222 | AO166: 97 | AR166: 0 | AS166: 0 | AT166: 0 | BI166: n | CC166: 0
A167: 3136 | B167: Brabourne Church of England Primary School | C167: 1 | D167: 102 | E167: 0 | F167: 0 | G167: 0.1078431373 | H167: 0 | I167: 0.1078431373 | J167: 0 | K167: 0.009803921569 | L167: 0 | M167: 0 | N167: 0 | O167: 0.009803921569 | P167: 0 | Q167: 0 | R167: 0 | S167: 0 | T167: 0 | U167: 0 | V167: 0 | W167: 0.05681818182 | X167: 0 | Y167: 0.125 | Z167: 0 | AA167: 0.02941176471 | AB167: 0 | AC167: 125894.7077 | AD167: 10159.90867 | AE167: 0 | AF167: 1 | AG167: 0 | AH167: 5502 | AI167: 0 | AJ167: 0 | AK167: 4384 | AL167: 483069.645 | AM167: 14604.3617 | AN167: 5502 | AO167: 102 | AR167: 0 | AS167: 0 | AT167: 0 | BI167: n | CC167: 0
A168: 3137 | B168: Brookland Church of England Primary School | C168: 1 | D168: 87 | E168: 0 | F168: 0 | G168: 0.1609195402 | H168: 0 | I168: 0.1724137931 | J168: 0 | K168: 0.1724137931 | L168: 0.02298850575 | M168: 0.367816092 | N168: 0.05747126437 | O168: 0 | P168: 0 | Q168: 0 | R168: 0 | S168: 0 | T168: 0 | U168: 0 | V168: 0 | W168: 0 | X168: 0 | Y168: 0.2162162162 | Z168: 0 | AA168: 0.03448275862 | AB168: 0 | AC168: 125894.7077 | AD168: 20544.56627 | AE168: 0 | AF168: 1 | AG168: 0 | AH168: 11976 | AI168: 0 | AJ168: 0 | AK168: 4384 | AL168: 456741.7598 | AM168: 13330.4579 | AN168: 11976 | AO168: 88 | AR168: 0 | AS168: 0 | AT168: 0 | BI168: n | CC168: 0
A169: 3138 | B169: Chilham, St Mary's Church of England Primary School | C169: 1 | D169: 76 | E169: 0 | F169: 0 | G169: 0.2236842105 | H169: 0 | I169: 0.2236842105 | J169: 0 | K169: 0 | L169: 0.02631578947 | M169: 0 | N169: 0 | O169: 0.02631578947 | P169: 0 | Q169: 0 | R169: 0 | S169: 0 | T169: 0 | U169: 0 | V169: 0 | W169: 0.03076923077 | X169: 0 | Y169: 0.1897435897 | Z169: 0 | AA169: 0.03947368421 | AB169: 0 | AC169: 125894.7077 | AD169: 54560.76112 | AE169: 0 | AF169: 1 | AG169: 0 | AH169: 8358 | AI169: 0 | AJ169: 8400 | AK169: 4384 | AL169: 511543.8877 | AM169: 14351.1821 | AN169: 8358 | AO169: 88 | AR169: 0 | AS169: 0 | AT169: 0 | BI169: y | CC169: 0
A170: 3139 | B170: High Halden Church of England Primary School | C170: 1 | D170: 100 | E170: 0 | F170: 0 | G170: 0.15 | H170: 0 | I170: 0.16 | J170: 0 | K170: 0 | L170: 0.02 | M170: 0 | N170: 0 | O170: 0 | P170: 0 | Q170: 0 | R170: 0 | S170: 0 | T170: 0 | U170: 0 | V170: 0 | W170: 0 | X170: 0 | Y170: 0.2486772487 | Z170: 0 | AA170: 0.01 | AB170: 0 | AC170: 125894.7077 | AD170: 29914.15714 | AE170: 0 | AF170: 1 | AG170: 0 | AH170: 15968 | AI170: 0 | AJ170: 0 | AK170: 4384 | AL170: 529956.7727 | AM170: 14835.5258 | AN170: 15968 | AO170: 100 | AR170: 0 | AS170: 0 | AT170: 0 | BI170: n | CC170: 0
A171: 3145 | B171: Woodchurch Church of England Primary School | C171: 1 | D171: 166 | E171: 0 | F171: 0 | G171: 0.2590361446 | H171: 0 | I171: 0.265060241 | J171: 0 | K171: 0 | L171: 0.006024096386 | M171: 0.01807228916 | N171: 0.006024096386 | O171: 0.006024096386 | P171: 0 | Q171: 0 | R171: 0 | S171: 0 | T171: 0 | U171: 0 | V171: 0 | W171: 0.007042253521 | X171: 0 | Y171: 0.3006001091 | Z171: 0 | AA171: 0.07228915663 | AB171: 0 | AC171: 125894.7077 | AD171: 0 | AE171: 0 | AF171: 1 | AG171: 0 | AH171: 12226 | AI171: 0 | AJ171: 0 | AK171: 4384 | AL171: 742658.8312 | AM171: 22980.3044 | AN171: 12226 | AO171: 162 | AR171: 0 | AS171: 0 | AT171: 0 | BI171: n | CC171: 0
A172: 3146 | B172: Bodsham Church of England Primary School | C172: 1 | D172: 84 | E172: 0 | F172: 0 | G172: 0.05952380952 | H172: 0 | I172: 0.05952380952 | J172: 0 | K172: 0 | L172: 0.02380952381 | M172: 0 | N172: 0.04761904762 | O172: 0 | P172: 0 | Q172: 0 | R172: 0 | S172: 0 | T172: 0 | U172: 0 | V172: 0 | W172: 0.1267605634 | X172: 0 | Y172: 0.1850746269 | Z172: 0 | AA172: 0.1071428571 | AB172: 0 | AC172: 125894.7077 | AD172: 48646.31547 | AE172: 0 | AF172: 1 | AG172: 0 | AH172: 6030 | AI172: 0 | AJ172: 0 | AK172: 4384 | AL172: 442865.0404 | AM172: 11303.0194 | AN172: 6030 | AO172: 75 | AR172: 0 | AS172: 0 | AT172: 0 | BI172: n | CC172: 0
A173: 3149 | B173: Folkestone, St Martin's Church of England Primary School | C173: 1 | D173: 201 | E173: 0 | F173: 0 | G173: 0.1791044776 | H173: 0 | I173: 0.184079602 | J173: 0 | K173: 0.1313131313 | L173: 0.02525252525 | M173: 0.005050505051 | N173: 0.0101010101 | O173: 0.01515151515 | P173: 0.005050505051 | Q173: 0 | R173: 0 | S173: 0 | T173: 0 | U173: 0 | V173: 0 | W173: 0.05649717514 | X173: 0 | Y173: 0.259469697 | Z173: 0 | AA173: 0.02985074627 | AB173: 0 | AC173: 125894.7077 | AD173: 0 | AE173: 0 | AF173: 1 | AG173: 0 | AH173: 19511 | AI173: 0 | AJ173: 0 | AK173: 4384 | AL173: 906501 | AM173: 27530.5328 | AN173: 19381 | AO173: 208 | AR173: 0 | AS173: 0 | AT173: 0 | BI173: n | CC173: 0
A174: 3150 | B174: Folkestone, St Peter's Church of England Primary School | C174: 1 | D174: 102 | E174: 0 | F174: 0 | G174: 0.3921568627 | H174: 0 | I174: 0.4019607843 | J174: 0 | K174: 0.02941176471 | L174: 0.05882352941 | M174: 0.08823529412 | N174: 0.137254902 | O174: 0.4705882353 | P174: 0.1274509804 | Q174: 0 | R174: 0 | S174: 0 | T174: 0 | U174: 0 | V174: 0 | W174: 0.1011235955 | X174: 0 | Y174: 0.3540229885 | Z174: 0 | AA174: 0.09803921569 | AB174: 0 | AC174: 125894.7077 | AD174: 0 | AE174: 0 | AF174: 1 | AG174: 0 | AH174: 2138 | AI174: 0 | AJ174: 29088 | AK174: 4384 | AL174: 616505.915 | AM174: 17860.6721 | AN174: 2138 | AO174: 104 | AR174: 0 | AS174: 0 | AT174: 0 | BI174: n | CC174: 0
A175: 3153 | B175: Seabrook Church of England Primary School | C175: 1 | D175: 104 | E175: 0 | F175: 0 | G175: 0.1346153846 | H175: 0 | I175: 0.1442307692 | J175: 0 | K175: 0.2403846154 | L175: 0.09615384615 | M175: 0 | N175: 0.01923076923 | O175: 0.009615384615 | P175: 0 | Q175: 0 | R175: 0 | S175: 0 | T175: 0 | U175: 0 | V175: 0 | W175: 0.02247191011 | X175: 0 | Y175: 0.2377622378 | Z175: 0 | AA175: 0.009615384615 | AB175: 0 | AC175: 125894.7077 | AD175: 0 | AE175: 0 | AF175: 1 | AG175: 0 | AH175: 509 | AI175: 0 | AJ175: 0 | AK175: 4384 | AL175: 502251.8798 | AM175: 15162.7579 | AN175: 509 | AO175: 106 | AR175: 0 | AS175: 0 | AT175: 0 | BI175: n | CC175: 0
A176: 3154 | B176: Lyminge Church of England Primary School | C176: 1 | D176: 198 | E176: 0 | F176: 0 | G176: 0.07070707071 | H176: 0 | I176: 0.07575757576 | J176: 0 | K176: 0.06060606061 | L176: 0 | M176: 0.005050505051 | N176: 0 | O176: 0.005050505051 | P176: 0.0101010101 | Q176: 0 | R176: 0 | S176: 0 | T176: 0 | U176: 0 | V176: 0 | W176: 0.04046242775 | X176: 0 | Y176: 0.1637426901 | Z176: 0 | AA176: 0.05555555556 | AB176: 0 | AC176: 125894.7077 | AD176: 0 | AE176: 0 | AF176: 1 | AG176: 0 | AH176: 28160 | AI176: 0 | AJ176: 0 | AK176: 4384 | AL176: 864100 | AM176: 23898.9562 | AN176: 28160 | AO176: 196 | AR176: 0 | AS176: 0 | AT176: 0 | BI176: n | CC176: 0
A177: 3155 | B177: Lympne Church of England Primary School | C177: 1 | D177: 203 | E177: 0 | F177: 0 | G177: 0.06896551724 | H177: 0 | I177: 0.06896551724 | J177: 0 | K177: 0.07881773399 | L177: 0.04433497537 | M177: 0.009852216749 | N177: 0 | O177: 0.004926108374 | P177: 0 | Q177: 0 | R177: 0 | S177: 0 | T177: 0 | U177: 0 | V177: 0 | W177: 0 | X177: 0 | Y177: 0.1942196532 | Z177: 0 | AA177: 0.02955665025 | AB177: 0 | AC177: 125894.7077 | AD177: 0 | AE177: 0 | AF177: 1 | AG177: 0 | AH177: 45824 | AI177: 0 | AJ177: 0 | AK177: 4384 | AL177: 898824 | AM177: 24202.1714 | AN177: 45824 | AO177: 200 | AR177: 0 | AS177: 0 | AT177: 0 | BI177: n | CC177: 0
A178: 3158 | B178: Stelling Minnis Church of England Primary School | C178: 1 | D178: 85 | E178: 0 | F178: 0 | G178: 0.1882352941 | H178: 0 | I178: 0.1882352941 | J178: 0 | K178: 0 | L178: 0 | M178: 0 | N178: 0 | O178: 0 | P178: 0 | Q178: 0 | R178: 0 | S178: 0 | T178: 0 | U178: 0 | V178: 0 | W178: 0.02898550725 | X178: 0 | Y178: 0.1836734694 | Z178: 0 | AA178: 0.03529411765 | AB178: 0 | AC178: 125894.7077 | AD178: 47907.00976 | AE178: 0 | AF178: 1 | AG178: 0 | AH178: 14097 | AI178: 0 | AJ178: 0 | AK178: 4384 | AL178: 463338.7825 | AM178: 12238.6833 | AN178: 14097 | AO178: 75 | AR178: 0 | AS178: 0 | AT178: 0 | BI178: n | CC178: 0
A179: 3159 | B179: Stowting Church of England Primary School | C179: 1 | D179: 106 | E179: 0 | F179: 0 | G179: 0.07547169811 | H179: 0 | I179: 0.08490566038 | J179: 0 | K179: 0 | L179: 0.04716981132 | M179: 0 | N179: 0.01886792453 | O179: 0 | P179: 0 | Q179: 0 | R179: 0 | S179: 0 | T179: 0 | U179: 0 | V179: 0 | W179: 0.03296703297 | X179: 0 | Y179: 0.1034482759 | Z179: 0 | AA179: 0.05660377358 | AB179: 0 | AC179: 125894.7077 | AD179: 32381.58993 | AE179: 0 | AF179: 1 | AG179: 0 | AH179: 13972 | AI179: 0 | AJ179: 0 | AK179: 4384 | AL179: 531986.4943 | AM179: 14822.5165 | AN179: 13972 | AO179: 106 | AR179: 0 | AS179: 0 | AT179: 0 | BI179: n | CC179: 0
A180: 3160 | B180: Selsted Church of England Primary School | C180: 1 | D180: 101 | E180: 0 | F180: 0 | G180: 0.08910891089 | H180: 0 | I180: 0.08910891089 | J180: 0 | K180: 0.1782178218 | L180: 0.009900990099 | M180: 0.009900990099 | N180: 0.009900990099 | O180: 0.07920792079 | P180: 0 | Q180: 0 | R180: 0 | S180: 0 | T180: 0 | U180: 0 | V180: 0 | W180: 0 | X180: 0 | Y180: 0.1785714286 | Z180: 0 | AA180: 0.0396039604 | AB180: 0 | AC180: 125894.7077 | AD180: 36078.11846 | AE180: 0 | AF180: 1 | AG180: 0 | AH180: 10978 | AI180: 0 | AJ180: 0 | AK180: 4384 | AL180: 529426.9419 | AM180: 14252.1118 | AN180: 10978 | AO180: 101 | AR180: 0 | AS180: 0 | AT180: 0 | BI180: n | CC180: 0
A181: 3167 | B181: Eastry Church of England Primary School | C181: 1 | D181: 171 | E181: 0 | F181: 0 | G181: 0.269005848 | H181: 0 | I181: 0.2748538012 | J181: 0 | K181: 0.0350877193 | L181: 0.08187134503 | M181: 0.01169590643 | N181: 0.01169590643 | O181: 0.01169590643 | P181: 0 | Q181: 0 | R181: 0 | S181: 0 | T181: 0 | U181: 0 | V181: 0 | W181: 0.02614379085 | X181: 0 | Y181: 0.3123620309 | Z181: 0 | AA181: 0.09941520468 | AB181: 0 | AC181: 125894.7077 | AD181: 0 | AE181: 0 | AF181: 1 | AG181: 0 | AH181: 17465 | AI181: 0 | AJ181: 0 | AK181: 4384 | AL181: 827050.2971 | AM181: 24569.4319 | AN181: 17465 | AO181: 181 | AR181: 0 | AS181: 0 | AT181: 0 | BI181: n | CC181: 0
A182: 3168 | B182: Goodnestone Church of England Primary School | C182: 1 | D182: 54 | E182: 0 | F182: 0 | G182: 0.09259259259 | H182: 0 | I182: 0.09259259259 | J182: 0 | K182: 0.2962962963 | L182: 0.1481481481 | M182: 0 | N182: 0.01851851852 | O182: 0 | P182: 0 | Q182: 0 | R182: 0 | S182: 0 | T182: 0 | U182: 0 | V182: 0 | W182: 0 | X182: 0 | Y182: 0.4920634921 | Z182: 0 | AA182: 0.1481481481 | AB182: 0 | AC182: 125894.7077 | AD182: 51774.68756 | AE182: 0 | AF182: 1 | AG182: 0 | AH182: 3443 | AI182: 0 | AJ182: 0 | AK182: 4384 | AL182: 356302.1776 | AM182: 8646.1344 | AN182: 3443 | AO182: 45 | AR182: 0 | AS182: 0 | AT182: 0 | BI182: n | CC182: 0
A183: 3169 | B183: Guston Church of England Primary School | C183: 1 | D183: 155 | E183: 0 | F183: 0 | G183: 0.09032258065 | H183: 0 | I183: 0.09032258065 | J183: 0 | K183: 0.05806451613 | L183: 0.05161290323 | M183: 0.01935483871 | N183: 0 | O183: 0.01935483871 | P183: 0.006451612903 | Q183: 0 | R183: 0 | S183: 0 | T183: 0 | U183: 0 | V183: 0 | W183: 0.4160583942 | X183: 0 | Y183: 0.2807017544 | Z183: 0 | AA183: 0.04516129032 | AB183: 0 | AC183: 125894.7077 | AD183: 0 | AE183: 0 | AF183: 1 | AG183: 0 | AH183: 19461 | AI183: 0 | AJ183: 0 | AK183: 4384 | AL183: 716058.608 | AM183: 19750.0126 | AN183: 19461 | AO183: 148 | AR183: 0 | AS183: 0 | AT183: 0 | BI183: n | CC183: 0
A184: 3171 | B184: Nonington Church of England Primary School | C184: 1 | D184: 38 | E184: 0 | F184: 0 | G184: 0.5526315789 | H184: 0 | I184: 0.5526315789 | J184: 0 | K184: 0.2222222222 | L184: 0.25 | M184: 0 | N184: 0 | O184: 0 | P184: 0 | Q184: 0 | R184: 0 | S184: 0 | T184: 0 | U184: 0 | V184: 0 | W184: 0 | X184: 0 | Y184: 0.5212121212 | Z184: 0 | AA184: 0.1578947368 | AB184: 0 | AC184: 125894.7077 | AD184: 10244.18952 | AE184: 0 | AF184: 1 | AG184: 0 | AH184: 9606 | AI184: 0 | AJ184: 0 | AK184: 4384 | AL184: 334213.4971 | AM184: 9836.9793 | AN184: 9606 | AO184: 45 | AR184: 0 | AS184: 0 | AT184: 0 | BI184: n | CC184: 0
A185: 3175 | B185: Sibertswold Church of England Primary School at Shepherdswell | C185: 1 | D185: 205 | E185: 0 | F185: 0 | G185: 0.112195122 | H185: 0 | I185: 0.112195122 | J185: 0 | K185: 0.06341463415 | L185: 0.2926829268 | M185: 0.01463414634 | N185: 0 | O185: 0.009756097561 | P185: 0 | Q185: 0 | R185: 0 | S185: 0 | T185: 0 | U185: 0 | V185: 0 | W185: 0.03370786517 | X185: 0 | Y185: 0.1465909091 | Z185: 0 | AA185: 0.05365853659 | AB185: 0 | AC185: 125894.7077 | AD185: 0 | AE185: 0 | AF185: 1 | AG185: 0 | AH185: 27136 | AI185: 0 | AJ185: 0 | AK185: 4384 | AL185: 880136 | AM185: 24457.3524 | AN185: 27136 | AO185: 200 | AR185: 0 | AS185: 0 | AT185: 0 | BI185: n | CC185: 0
A186: 3178 | B186: Birchington Church of England Primary School | C186: 1 | D186: 475 | E186: 0 | F186: 0 | G186: 0.2315789474 | H186: 0 | I186: 0.2357894737 | J186: 0 | K186: 0.3642105263 | L186: 0.1978947368 | M186: 0.01263157895 | N186: 0.02315789474 | O186: 0.01052631579 | P186: 0.01263157895 | Q186: 0 | R186: 0 | S186: 0 | T186: 0 | U186: 0 | V186: 0 | W186: 0.01927710843 | X186: 0 | Y186: 0.2280582524 | Z186: 0 | AA186: 0.02526315789 | AB186: 0 | AC186: 125894.7077 | AD186: 0 | AE186: 0 | AF186: 1 | AG186: 0 | AH186: 67072 | AI186: 0 | AJ186: 0 | AK186: 4384 | AL186: 2084417 | AM186: 58697.6458 | AN186: 67072 | AO186: 473 | AR186: 0 | AS186: 0 | AT186: 0 | BI186: n | CC186: 0
A187: 3179 | B187: Margate, Holy Trinity and St John's Church of England Primary School | C187: 1 | D187: 399 | E187: 0 | F187: 0 | G187: 0.5488721805 | H187: 0 | I187: 0.5639097744 | J187: 0 | K187: 0.05263157895 | L187: 0.1954887218 | M187: 0.06516290727 | N187: 0.2105263158 | O187: 0.313283208 | P187: 0.1303258145 | Q187: 0 | R187: 0 | S187: 0 | T187: 0 | U187: 0 | V187: 0 | W187: 0.1769911504 | X187: 0 | Y187: 0.6598083067 | Z187: 0 | AA187: 0.07518796992 | AB187: 0 | AC187: 125894.7077 | AD187: 0 | AE187: 0 | AF187: 1 | AG187: 0 | AH187: 31488 | AI187: 0 | AJ187: 0 | AK187: 4384 | AL187: 2050731.058 | AM187: 60993.2745 | AN187: 31488 | AO187: 395 | AR187: 4.55 | AS187: 1.05 | AT187: 0 | BI187: n | CC187: 0
A188: 3181 | B188: St Saviour's Church of England Junior School | C188: 1 | D188: 372 | E188: 0 | F188: 0 | G188: 0.3037634409 | H188: 0 | I188: 0.3306451613 | J188: 0 | K188: 0.09408602151 | L188: 0.2311827957 | M188: 0.01075268817 | N188: 0.02688172043 | O188: 0.01344086022 | P188: 0.002688172043 | Q188: 0 | R188: 0 | S188: 0 | T188: 0 | U188: 0 | V188: 0 | W188: 0.01617250674 | X188: 0 | Y188: 0.1978969307 | Z188: 0 | AA188: 0.0188172043 | AB188: 0 | AC188: 125894.7077 | AD188: 0 | AE188: 0 | AF188: 1 | AG188: 0 | AH188: 50150 | AI188: 0 | AJ188: 0 | AK188: 4384 | AL188: 1615405 | AM188: 48153.1645 | AN188: 50150 | AO188: 367 | AR188: 0 | AS188: 0 | AT188: 0 | BI188: n | CC188: 0
A189: 3182 | B189: Minster Church of England Primary School | C189: 1 | D189: 387 | E189: 0 | F189: 0 | G189: 0.2144702842 | H189: 0 | I189: 0.2248062016 | J189: 0 | K189: 0.07792207792 | L189: 0.1896103896 | M189: 0.02337662338 | N189: 0.007792207792 | O189: 0.01558441558 | P189: 0.01298701299 | Q189: 0 | R189: 0 | S189: 0 | T189: 0 | U189: 0 | V189: 0 | W189: 0.01219512195 | X189: 0 | Y189: 0.3310133924 | Z189: 0 | AA189: 0.05167958656 | AB189: 0 | AC189: 125894.7077 | AD189: 0 | AE189: 0 | AF189: 1 | AG189: 0 | AH189: 35072 | AI189: 0 | AJ189: 0 | AK189: 4384 | AL189: 1694157 | AM189: 48842.6537 | AN189: 35072 | AO189: 389 | AR189: 0 | AS189: 0 | AT189: 0 | BI189: n | CC189: 0
A190: 3183 | B190: Monkton Church of England Primary School | C190: 1 | D190: 106 | E190: 0 | F190: 0 | G190: 0.2075471698 | H190: 0 | I190: 0.2358490566 | J190: 0 | K190: 0.08490566038 | L190: 0.1603773585 | M190: 0.009433962264 | N190: 0.02830188679 | O190: 0 | P190: 0.009433962264 | Q190: 0 | R190: 0 | S190: 0 | T190: 0 | U190: 0 | V190: 0 | W190: 0.03296703297 | X190: 0 | Y190: 0.3396715644 | Z190: 0 | AA190: 0.09433962264 | AB190: 0 | AC190: 125894.7077 | AD190: 0 | AE190: 0 | AF190: 1 | AG190: 0 | AH190: 19087 | AI190: 0 | AJ190: 0 | AK190: 4384 | AL190: 532834.9577 | AM190: 15734.1633 | AN190: 19087 | AO190: 104 | AR190: 0 | AS190: 0 | AT190: 0 | BI190: n | CC190: 0
A191: 3186 | B191: St Nicholas At Wade Church of England Primary School | C191: 1 | D191: 191 | E191: 0 | F191: 0 | G191: 0.1413612565 | H191: 0 | I191: 0.1465968586 | J191: 0 | K191: 0.1780104712 | L191: 0.08376963351 | M191: 0 | N191: 0.01047120419 | O191: 0 | P191: 0 | Q191: 0 | R191: 0 | S191: 0 | T191: 0 | U191: 0 | V191: 0 | W191: 0.03012048193 | X191: 0 | Y191: 0.2710747557 | Z191: 0 | AA191: 0.06282722513 | AB191: 0 | AC191: 125894.7077 | AD191: 0 | AE191: 0 | AF191: 1 | AG191: 0 | AH191: 13473 | AI191: 0 | AJ191: 0 | AK191: 4384 | AL191: 811028 | AM191: 23195.4571 | AN191: 13473 | AO191: 187 | AR191: 0 | AS191: 0 | AT191: 0 | BI191: n | CC191: 0
A192: 3198 | B192: Frittenden Church of England Primary School | C192: 1 | D192: 98 | E192: 0 | F192: 0 | G192: 0.2040816327 | H192: 0 | I192: 0.2040816327 | J192: 0 | K192: 0.01020408163 | L192: 0 | M192: 0.09183673469 | N192: 0 | O192: 0 | P192: 0 | Q192: 0 | R192: 0 | S192: 0 | T192: 0 | U192: 0 | V192: 0 | W192: 0 | X192: 0 | Y192: 0.2875 | Z192: 0 | AA192: 0.1428571429 | AB192: 0 | AC192: 125894.7077 | AD192: 38296.03558 | AE192: 0 | AF192: 1 | AG192: 0 | AH192: 12974 | AI192: 0 | AJ192: 0 | AK192: 4384 | AL192: 543826.8221 | AM192: 15102.7153 | AN192: 12974 | AO192: 101 | AR192: 0 | AS192: 0 | AT192: 0 | BI192: n | CC192: 0
A193: 3199 | B193: Egerton Church of England Primary School | C193: 1 | D193: 188 | E193: 0 | F193: 0 | G193: 0.2074468085 | H193: 0 | I193: 0.2074468085 | J193: 0 | K193: 0 | L193: 0.1595744681 | M193: 0 | N193: 0 | O193: 0 | P193: 0 | Q193: 0 | R193: 0 | S193: 0 | T193: 0 | U193: 0 | V193: 0 | W193: 0.03797468354 | X193: 0 | Y193: 0.3899521531 | Z193: 0 | AA193: 0.07446808511 | AB193: 0 | AC193: 125894.7077 | AD193: 0 | AE193: 0 | AF193: 1 | AG193: 0 | AH193: 11103 | AI193: 0 | AJ193: 0 | AK193: 4384 | AL193: 829684.2131 | AM193: 24605.4575 | AN193: 11103 | AO193: 184 | AR193: 0 | AS193: 0 | AT193: 0 | BI193: n | CC193: 0
A194: 3201 | B194: St Lawrence Church of England Primary School | C194: 1 | D194: 78 | E194: 0 | F194: 0 | G194: 0.03846153846 | H194: 0 | I194: 0.03846153846 | J194: 0 | K194: 0.03846153846 | L194: 0 | M194: 0 | N194: 0 | O194: 0 | P194: 0 | Q194: 0 | R194: 0 | S194: 0 | T194: 0 | U194: 0 | V194: 0 | W194: 0.06060606061 | X194: 0 | Y194: 0.1666666667 | Z194: 0 | AA194: 0.02564102564 | AB194: 0 | AC194: 125894.7077 | AD194: 10616.42994 | AE194: 0 | AF194: 1.0377 | AG194: 0 | AH194: 6861 | AI194: 0 | AJ194: 0 | AK194: 4384 | AL194: 427682.3966 | AM194: 12328.2072 | AN194: 6861 | AO194: 81 | AR194: 0 | AS194: 0 | AT194: 0 | BI194: n | CC194: 0
A195: 3282 | B195: Boughton-under-Blean and Dunkirk Primary School | C195: 1 | D195: 201 | E195: 0 | F195: 0 | G195: 0.2338308458 | H195: 0 | I195: 0.2338308458 | J195: 0 | K195: 0.05472636816 | L195: 0.4626865672 | M195: 0.02487562189 | N195: 0 | O195: 0.01492537313 | P195: 0 | Q195: 0 | R195: 0 | S195: 0 | T195: 0 | U195: 0 | V195: 0 | W195: 0.02325581395 | X195: 0 | Y195: 0.1840062112 | Z195: 0 | AA195: 0.02487562189 | AB195: 0 | AC195: 125894.7077 | AD195: 0 | AE195: 0 | AF195: 1 | AG195: 0 | AH195: 18338 | AI195: 0 | AJ195: 0 | AK195: 4384 | AL195: 875121.1334 | AM195: 26219.6027 | AN195: 18338 | AO195: 198 | AR195: 0 | AS195: 0 | AT195: 0 | BI195: n | CC195: 0
A196: 3284 | B196: Lady Joanna Thornhill Endowed Primary School | C196: 1 | D196: 421 | E196: 0 | F196: 0 | G196: 0.109263658 | H196: 0 | I196: 0.1140142518 | J196: 0 | K196: 0.01662707838 | L196: 0.0190023753 | M196: 0.01662707838 | N196: 0.0190023753 | O196: 0.007125890736 | P196: 0 | Q196: 0 | R196: 0 | S196: 0 | T196: 0 | U196: 0 | V196: 0 | W196: 0.09141274238 | X196: 0 | Y196: 0.1311736063 | Z196: 0 | AA196: 0.07363420428 | AB196: 0 | AC196: 125894.7077 | AD196: 0 | AE196: 0 | AF196: 1 | AG196: 0 | AH196: 42496 | AI196: 0 | AJ196: 0 | AK196: 4384 | AL196: 1757026 | AM196: 45766.4711 | AN196: 42496 | AO196: 402 | AR196: 0 | AS196: 0 | AT196: 0 | BI196: n | CC196: 0
A197: 3289 | B197: St Peter's Methodist Primary School | C197: 1 | D197: 210 | E197: 0 | F197: 0 | G197: 0.2333333333 | H197: 0 | I197: 0.2380952381 | J197: 0 | K197: 0.01904761905 | L197: 0.1333333333 | M197: 0.03333333333 | N197: 0.1523809524 | O197: 0.02857142857 | P197: 0 | Q197: 0 | R197: 0 | S197: 0 | T197: 0 | U197: 0 | V197: 0 | W197: 0.2444444444 | X197: 0 | Y197: 0.3010033445 | Z197: 0 | AA197: 0.05238095238 | AB197: 0 | AC197: 125894.7077 | AD197: 0 | AE197: 0 | AF197: 1 | AG197: 0 | AH197: 18837 | AI197: 0 | AJ197: 0 | AK197: 4384 | AL197: 968991.2178 | AM197: 27979.8516 | AN197: 18837 | AO197: 210 | AR197: 0 | AS197: 0 | AT197: 0 | BI197: n | CC197: 0
A198: 3294 | B198: St Matthew's High Brooms Church of England Voluntary Controlled Primary School | C198: 1 | D198: 351 | E198: 0 | F198: 0 | G198: 0.4358974359 | H198: 0 | I198: 0.452991453 | J198: 0 | K198: 0.264957265 | L198: 0 | M198: 0 | N198: 0.1794871795 | O198: 0 | P198: 0 | Q198: 0 | R198: 0 | S198: 0 | T198: 0 | U198: 0 | V198: 0 | W198: 0.1035598706 | X198: 0 | Y198: 0.2422145329 | Z198: 0 | AA198: 0.08262108262 | AB198: 0 | AC198: 125894.7077 | AD198: 0 | AE198: 0 | AF198: 1 | AG198: 0 | AH198: 36864 | AI198: 0 | AJ198: 0 | AK198: 4384 | AL198: 1520957.188 | AM198: 49176.8908 | AN198: 36864 | AO198: 346 | AR198: 0 | AS198: 0 | AT198: 0 | BI198: n | CC198: 0
A199: 3295 | B199: Herne Church of England Infant and Nursery School | C199: 1 | D199: 270 | E199: 0 | F199: 0 | G199: 0.06296296296 | H199: 0 | I199: 0.06296296296 | J199: 0 | K199: 0.02592592593 | L199: 0.003703703704 | M199: 0.007407407407 | N199: 0.007407407407 | O199: 0.007407407407 | P199: 0 | Q199: 0 | R199: 0 | S199: 0 | T199: 0 | U199: 0 | V199: 0 | W199: 0.03888888889 | X199: 0 | Y199: 0.2565894888 | Z199: 0 | AA199: 0.003703703704 | AB199: 0 | AC199: 125894.7077 | AD199: 0 | AE199: 0 | AF199: 1 | AG199: 0 | AH199: 47360 | AI199: 0 | AJ199: 0 | AK199: 4384 | AL199: 1203175 | AM199: 31604.4232 | AN199: 47360 | AO199: 271 | AR199: 4.55 | AS199: 1.05 | AT199: 0 | BI199: n | CC199: 0
A200: 3296 | B200: Langafel Church of England Voluntary Controlled Primary School | C200: 1 | D200: 323 | E200: 0 | F200: 0 | G200: 0.3188854489 | H200: 0 | I200: 0.3250773994 | J200: 0 | K200: 0.03715170279 | L200: 0.04024767802 | M200: 0.07430340557 | N200: 0.02167182663 | O200: 0.02476780186 | P200: 0 | Q200: 0 | R200: 0 | S200: 0 | T200: 0 | U200: 0 | V200: 0 | W200: 0.02142857143 | X200: 0 | Y200: 0.3780764862 | Z200: 0 | AA200: 0.08359133127 | AB200: 0 | AC200: 125894.7077 | AD200: 0 | AE200: 0 | AF200: 1.0377 | AG200: 0 | AH200: 37888 | AI200: 0 | AJ200: 0 | AK200: 4384 | AL200: 1522156.785 | AM200: 47028.2129 | AN200: 37888 | AO200: 331 | AR200: 0 | AS200: 0 | AT200: 0 | BI200: n | CC200: 0
... 80 more rows

Sheet TestArea (hidden)
A1: MI DfE no | B1: School Name | D1: Macro School Name | E1: Data Calc | F1: =SUM(F2:F302) -> 301 | H1: Macro F1 | I1: Data Calc F1 | J1: =SUM(J2:J566) -> -583470503.9 | L1: Macro F2 | M1: Data Calc F2 | N1: =SUM(N2:N566) -> -70910756.97 | P1: Macro F4 | Q1: Data Calc F4 | R1: =SUM(R2:R566) -> -5536017.226 | T1: Macro F6 | U1: Data Calc F6 | V1: =SUM(V2:V566) -> -43343629.9 | X1: Macro F? | Y1: Data Calc F? | Z1: =SUM(Z2:Z566) -> -1136992.766 | AB1: Macro F7 | AC1: Data Calc F7 | AD1: =SUM(AD2:AD566) -> -35701640.23 | AF1: Macro F8 | AG1: Data Calc F8 | AH1: =SUM(AH2:AH566) -> -650148.7701 | AJ1: Macro F9 | AK1: Data Calc F9 | AL1: =SUM(AL2:AL566) -> -4516793.139 | AN1: Macro F10 | AO1: Data Calc F10 | AP1: =SUM(AP2:AP566) -> -66000 | AR1: Macro F11 | AS1: Data Calc F11 | AT1: =SUM(AT2:AT566) -> -4894052.466 | AV1: Macro F12 | AW1: Data Calc F12 | AX1: =SUM(AX2:AX566) -> -5156134.296 | AZ1: Macro F13 | BA1: Data Calc F13 | BB1: =SUM(BB2:BB566) -> -7940 | BD1: Macro F14 | BE1: Data Calc F14 | BF1: =SUM(BF2:BF566) -> -8969750.542 | BH1: Macro FFT | BI1: Data Calc FFT | BJ1: =SUM(BJ2:BJ566) -> -764360360.8 | BL1: Macro MFG | BM1: Data Calc MFG | BN1: =SUM(BN2:BN566) ->  | BP1: Macro SBS | BQ1: Data Calc SBS | BR1: =SUM(BR2:BR566) ->  | BT1: Early years rate | BV1: =SUM(BV2:BV566) -> 0 | BX1: Macro Notional SEN | BY1: Data Calc | BZ1: =SUM(BZ2:BZ566) ->  | CB1: Macro De-Delegation | CC1: Data Calc | CD1: =SUM(CD2:CD566) -> 0 | CF1: Year 2 | CG1: Data Calc | CH1: =SUM(CH2:CH566) -> 440555643 | CJ1: Year 3 | CK1: Data Calc | CL1: =SUM(CL2:CL566) -> 447233056
A2: 1001 | B2: Northfleet Nursery | D2: Northfleet Nursery | F2: =IF(E2=D2,0,1) -> 1 | H2: 0 | I2: 0 | J2: =H2-I2 -> 0 | L2: 0 | M2: 0 | N2: =L2-M2 -> 0 | P2: 0 | Q2: 0 | R2: =P2-Q2 -> 0 | T2: 0 | U2: 0 | V2: =T2-U2 -> 0 | X2: 0 | Y2: 0 | Z2: =X2-Y2 -> 0 | AB2: 0 | AC2: 0 | AD2: =AB2-AC2 -> 0 | AF2: 0 | AG2: 0 | AH2: =AF2-AG2 -> 0 | AJ2: 0 | AK2: 0 | AL2: =AJ2-AK2 -> 0 | AN2: 0 | AO2: 0 | AP2: =AN2-AO2 -> 0 | AR2: 0 | AS2: 0 | AT2: =AR2-AS2 -> 0 | AV2: 0 | AW2: 0 | AX2: =AV2-AW2 -> 0 | AZ2: 0 | BA2: 0 | BB2: =AZ2-BA2 -> 0 | BD2: 0 | BE2: 0 | BF2: =BD2-BE2 -> 0 | BH2: 0 | BI2: =I2+M2+Q2+U2+AC2+AG2+AK2+AO2+AS2+AW2+BA2+BE2 -> 0 | BJ2: =BH2-BI2 -> 0 | BL2: 0 | BM2: 0 | BN2: =BL2-BM2 -> 0 | BP2: 0 | BQ2: 0 | BR2: =BP2-BQ2 -> 0 | BV2: =BT2-BU2 -> 0 | BX2: 0 | BY2: 0 | BZ2: =ROUND(BX2-BY2,0) -> 0 | CB2: 0 | CC2: 0 | CD2: =IF(E2="Recoupment Academy",0,ROUND(CB2-CC2,0)) -> 0 | CF2: 0 | CH2: =ROUND(CF2-CG2,0) -> 0 | CJ2: 0 | CL2: =ROUND(CJ2-CK2,0) -> 0
A3: 2000 | B3: St Johns Church of England Primary School | D3: St Johns Church of England Primary School | E3: 0 | F3: 1 | H3: 1338609.02 | I3: 1338609.023 | J3: -0.002976348158 | L3: 374555.83 | M3: 374555.8346 | N3: -0.004609077994 | P3: 60198.4 | Q3: 60198.39702 | R3: 0.002975393843 | T3: 194441.25 | U3: 194441.2521 | V3: -0.002104018 | X3: 27827.92 | Y3: 27827.91528 | Z3: 0.004723772796 | AB3: 125894.71 | AC3: 125894.7077 | AD3: 0.002290411983 | AF3: 0 | AG3: 0 | AH3: 0 | AJ3: 0 | AK3: 0 | AL3: 0 | AN3: 0 | AO3: 0 | AP3: 0 | AR3: 24576 | AS3: 24576 | AT3: 0 | AV3: 0 | AW3: 0 | AX3: 0 | AZ3: 0 | BA3: 0 | BB3: 0 | BD3: 0 | BE3: 0 | BF3: 0 | BH3: 2146103.13 | BI3: =I3+M3+Q3+U3+Y3+AC3+AG3+AK3+AO3+AS3+AW3+BA3+BE3 -> 2146103.13 | BJ3: 0.0003001345322 | BL3: 0 | BM3: 0 | BN3: 0 | BP3: 2146103.13 | BQ3: 2146103.13 | BR3: 0.0003001345322 | BV3: 0 | BX3: 536590.34 | BY3: 536590.3354 | BZ3: 0 | CB3: 11260.08 | CC3: 11260.08 | CD3: =IF(E3="Recoupment Academy",0,ROUND(CB3-CC3,0)) -> 0 | CF3: 2264296.21 | CH3: 2264296 | CI3: =(CF3-BQ3)/BQ3 -> 0.05507334604 | CJ3: 2309090.62 | CL3: 2309091 | CM3: =(CJ3-CF3)/CF3 -> 0.01978292849
A4: 2002 | B4: Repton Manor Primary School | D4: Repton Manor Primary School | E4: 0 | F4: 1 | H4: 1572281.42 | I4: 1572281.421 | J4: -0.001002144534 | L4: 125156.84 | M4: 125156.8395 | N4: 0.0005357227346 | P4: 17650.91 | Q4: 17650.90593 | R4: 0.004072268941 | T4: 123800.62 | U4: 123800.6152 | V4: 0.004767422681 | X4: 0 | Y4: 0 | Z4: 0 | AB4: 125894.71 | AC4: 125894.7077 | AD4: 0.002290411983 | AF4: 0 | AG4: 0 | AH4: 0 | AJ4: 0 | AK4: 0 | AL4: 0 | AN4: 0 | AO4: 0 | AP4: 0 | AR4: 10650 | AS4: 10650 | AT4: 0 | AV4: 0 | AW4: 0 | AX4: 0 | AZ4: 0 | BA4: 0 | BB4: 0 | BD4: 100079.51 | BE4: 100079.5107 | BF4: -0.0006636818725 | BH4: 2075514 | BI4: =I4+M4+Q4+U4+Y4+AC4+AG4+AK4+AO4+AS4+AW4+BA4+BE4 -> 2075514 | BJ4: 0 | BL4: 3037.38 | BM4: 3037.37921 | BN4: 0.0007904454787 | BP4: 2078551.38 | BQ4: 2078551.379 | BR4: 0.0007904453669 | BV4: 0 | BX4: 337077.36 | BY4: 337077.3568 | BZ4: 0 | CB4: 13225.68 | CC4: 13225.68 | CD4: 0 | CF4: 2158285.38 | CH4: 2158285 | CI4: =(CF4-BQ4)/BQ4 -> 0.03836037039 | CJ4: 2168345.19 | CL4: 2168345 | CM4: =(CJ4-CF4)/CF4 -> 0.004661019388
A5: 2065 | B5: The Discovery School | D5: The Discovery School | E5: 0 | F5: 1 | H5: 2062993.46 | I5: 2062993.457 | J5: 0.003143683076 | L5: 67294.5 | M5: 67294.49999 | N5: 7.203401765e-06 | P5: 16291.29 | Q5: 16291.28606 | R5: 0.003939206392 | T5: 117624.14 | U5: 117624.1399 | V5: 0.0001290413638 | X5: 2714.01 | Y5: 2714.011777 | Z5: -0.001777106987 | AB5: 125894.71 | AC5: 125894.7077 | AD5: 0.002290411983 | AF5: 0 | AG5: 0 | AH5: 0 | AJ5: 0 | AK5: 0 | AL5: 0 | AN5: 0 | AO5: 0 | AP5: 0 | AR5: 75264 | AS5: 75264 | AT5: 0 | AV5: 0 | AW5: 0 | AX5: 0 | AZ5: 0 | BA5: 0 | BB5: 0 | BD5: 316499.9 | BE5: 316499.8977 | BF5: 0.002267560631 | BH5: 2784576 | BI5: 2784576 | BJ5: 0 | BL5: 0 | BM5: 0 | BN5: 0 | BP5: 2784576 | BQ5: 2784576 | BR5: 0 | BV5: 0 | BX5: 502529.79 | BY5: 502529.7916 | BZ5: 0 | CB5: 17353.44 | CC5: 17353.44 | CD5: 0 | CF5: 2884642.56 | CH5: 2884643 | CI5: 0.03593601324 | CJ5: 2898689.45 | CL5: 2898689 | CM5: 0.004869542658
A6: 2066 | B6: Maypole Primary School | D6: Maypole Primary School | E6: 0 | F6: 1 | H6: 1395358.03 | I6: 1395358.034 | J6: -0.003925469937 | L6: 79706.88 | M6: 79706.88199 | N6: -0.0019917389 | P6: 18649.85 | Q6: 18649.85405 | R6: -0.004047484399 | T6: 128610.79 | U6: 128610.7856 | V6: 0.004441390498 | X6: 0 | Y6: 0 | Z6: 0 | AB6: 125894.71 | AC6: 125894.7077 | AD6: 0.002290411983 | AF6: 0 | AG6: 0 | AH6: 0 | AJ6: 65907.9 | AK6: 65907.90392 | AL6: -0.003923879995 | AN6: 0 | AO6: 0 | AP6: 0 | AR6: 38144 | AS6: 38144 | AT6: 0 | AV6: 0 | AW6: 0 | AX6: 0 | AZ6: 0 | BA6: 0 | BB6: 0 | BD6: 18383.83 | BE6: 18383.83284 | BF6: -0.002843229202 | BH6: 1870656 | BI6: 1870656 | BJ6: 0 | BL6: 0 | BM6: 0 | BN6: 0 | BP6: 1870656 | BQ6: 1870656 | BR6: 0 | BV6: 0 | BX6: 235706.2 | BY6: 235706.1972 | BZ6: 0 | CB6: 12179.94 | CC6: 12179.94149 | CD6: 0 | CF6: 1951702.1 | CH6: 1951702 | CI6: 0.04332496194 | CJ6: 1989973.26 | CL6: 1989973 | CM6: 0.01960911965
A7: 2079 | B7: Woodlands Primary School | D7: Woodlands Primary School | E7: 0 | F7: 1 | H7: 2136433.35 | I7: 2136433.353 | J7: -0.003378710244 | L7: 212052.98 | M7: 212052.9783 | N7: 0.001653546991 | P7: 15960.37 | Q7: 15960.37246 | R7: -0.002463795941 | T7: 159292.81 | U7: 159292.8133 | V7: -0.003318566625 | X7: 0 | Y7: 0 | Z7: 0 | AB7: 125894.71 | AC7: 125894.7077 | AD7: 0.002290411983 | AF7: 0 | AG7: 0 | AH7: 0 | AJ7: 0 | AK7: 0 | AL7: 0 | AN7: 0 | AO7: 0 | AP7: 0 | AR7: 57856 | AS7: 57856 | AT7: 0 | AV7: 0 | AW7: 0 | AX7: 0 | AZ7: 0 | BA7: 0 | BB7: 0 | BD7: 156125.77 | BE7: 156125.7748 | BF7: -0.004782886012 | BH7: 2863616 | BI7: 2863616 | BJ7: 0 | BL7: 189.81 | BM7: 189.8108987 | BN7: -0.0008987333253 | BP7: 2863805.81 | BQ7: 2863805.811 | BR7: -0.0008987328038 | BV7: 0 | BX7: 490201.26 | BY7: 490201.2639 | BZ7: 0 | CB7: 17971.2 | CC7: 17971.2 | CD7: 0 | CF7: 2971831.45 | CH7: 2971831 | CI7: 0.03772100702 | CJ7: 2985722.96 | CL7: 2985723 | CM7: 0.00467439363
A8: 2088 | B8: Crockenhill Primary School | D8: Crockenhill Primary School | E8: 0 | F8: 1 | H8: 660959.07 | I8: 660959.0687 | J8: 0.001298461459 | L8: 84482.07 | M8: 84482.07113 | N8: -0.001126671632 | P8: 3361.63 | Q8: 3361.631184 | R8: -0.001184042405 | T8: 66788.55 | U8: 66788.54868 | V8: 0.00132132812 | X8: 0 | Y8: 0 | Z8: 0 | AB8: 125894.71 | AC8: 125894.7077 | AD8: 0.002290411983 | AF8: 0 | AG8: 0 | AH8: 0 | AJ8: 35494.02 | AK8: 35494.02323 | AL8: -0.003232999319 | AN8: 0 | AO8: 0 | AP8: 0 | AR8: 24116 | AS8: 24116 | AT8: 0 | AV8: 0 | AW8: 0 | AX8: 0 | AZ8: 0 | BA8: 0 | BB8: 0 | BD8: 0 | BE8: 0 | BF8: 0 | BH8: 1001096.05 | BI8: 1001096.051 | BJ8: -0.0006335116923 | BL8: 0 | BM8: 0 | BN8: 0 | BP8: 1001096.05 | BQ8: 1001096.051 | BR8: -0.0006335116923 | BV8: 0 | BX8: 138340.83 | BY8: 138340.8324 | BZ8: 0 | CB8: 5769.45 | CC8: 5769.445968 | CD8: 0 | CF8: 1056843.25 | CH8: 1056843 | CI8: 0.05568616451 | CJ8: 1077497.79 | CL8: 1077498 | CM8: 0.01954361728
A9: 2089 | B9: The Anthony Roper Primary School | D9: The Anthony Roper Primary School | E9: 0 | F9: 1 | H9: 1014805.84 | I9: 1014805.843 | J9: -0.002854887396 | L9: 46551.38 | M9: 46551.38363 | N9: -0.003625966863 | P9: 2008.72 | Q9: 2008.719174 | R9: 0.0008256532847 | T9: 62590.23 | U9: 62590.22671 | V9: 0.003288791006 | X9: 0 | Y9: 0 | Z9: 0 | AB9: 125894.71 | AC9: 125894.7077 | AD9: 0.002290411983 | AF9: 0 | AG9: 0 | AH9: 0 | AJ9: 47194.78 | AK9: 47194.77818 | AL9: 0.00182113488 | AN9: 0 | AO9: 0 | AP9: 0 | AR9: 6656 | AS9: 6656 | AT9: 0 | AV9: 0 | AW9: 0 | AX9: 0 | AZ9: 0 | BA9: 0 | BB9: 0 | BD9: 33690.34 | BE9: 33690.34175 | BF9: -0.001745136949 | BH9: 1339392 | BI9: 1339392 | BJ9: 0 | BL9: 0 | BM9: 0 | BN9: 0 | BP9: 1339392 | BQ9: 1339392 | BR9: 0 | BV9: 0 | BX9: 142096.97 | BY9: 142096.968 | BZ9: 0 | CB9: 8858.14 | CC9: 8858.139264 | CD9: 0 | CF9: 1389390.57 | CH9: 1389391 | CI9: 0.03732930315 | CJ9: 1405477.07 | CL9: 1405477 | CM9: 0.01157809787
A10: 2094 | B10: Cobham Primary School | D10: Cobham Primary School | E10: 0 | F10: 1 | H10: 727722.61 | I10: 727722.611 | J10: -0.000994623173 | L10: 19454.64 | M10: 19454.64316 | N10: -0.003158808329 | P10: 2645.96 | Q10: 2645.957027 | R10: 0.002972611881 | T10: 45816.65 | U10: 45816.64668 | V10: 0.00331915899 | X10: 0 | Y10: 0 | Z10: 0 | AB10: 125894.71 | AC10: 125894.7077 | AD10: 0.002290411983 | AF10: 0 | AG10: 0 | AH10: 0 | AJ10: 0 | AK10: 0 | AL10: 0 | AN10: 0 | AO10: 0 | AP10: 0 | AR10: 17216 | AS10: 17216 | AT10: 0 | AV10: 0 | AW10: 0 | AX10: 0 | AZ10: 0 | BA10: 0 | BB10: 0 | BD10: 34177.43 | BE10: 34177.43443 | BF10: -0.004428751352 | BH10: 972928 | BI10: 972928 | BJ10: 0 | BL10: 475.74 | BM10: 475.7358845 | BN10: 0.004115481405 | BP10: 973403.74 | BQ10: 973403.7359 | BR10: 0.004115481395 | BV10: 0 | BX10: 102497.72 | BY10: 102497.7249 | BZ10: 0 | CB10: 6121.44 | CC10: 6121.44 | CD10: 0 | CF10: 1009587.15 | CH10: 1009587 | CI10: 0.03717205182 | CJ10: 1013870.64 | CL10: 1013871 | CM10: 0.00424281351
A11: 2095 | B11: Cecil Road Primary and Nursery School | D11: Cecil Road Primary and Nursery School | E11: 0 | F11: 1 | H11: 1245140.06 | I11: 1245140.064 | J11: -0.003766029375 | L11: 116982.24 | M11: 116982.2391 | N11: 0.0008833802131 | P11: 46169.48 | Q11: 46169.47684 | R11: 0.003157164414 | T11: 110398.38 | U11: 110398.3819 | V11: -0.001942465155 | X11: 0 | Y11: 0 | Z11: 0 | AB11: 125894.71 | AC11: 125894.7077 | AD11: 0.002290411983 | AF11: 0 | AG11: 0 | AH11: 0 | AJ11: 0 | AK11: 0 | AL11: 0 | AN11: 0 | AO11: 0 | AP11: 0 | AR11: 34048 | AS11: 34048 | AT11: 0 | AV11: 0 | AW11: 0 | AX11: 0 | AZ11: 0 | BA11: 0 | BB11: 0 | BD11: 0 | BE11: 0 | BF11: 0 | BH11: 1678632.87 | BI11: 1678632.869 | BJ11: 0.0006224620156 | BL11: 0 | BM11: 0 | BN11: 0 | BP11: 1678632.87 | BQ11: 1678632.869 | BR11: 0.0006224620156 | BV11: 0 | BX11: 251288.5 | BY11: 251288.5003 | BZ11: 0 | CB11: 10473.84 | CC11: 10473.84 | CD11: 0 | CF11: 1768082.55 | CH11: 1768083 | CI11: 0.05328722096 | CJ11: 1802763.24 | CL11: 1802763 | CM11: 0.01961485905
A12: 2109 | B12: Higham Primary School | D12: Higham Primary School | E12: 0 | F12: 1 | H12: 691002.66 | I12: 691002.6627 | J12: -0.002733426518 | L12: 32034.27 | M12: 32034.26769 | N12: 0.002307387611 | P12: 2001.44 | Q12: 2001.439583 | R12: 0.0004167735206 | T12: 73485.19 | U12: 73485.1926 | V12: -0.002604153065 | X12: 0 | Y12: 0 | Z12: 0 | AB12: 125894.71 | AC12: 125894.7077 | AD12: 0.002290411983 | AF12: 0 | AG12: 0 | AH12: 0 | AJ12: 0 | AK12: 0 | AL12: 0 | AN12: 0 | AO12: 0 | AP12: 0 | AR12: 22330 | AS12: 22330 | AT12: 0 | AV12: 0 | AW12: 0 | AX12: 0 | AZ12: 0 | BA12: 0 | BB12: 0 | BD12: 0 | BE12: 0 | BF12: 0 | BH12: 946748.27 | BI12: 946748.2703 | BJ12: -0.0003230064176 | BL12: 0 | BM12: 0 | BN12: 0 | BP12: 946748.27 | BQ12: 946748.2703 | BR12: -0.0003230064176 | BV12: 0 | BX12: 103199.27 | BY12: 103199.2682 | BZ12: 0 | CB12: 5812.56 | CC12: 5812.56 | CD12: 0 | CF12: 997508.42 | CH12: 997508 | CI12: 0.05361525473 | CJ12: 1017011.98 | CL12: 1017012 | CM12: 0.01955227606
A13: 2116 | B13: Lawn Primary School | D13: Lawn Primary School | E13: 0 | F13: 1 | H13: 650944.54 | I13: 650944.5374 | J13: 0.002642424311 | L13: 204242.63 | M13: 204242.6326 | N13: -0.00259717778 | P13: 33630.53 | Q13: 33630.52593 | R13: 0.004074231176 | T13: 84868.27 | U13: 84868.27439 | V13: -0.0043871792 | X13: 0 | Y13: 0 | Z13: 0 | AB13: 125894.71 | AC13: 125894.7077 | AD13: 0.002290411983 | AF13: 0 | AG13: 0 | AH13: 0 | AJ13: 0 | AK13: 0 | AL13: 0 | AN13: 0 | AO13: 0 | AP13: 0 | AR13: 20709 | AS13: 20709 | AT13: 0 | AV13: 0 | AW13: 0 | AX13: 0 | AZ13: 0 | BA13: 0 | BB13: 0 | BD13: 0 | BE13: 0 | BF13: 0 | BH13: 1120289.68 | BI13: 1120289.678 | BJ13: 0.002022710396 | BL13: 0 | BM13: 0 | BN13: 0 | BP13: 1120289.68 | BQ13: 1120289.678 | BR13: 0.002022710396 | BV13: 0 | BX13: 278290.93 | BY13: 278290.93 | BZ13: 0 | CB13: 5475.6 | CC13: 5475.6 | CD13: 0 | CF13: 1182007.23 | CH13: 1182007 | CI13: 0.05509070844 | CJ13: 1205233.2 | CL13: 1205233 | CM13: 0.01964960062
A14: 2120 | B14: Bean Primary School | D14: Bean Primary School | E14: 0 | F14: 1 | H14: 610886.41 | I14: 610886.412 | J14: -0.001981724869 | L14: 70948.16 | M14: 70948.1636 | N14: -0.003598196388 | P14: 9848.48 | Q14: 9848.483812 | R14: -0.003811911527 | T14: 49625.01 | U14: 49625.00749 | V14: 0.002513862943 | X14: 948.05 | Y14: 948.0452098 | Z14: 0.004790188646 | AB14: 125894.71 | AC14: 125894.7077 | AD14: 0.002290411983 | AF14: 0 | AG14: 0 | AH14: 0 | AJ14: 32729.29 | AK14: 32729.28591 | AL14: 0.004093639185 | AN14: 0 | AO14: 0 | AP14: 0 | AR14: 16093 | AS14: 16093 | AT14: 0 | AV14: 0 | AW14: 0 | AX14: 0 | AZ14: 0 | BA14: 0 | BB14: 0 | BD14: 0 | BE14: 0 | BF14: 0 | BH14: 916973.11 | BI14: 916973.1057 | BJ14: 0.004296269966 | BL14: 0 | BM14: 0 | BN14: 0 | BP14: 916973.11 | BQ14: 916973.1057 | BR14: 0.004296269966 | BV14: 0 | BX14: 124485.26 | BY14: 124485.259 | BZ14: 0 | CB14: 5332.37 | CC14: 5332.366728 | CD14: 0 | CF14: 967107.38 | CH14: 967107 | CI14: 0.05467365835 | CJ14: 986127.67 | CL14: 986128 | CM14: 0.01966719559
A15: 2128 | B15: Capel Primary School | D15: Capel Primary School | E15: 0 | F15: 1 | H15: 687664.49 | I15: 687664.4856 | J15: 0.004381227656 | L15: 48843.09 | M15: 48843.08599 | N15: 0.004013394406 | P15: 1335.39 | Q15: 1335.391782 | R15: -0.001781649906 | T15: 49508.72 | U15: 49508.71705 | V15: 0.002954777214 | X15: 0 | Y15: 0 | Z15: 0 | AB15: 125894.71 | AC15: 125894.7077 | AD15: 0.002290411983 | AF15: 0 | AG15: 0 | AH15: 0 | AJ15: 0 | AK15: 0 | AL15: 0 | AN15: 0 | AO15: 0 | AP15: 0 | AR15: 21457 | AS15: 21457 | AT15: 0 | AV15: 0 | AW15: 0 | AX15: 0 | AZ15: 0 | BA15: 0 | BB15: 0 | BD15: 0 | BE15: 0 | BF15: 0 | BH15: 934703.39 | BI15: 934703.3881 | BJ15: 0.001858161413 | BL15: 0 | BM15: 0 | BN15: 0 | BP15: 934703.39 | BQ15: 934703.3881 | BR15: 0.001858161413 | BV15: 0 | BX15: 90644.52 | BY15: 90644.5195 | BZ15: 0 | CB15: 5784.48 | CC15: 5784.48 | CD15: 0 | CF15: 986179.52 | CH15: 986180 | CI15: 0.05507215713 | CJ15: 1005473.97 | CL15: 1005474 | CM15: 0.01956484556
A16: 2130 | B16: Dunton Green Primary School | D16: Dunton Green Primary School | E16: 0 | F16: 1 | H16: 614224.59 | I16: 614224.5891 | J16: 0.0009036208503 | L16: 71263.2 | M16: 71263.19798 | N16: 0.002024163739 | P16: 10290.63 | Q16: 10290.62618 | R16: 0.003820447742 | T16: 44418.56 | U16: 44418.56281 | V16: -0.002808807687 | X16: 10186.84 | Y16: 10186.83873 | Z16: 0.001274968285 | AB16: 125894.71 | AC16: 125894.7077 | AD16: 0.002290411983 | AF16: 0 | AG16: 0 | AH16: 0 | AJ16: 33035.7 | AK16: 33035.7003 | AL16: -0.0002980688514 | AN16: 0 | AO16: 0 | AP16: 0 | AR16: 24576 | AS16: 24576 | AT16: 0 | AV16: 0 | AW16: 0 | AX16: 0 | AZ16: 0 | BA16: 0 | BB16: 0 | BD16: 0 | BE16: 0 | BF16: 0 | BH16: 933890.22 | BI16: 933890.2228 | BJ16: -0.002793263877 | BL16: 0 | BM16: 0 | BN16: 0 | BP16: 933890.22 | BQ16: 933890.2228 | BR16: -0.002793263877 | BV16: 0 | BX16: 108600.49 | BY16: 108600.4915 | BZ16: 0 | CB16: 5361.51 | CC16: 5361.505344 | CD16: 0 | CF16: 986740.88 | CH16: 986741 | CI16: 0.05659193759 | CJ16: 1005984.17 | CL16: 1005984 | CM16: 0.0195018676
A17: 2132 | B17: Hadlow Primary School | D17: Hadlow Primary School | E17: 0 | F17: 1 | H17: 620900.94 | I17: 620900.9433 | J17: -0.003325687721 | L17: 109592.31 | M17: 109592.3052 | N17: 0.004763486664 | P17: 4080.97 | Q17: 4080.973242 | R17: -0.003241606723 | T17: 73359.84 | U17: 73359.83821 | V17: 0.001791385497 | X17: 0 | Y17: 0 | Z17: 0 | AB17: 125894.71 | AC17: 125894.7077 | AD17: 0.002290411983 | AF17: 0 | AG17: 0 | AH17: 0 | AJ17: 0 | AK17: 0 | AL17: 0 | AN17: 0 | AO17: 0 | AP17: 0 | AR17: 24326 | AS17: 24326 | AT17: 0 | AV17: 0 | AW17: 0 | AX17: 0 | AZ17: 0 | BA17: 0 | BB17: 0 | BD17: 0 | BE17: 0 | BF17: 0 | BH17: 958154.77 | BI17: 958154.7677 | BJ17: 0.002277989755 | BL17: 0 | BM17: 0 | BN17: 0 | BP17: 958154.77 | BQ17: 958154.7677 | BR17: 0.002277989755 | BV17: 0 | BX17: 160994.68 | BY17: 160994.6841 | BZ17: 0 | CB17: 5222.88 | CC17: 5222.88 | CD17: 0 | CF17: 1011327.74 | CH17: 1011328 | CI17: 0.05549518102 | CJ17: 1031067.78 | CL17: 1031068 | CM17: 0.01951893458
A18: 2134 | B18: Four Elms Primary School | D18: Four Elms Primary School | E18: 0 | F18: 1 | H18: 367199.48 | I18: 367199.4826 | J18: -0.002611965814 | L18: 21052.83 | M18: 21052.8335 | N18: -0.003501206855 | P18: 0 | Q18: 0 | R18: 0 | T18: 35383.03 | U18: 35383.03181 | V18: -0.001806768283 | X18: 1301.24 | Y18: 1301.238523 | Z18: 0.001476729521 | AB18: 125894.71 | AC18: 125894.7077 | AD18: 0.002290411983 | AF18: 29424.37 | AG18: 29424.36711 | AH18: 0.002892604811 | AJ18: 21875.64 | AK18: 21875.63843 | AL18: 0.001570490665 | AN18: 0 | AO18: 0 | AP18: 0 | AR18: 13348 | AS18: 13348 | AT18: 0 | AV18: 0 | AW18: 0 | AX18: 0 | AZ18: 0 | BA18: 0 | BB18: 0 | BD18: 0 | BE18: 0 | BF18: 0 | BH18: 615479.3 | BI18: 615479.2997 | BJ18: 0.0003102960763 | BL18: 0 | BM18: 0 | BN18: 0 | BP18: 615479.3 | BQ18: 615479.2997 | BR18: 0.0003102960763 | BV18: 0 | BX18: 61917.38 | BY18: 61917.38352 | BZ18: 0 | CB18: 3205.25 | CC18: 3205.24776 | CD18: 0 | CF18: 646921.27 | CH18: 646921 | CI18: 0.05108534166 | CJ18: 659592.74 | CL18: 659593 | CM18: 0.01958734484
A19: 2136 | B19: Kemsing Primary School | D19: Kemsing Primary School | E19: 0 | F19: 1 | H19: 600871.88 | I19: 600871.8806 | J19: -0.0006377622485 | L19: 27311.1 | M19: 27311.1022 | N19: -0.002203522345 | P19: 3400.08 | Q19: 3400.084521 | R19: -0.004520885757 | T19: 50013.64 | U19: 50013.63758 | V19: 0.002421114725 | X19: 0 | Y19: 0 | Z19: 0 | AB19: 125894.71 | AC19: 125894.7077 | AD19: 0.002290411983 | AF19: 0 | AG19: 0 | AH19: 0 | AJ19: 30442.43 | AK19: 30442.42626 | AL19: 0.003743070738 | AN19: 0 | AO19: 0 | AP19: 0 | AR19: 21956 | AS19: 21956 | AT19: 0 | AV19: 0 | AW19: 0 | AX19: 0 | AZ19: 0 | BA19: 0 | BB19: 0 | BD19: 0 | BE19: 0 | BF19: 0 | BH19: 859889.84 | BI19: 859889.8389 | BJ19: 0.001092427061 | BL19: 0 | BM19: 0 | BN19: 0 | BP19: 859889.84 | BQ19: 859889.8389 | BR19: 0.001092427061 | BV19: 0 | BX19: 79283.59 | BY19: 79283.59303 | BZ19: 0 | CB19: 5244.95 | CC19: 5244.95088 | CD19: 0 | CF19: 906626.05 | CH19: 906626 | CI19: 0.05435139361 | CJ19: 924319.45 | CL19: 924319 | CM19: 0.01951565367
A20: 2137 | B20: Leigh Primary School | D20: Leigh Primary School | E20: 0 | F20: 1 | H20: 537446.52 | I20: 537446.5155 | J20: 0.004540668218 | L20: 39233.83 | M20: 39233.83473 | N20: -0.004727564185 | P20: 1340.79 | Q20: 1340.785966 | R20: 0.004034270016 | T20: 42311.87 | U20: 42311.87209 | V20: -0.002093137533 | X20: 0 | Y20: 0 | Z20: 0 | AB20: 125894.71 | AC20: 125894.7077 | AD20: 0.002290411983 | AF20: 0 | AG20: 0 | AH20: 0 | AJ20: 28132.78 | AK20: 28132.78489 | AL20: -0.004891516754 | AN20: 0 | AO20: 0 | AP20: 0 | AR20: 12200 | AS20: 12200 | AT20: 0 | AV20: 0 | AW20: 0 | AX20: 0 | AZ20: 0 | BA20: 0 | BB20: 0 | BD20: 0 | BE20: 0 | BF20: 0 | BH20: 786560.5 | BI20: 786560.5008 | BJ20: -0.0008468683809 | BL20: 0 | BM20: 0 | BN20: 0 | BP20: 786560.5 | BQ20: 786560.5008 | BR20: -0.0008468683809 | BV20: 0 | BX20: 78097.44 | BY20: 78097.4375 | BZ20: 0 | CB20: 4691.32 | CC20: 4691.317176 | CD20: 0 | CF20: 830622.79 | CH20: 830623 | CI20: 0.05601894464 | CJ20: 846991.25 | CL20: 846991 | CM20: 0.01970624957
A21: 2138 | B21: Otford Primary School | D21: Otford Primary School | E21: 0 | F21: 1 | H21: 1128303.86 | I21: 1128303.865 | J21: -0.004753131187 | L21: 53396.98 | M21: 53396.97558 | N21: 0.004415071249 | P21: 2570.87 | Q21: 2570.866871 | R21: 0.003129230125 | T21: 52832.34 | U21: 52832.33673 | V21: 0.003269750734 | X21: 0 | Y21: 0 | Z21: 0 | AB21: 125894.71 | AC21: 125894.7077 | AD21: 0.002290411983 | AF21: 0 | AG21: 0 | AH21: 0 | AJ21: 51385.05 | AK21: 51385.05294 | AL21: -0.002937154743 | AN21: 0 | AO21: 0 | AP21: 0 | AR21: 29440 | AS21: 29440 | AT21: 0 | AV21: 0 | AW21: 0 | AX21: 0 | AZ21: 0 | BA21: 0 | BB21: 0 | BD21: 67408.2 | BE21: 67408.19541 | BF21: 0.004585821953 | BH21: 1511232 | BI21: 1511232 | BJ21: 0 | BL21: 11290.52 | BM21: 11290.52164 | BN21: -0.001638334961 | BP21: 1522522.52 | BQ21: 1522522.522 | BR21: -0.00163833471 | BV21: 0 | BX21: 177318.05 | BY21: 177318.0518 | BZ21: 0 | CB21: 9848.85 | CC21: 9848.852208 | CD21: 0 | CF21: 1578852.34 | CH21: 1578852 | CI21: 0.03699769137 | CJ21: 1585921.03 | CL21: 1585921 | CM21: 0.004477106453
A22: 2139 | B22: Pembury School | D22: Pembury School | E22: 0 | F22: 1 | H22: 1335270.85 | I22: 1335270.846 | J22: 0.004138306249 | L22: 58137.66 | M22: 58137.6567 | N22: 0.003304345184 | P22: 17806.22 | Q22: 17806.22298 | R22: -0.002982210939 | T22: 85623.24 | U22: 85623.24013 | V22: -0.0001289663924 | X22: 0 | Y22: 0 | Z22: 0 | AB22: 125894.71 | AC22: 125894.7077 | AD22: 0.002290411983 | AF22: 0 | AG22: 0 | AH22: 0 | AJ22: 0 | AK22: 0 | AL22: 0 | AN22: 0 | AO22: 0 | AP22: 0 | AR22: 42496 | AS22: 42496 | AT22: 0 | AV22: 0 | AW22: 0 | AX22: 0 | AZ22: 0 | BA22: 0 | BB22: 0 | BD22: 130867.33 | BE22: 130867.3266 | BF22: 0.003378114037 | BH22: 1796096 | BI22: 1796096 | BJ22: 0 | BL22: 0 | BM22: 0 | BN22: 0 | BP22: 1796096 | BQ22: 1796096 | BR22: 0 | BV22: 0 | BX22: 277726.52 | BY22: 277726.5187 | BZ22: 0 | CB22: 11232 | CC22: 11232 | CD22: 0 | CF22: 1861377.41 | CH22: 1861377 | CI22: 0.03634628105 | CJ22: 1869955.84 | CL22: 1869956 | CM22: 0.004608646239
A23: 2142 | B23: Sandhurst Primary School | D23: Sandhurst Primary School | E23: 0 | F23: 1 | H23: 510741.1 | I23: 510741.0985 | J23: 0.001457902079 | L23: 46192.47 | M23: 46192.47462 | N23: -0.004619999316 | P23: 5996.35 | Q23: 5996.347533 | R23: 0.00246671576 | T23: 38058.76 | U23: 38058.76017 | V23: -0.0001732781311 | X23: 4479.98 | Y23: 4479.978344 | Z23: 0.001655597342 | AB23: 125894.71 | AC23: 125894.7077 | AD23: 0.002290411983 | AF23: 0 | AG23: 0 | AH23: 0 | AJ23: 0 | AK23: 0 | AL23: 0 | AN23: 0 | AO23: 0 | AP23: 0 | AR23: 21582 | AS23: 21582 | AT23: 0 | AV23: 0 | AW23: 0 | AX23: 0 | AZ23: 0 | BA23: 0 | BB23: 0 | BD23: 0 | BE23: 0 | BF23: 0 | BH23: 752945.37 | BI23: 752945.3669 | BJ23: 0.003077349742 | BL23: 0 | BM23: 0 | BN23: 0 | BP23: 752945.37 | BQ23: 752945.3669 | BR23: 0.003077349742 | BV23: 0 | BX23: 79316.49 | BY23: 79316.48954 | BZ23: 0 | CB23: 4296.24 | CC23: 4296.24 | CD23: 0 | CF23: 794881.09 | CH23: 794881 | CI23: 0.05569557224 | CJ23: 810347.08 | CL23: 810347 | CM23: 0.0194569857
A24: 2147 | B24: Weald Community Primary School | D24: Weald Community Primary School | E24: 0 | F24: 1 | H24: 403919.43 | I24: 403919.4309 | J24: -0.0008731624112 | L24: 17448.19 | M24: 17448.19468 | N24: -0.004682119459 | P24: 3417.1 | Q24: 3417.103646 | R24: -0.003645825279 | T24: 17182.05 | U24: 17182.04503 | V24: 0.004965985434 | X24: 1617.25 | Y24: 1617.253593 | Z24: -0.003593207599 | AB24: 125894.71 | AC24: 125894.7077 | AD24: 0.002290411983 | AF24: 21292 | AG24: 21292.00434 | AH24: -0.004339019633 | AJ24: 22272.06 | AK24: 22272.05689 | AL24: 0.003106639477 | AN24: 0 | AO24: 0 | AP24: 0 | AR24: 15220 | AS24: 15220 | AT24: 0 | AV24: 0 | AW24: 0 | AX24: 0 | AZ24: 0 | BA24: 0 | BB24: 0 | BD24: 0 | BE24: 0 | BF24: 0 | BH24: 628262.8 | BI24: 628262.7968 | BJ24: 0.003229702474 | BL24: 6982.37 | BM24: 6982.371101 | BN24: -0.001100806689 | BP24: 635245.17 | BQ24: 635245.1679 | BR24: 0.002128895721 | BV24: 0 | BX24: 46388.67 | BY24: 46388.66648 | BZ24: 0 | CB24: 3525.77 | CC24: 3525.772536 | CD24: 0 | CF24: 662079.07 | CH24: 662079 | CI24: 0.0422418044 | CJ24: 675016.25 | CL24: 675016 | CM24: 0.01954023407
A25: 2148 | B25: Shoreham Village School | D25: Shoreham Village School | E25: 0 | F25: 1 | H25: 287083.23 | I25: 287083.2319 | J25: -0.001860264223 | L25: 25129.72 | M25: 25129.72412 | N25: -0.004116108183 | P25: 0 | Q25: 0 | R25: 0 | T25: 26138.03 | U25: 26138.03342 | V25: -0.003419875378 | X25: 0 | Y25: 0 | Z25: 0 | AB25: 125894.71 | AC25: 125894.7077 | AD25: 0.002290411983 | AF25: 47167.7 | AG25: 47167.70406 | AH25: -0.004056578218 | AJ25: 19280.29 | AK25: 19280.28522 | AL25: 0.004776176993 | AN25: 0 | AO25: 0 | AP25: 0 | AR25: 14097 | AS25: 14097 | AT25: 0 | AV25: 0 | AW25: 0 | AX25: 0 | AZ25: 0 | BA25: 0 | BB25: 0 | BD25: 0 | BE25: 0 | BF25: 0 | BH25: 544790.69 | BI25: 544790.6864 | BJ25: 0.003613762907 | BL25: 0 | BM25: 0 | BN25: 0 | BP25: 544790.69 | BQ25: 544790.6864 | BR25: 0.003613762907 | BV25: 0 | BX25: 50675.61 | BY25: 50675.60565 | BZ25: 0 | CB25: 2505.92 | CC25: 2505.920976 | CD25: 0 | CF25: 573432.15 | CH25: 573432 | CI25: 0.05257333565 | CJ25: 584618.85 | CL25: 584619 | CM25: 0.0195083237
A26: 2155 | B26: Slade Primary School and Attached Unit for Children with Hearing Impairment | D26: Slade Primary School and Attached Unit for Children with Hearing Impairment | E26: 0 | F26: 1 | H26: 1405372.57 | I26: 1405372.565 | J26: 0.004730567336 | L26: 91484.74 | M26: 91484.7429 | N26: -0.002904166759 | P26: 40581.57 | Q26: 40581.57328 | R26: -0.003277042015 | T26: 147039.07 | U26: 147039.0708 | V26: -0.0007845668588 | X26: 1617.25 | Y26: 1617.253593 | Z26: -0.003593207608 | AB26: 125894.71 | AC26: 125894.7077 | AD26: 0.002290411983 | AF26: 0 | AG26: 0 | AH26: 0 | AJ26: 0 | AK26: 0 | AL26: 0 | AN26: 0 | AO26: 0 | AP26: 0 | AR26: 29952 | AS26: 29952 | AT26: 0 | AV26: 0 | AW26: 0 | AX26: 0 | AZ26: 0 | BA26: 0 | BB26: 0 | BD26: 33674.09 | BE26: 33674.08646 | BF26: 0.003538003984 | BH26: 1875616 | BI26: 1875616 | BJ26: 0 | BL26: 0 | BM26: 0 | BN26: 0 | BP26: 1875616 | BQ26: 1875616 | BR26: 0 | BV26: 0 | BX26: 293350.5 | BY26: 293350.502 | BZ26: 0 | CB26: 11821.68 | CC26: 11821.68 | CD26: 0 | CF26: 1944809.9 | CH26: 1944810 | CI26: 0.03689129331 | CJ26: 1977912.6 | CL26: 1977913 | CM26: 0.01702104663
A27: 2156 | B27: Sussex Road Community Primary School | D27: Sussex Road Community Primary School | E27: 0 | F27: 1 | H27: 1402034.39 | I27: 1402034.388 | J27: 0.001845221268 | L27: 86842.5 | M27: 86842.50451 | N27: -0.004507896025 | P27: 20631.59 | Q27: 20631.58694 | R27: 0.003056321591 | T27: 84260.75 | U27: 84260.74685 | V27: 0.003145015638 | X27: 0 | Y27: 0 | Z27: 0 | AB27: 125894.71 | AC27: 125894.7077 | AD27: 0.002290411983 | AF27: 0 | AG27: 0 | AH27: 0 | AJ27: 0 | AK27: 0 | AL27: 0 | AN27: 0 | AO27: 0 | AP27: 0 | AR27: 44544 | AS27: 44544 | AT27: 0 | AV27: 0 | AW27: 0 | AX27: 0 | AZ27: 0 | BA27: 0 | BB27: 0 | BD27: 121616.07 | BE27: 121616.0658 | BF27: 0.004170925444 | BH27: 1885824 | BI27: 1885824 | BJ27: 0 | BL27: 7372.9 | BM27: 7372.903326 | BN27: -0.003325598687 | BP27: 1893196.9 | BQ27: 1893196.903 | BR27: -0.00332559878 | BV27: 0 | BX27: 299878.52 | BY27: 299878.523 | BZ27: 0 | CB27: 11793.6 | CC27: 11793.6 | CD27: 0 | CF27: 1962704.23 | CH27: 1962704 | CI27: 0.03671426176 | CJ27: 1971616.67 | CL27: 1971617 | CM27: 0.004540898146
A28: 2161 | B28: Boughton Monchelsea Primary School | D28: Boughton Monchelsea Primary School | E28: 0 | F28: 1 | H28: 680988.13 | I28: 680988.1314 | J28: -0.001389463898 | L28: 56613.11 | M28: 56613.11165 | N28: -0.001646728182 | P28: 2029.77 | Q28: 2029.771387 | R28: -0.001387235752 | T28: 65999.78 | U28: 65999.78 | V28: -2.485219738e-06 | X28: 0 | Y28: 0 | Z28: 0 | AB28: 125894.71 | AC28: 125894.7077 | AD28: 0.002290411983 | AF28: 0 | AG28: 0 | AH28: 0 | AJ28: 0 | AK28: 0 | AL28: 0 | AN28: 0 | AO28: 0 | AP28: 0 | AR28: 22580 | AS28: 22580 | AT28: 0 | AV28: 0 | AW28: 0 | AX28: 0 | AZ28: 0 | BA28: 0 | BB28: 0 | BD28: 0 | BE28: 0 | BF28: 0 | BH28: 954105.5 | BI28: 954105.5021 | BJ28: -0.002135501127 | BL28: 0 | BM28: 0 | BN28: 0 | BP28: 954105.5 | BQ28: 954105.5021 | BR28: -0.002135501127 | BV28: 0 | BX28: 112767.36 | BY28: 112767.3615 | BZ28: 0 | CB28: 5728.32 | CC28: 5728.32 | CD28: 0 | CF28: 1006340.93 | CH28: 1006341 | CI28: 0.05474806271 | CJ28: 1026016.15 | CL28: 1026016 | CM28: 0.01955124691
A29: 2163 | B29: East Farleigh Primary School | D29: East Farleigh Primary School | E29: 0 | F29: 1 | H29: 691002.66 | I29: 691002.6627 | J29: -0.002733426518 | L29: 43704.03 | M29: 43704.03426 | N29: -0.004258636196 | P29: 3335.73 | Q29: 3335.732639 | R29: -0.0026387108 | T29: 57956.49 | U29: 57956.49143 | V29: -0.00142608711 | X29: 0 | Y29: 0 | Z29: 0 | AB29: 125894.71 | AC29: 125894.7077 | AD29: 0.002290411983 | AF29: 0 | AG29: 0 | AH29: 0 | AJ29: 0 | AK29: 0 | AL29: 0 | AN29: 0 | AO29: 0 | AP29: 0 | AR29: 16717 | AS29: 16717 | AT29: 0 | AV29: 0 | AW29: 0 | AX29: 0 | AZ29: 0 | BA29: 0 | BB29: 0 | BD29: 0 | BE29: 0 | BF29: 0 | BH29: 938610.63 | BI29: 938610.6288 | BJ29: 0.001233551418 | BL29: 0 | BM29: 0 | BN29: 0 | BP29: 938610.63 | BQ29: 938610.6288 | BR29: 0.001233551418 | BV29: 0 | BX29: 99730.42 | BY29: 99730.41795 | BZ29: 0 | CB29: 5812.56 | CC29: 5812.56 | CD29: 0 | CF29: 989638.52 | CH29: 989639 | CI29: 0.05436534562 | CJ29: 1009096.95 | CL29: 1009097 | CM29: 0.01966215907
A30: 2164 | B30: East Peckham Primary School | D30: East Peckham Primary School | E30: 0 | F30: 1 | H30: 567490.11 | I30: 567490.1095 | J30: 0.0005087801255 | L30: 55009.76 | M30: 55009.76132 | N30: -0.0013177992 | P30: 1385.4 | Q30: 1385.399518 | R30: 0.0004817279787 | T30: 43066.25 | U30: 43066.24933 | V30: 0.0006714333649 | X30: 4461.39 | Y30: 4461.389223 | Z30: 0.0007773583384 | AB30: 125894.71 | AC30: 125894.7077 | AD30: 0.002290411983 | AF30: 0 | AG30: 0 | AH30: 0 | AJ30: 0 | AK30: 0 | AL30: 0 | AN30: 0 | AO30: 0 | AP30: 0 | AR30: 20709 | AS30: 20709 | AT30: 0 | AV30: 0 | AW30: 0 | AX30: 0 | AZ30: 0 | BA30: 0 | BB30: 0 | BD30: 0 | BE30: 0 | BF30: 0 | BH30: 818016.62 | BI30: 818016.6166 | BJ30: 0.003411912592 | BL30: 0 | BM30: 0 | BN30: 0 | BP30: 818016.62 | BQ30: 818016.6166 | BR30: 0.003411912592 | BV30: 0 | BX30: 94195.57 | BY30: 94195.56979 | BZ30: 0 | CB30: 4773.6 | CC30: 4773.6 | CD30: 0 | CF30: 862167.81 | CH30: 862168 | CI30: 0.05397346767 | CJ30: 878996.99 | CL30: 878997 | CM30: 0.01951961069
A31: 2165 | B31: Headcorn Primary School | D31: Headcorn Primary School | E31: 0 | F31: 1 | H31: 1288536.37 | I31: 1288536.366 | J31: 0.003743465524 | L31: 132852.98 | M31: 132852.9839 | N31: -0.00394582958 | P31: 12083.98 | Q31: 12083.98332 | R31: -0.003316118715 | T31: 76427.29 | U31: 76427.28808 | V31: 0.001920107185 | X31: 0 | Y31: 0 | Z31: 0 | AB31: 125894.71 | AC31: 125894.7077 | AD31: 0.002290411983 | AF31: 0 | AG31: 0 | AH31: 0 | AJ31: 0 | AK31: 0 | AL31: 0 | AN31: 0 | AO31: 0 | AP31: 0 | AR31: 40918 | AS31: 40918 | AT31: 0 | AV31: 0 | AW31: 0 | AX31: 0 | AZ31: 0 | BA31: 0 | BB31: 0 | BD31: 56428.67 | BE31: 56428.67069 | BF31: -0.0006920363085 | BH31: 1733142 | BI31: 1733142 | BJ31: 0 | BL31: 0 | BM31: 0 | BN31: 0 | BP31: 1733142 | BQ31: 1733142 | BR31: 0 | BV31: 0 | BX31: 249866.08 | BY31: 249866.076 | BZ31: 0 | CB31: 10838.88 | CC31: 10838.88 | CD31: 0 | CF31: 1799473.28 | CH31: 1799473 | CI31: 0.03827227082 | CJ31: 1807587.69 | CL31: 1807588 | CM31: 0.004509325084
A32: 2166 | B32: Hollingbourne Primary School | D32: Hollingbourne Primary School | E32: 0 | F32: 1 | H32: 327141.36 | I32: 327141.3572 | J32: 0.002763885015 | L32: 27485.33 | M32: 27485.33168 | N32: -0.00168135843 | P32: 1300.12 | Q32: 1300.115006 | R32: 0.004993796707 | T32: 38919.65 | U32: 38919.64672 | V32: 0.003276443029 | X32: 1040.99 | Y32: 1040.990819 | Z32: -0.0008186163825 | AB32: 125894.71 | AC32: 125894.7077 | AD32: 0.002290411983 | AF32: 38296.04 | AG32: 38296.03558 | AH32: 0.004418013305 | AJ32: 0 | AK32: 0 | AL32: 0 | AN32: 0 | AO32: 0 | AP32: 0 | AR32: 13723 | AS32: 13723 | AT32: 0 | AV32: 0 | AW32: 0 | AX32: 0 | AZ32: 0 | BA32: 0 | BB32: 0 | BD32: 0 | BE32: 0 | BF32: 0 | BH32: 573801.18 | BI32: 573801.1848 | BJ32: -0.0047574247 | BL32: 0 | BM32: 0 | BN32: 0 | BP32: 573801.18 | BQ32: 573801.1848 | BR32: -0.0047574247 | BV32: 0 | BX32: 63383.46 | BY32: 63383.46177 | BZ32: 0 | CB32: 2751.84 | CC32: 2751.84 | CD32: 0 | CF32: 603938.03 | CH32: 603938 | CI32: 0.05252140644 | CJ32: 615742.33 | CL32: 615742 | CM32: 0.01954554841
A33: 2167 | B33: Ightham Primary School | D33: Ightham Primary School | E33: 0 | F33: 1 | H33: 697679.02 | I33: 697679.017 | J33: 0.003037265036 | L33: 10670.95 | M33: 10670.95185 | N33: -0.001854885115 | P33: 2664.26 | Q33: 2664.264864 | R33: -0.004863926342 | T33: 33534.55 | U33: 33534.55117 | V33: -0.001170649848 | X33: 0 | Y33: 0 | Z33: 0 | AB33: 125894.71 | AC33: 125894.7077 | AD33: 0.002290411983 | AF33: 0 | AG33: 0 | AH33: 0 | AJ33: 0 | AK33: 0 | AL33: 0 | AN33: 0 | AO33: 0 | AP33: 0 | AR33: 21457 | AS33: 21457 | AT33: 0 | AV33: 0 | AW33: 0 | AX33: 0 | AZ33: 0 | BA33: 0 | BB33: 0 | BD33: 45812.51 | BE33: 45812.50744 | BF33: 0.002561784313 | BH33: 937713 | BI33: 937713 | BJ33: 0 | BL33: 0 | BM33: 0 | BN33: 0 | BP33: 937713 | BQ33: 937713 | BR33: 0 | BV33: 0 | BX33: 95914.31 | BY33: 95914.31357 | BZ33: 0 | CB33: 5868.72 | CC33: 5868.72 | CD33: 0 | CF33: 971888.76 | CH33: 971889 | CI33: 0.0364458635 | CJ33: 976304.77 | CL33: 976305 | CM33: 0.00454374017
A34: 2168 | B34: Lenham Primary School | D34: Lenham Primary School | E34: 0 | F34: 1 | H34: 704355.37 | I34: 704355.3712 | J34: -0.001192043535 | L34: 50426.07 | M34: 50426.06923 | N34: 0.0007714355306 | P34: 3325.05 | Q34: 3325.048893 | R34: 0.001107429682 | T34: 80345.24 | U34: 80345.23852 | V34: 0.001482755732 | X34: 0 | Y34: 0 | Z34: 0 | AB34: 125894.71 | AC34: 125894.7077 | AD34: 0.002290411983 | AF34: 0 | AG34: 0 | AH34: 0 | AJ34: 0 | AK34: 0 | AL34: 0 | AN34: 0 | AO34: 0 | AP34: 0 | AR34: 18837 | AS34: 18837 | AT34: 0 | AV34: 0 | AW34: 0 | AX34: 0 | AZ34: 0 | BA34: 0 | BB34: 0 | BD34: 0 | BE34: 0 | BF34: 0 | BH34: 983183.44 | BI34: 983183.4355 | BJ34: 0.004459989374 | BL34: 0 | BM34: 0 | BN34: 0 | BP34: 983183.44 | BQ34: 983183.4355 | BR34: 0.004459989374 | BV34: 0 | BX34: 121276.85 | BY34: 121276.8464 | BZ34: 0 | CB34: 5924.88 | CC34: 5924.88 | CD34: 0 | CF34: 1037137.1 | CH34: 1037137 | CI34: 0.05487649864 | CJ34: 1057503.11 | CL34: 1057503 | CM34: 0.01963675776
A35: 2169 | B35: Platts Heath Primary School | D35: Platts Heath Primary School | E35: 0 | F35: 1 | H35: 206966.98 | I35: 206966.9811 | J35: -0.001108562545 | L35: 25193.65 | M35: 25193.64898 | N35: 0.00102218871 | P35: 643.06 | Q35: 643.0624502 | R35: -0.002450192575 | T35: 24781.69 | U35: 24781.69458 | V35: -0.004582270121 | X35: 1189.7 | Y35: 1189.703793 | Z35: -0.003792704443 | AB35: 125894.71 | AC35: 125894.7077 | AD35: 0.002290411983 | AF35: 15504.72 | AG35: 15504.71927 | AH35: 0.0007292389055 | AJ35: 0 | AK35: 0 | AL35: 0 | AN35: 0 | AO35: 0 | AP35: 0 | AR35: 2345 | AS35: 2345 | AT35: 0 | AV35: 0 | AW35: 0 | AX35: 0 | AZ35: 0 | BA35: 0 | BB35: 0 | BD35: 0 | BE35: 0 | BF35: 0 | BH35: 402519.52 | BI35: 402519.5179 | BJ35: 0.00210810994 | BL35: 0 | BM35: 0 | BN35: 0 | BP35: 402519.52 | BQ35: 402519.5179 | BR35: 0.00210810994 | BV35: 0 | BX35: 48657.3 | BY35: 48657.29621 | BZ35: 0 | CB35: 1740.96 | CC35: 1740.96 | CD35: 0 | CF35: 424664.29 | CH35: 424664 | CI35: 0.05501539956 | CJ35: 433110.67 | CL35: 433111 | CM35: 0.01988954616
A36: 2171 | B36: Brunswick House Primary School | D36: Brunswick House Primary School | E36: 0 | F36: 1 | H36: 1402034.39 | I36: 1402034.388 | J36: 0.001845221268 | L36: 137643.73 | M36: 137643.7335 | N36: -0.003507152811 | P36: 32611.22 | Q36: 32611.21807 | R36: 0.001927734149 | T36: 136273.35 | U36: 136273.3503 | V36: -0.0002749041887 | X36: 0 | Y36: 0 | Z36: 0 | AB36: 125894.71 | AC36: 125894.7077 | AD36: 0.002290411983 | AF36: 0 | AG36: 0 | AH36: 0 | AJ36: 0 | AK36: 0 | AL36: 0 | AN36: 0 | AO36: 0 | AP36: 0 | AR36: 66048 | AS36: 66048 | AT36: 0 | AV36: 0 | AW36: 0 | AX36: 0 | AZ36: 0 | BA36: 0 | BB36: 0 | BD36: 6822.6 | BE36: 6822.602281 | BF36: -0.002281310479 | BH36: 1907328 | BI36: 1907328 | BJ36: 0 | BL36: 2365.14 | BM36: 2365.144893 | BN36: -0.004893294433 | BP36: 1909693.14 | BQ36: 1909693.145 | BR36: -0.004893294536 | BV36: 0 | BX36: 272681.86 | BY36: 272681.8592 | BZ36: 0 | CB36: 11793.6 | CC36: 11793.6 | CD36: 0 | CF36: 2004124.91 | CH36: 2004125 | CI36: 0.04944865899 | CJ36: 2042886.44 | CL36: 2042886 | CM36: 0.01934087532
A37: 2175 | B37: North Borough Junior School | D37: North Borough Junior School | E37: 0 | F37: 1 | H37: 1161685.64 | I37: 1161685.636 | J37: 0.004100326216 | L37: 140278.71 | M37: 140278.7058 | N37: 0.004180997727 | P37: 34326.16 | Q37: 34326.15589 | R37: 0.004110757924 | T37: 106238.88 | U37: 106238.88 | V37: 3.628549166e-05 | X37: 8476.64 | Y37: 8476.639523 | Z37: 0.0004769808711 | AB37: 125894.71 | AC37: 125894.7077 | AD37: 0.002290411983 | AF37: 0 | AG37: 0 | AH37: 0 | AJ37: 0 | AK37: 0 | AL37: 0 | AN37: 0 | AO37: 0 | AP37: 0 | AR37: 23328 | AS37: 23328 | AT37: 0 | AV37: 0 | AW37: 0 | AX37: 0 | AZ37: 0 | BA37: 0 | BB37: 0 | BD37: 0 | BE37: 0 | BF37: 0 | BH37: 1600228.72 | BI37: 1600228.725 | BJ37: -0.004804239841 | BL37: 0 | BM37: 0 | BN37: 0 | BP37: 1600228.72 | BQ37: 1600228.725 | BR37: -0.004804239841 | BV37: 0 | BX37: 243002.7 | BY37: 243002.6999 | BZ37: 0 | CB37: 9771.84 | CC37: 9771.84 | CD37: 0 | CF37: 1688896.94 | CH37: 1688897 | CI37: 0.05540971351 | CJ37: 1722208.32 | CL37: 1722208 | CM37: 0.0197237494
A38: 2176 | B38: Park Way Primary School | D38: Park Way Primary School | E38: 0 | F38: 1 | H38: 1031496.73 | I38: 1031496.728 | J38: 0.001571841538 | L38: 149317.71 | M38: 149317.7147 | N38: -0.004680879734 | P38: 37249.87 | Q38: 37249.87189 | R38: -0.001886626662 | T38: 120062.83 | U38: 120062.8299 | V38: 7.229730545e-05 | X38: 6004.29 | Y38: 6004.286329 | Z38: 0.003671194781 | AB38: 125894.71 | AC38: 125894.7077 | AD38: 0.002290411983 | AF38: 0 | AG38: 0 | AH38: 0 | AJ38: 0 | AK38: 0 | AL38: 0 | AN38: 0 | AO38: 0 | AP38: 0 | AR38: 28416 | AS38: 28416 | AT38: 0 | AV38: 0 | AW38: 0 | AX38: 0 | AZ38: 0 | BA38: 0 | BB38: 0 | BD38: 0 | BE38: 0 | BF38: 0 | BH38: 1498442.14 | BI38: 1498442.139 | BJ38: 0.001038239105 | BL38: 0 | BM38: 0 | BN38: 0 | BP38: 1498442.14 | BQ38: 1498442.139 | BR38: 0.001038239105 | BV38: 0 | BX38: 276343.04 | BY38: 276343.0446 | BZ38: 0 | CB38: 8676.72 | CC38: 8676.72 | CD38: 0 | CF38: 1578541.76 | CH38: 1578542 | CI38: 0.05345526461 | CJ38: 1609544.28 | CL38: 1609544 | CM38: 0.01963997455
A39: 2185 | B39: Mereworth Community Primary School | D39: Mereworth Community Primary School | E39: 0 | F39: 1 | H39: 677649.95 | I39: 677649.9543 | J39: -0.004274809733 | L39: 46885.2 | M39: 46885.19752 | N39: 0.002481520045 | P39: 2677.53 | Q39: 2677.528345 | R39: 0.001655267541 | T39: 41821.24 | U39: 41821.23536 | V39: 0.004638344573 | X39: 0 | Y39: 0 | Z39: 0 | AB39: 125894.71 | AC39: 125894.7077 | AD39: 0.002290411983 | AF39: 0 | AG39: 0 | AH39: 0 | AJ39: 0 | AK39: 0 | AL39: 0 | AN39: 0 | AO39: 0 | AP39: 0 | AR39: 26368 | AS39: 26368 | AT39: 0 | AV39: 0 | AW39: 0 | AX39: 0 | AZ39: 0 | BA39: 0 | BB39: 0 | BD39: 0 | BE39: 0 | BF39: 0 | BH39: 921296.62 | BI39: 921296.6232 | BJ39: -0.003209265647 | BL39: 654.1 | BM39: 654.0963264 | BN39: 0.003673583642 | BP39: 921950.72 | BQ39: 921950.7195 | BR39: 0.0004643179709 | BV39: 0 | BX39: 82995.38 | BY39: 82995.38224 | BZ39: 0 | CB39: 5700.24 | CC39: 5700.24 | CD39: 0 | CF39: 971936.18 | CH39: 971936 | CI39: 0.05421706324 | CJ39: 990847.54 | CL39: 990848 | CM39: 0.01945740923
A40: 2187 | B40: Offham Primary School | D40: Offham Primary School | E40: 0 | F40: 1 | H40: 697679.02 | I40: 697679.017 | J40: 0.003037265036 | L40: 22139.32 | M40: 22139.3214 | N40: -0.001399124445 | P40: 1998.2 | Q40: 1998.198648 | R40: 0.001352055249 | T40: 36480.48 | U40: 36480.48165 | V40: -0.001646821984 | X40: 0 | Y40: 0 | Z40: 0 | AB40: 125894.71 | AC40: 125894.7077 | AD40: 0.002290411983 | AF40: 0 | AG40: 0 | AH40: 0 | AJ40: 0 | AK40: 0 | AL40: 0 | AN40: 0 | AO40: 0 | AP40: 0 | AR40: 23827 | AS40: 23827 | AT40: 0 | AV40: 0 | AW40: 0 | AX40: 0 | AZ40: 0 | BA40: 0 | BB40: 0 | BD40: 32064.27 | BE40: 32064.27363 | BF40: -0.003633785807 | BH40: 940083 | BI40: 940083 | BJ40: 0 | BL40: 2228.7 | BM40: 2228.699161 | BN40: 0.0008392563786 | BP40: 942311.7 | BQ40: 942311.6992 | BR40: 0.0008392564487 | BV40: 0 | BX40: 95782.49 | BY40: 95782.49089 | BZ40: 0 | CB40: 5868.72 | CC40: 5868.72 | CD40: 0 | CF40: 977021.2 | CH40: 977021 | CI40: 0.03683441569 | CJ40: 981108.81 | CL40: 981109 | CM40: 0.004183747497
A41: 2188 | B41: Plaxtol Primary School | D41: Plaxtol Primary School | E41: 0 | F41: 1 | H41: 337155.89 | I41: 337155.8886 | J41: 0.001419922337 | L41: 16297.42 | M41: 16297.4194 | N41: 0.0005996318196 | P41: 662.26 | Q41: 662.2565649 | R41: 0.003435146507 | T41: 24027.13 | U41: 24027.13121 | V41: -0.001210229537 | X41: 2732.6 | Y41: 2732.600899 | Z41: -0.0008988680129 | AB41: 125894.71 | AC41: 125894.7077 | AD41: 0.002290411983 | AF41: 33552.65 | AG41: 33552.65017 | AH41: -0.0001709050994 | AJ41: 0 | AK41: 0 | AL41: 0 | AN41: 0 | AO41: 0 | AP41: 0 | AR41: 13847 | AS41: 13847 | AT41: 0 | AV41: 0 | AW41: 0 | AX41: 0 | AZ41: 0 | BA41: 0 | BB41: 0 | BD41: 0 | BE41: 0 | BF41: 0 | BH41: 554169.65 | BI41: 554169.6545 | BJ41: -0.004534889944 | BL41: 0 | BM41: 0 | BN41: 0 | BP41: 554169.65 | BQ41: 554169.6545 | BR41: -0.004534889944 | BV41: 0 | BX41: 41858.32 | BY41: 41858.32358 | BZ41: 0 | CB41: 2836.08 | CC41: 2836.08 | CD41: 0 | CF41: 583108.65 | CH41: 583109 | CI41: 0.05222046214 | CJ41: 594493.88 | CL41: 594494 | CM41: 0.01952505764
A42: 2189 | B42: Ryarsh Primary School | D42: Ryarsh Primary School | E42: 0 | F42: 1 | H42: 697679.02 | I42: 697679.017 | J42: 0.003037265036 | L42: 19862.8 | M42: 19862.80301 | N42: -0.003007640971 | P42: 666.07 | Q42: 666.066216 | R42: 0.003784018414 | T42: 43771.02 | U42: 43771.01975 | V42: 0.0002485440054 | X42: 0 | Y42: 0 | Z42: 0 | AB42: 125894.71 | AC42: 125894.7077 | AD42: 0.002290411983 | AF42: 0 | AG42: 0 | AH42: 0 | AJ42: 0 | AK42: 0 | AL42: 0 | AN42: 0 | AO42: 0 | AP42: 0 | AR42: 17964 | AS42: 17964 | AT42: 0 | AV42: 0 | AW42: 0 | AX42: 0 | AZ42: 0 | BA42: 0 | BB42: 0 | BD42: 28382.39 | BE42: 28382.38635 | BF42: 0.003647401536 | BH42: 934220 | BI42: 934220 | BJ42: 0 | BL42: 696.83 | BM42: 696.8325953 | BN42: -0.002595283748 | BP42: 934916.83 | BQ42: 934916.8326 | BR42: -0.00259528379 | BV42: 0 | BX42: 92834.31 | BY42: 92834.31123 | BZ42: 0 | CB42: 5868.72 | CC42: 5868.72 | CD42: 0 | CF42: 969932.24 | CH42: 969932 | CI42: 0.037452965 | CJ42: 974013.71 | CL42: 974014 | CM42: 0.004207994983
A43: 2190 | B43: Shipbourne School | D43: Shipbourne School | E43: 0 | F43: 1 | H43: 200290.63 | I43: 200290.6269 | J43: 0.00312074594 | L43: 16821.45 | M43: 16821.45214 | N43: -0.002139948592 | P43: 3291.11 | Q43: 3291.107453 | R43: 0.002547091354 | T43: 13601.12 | U43: 13601.12408 | V43: -0.004083821026 | X43: 4089.61 | Y43: 4089.606787 | Z43: 0.003212578504 | AB43: 125894.71 | AC43: 125894.7077 | AD43: 0.002290411983 | AF43: 0 | AG43: 0 | AH43: 0 | AJ43: 0 | AK43: 0 | AL43: 0 | AN43: 0 | AO43: 0 | AP43: 0 | AR43: 6737 | AS43: 6737 | AT43: 0 | AV43: 0 | AW43: 0 | AX43: 0 | AZ43: 0 | BA43: 0 | BB43: 0 | BD43: 0 | BE43: 0 | BF43: 0 | BH43: 370725.63 | BI43: 370725.6251 | BJ43: 0.004947058158 | BL43: 0 | BM43: 0 | BN43: 0 | BP43: 370725.63 | BQ43: 370725.6251 | BR43: 0.004947058158 | BV43: 0 | BX43: 35057.3 | BY43: 35057.30445 | BZ43: 0 | CB43: 1684.8 | CC43: 1684.8 | CD43: 0 | CF43: 391055.28 | CH43: 391055 | CI43: 0.05483746893 | CJ43: 398741.64 | CL43: 398742 | CM43: 0.01965543081
A44: 2192 | B44: Staplehurst School | D44: Staplehurst School | E44: 0 | F44: 1 | H44: 1348623.55 | I44: 1348623.554 | J44: -0.004320310662 | L44: 96970.93 | M44: 96970.93315 | N44: -0.003147720621 | P44: 6838.73 | Q44: 6838.73248 | R44: -0.002479792752 | T44: 141455.31 | U44: 141455.3114 | V44: -0.00144863475 | X44: 3494.75 | Y44: 3494.754891 | Z44: -0.004891069293 | AB44: 125894.71 | AC44: 125894.7077 | AD44: 0.002290411983 | AF44: 0 | AG44: 0 | AH44: 0 | AJ44: 0 | AK44: 0 | AL44: 0 | AN44: 0 | AO44: 0 | AP44: 0 | AR44: 37632 | AS44: 37632 | AT44: 0 | AV44: 0 | AW44: 0 | AX44: 0 | AZ44: 0 | BA44: 0 | BB44: 0 | BD44: 47858.01 | BE44: 47858.006 | BF44: 0.003997116146 | BH44: 1808768 | BI44: 1808768 | BJ44: 0 | BL44: 0 | BM44: 0 | BN44: 0 | BP44: 1808768 | BQ44: 1808768 | BR44: 0 | BV44: 0 | BX44: 262363.51 | BY44: 262363.5069 | BZ44: 0 | CB44: 11344.32 | CC44: 11344.32 | CD44: 0 | CF44: 1878273.67 | CH44: 1878274 | CI44: 0.03842707854 | CJ44: 1894005.23 | CL44: 1894005 | CM44: 0.008375541994
A45: 2193 | B45: Sutton Valence Primary School | D45: Sutton Valence Primary School | E45: 0 | F45: 1 | H45: 691002.66 | I45: 691002.6627 | J45: -0.002733426518 | L45: 65745.4 | M45: 65745.40324 | N45: -0.003236530858 | P45: 8672.9 | Q45: 8672.904861 | R45: -0.004860648067 | T45: 45925.71 | U45: 45925.70674 | V45: 0.003263327977 | X45: 4256.91 | Y45: 4256.908883 | Z45: 0.001116729423 | AB45: 125894.71 | AC45: 125894.7077 | AD45: 0.002290411983 | AF45: 0 | AG45: 0 | AH45: 0 | AJ45: 0 | AK45: 0 | AL45: 0 | AN45: 0 | AO45: 0 | AP45: 0 | AR45: 19835 | AS45: 19835 | AT45: 0 | AV45: 0 | AW45: 0 | AX45: 0 | AZ45: 0 | BA45: 0 | BB45: 0 | BD45: 0 | BE45: 0 | BF45: 0 | BH45: 961333.29 | BI45: 961333.2942 | BJ45: -0.004160135984 | BL45: 0 | BM45: 0 | BN45: 0 | BP45: 961333.29 | BQ45: 961333.2942 | BR45: -0.004160135984 | BV45: 0 | BX45: 107052.4 | BY45: 107052.4002 | BZ45: 0 | CB45: 5812.56 | CC45: 5812.56 | CD45: 0 | CF45: 1014450.56 | CH45: 1014451 | CI45: 0.05525374619 | CJ45: 1034342.87 | CL45: 1034343 | CM45: 0.0196089497
A46: 2226 | B46: Eastling Primary School | D46: Eastling Primary School | E46: 0 | F46: 1 | H46: 347170.42 | I46: 347170.4199 | J46: 7.595960051e-05 | L46: 25690.31 | M46: 25690.30505 | N46: 0.004947222151 | P46: 5803.8 | Q46: 5803.796447 | R46: 0.003552609802 | T46: 29236.52 | U46: 29236.52288 | V46: -0.002876177448 | X46: 6283.12 | Y46: 6283.123155 | Z46: -0.003155220327 | AB46: 125894.71 | AC46: 125894.7077 | AD46: 0.002290411983 | AF46: 33860.2 | AG46: 33860.20134 | AH46: -0.001344690943 | AJ46: 0 | AK46: 0 | AL46: 0 | AN46: 0 | AO46: 0 | AP46: 0 | AR46: 12974 | AS46: 12974 | AT46: 0 | AV46: 0 | AW46: 0 | AX46: 0 | AZ46: 0 | BA46: 0 | BB46: 0 | BD46: 0 | BE46: 0 | BF46: 0 | BH46: 586913.08 | BI46: 586913.0765 | BJ46: 0.003490114701 | BL46: 0 | BM46: 0 | BN46: 0 | BP46: 586913.08 | BQ46: 586913.0765 | BR46: 0.003490114701 | BV46: 0 | BX46: 59713.72 | BY46: 59713.72331 | BZ46: 0 | CB46: 2920.32 | CC46: 2920.32 | CD46: 0 | CF46: 617312.86 | CH46: 617313 | CI46: 0.05179605755 | CJ46: 629399.64 | CL46: 629400 | CM46: 0.01957966662
A47: 2227 | B47: Ethelbert Road Primary School | D47: Ethelbert Road Primary School | E47: 0 | F47: 1 | H47: 701017.19 | I47: 701017.1941 | J47: -0.004077389371 | L47: 26398.5 | M47: 26398.50092 | N47: -0.00091840186 | P47: 6023.28 | Q47: 6023.278221 | R47: 0.001778922497 | T47: 49037.46 | U47: 49037.46186 | V47: -0.001860162665 | X47: 0 | Y47: 0 | Z47: 0 | AB47: 125894.71 | AC47: 125894.7077 | AD47: 0.002290411983 | AF47: 0 | AG47: 0 | AH47: 0 | AJ47: 0 | AK47: 0 | AL47: 0 | AN47: 0 | AO47: 0 | AP47: 0 | AR47: 11477 | AS47: 11477 | AT47: 0 | AV47: 0 | AW47: 0 | AX47: 0 | AZ47: 0 | BA47: 0 | BB47: 0 | BD47: 12268.86 | BE47: 12268.85721 | BF47: 0.00278661937 | BH47: 932117 | BI47: 932117 | BJ47: 0 | BL47: 0 | BM47: 0 | BN47: 0 | BP47: 932117 | BQ47: 932117 | BR47: 0 | BV47: 0 | BX47: 93655.41 | BY47: 93655.40588 | BZ47: 0 | CB47: 5896.8 | CC47: 5896.8 | CD47: 0 | CF47: 969590.69 | CH47: 969591 | CI47: 0.04020277497 | CJ47: 988752.96 | CL47: 988753 | CM47: 0.01976325701
A48: 2228 | B48: Davington Primary School | D48: Davington Primary School | E48: 0 | F48: 1 | H48: 1365314.44 | I48: 1365314.44 | J48: 0.0001064180396 | L48: 188841.5 | M48: 188841.5013 | N48: -0.001337273017 | P48: 7353.85 | Q48: 7353.849154 | R48: 0.000846293492 | T48: 122742.33 | U48: 122742.3344 | V48: -0.004419703662 | X48: 0 | Y48: 0 | Z48: 0 | AB48: 125894.71 | AC48: 125894.7077 | AD48: 0.002290411983 | AF48: 0 | AG48: 0 | AH48: 0 | AJ48: 0 | AK48: 0 | AL48: 0 | AN48: 0 | AO48: 0 | AP48: 0 | AR48: 39424 | AS48: 39424 | AT48: 0 | AV48: 0 | AW48: 0 | AX48: 0 | AZ48: 0 | BA48: 0 | BB48: 0 | BD48: 0 | BE48: 0 | BF48: 0 | BH48: 1849570.83 | BI48: 1849570.833 | BJ48: -0.002513853135 | BL48: 0 | BM48: 0 | BN48: 0 | BP48: 1849570.83 | BQ48: 1849570.833 | BR48: -0.002513853135 | BV48: 0 | BX48: 286761.9 | BY48: 286761.8956 | BZ48: 0 | CB48: 11484.72 | CC48: 11484.72 | CD48: 0 | CF48: 1948716.95 | CH48: 1948717 | CI48: 0.05360493134 | CJ48: 1986902.81 | CL48: 1986903 | CM48: 0.01959538557
A49: 2231 | B49: Lower Halstow Primary School | D49: Lower Halstow Primary School | E49: 0 | F49: 1 | H49: 620900.94 | I49: 620900.9433 | J49: -0.003325687721 | L49: 36665.72 | M49: 36665.71638 | N49: 0.003624566649 | P49: 3400.81 | Q49: 3400.811035 | R49: -0.001034672261 | T49: 58047.46 | U49: 58047.46489 | V49: -0.004893659381 | X49: 780.74 | Y49: 780.743114 | Z49: -0.003113962296 | AB49: 125894.71 | AC49: 125894.7077 | AD49: 0.002290411983 | AF49: 0 | AG49: 0 | AH49: 0 | AJ49: 0 | AK49: 0 | AL49: 0 | AN49: 0 | AO49: 0 | AP49: 0 | AR49: 20833 | AS49: 20833 | AT49: 0 | AV49: 0 | AW49: 0 | AX49: 0 | AZ49: 0 | BA49: 0 | BB49: 0 | BD49: 0 | BE49: 0 | BF49: 0 | BH49: 866523.39 | BI49: 866523.3865 | BJ49: 0.003546996973 | BL49: 0 | BM49: 0 | BN49: 0 | BP49: 866523.39 | BQ49: 866523.3865 | BR49: 0.003546996973 | BV49: 0 | BX49: 96624.99 | BY49: 96624.98687 | BZ49: 0 | CB49: 5222.88 | CC49: 5222.88 | CD49: 0 | CF49: 912841.75 | CH49: 912842 | CI49: 0.05345310268 | CJ49: 930681.93 | CL49: 930682 | CM49: 0.01954356273
A50: 2239 | B50: Rodmersham School | D50: Rodmersham School | E50: 0 | F50: 1 | H50: 377214.01 | I50: 377214.014 | J50: -0.003955928492 | L50: 11473.13 | M50: 11473.12685 | N50: 0.003149242921 | P50: 1302.26 | Q50: 1302.259084 | R50: 0.0009162766873 | T50: 28951.16 | U50: 28951.15673 | V50: 0.003268165812 | X50: 0 | Y50: 0 | Z50: 0 | AB50: 125894.71 | AC50: 125894.7077 | AD50: 0.002290411983 | AF50: 0 | AG50: 0 | AH50: 0 | AJ50: 0 | AK50: 0 | AL50: 0 | AN50: 0 | AO50: 0 | AP50: 0 | AR50: 5863 | AS50: 5863 | AT50: 0 | AV50: 0 | AW50: 0 | AX50: 0 | AZ50: 8100 | BA50: 8100 | BB50: 0 | BD50: 0 | BE50: 0 | BF50: 0 | BH50: 558798.26 | BI50: 558798.2643 | BJ50: -0.004331831005 | BL50: 0 | BM50: 0 | BN50: 0 | BP50: 558798.26 | BQ50: 558798.2643 | BR50: -0.004331831005 | BV50: 0 | BX50: 47319.1 | BY50: 47319.10275 | BZ50: 0 | CB50: 3173.04 | CC50: 3173.04 | CD50: 0 | CF50: 588329.35 | CH50: 588329 | CI50: 0.05284748997 | CJ50: 599816.68 | CL50: 599817 | CM50: 0.019525339
A51: 2245 | B51: Rose Street Primary School | D51: Rose Street Primary School | E51: 0 | F51: 1 | H51: 1301889.07 | I51: 1301889.075 | J51: -0.004715151386 | L51: 493482.72 | M51: 493482.7226 | N51: -0.002564479189 | P51: 10721.87 | Q51: 10721.87296 | R51: -0.002955018053 | T51: 149586.74 | U51: 149586.7439 | V51: -0.003908005136 | X51: 8069.78 | Y51: 8069.78147 | Z51: -0.001469874647 | AB51: 125894.71 | AC51: 125894.7077 | AD51: 0.002290411983 | AF51: 0 | AG51: 0 | AH51: 0 | AJ51: 0 | AK51: 0 | AL51: 0 | AN51: 0 | AO51: 0 | AP51: 0 | AR51: 79872 | AS51: 79872 | AT51: 0 | AV51: 0 | AW51: 0 | AX51: 0 | AZ51: 0 | BA51: 0 | BB51: 0 | BD51: 0 | BE51: 0 | BF51: 0 | BH51: 2169516.9 | BI51: 2169516.903 | BJ51: -0.003322116565 | BL51: 0 | BM51: 0 | BN51: 0 | BP51: 2169516.9 | BQ51: 2169516.903 | BR51: -0.003322116565 | BV51: 0 | BX51: 548911.48 | BY51: 548911.4775 | BZ51: 0 | CB51: 10951.2 | CC51: 10951.2 | CD51: 0 | CF51: 2288813.48 | CH51: 2288813 | CI51: 0.05498762259 | CJ51: 2332992.31 | CL51: 2332992 | CM51: 0.0193020665
A52: 2254 | B52: Canterbury Road Primary School | D52: Canterbury Road Primary School | E52: 0 | F52: 1 | H52: 691002.66 | I52: 691002.6627 | J52: -0.002733426518 | L52: 134825.36 | M52: 134825.3569 | N52: 0.003145674069 | P52: 11941.17 | Q52: 11941.17324 | R52: -0.003243744492 | T52: 78384.21 | U52: 78384.20544 | V52: 0.004555569976 | X52: 1468.54 | Y52: 1468.540619 | Z52: -0.0006191195457 | AB52: 125894.71 | AC52: 125894.7077 | AD52: 0.002290411983 | AF52: 0 | AG52: 0 | AH52: 0 | AJ52: 0 | AK52: 0 | AL52: 0 | AN52: 0 | AO52: 0 | AP52: 0 | AR52: 29952 | AS52: 29952 | AT52: 0 | AV52: 0 | AW52: 0 | AX52: 0 | AZ52: 0 | BA52: 0 | BB52: 0 | BD52: 0 | BE52: 0 | BF52: 0 | BH52: 1073468.65 | BI52: 1073468.647 | BJ52: 0.003395365551 | BL52: 0 | BM52: 0 | BN52: 0 | BP52: 1073468.65 | BQ52: 1073468.647 | BR52: 0.003395365551 | BV52: 0 | BX52: 200528.62 | BY52: 200528.6161 | BZ52: 0 | CB52: 5812.56 | CC52: 5812.56 | CD52: 0 | CF52: 1131066.12 | CH52: 1131066 | CI52: 0.05365547804 | CJ52: 1153088.4 | CL52: 1153088 | CM52: 0.01947037367
A53: 2258 | B53: Blean Primary School | D53: Blean Primary School | E53: 0 | F53: 1 | H53: 1435416.16 | I53: 1435416.159 | J53: 0.0006986791268 | L53: 57085.28 | M53: 57085.27499 | N53: 0.005014369868 | P53: 26518.62 | Q53: 26518.61717 | R53: 0.002829896493 | T53: 85788.68 | U53: 85788.67915 | V53: 0.0008548697369 | X53: 0 | Y53: 0 | Z53: 0 | AB53: 125894.71 | AC53: 125894.7077 | AD53: 0.002290411983 | AF53: 0 | AG53: 0 | AH53: 0 | AJ53: 0 | AK53: 0 | AL53: 0 | AN53: 0 | AO53: 0 | AP53: 0 | AR53: 37632 | AS53: 37632 | AT53: 0 | AV53: 0 | AW53: 0 | AX53: 0 | AZ53: 0 | BA53: 0 | BB53: 0 | BD53: 154416.56 | BE53: 154416.5617 | BF53: -0.001688227261 | BH53: 1922752 | BI53: 1922752 | BJ53: 0 | BL53: 0 | BM53: 0 | BN53: 0 | BP53: 1922752 | BQ53: 1922752 | BR53: 0 | BV53: 0 | BX53: 316654.88 | BY53: 316654.8751 | BZ53: 0 | CB53: 12074.4 | CC53: 12074.4 | CD53: 0 | CF53: 1992377.6 | CH53: 1992378 | CI53: 0.03621143028 | CJ53: 2002151.33 | CL53: 2002151 | CM53: 0.004905561074
A54: 2263 | B54: Herne Bay Infant School | D54: Herne Bay Infant School | E54: 0 | F54: 1 | H54: 887955.11 | I54: 887955.1125 | J54: -0.002498026472 | L54: 161562.81 | M54: 161562.805 | N54: 0.004997768294 | P54: 13081.21 | Q54: 13081.2064 | R54: 0.003595220587 | T54: 98910.58 | U54: 98910.57977 | V54: 0.0002271272824 | X54: 0 | Y54: 0 | Z54: 0 | AB54: 125894.71 | AC54: 125894.7077 | AD54: 0.002290411983 | AF54: 0 | AG54: 0 | AH54: 0 | AJ54: 0 | AK54: 0 | AL54: 0 | AN54: 0 | AO54: 0 | AP54: 0 | AR54: 15968 | AS54: 15968 | AT54: 0 | AV54: 0 | AW54: 0 | AX54: 0 | AZ54: 0 | BA54: 0 | BB54: 0 | BD54: 0 | BE54: 0 | BF54: 0 | BH54: 1303372.41 | BI54: 1303372.411 | BJ54: -0.001387498342 | BL54: 0 | BM54: 0 | BN54: 0 | BP54: 1303372.41 | BQ54: 1303372.411 | BR54: -0.001387498342 | BV54: 0 | BX54: 236185.65 | BY54: 236185.6538 | BZ54: 0 | CB54: 7469.28 | CC54: 7469.28 | CD54: 0 | CF54: 1375873.22 | CH54: 1375873 | CI54: 0.05562555105 | CJ54: 1403071.32 | CL54: 1403071 | CM54: 0.01976788239
A55: 2265 | B55: Hoath Primary School | D55: Hoath Primary School | E55: 0 | F55: 1 | H55: 343832.24 | I55: 343832.2428 | J55: -0.002809386177 | L55: 29708.12 | M55: 29708.11628 | N55: 0.003720958295 | P55: 667.7 | Q55: 667.6958908 | R55: 0.004109175047 | T55: 33519.62 | U55: 33519.62101 | V55: -0.001011180531 | X55: 762.15 | Y55: 762.1539922 | Z55: -0.003992201283 | AB55: 125894.71 | AC55: 125894.7077 | AD55: 0.002290411983 | AF55: 518.99 | AG55: 518.9926058 | AH55: -0.002605763604 | AJ55: 0 | AK55: 0 | AL55: 0 | AN55: 0 | AO55: 0 | AP55: 0 | AR55: 14346 | AS55: 14346 | AT55: 0 | AV55: 0 | AW55: 0 | AX55: 0 | AZ55: 0 | BA55: 0 | BB55: 0 | BD55: 0 | BE55: 0 | BF55: 0 | BH55: 549249.53 | BI55: 549249.5303 | BJ55: -0.0002979862038 | BL55: 0 | BM55: 0 | BN55: 0 | BP55: 549249.53 | BQ55: 549249.5303 | BR55: -0.0002979862038 | BV55: 0 | BX55: 62406.43 | BY55: 62406.42775 | BZ55: 0 | CB55: 2892.24 | CC55: 2892.24 | CD55: 0 | CF55: 578853.3 | CH55: 578853 | CI55: 0.05389857991 | CJ55: 590143.45 | CL55: 590143 | CM55: 0.01950433728
A56: 2268 | B56: Westmeads Community Infant School | D56: Westmeads Community Infant School | E56: 0 | F56: 1 | H56: 500726.57 | I56: 500726.5672 | J56: 0.002801864815 | L56: 35275.05 | M56: 35275.05375 | N56: -0.003747208837 | P56: 6985.21 | Q56: 6985.207655 | R56: 0.002344846957 | T56: 45523.36 | U56: 45523.35728 | V56: 0.002721296274 | X56: 0 | Y56: 0 | Z56: 0 | AB56: 125894.71 | AC56: 125894.7077 | AD56: 0.002290411983 | AF56: 0 | AG56: 0 | AH56: 0 | AJ56: 0 | AK56: 0 | AL56: 0 | AN56: 0 | AO56: 0 | AP56: 0 | AR56: 19711 | AS56: 19711 | AT56: 0 | AV56: 0 | AW56: 0 | AX56: 0 | AZ56: 0 | BA56: 0 | BB56: 0 | BD56: 0 | BE56: 0 | BF56: 0 | BH56: 734115.89 | BI56: 734115.8936 | BJ56: -0.003588788677 | BL56: 0 | BM56: 0 | BN56: 0 | BP56: 734115.89 | BQ56: 734115.8936 | BR56: -0.003588788677 | BV56: 0 | BX56: 82517.78 | BY56: 82517.77831 | BZ56: 0 | CB56: 4212 | CC56: 4212 | CD56: 0 | CF56: 774075.35 | CH56: 774075 | CI56: 0.05443208186 | CJ56: 789162.64 | CL56: 789163 | CM56: 0.01949072529
A57: 2269 | B57: Whitstable Junior School | D57: Whitstable Junior School | E57: 0 | F57: 1 | H57: 771118.91 | I57: 771118.9135 | J57: -0.003485128167 | L57: 102269.61 | M57: 102269.6062 | N57: 0.003819873964 | P57: 572.94 | Q57: 572.9388801 | R57: 0.001119937122 | T57: 74292.82 | U57: 74292.81972 | V57: 0.0002790620347 | X57: 0 | Y57: 0 | Z57: 0 | AB57: 125894.71 | AC57: 125894.7077 | AD57: 0.002290411983 | AF57: 0 | AG57: 0 | AH57: 0 | AJ57: 0 | AK57: 0 | AL57: 0 | AN57: 0 | AO57: 0 | AP57: 0 | AR57: 3866 | AS57: 3866 | AT57: 0 | AV57: 0 | AW57: 0 | AX57: 0 | AZ57: 0 | BA57: 0 | BB57: 0 | BD57: 0 | BE57: 0 | BF57: 0 | BH57: 1078014.99 | BI57: 1078014.986 | BJ57: 0.004024156835 | BL57: 0 | BM57: 0 | BN57: 0 | BP57: 1078014.99 | BQ57: 1078014.986 | BR57: 0.004024156835 | BV57: 0 | BX57: 152513.25 | BY57: 152513.2453 | BZ57: 0 | CB57: 6486.48 | CC57: 6486.48 | CD57: 0 | CF57: 1139774.71 | CH57: 1139775 | CI57: 0.05729022771 | CJ57: 1162492.88 | CL57: 1162493 | CM57: 0.01993215835
A58: 2270 | B58: Aldington Primary School | D58: Aldington Primary School | E58: 0 | F58: 1 | H58: 637591.83 | I58: 637591.8289 | J58: 0.001101041096 | L58: 25729.7 | M58: 25729.69786 | N58: 0.002135766688 | P58: 644.72 | Q58: 644.7195113 | R58: 0.0004887122551 | T58: 63720.53 | U58: 63720.52846 | V58: 0.001543177124 | X58: 0 | Y58: 0 | Z58: 0 | AB58: 125894.71 | AC58: 125894.7077 | AD58: 0.002290411983 | AF58: 0 | AG58: 0 | AH58: 0 | AJ58: 0 | AK58: 0 | AL58: 0 | AN58: 0 | AO58: 0 | AP58: 0 | AR58: 29952 | AS58: 29952 | AT58: 0 | AV58: 0 | AW58: 0 | AX58: 0 | AZ58: 0 | BA58: 0 | BB58: 0 | BD58: 0 | BE58: 0 | BF58: 0 | BH58: 883533.48 | BI58: 883533.4824 | BJ58: -0.002440890763 | BL58: 0 | BM58: 0 | BN58: 0 | BP58: 883533.48 | BQ58: 883533.4824 | BR58: -0.002440890763 | BV58: 0 | BX58: 87189.63 | BY58: 87189.6273 | BZ58: 0 | CB58: 5363.28 | CC58: 5363.28 | CD58: 0 | CF58: 930510.49 | CH58: 930510 | CI58: 0.05316947065 | CJ58: 948521.66 | CL58: 948522 | CM58: 0.01935622456
A59: 2275 | B59: Victoria Road Primary School | D59: Victoria Road Primary School | E59: 0 | F59: 1 | H59: 704355.37 | I59: 704355.3712 | J59: -0.001192043535 | L59: 79328.28 | M59: 79328.27658 | N59: 0.003419956178 | P59: 13300.2 | Q59: 13300.19557 | R59: 0.004429718701 | T59: 65582.02 | U59: 65582.02082 | V59: -0.0008226740756 | X59: 0 | Y59: 0 | Z59: 0 | AB59: 125894.71 | AC59: 125894.7077 | AD59: 0.002290411983 | AF59: 0 | AG59: 0 | AH59: 0 | AJ59: 0 | AK59: 0 | AL59: 0 | AN59: 0 | AO59: 0 | AP59: 0 | AR59: 15095 | AS59: 15095 | AT59: 0 | AV59: 0 | AW59: 0 | AX59: 0 | AZ59: 0 | BA59: 0 | BB59: 0 | BD59: 0 | BE59: 0 | BF59: 0 | BH59: 1003555.57 | BI59: 1003555.572 | BJ59: -0.001874630805 | BL59: 0 | BM59: 0 | BN59: 0 | BP59: 1003555.57 | BQ59: 1003555.572 | BR59: -0.001874630805 | BV59: 0 | BX59: 139253.63 | BY59: 139253.6259 | BZ59: 0 | CB59: 5924.88 | CC59: 5924.88 | CD59: 0 | CF59: 1059582.72 | CH59: 1059583 | CI59: 0.05582864536 | CJ59: 1080472.48 | CL59: 1080472 | CM59: 0.0197150818
A60: 2276 | B60: Willesborough Infant School | D60: Willesborough Infant School | E60: 0 | F60: 1 | H60: 1148332.93 | I60: 1148332.927 | J60: 0.002558943117 | L60: 83587.04 | M60: 83587.04443 | N60: -0.004434461531 | P60: 38590.69 | Q60: 38590.69059 | R60: -0.0005931464839 | T60: 99748.47 | U60: 99748.47022 | V60: -0.0002232922561 | X60: 0 | Y60: 0 | Z60: 0 | AB60: 125894.71 | AC60: 125894.7077 | AD60: 0.002290411983 | AF60: 0 | AG60: 0 | AH60: 0 | AJ60: 0 | AK60: 0 | AL60: 0 | AN60: 0 | AO60: 0 | AP60: 0 | AR60: 23079 | AS60: 23079 | AT60: 0 | AV60: 0 | AW60: 0 | AX60: 0 | AZ60: 0 | BA60: 0 | BB60: 0 | BD60: 11942.16 | BE60: 11942.1596 | BF60: 0.0004015450795 | BH60: 1531175 | BI60: 1531175 | BJ60: 0 | BL60: 4632.73 | BM60: 4632.731547 | BN60: -0.001546598487 | BP60: 1535807.73 | BQ60: 1535807.732 | BR60: -0.001546598505 | BV60: 0 | BX60: 220960.54 | BY60: 220960.5425 | BZ60: 0 | CB60: 9659.52 | CC60: 9659.52 | CD60: 0 | CF60: 1600920.92 | CH60: 1600921 | CI60: 0.04239670573 | CJ60: 1632477.76 | CL60: 1632478 | CM60: 0.01971167945
A61: 2278 | B61: Bethersden Primary School | D61: Bethersden Primary School | E61: 0 | F61: 1 | H61: 450653.91 | I61: 450653.9105 | J61: -0.0004783216864 | L61: 44820.42 | M61: 44820.41946 | N61: 0.0005412698156 | P61: 2702.17 | Q61: 2702.172435 | R61: -0.002435019728 | T61: 29566.78 | U61: 29566.7802 | V61: -0.000197017649 | X61: 6413.25 | Y61: 6413.247008 | Z61: 0.002992452639 | AB61: 125894.71 | AC61: 125894.7077 | AD61: 0.002290411983 | AF61: 10941.72 | AG61: 10941.72445 | AH61: -0.004451996199 | AJ61: 0 | AK61: 0 | AL61: 0 | AN61: 0 | AO61: 0 | AP61: 0 | AR61: 10978 | AS61: 10978 | AT61: 0 | AV61: 0 | AW61: 0 | AX61: 0 | AZ61: 0 | BA61: 0 | BB61: 0 | BD61: 0 | BE61: 0 | BF61: 0 | BH61: 681970.96 | BI61: 681970.9617 | BJ61: -0.001738220803 | BL61: 0 | BM61: 0 | BN61: 0 | BP61: 681970.96 | BQ61: 681970.9617 | BR61: -0.001738220803 | BV61: 0 | BX61: 67574.59 | BY61: 67574.59241 | BZ61: 0 | CB61: 3790.8 | CC61: 3790.8 | CD61: 0 | CF61: 719984.04 | CH61: 719984 | CI61: 0.05574002471 | CJ61: 734164.16 | CL61: 734164 | CM61: 0.01969504768
A62: 2279 | B62: Brook Community Primary School | D62: Brook Community Primary School | E62: 0 | F62: 1 | H62: 250363.28 | I62: 250363.2836 | J62: -0.003599067597 | L62: 16631.85 | M62: 16631.8455 | N62: 0.004501183106 | P62: 1258.36 | Q62: 1258.364614 | R62: -0.004614347425 | T62: 10173.16 | U62: 10173.16099 | V62: -0.0009921388646 | X62: 2323.64 | Y62: 2323.64022 | Z62: -0.0002201258585 | AB62: 125894.71 | AC62: 125894.7077 | AD62: 0.002290411983 | AF62: 55300.07 | AG62: 55300.06682 | AH62: 0.003175046222 | AJ62: 0 | AK62: 0 | AL62: 0 | AN62: 0 | AO62: 0 | AP62: 0 | AR62: 8608 | AS62: 8608 | AT62: 0 | AV62: 0 | AW62: 0 | AX62: 0 | AZ62: 0 | BA62: 0 | BB62: 0 | BD62: 0 | BE62: 0 | BF62: 0 | BH62: 470553.07 | BI62: 470553.0695 | BJ62: 0.0005409616861 | BL62: 0 | BM62: 0 | BN62: 0 | BP62: 470553.07 | BQ62: 470553.0695 | BR62: 0.0005409616278 | BV62: 0 | BX62: 30351.2 | BY62: 30351.20061 | BZ62: 0 | CB62: 2106 | CC62: 2106 | CD62: 0 | CF62: 494768.63 | CH62: 494769 | CI62: 0.05146191176 | CJ62: 504491.84 | CL62: 504492 | CM62: 0.01965203412
A63: 2280 | B63: Challock Primary School | D63: Challock Primary School | E63: 0 | F63: 1 | H63: 691002.66 | I63: 691002.6627 | J63: -0.002733426518 | L63: 27347.72 | M63: 27347.72283 | N63: -0.002832248349 | P63: 1946.46 | Q63: 1946.454979 | R63: 0.005020708314 | T63: 48502.93 | U63: 48502.93376 | V63: -0.00375566943 | X63: 539.08 | Y63: 539.0845311 | Z63: -0.004531069208 | AB63: 125894.71 | AC63: 125894.7077 | AD63: 0.002290411983 | AF63: 0 | AG63: 0 | AH63: 0 | AJ63: 0 | AK63: 0 | AL63: 0 | AN63: 0 | AO63: 0 | AP63: 0 | AR63: 19711 | AS63: 19711 | AT63: 0 | AV63: 0 | AW63: 0 | AX63: 0 | AZ63: 0 | BA63: 0 | BB63: 0 | BD63: 12254.43 | BE63: 12254.43346 | BF63: -0.003458706773 | BH63: 927199 | BI63: 927199 | BJ63: 0 | BL63: 1323.32 | BM63: 1323.319096 | BN63: 0.0009042143868 | BP63: 928522.32 | BQ63: 928522.3191 | BR63: 0.000904214452 | BV63: 0 | BX63: 90830.07 | BY63: 90830.06742 | BZ63: 0 | CB63: 5812.56 | CC63: 5812.56 | CD63: 0 | CF63: 964272.38 | CH63: 964272 | CI63: 0.03850210185 | CJ63: 983163.61 | CL63: 983164 | CM63: 0.01959117609
A64: 2282 | B64: Great Chart Primary School | D64: Great Chart Primary School | E64: 0 | F64: 1 | H64: 1408710.74 | I64: 1408710.742 | J64: -0.002384087071 | L64: 101251.65 | M64: 101251.6539 | N64: -0.00386594153 | P64: 17532.41 | Q64: 17532.41466 | R64: -0.004664914199 | T64: 79898.88 | U64: 79898.87608 | V64: 0.003918962626 | X64: 0 | Y64: 0 | Z64: 0 | AB64: 125894.71 | AC64: 125894.7077 | AD64: 0.002290411983 | AF64: 0 | AG64: 0 | AH64: 0 | AJ64: 0 | AK64: 0 | AL64: 0 | AN64: 0 | AO64: 0 | AP64: 0 | AR64: 38656 | AS64: 38656 | AT64: 0 | AV64: 0 | AW64: 0 | AX64: 0 | AZ64: 0 | BA64: 0 | BB64: 0 | BD64: 116759.61 | BE64: 116759.6053 | BF64: 0.004705568179 | BH64: 1888704 | BI64: 1888704 | BJ64: 0 | BL64: 211.78 | BM64: 211.7797 | BN64: 0.0003000001609 | BP64: 1888915.78 | BQ64: 1888915.78 | BR64: 0.0003000001889 | BV64: 0 | BX64: 287727.48 | BY64: 287727.4796 | BZ64: 0 | CB64: 11849.76 | CC64: 11849.76 | CD64: 0 | CF64: 1960133.61 | CH64: 1960134 | CI64: 0.03770302047 | CJ64: 1969062.64 | CL64: 1969063 | CM64: 0.004555317022
A65: 2285 | B65: Mersham Primary School | D65: Mersham Primary School | E65: 0 | F65: 1 | H65: 590857.35 | I65: 590857.3493 | J65: 0.0007062004879 | L65: 40881.29 | M65: 40881.28574 | N65: 0.00425862633 | P65: 8255.51 | Q65: 8255.50501 | R65: 0.0049904523 | T65: 49838.49 | U65: 49838.4896 | V65: 0.0003993238424 | X65: 353.19 | Y65: 353.1933135 | Z65: -0.003313459127 | AB65: 125894.71 | AC65: 125894.7077 | AD65: 0.002290411983 | AF65: 0 | AG65: 0 | AH65: 0 | AJ65: 0 | AK65: 0 | AL65: 0 | AN65: 0 | AO65: 0 | AP65: 0 | AR65: 7859 | AS65: 7859 | AT65: 0 | AV65: 0 | AW65: 0 | AX65: 0 | AZ65: 0 | BA65: 0 | BB65: 0 | BD65: 0 | BE65: 0 | BF65: 0 | BH65: 823939.53 | BI65: 823939.5307 | BJ65: -0.0006684440887 | BL65: 0 | BM65: 0 | BN65: 0 | BP65: 823939.53 | BQ65: 823939.5307 | BR65: -0.0006684440887 | BV65: 0 | BX65: 93237.34 | BY65: 93237.33561 | BZ65: 0 | CB65: 4970.16 | CC65: 4970.16 | CD65: 0 | CF65: 869421.92 | CH65: 869422 | CI65: 0.05520112537 | CJ65: 886653.18 | CL65: 886653 | CM65: 0.01981921505
A66: 2289 | B66: Smeeth Community Primary School | D66: Smeeth Community Primary School | E66: 0 | F66: =IF(E66=D66,0,1) -> 1 | H66: 410595.79 | I66: 410595.7851 | J66: =H66-I66 -> 0.004897529143 | L66: 20437.62 | M66: 20437.61906 | N66: =L66-M66 -> 0.0009378133691 | P66: 0 | Q66: 0 | R66: =P66-Q66 -> 0 | T66: 21735.52 | U66: 21735.52364 | V66: =T66-U66 -> -0.003635315337 | X66: 0 | Y66: 0 | Z66: =X66-Y66 -> 0 | AB66: 125894.71 | AC66: 125894.7077 | AD66: =AB66-AC66 -> 0.002290411983 | AF66: 0 | AG66: 0 | AH66: =AF66-AG66 -> 0 | AJ66: 0 | AK66: 0 | AL66: =AJ66-AK66 -> 0 | AN66: 0 | AO66: 0 | AP66: =AN66-AO66 -> 0 | AR66: 14845 | AS66: 14845 | AT66: =AR66-AS66 -> 0 | AV66: 0 | AW66: 0 | AX66: =AV66-AW66 -> 0 | AZ66: 0 | BA66: 0 | BB66: =AZ66-BA66 -> 0 | BD66: 0 | BE66: 0 | BF66: =BD66-BE66 -> 0 | BH66: 593508.64 | BI66: 593508.6355 | BJ66: =BH66-BI66 -> 0.004490439198 | BL66: 0 | BM66: 0 | BN66: =BL66-BM66 -> 0 | BP66: 593508.64 | BQ66: 593508.6355 | BR66: =BP66-BQ66 -> 0.004490439198 | BV66: =BT66-BU66 -> 0 | BX66: 41628.35 | BY66: 41628.346 | BZ66: =ROUND(BX66-BY66,0) -> 0 | CB66: 3453.84 | CC66: 3453.84 | CD66: 0 | CF66: 626203.05 | CH66: =ROUND(CF66-CG66,0) -> 626203 | CI66: 0.05508667024 | CJ66: 638430.21 | CL66: =ROUND(CJ66-CK66,0) -> 638430 | CM66: 0.01952587104
A67: 2298 | B67: Hawkinge Primary School | D67: Hawkinge Primary School | E67: 0 | F67: 1 | H67: 1335270.85 | I67: 1335270.846 | J67: 0.004138306249 | L67: 126469.57 | M67: 126469.5695 | N67: 0.0004767351493 | P67: 7296.56 | Q67: 7296.56381 | R67: -0.003810324588 | T67: 146886.86 | U67: 146886.8616 | V67: -0.001601092808 | X67: 0 | Y67: 0 | Z67: 0 | AB67: 125894.71 | AC67: 125894.7077 | AD67: 0.002290411983 | AF67: 0 | AG67: 0 | AH67: 0 | AJ67: 0 | AK67: 0 | AL67: 0 | AN67: 0 | AO67: 0 | AP67: 0 | AR67: 8243 | AS67: 8243 | AT67: 0 | AV67: 0 | AW67: 0 | AX67: 0 | AZ67: 0 | BA67: 0 | BB67: 0 | BD67: 11781.45 | BE67: 11781.45149 | BF67: -0.001494035863 | BH67: 1761843 | BI67: 1761843 | BJ67: 0 | BL67: 0 | BM67: 0 | BN67: 0 | BP67: 1761843 | BQ67: 1761843 | BR67: 0 | BV67: 0 | BX67: 264507.6 | BY67: 264507.5964 | BZ67: 0 | CB67: 11232 | CC67: 11232 | CD67: =IF(E67="Recoupment Academy",0,ROUND(CB67-CC67,0)) -> 0 | CF67: 1846218.28 | CH67: 1846218 | CI67: 0.04789035118 | CJ67: 1882977.79 | CL67: 1882978 | CM67: 0.01991070633
A68: 2300 | B68: Sellindge Primary School | D68: Sellindge Primary School | E68: 0 | F68: 1 | H68: 470682.97 | I68: 470682.9732 | J68: -0.003166247101 | L68: 23728.16 | M68: 23728.16366 | N68: -0.003660430466 | P68: 2637.2 | Q68: 2637.202169 | R68: -0.00216882253 | T68: 35149.83 | U68: 35149.82546 | V68: 0.004539230868 | X68: 5149.19 | Y68: 5149.186728 | Z68: 0.003272201086 | AB68: 125894.71 | AC68: 125894.7077 | AD68: 0.002290411983 | AF68: 6505.89 | AG68: 6505.890215 | AH68: -0.0002147004425 | AJ68: 0 | AK68: 0 | AL68: 0 | AN68: 0 | AO68: 0 | AP68: 0 | AR68: 17216 | AS68: 17216 | AT68: 0 | AV68: 0 | AW68: 0 | AX68: 0 | AZ68: 0 | BA68: 0 | BB68: 0 | BD68: 0 | BE68: 0 | BF68: 0 | BH68: 686963.95 | BI68: =I68+M68+Q68+U68+Y68+AC68+AG68+AK68+AO68+AS68+AW68+BA68+BE68 -> 686963.9491 | BJ68: 0.0008916433435 | BL68: 0 | BM68: 0 | BN68: 0 | BP68: 686963.95 | BQ68: 686963.9491 | BR68: 0.0008916433435 | BV68: 0 | BX68: 59081.98 | BY68: 59081.97712 | BZ68: 0 | CB68: 3959.28 | CC68: 3959.28 | CD68: 0 | CF68: 724089.21 | CH68: 724089 | CI68: =(CF68-BQ68)/BQ68 -> 0.05404251699 | CJ68: 738226.67 | CL68: 738227 | CM68: =(CJ68-CF68)/CF68 -> 0.01952447268
A69: 2312 | B69: River Primary School | D69: River Primary School | E69: 0 | F69: 1 | H69: 1368652.62 | I69: 1368652.617 | J69: 0.002991763875 | L69: 142365.01 | M69: 142365.0068 | N69: 0.003191552911 | P69: 3941.93 | Q69: 3941.933196 | R69: -0.003196405195 | T69: 114357.1 | U69: 114357.0982 | V69: 0.001777472033 | X69: 0 | Y69: 0 | Z69: 0 | AB69: 125894.71 | AC69: 125894.7077 | AD69: 0.002290411983 | AF69: 0 | AG69: 0 | AH69: 0 | AJ69: 0 | AK69: 0 | AL69: 0 | AN69: 0 | AO69: 0 | AP69: 0 | AR69: 40960 | AS69: 40960 | AT69: 0 | AV69: 0 | AW69: 0 | AX69: 0 | AZ69: 0 | BA69: 0 | BB69: 0 | BD69: 42228.64 | BE69: 42228.63705 | BF69: 0.002945204484 | BH69: 1838400 | BI69: 1838400 | BJ69: 0 | BL69: 843.09 | BM69: 843.0864543 | BN69: 0.003545718882 | BP69: 1839243.09 | BQ69: 1839243.086 | BR69: 0.003545718966 | BV69: 0 | BX69: 276753.12 | BY69: 276753.1205 | BZ69: 0 | CB69: 11512.8 | CC69: 11512.8 | CD69: 0 | CF69: 1908661.38 | CH69: 1908661 | CI69: 0.03774285958 | CJ69: 1930325.74 | CL69: 1930326 | CM69: 0.01135055187
A70: 2318 | B70: Langdon Primary School | D70: Langdon Primary School | E70: 0 | F70: 1 | H70: 280406.88 | I70: 280406.8776 | J70: 0.00236904429 | L70: 27426.28 | M70: 27426.28178 | N70: -0.001778358466 | P70: 2699.64 | Q70: 2699.635184 | R70: 0.004816092964 | T70: 23447.1 | U70: 23447.10145 | V70: -0.00145468166 | X70: 3680.65 | Y70: 3680.646109 | Z70: 0.003891320648 | AB70: 125894.71 | AC70: 125894.7077 | AD70: 0.002290411983 | AF70: 48646.32 | AG70: 48646.31547 | AH70: 0.004530989863 | AJ70: 0 | AK70: 0 | AL70: 0 | AN70: 0 | AO70: 0 | AP70: 0 | AR70: 4990 | AS70: 4990 | AT70: 0 | AV70: 0 | AW70: 0 | AX70: 0 | AZ70: 0 | BA70: 0 | BB70: 0 | BD70: 0 | BE70: 0 | BF70: 0 | BH70: 517191.57 | BI70: 517191.5653 | BJ70: 0.004664819629 | BL70: 0 | BM70: 0 | BN70: 0 | BP70: 517191.57 | BQ70: 517191.5653 | BR70: 0.004664819629 | BV70: 0 | BX70: 53028.22 | BY70: 53028.22172 | BZ70: 0 | CB70: 2358.72 | CC70: 2358.72 | CD70: 0 | CF70: 543822.92 | CH70: 543823 | CI70: 0.05149224475 | CJ70: 554599.58 | CL70: 554600 | CM70: 0.01981648732
A71: 2320 | B71: Eythorne Elvington Community Primary School | D71: Eythorne Elvington Community Primary School | E71: 0 | F71: 1 | H71: 340494.07 | I71: 340494.0657 | J71: 0.004305268056 | L71: 74450 | M71: 74449.99583 | N71: 0.004171494671 | P71: 668.81 | Q71: 668.8135605 | R71: -0.003560545112 | T71: 23893.05 | U71: 23893.04867 | V71: 0.001329982315 | X71: 4535.75 | Y71: 4535.74571 | Z71: 0.004290314317 | AB71: 125894.71 | AC71: 125894.7077 | AD71: 0.002290411983 | AF71: 35338.81 | AG71: 35338.81276 | AH71: -0.002757122864 | AJ71: 0 | AK71: 0 | AL71: 0 | AN71: 0 | AO71: 0 | AP71: 0 | AR71: 17340 | AS71: 17340 | AT71: 0 | AV71: 0 | AW71: 0 | AX71: 0 | AZ71: 0 | BA71: 0 | BB71: 0 | BD71: 0 | BE71: 0 | BF71: 0 | BH71: 622615.19 | BI71: 622615.1899 | BJ71: 6.980332546e-05 | BL71: 0 | BM71: 0 | BN71: 0 | BP71: 622615.19 | BQ71: 622615.1899 | BR71: 6.980320904e-05 | BV71: 0 | BX71: 82415.51 | BY71: 82415.51286 | BZ71: 0 | CB71: 2864.16 | CC71: 2864.16 | CD71: 0 | CF71: 656899.57 | CH71: 656900 | CI71: 0.05506511988 | CJ71: 669690.77 | CL71: 669691 | CM71: 0.01947207851
A72: 2321 | B72: Lydden Primary School | D72: Lydden Primary School | E72: 0 | F72: 1 | H72: 253701.46 | I72: 253701.4607 | J72: -0.000713721849 | L72: 18928.41 | M72: 18928.41299 | N72: -0.002989612916 | P72: 656.89 | Q72: 656.8917502 | R72: -0.001750196717 | T72: 22051.24 | U72: 22051.24394 | V72: -0.003943335476 | X72: 5985.7 | Y72: 5985.697207 | Z72: 0.002792955794 | AB72: 125894.71 | AC72: 125894.7077 | AD72: 0.002290411983 | AF72: 20187.48 | AG72: 20187.48161 | AH72: -0.001613932985 | AJ72: 0 | AK72: 0 | AL72: 0 | AN72: 0 | AO72: 0 | AP72: 0 | AR72: 8483 | AS72: 8483 | AT72: 0 | AV72: 0 | AW72: 0 | AX72: 0 | AZ72: 0 | BA72: 0 | BB72: 0 | BD72: 0 | BE72: 0 | BF72: 0 | BH72: 455888.9 | BI72: 455888.8959 | BJ72: 0.004072567797 | BL72: 0 | BM72: 0 | BN72: 0 | BP72: 455888.9 | BQ72: 455888.8959 | BR72: 0.004072567797 | BV72: 0 | BX72: 43924.38 | BY72: 43924.37819 | BZ72: 0 | CB72: 2134.08 | CC72: 2134.08 | CD72: 0 | CF72: 479616.81 | CH72: 479617 | CI72: 0.05204758064 | CJ72: 489039.49 | CL72: 489039 | CM72: 0.01964626719
A73: 2322 | B73: Preston Primary School | D73: Preston Primary School | E73: 0 | F73: 1 | H73: 383890.37 | I73: 383890.3682 | J73: 0.001814763003 | L73: 18024.97 | M73: 18024.97089 | N73: -0.0008877649016 | P73: 0 | Q73: 0 | R73: 0 | T73: 31278.18 | U73: 31278.18312 | V73: -0.00311508041 | X73: 0 | Y73: 0 | Z73: 0 | AB73: 125894.71 | AC73: 125894.7077 | AD73: 0.002290411983 | AF73: 25727.84 | AG73: 25727.83858 | AH73: 0.001423684604 | AJ73: 0 | AK73: 0 | AL73: 0 | AN73: 0 | AO73: 0 | AP73: 0 | AR73: 17964 | AS73: 17964 | AT73: 0 | AV73: 0 | AW73: 0 | AX73: 0 | AZ73: 0 | BA73: 0 | BB73: 0 | BD73: 0 | BE73: 0 | BF73: 0 | BH73: 602780.07 | BI73: 602780.0685 | BJ73: 0.001526014181 | BL73: 0 | BM73: 0 | BN73: 0 | BP73: 602780.07 | BQ73: 602780.0685 | BR73: 0.001526014181 | BV73: 0 | BX73: 51590.98 | BY73: 51590.98351 | BZ73: 0 | CB73: 3229.2 | CC73: 3229.2 | CD73: 0 | CF73: 634308.25 | CH73: 634308 | CI73: 0.05230461851 | CJ73: 646635.13 | CL73: 646635 | CM73: 0.01943357981
A74: 2326 | B74: Wingham Primary School | D74: Wingham Primary School | E74: 0 | F74: 1 | H74: 650944.54 | I74: 650944.5374 | J74: 0.002642424311 | L74: 48336.57 | M74: 48336.57188 | N74: -0.001880229349 | P74: 3949.33 | Q74: 3949.328943 | R74: 0.001056509622 | T74: 46868.63 | U74: 46868.62584 | V74: 0.004163662015 | X74: 0 | Y74: 0 | Z74: 0 | AB74: 125894.71 | AC74: 125894.7077 | AD74: 0.002290411983 | AF74: 0 | AG74: 0 | AH74: 0 | AJ74: 0 | AK74: 0 | AL74: 0 | AN74: 0 | AO74: 0 | AP74: 0 | AR74: 31232 | AS74: 31232 | AT74: 0 | AV74: 0 | AW74: 0 | AX74: 0 | AZ74: 0 | BA74: 0 | BB74: 0 | BD74: 0 | BE74: 0 | BF74: 0 | BH74: 907225.77 | BI74: 907225.7717 | BJ74: -0.001727221534 | BL74: 0 | BM74: 0 | BN74: 0 | BP74: 907225.77 | BQ74: 907225.7717 | BR74: -0.001727221534 | BV74: 0 | BX74: 90111.85 | BY74: 90111.85135 | BZ74: 0 | CB74: 5475.6 | CC74: 5475.6 | CD74: 0 | CF74: 956727.75 | CH74: 956728 | CI74: 0.05456412264 | CJ74: 975237.66 | CL74: 975238 | CM74: 0.01934710266
A75: 2328 | B75: St Mildred's Primary Infant School | D75: St Mildred's Primary Infant School | E75: 0 | F75: 1 | H75: 901307.82 | I75: 901307.821 | J75: -0.0009566433728 | L75: 95045.41 | M75: 95045.40881 | N75: 0.001190531097 | P75: 21392.2 | Q75: 21392.19844 | R75: 0.001556093794 | T75: 95304.15 | U75: 95304.1493 | V75: 0.0006970063987 | X75: 0 | Y75: 0 | Z75: 0 | AB75: 125894.71 | AC75: 125894.7077 | AD75: 0.002290411983 | AF75: 0 | AG75: 0 | AH75: 0 | AJ75: 0 | AK75: 0 | AL75: 0 | AN75: 0 | AO75: 0 | AP75: 0 | AR75: 24950 | AS75: 24950 | AT75: 0 | AV75: 0 | AW75: 0 | AX75: 0 | AZ75: 0 | BA75: 0 | BB75: 0 | BD75: 0 | BE75: 0 | BF75: 0 | BH75: 1263894.29 | BI75: 1263894.285 | BJ75: 0.004777399823 | BL75: 0 | BM75: 0 | BN75: 0 | BP75: 1263894.29 | BQ75: 1263894.285 | BR75: 0.004777399823 | BV75: 0 | BX75: 190424.37 | BY75: 190424.3677 | BZ75: 0 | CB75: 7581.6 | CC75: 7581.6 | CD75: 0 | CF75: 1332304.69 | CH75: 1332305 | CI75: 0.05412668257 | CJ75: 1358451.78 | CL75: 1358452 | CM75: 0.0196254582
A76: 2329 | B76: Callis Grange Nursery and Infant School | D76: Callis Grange Nursery and Infant School | E76: 0 | F76: 1 | H76: 861249.7 | I76: 861249.6956 | J76: 0.004419207457 | L76: 113565.88 | M76: 113565.8782 | N76: 0.001821743936 | P76: 10389.06 | Q76: 10389.05826 | R76: 0.001743947681 | T76: 63292.02 | U76: 63292.02281 | V76: -0.002806775199 | X76: 0 | Y76: 0 | Z76: 0 | AB76: 125894.71 | AC76: 125894.7077 | AD76: 0.002290411983 | AF76: 0 | AG76: 0 | AH76: 0 | AJ76: 0 | AK76: 0 | AL76: 0 | AN76: 0 | AO76: 0 | AP76: 0 | AR76: 43520 | AS76: 43520 | AT76: 0 | AV76: 0 | AW76: 0 | AX76: 0 | AZ76: 0 | BA76: 0 | BB76: 0 | BD76: 0 | BE76: 0 | BF76: 0 | BH76: 1217911.36 | BI76: 1217911.363 | BJ76: -0.002531463979 | BL76: 0 | BM76: 0 | BN76: 0 | BP76: 1217911.36 | BQ76: 1217911.363 | BR76: -0.002531463979 | BV76: 0 | BX76: 164985.36 | BY76: 164985.3616 | BZ76: 0 | CB76: 7244.64 | CC76: 7244.64 | CD76: 0 | CF76: 1283786.31 | CH76: 1283786 | CI76: 0.05408845791 | CJ76: 1308591.64 | CL76: 1308592 | CM76: 0.0193220085
A77: 2337 | B77: St Crispin's Community Primary Infant School | D77: St Crispin's Community Primary Infant School | E77: 0 | F77: 1 | H77: 844558.81 | I77: 844558.81 | J77: -7.521361113e-06 | L77: 108348.04 | M77: 108348.0408 | N77: -0.0008273756976 | P77: 4100.17 | Q77: 4100.171368 | R77: -0.001368415352 | T77: 97749.07 | U77: 97749.07211 | V77: -0.002108703877 | X77: 0 | Y77: 0 | Z77: 0 | AB77: 125894.71 | AC77: 125894.7077 | AD77: 0.002290411983 | AF77: 0 | AG77: 0 | AH77: 0 | AJ77: 0 | AK77: 0 | AL77: 0 | AN77: 0 | AO77: 0 | AP77: 0 | AR77: 20085 | AS77: 20085 | AT77: 0 | AV77: 0 | AW77: 0 | AX77: 0 | AZ77: 0 | BA77: 0 | BB77: 0 | BD77: 0 | BE77: 0 | BF77: 0 | BH77: 1200735.8 | BI77: 1200735.802 | BJ77: -0.00202160445 | BL77: 0 | BM77: 0 | BN77: 0 | BP77: 1200735.8 | BQ77: 1200735.802 | BR77: -0.00202160445 | BV77: 0 | BX77: 185575.16 | BY77: 185575.1649 | BZ77: 0 | CB77: 7104.24 | CC77: 7104.24 | CD77: 0 | CF77: 1266871.6 | CH77: 1266872 | CI77: 0.05507939204 | CJ77: 1291807.33 | CL77: 1291807 | CM77: 0.01968291814
A78: 2340 | B78: Ellington Infant School | D78: Ellington Infant School | E78: 0 | F78: 1 | H78: 417272.14 | I78: 417272.1393 | J78: 0.0006682206877 | L78: 105692.33 | M78: 105692.3284 | N78: 0.001554486385 | P78: 6567.78 | Q78: 6567.780224 | R78: -0.000224006284 | T78: 56816.53 | U78: 56816.52864 | V78: 0.001359158203 | X78: 0 | Y78: 0 | Z78: 0 | AB78: 125894.71 | AC78: 125894.7077 | AD78: 0.002290411983 | AF78: 0 | AG78: 0 | AH78: 0 | AJ78: 0 | AK78: 0 | AL78: 0 | AN78: 0 | AO78: 0 | AP78: 0 | AR78: 27648 | AS78: 27648 | AT78: 0 | AV78: 0 | AW78: 0 | AX78: 0 | AZ78: 0 | BA78: 0 | BB78: 0 | BD78: 0 | BE78: 0 | BF78: 0 | BH78: 739891.48 | BI78: 739891.4844 | BJ78: -0.004351729061 | BL78: 0 | BM78: 0 | BN78: 0 | BP78: 739891.48 | BQ78: 739891.4844 | BR78: -0.004351729061 | BV78: 0 | BX78: 149175.56 | BY78: 149175.5615 | BZ78: 0 | CB78: 3510 | CC78: 3510 | CD78: 0 | CF78: 779849.53 | CH78: 779850 | CI78: 0.05400527847 | CJ78: 794893.56 | CL78: 794894 | CM78: 0.01929093937
A79: 2345 | B79: Priory Infant School | D79: Priory Infant School | E79: 0 | F79: 1 | H79: 530770.16 | I79: 530770.1612 | J79: -0.001230023219 | L79: 105967.75 | M79: 105967.7538 | N79: -0.003783691252 | P79: 10884.35 | Q79: 10884.35057 | R79: -0.0005682594674 | T79: 59223.37 | U79: 59223.36681 | V79: 0.003189050505 | X79: 0 | Y79: 0 | Z79: 0 | AB79: 125894.71 | AC79: 125894.7077 | AD79: 0.002290411983 | AF79: 0 | AG79: 0 | AH79: 0 | AJ79: 0 | AK79: 0 | AL79: 0 | AN79: 0 | AO79: 0 | AP79: 0 | AR79: 30976 | AS79: 30976 | AT79: 0 | AV79: 0 | AW79: 0 | AX79: 0 | AZ79: 0 | BA79: 0 | BB79: 0 | BD79: 0 | BE79: 0 | BF79: 0 | BH79: 863716.34 | BI79: 863716.3401 | BJ79: -0.0001025114907 | BL79: 0 | BM79: 0 | BN79: 0 | BP79: 863716.34 | BQ79: 863716.3401 | BR79: -0.0001025114907 | BV79: 0 | BX79: 158062.81 | BY79: 158062.8129 | BZ79: 0 | CB79: 4464.72 | CC79: 4464.72 | CD79: 0 | CF79: 909786.93 | CH79: 909787 | CI79: 0.05333995405 | CJ79: 927363.15 | CL79: 927363 | CM79: 0.01931905089
A80: 2431 | B80: Shears Green Junior School | D80: Shears Green Junior School | E80: 0 | F80: 1 | H80: 1615677.72 | I80: 1615677.723 | J80: -0.003492649645 | L80: 223620.26 | M80: 223620.2627 | N80: -0.002665708947 | P80: 12550.09 | Q80: 12550.08975 | R80: 0.0002462416905 | T80: 86264.41 | U80: 86264.413 | V80: -0.002997159521 | X80: 0 | Y80: 0 | Z80: 0 | AB80: 125894.71 | AC80: 125894.7077 | AD80: 0.002290411983 | AF80: 0 | AG80: 0 | AH80: 0 | AJ80: 0 | AK80: 0 | AL80: 0 | AN80: 0 | AO80: 0 | AP80: 0 | AR80: 21760 | AS80: 21760 | AT80: 0 | AV80: 0 | AW80: 0 | AX80: 0 | AZ80: 0 | BA80: 0 | BB80: 0 | BD80: 57848.8 | BE80: 57848.80338 | BF80: -0.003381135539 | BH80: 2143616 | BI80: 2143616 | BJ80: 0 | BL80: 2150.08 | BM80: 2150.07836 | BN80: 0.001639758162 | BP80: 2145766.08 | BQ80: 2145766.078 | BR80: 0.001639757771 | BV80: 0 | BX80: 328068.95 | BY80: 328068.9526 | BZ80: 0 | CB80: 13590.72 | CC80: 13590.72 | CD80: 0 | CF80: 2231934.21 | CH80: 2231934 | CI80: 0.04015728113 | CJ80: 2248050.78 | CL80: 2248051 | CM80: 0.007220898326
A81: 2434 | B81: West Minster Primary School | D81: West Minster Primary School | E81: 0 | F81: 1 | H81: 1542237.83 | I81: 1542237.827 | J81: 0.003029743675 | L81: 545821.82 | M81: 545821.8223 | N81: -0.002282296773 | P81: 5180.38 | Q81: 5180.381029 | R81: -0.001028578376 | T81: 129184.85 | U81: 129184.8515 | V81: -0.001525157189 | X81: 0 | Y81: 0 | Z81: 0 | AB81: 125894.71 | AC81: 125894.7077 | AD81: 0.002290411983 | AF81: 0 | AG81: 0 | AH81: 0 | AJ81: 0 | AK81: 0 | AL81: 0 | AN81: 0 | AO81: 0 | AP81: 0 | AR81: 80384 | AS81: 80384 | AT81: 0 | AV81: 0 | AW81: 0 | AX81: 0 | AZ81: 0 | BA81: 0 | BB81: 0 | BD81: 0 | BE81: 0 | BF81: 0 | BH81: 2428703.59 | BI81: 2428703.59 | BJ81: 0.0004841233604 | BL81: 0 | BM81: 0 | BN81: 0 | BP81: 2428703.59 | BQ81: 2428703.59 | BR81: 0.0004841233604 | BV81: 0 | BX81: 561616.17 | BY81: 561616.1662 | BZ81: 0 | CB81: 12972.96 | CC81: 12972.96 | CD81: 0 | CF81: 2565413.66 | CH81: 2565414 | CI81: 0.05628931874 | CJ81: 2615114.25 | CL81: 2615114 | CM81: 0.01937332399
A82: 2454 | B82: Aycliffe Community Primary School | D82: Aycliffe Community Primary School | E82: 0 | F82: 1 | H82: 297097.76 | I82: 297097.7632 | J82: -0.003204226901 | L82: 102126.91 | M82: 102126.9055 | N82: 0.004475942216 | P82: 3254.54 | Q82: 3254.539592 | R82: 0.0004076792297 | T82: 26523.46 | U82: 26523.45653 | V82: 0.003469227144 | X82: 2472.35 | Y82: 2472.353194 | Z82: -0.003194213916 | AB82: 125894.71 | AC82: 125894.7077 | AD82: 0.002290411983 | AF82: 23486.26 | AG82: 23486.26368 | AH82: -0.003675068594 | AJ82: 0 | AK82: 0 | AL82: 0 | AN82: 0 | AO82: 0 | AP82: 0 | AR82: 22829 | AS82: 22829 | AT82: 0 | AV82: 0 | AW82: 0 | AX82: 0 | AZ82: 0 | BA82: 0 | BB82: 0 | BD82: 0 | BE82: 0 | BF82: 0 | BH82: 603684.99 | BI82: 603684.9894 | BJ82: 0.0005697510205 | BL82: 0 | BM82: 0 | BN82: 0 | BP82: 603684.99 | BQ82: 603684.9894 | BR82: 0.0005697510205 | BV82: 0 | BX82: 112948.03 | BY82: 112948.0346 | BZ82: 0 | CB82: 2499.12 | CC82: 2499.12 | CD82: 0 | CF82: 636539.53 | CH82: 636540 | CI82: 0.05442331869 | CJ82: 648813.74 | CL82: 648814 | CM82: 0.01928271446
A83: 2459 | B83: Riverhead Infants' School | D83: Riverhead Infants' School | E83: 0 | F83: 1 | H83: 884616.94 | I83: 884616.9354 | J83: 0.004616627819 | L83: 11655.08 | M83: 11655.08272 | N83: -0.002718639918 | P83: 15287.01 | Q83: 15287.00923 | R83: 0.0007749164706 | T83: 75587.08 | U83: 75587.08309 | V83: -0.003093670413 | X83: 0 | Y83: 0 | Z83: 0 | AB83: 125894.71 | AC83: 125894.7077 | AD83: 0.002290411983 | AF83: 0 | AG83: 0 | AH83: 0 | AJ83: 41961.64 | AK83: 41961.63884 | AL83: 0.001156485661 | AN83: 0 | AO83: 0 | AP83: 0 | AR83: 38912 | AS83: 38912 | AT83: 0 | AV83: 0 | AW83: 0 | AX83: 0 | AZ83: 0 | BA83: 0 | BB83: 0 | BD83: 6757.54 | BE83: 6757.543026 | BF83: -0.003026131643 | BH83: 1200672 | BI83: 1200672 | BJ83: 0 | BL83: 1982.08 | BM83: 1982.075765 | BN83: 0.004235088983 | BP83: 1202654.08 | BQ83: 1202654.076 | BR83: 0.004235089291 | BV83: 0 | BX83: 117018.32 | BY83: 117018.3217 | BZ83: 0 | CB83: 7721.73 | CC83: 7721.73324 | CD83: 0 | CF83: 1256267.27 | CH83: 1256267 | CI83: 0.04457906502 | CJ83: 1280614.38 | CL83: 1280614 | CM83: 0.01938051765
A84: 2465 | B84: Claremont Primary School | D84: Claremont Primary School | E84: 0 | F84: 1 | H84: 1462121.58 | I84: 1462121.576 | J84: 0.003781445324 | L84: 15584.36 | M84: 15584.3584 | N84: 0.00159541315 | P84: 30487 | Q84: 30487.00366 | R84: -0.003660323287 | T84: 77590.32 | U84: 77590.31763 | V84: 0.002373602299 | X84: 0 | Y84: 0 | Z84: 0 | AB84: 125894.71 | AC84: 125894.7077 | AD84: 0.002290411983 | AF84: 0 | AG84: 0 | AH84: 0 | AJ84: 0 | AK84: 0 | AL84: 0 | AN84: 0 | AO84: 0 | AP84: 0 | AR84: 38656 | AS84: 38656 | AT84: 0 | AV84: 0 | AW84: 0 | AX84: 0 | AZ84: 0 | BA84: 0 | BB84: 0 | BD84: 208514.04 | BE84: 208514.0364 | BF84: 0.00361945061 | BH84: 1958848 | BI84: 1958848 | BJ84: 0 | BL84: 0 | BM84: 0 | BN84: 0 | BP84: 1958848 | BQ84: 1958848 | BR84: 0 | BV84: 0 | BX84: 333047.23 | BY84: 333047.2325 | BZ84: 0 | CB84: 12299.04 | CC84: 12299.04 | CD84: 0 | CF84: 2029768.96 | CH84: 2029769 | CI84: 0.0362054432 | CJ84: 2039724.52 | CL84: 2039725 | CM84: 0.004904774975
A85: 2471 | B85: Whitfield Aspen School | D85: Whitfield Aspen School | E85: 0 | F85: 1 | H85: 1926128.2 | I85: 1926128.195 | J85: 0.004844506504 | L85: 339683.72 | M85: 339683.7218 | N85: -0.001752896409 | P85: 9234.8 | Q85: 9234.799147 | R85: 0.0008534469343 | T85: 276729.35 | U85: 276729.3475 | V85: 0.002489681356 | X85: 6927.16 | Y85: 6927.15877 | Z85: 0.001230434768 | AB85: 125894.71 | AC85: 125894.7077 | AD85: 0.002290411983 | AF85: 0 | AG85: 0 | AH85: 0 | AJ85: 0 | AK85: 0 | AL85: 0 | AN85: 33000 | AO85: 33000 | AP85: 0 | AR85: 65024 | AS85: 65024 | AT85: 0 | AV85: 0 | AW85: 0 | AX85: 0 | AZ85: 0 | BA85: 0 | BB85: 0 | BD85: 0 | BE85: 0 | BF85: 0 | BH85: 2782621.93 | BI85: 2782621.93 | BJ85: -4.441477358e-05 | BL85: 0 | BM85: 0 | BN85: 0 | BP85: 2782621.93 | BQ85: 2782621.93 | BR85: -4.441477358e-05 | BV85: 0 | BX85: 539180.08 | BY85: 539180.0768 | BZ85: 0 | CB85: 16202.16 | CC85: 16202.16 | CD85: 0 | CF85: 2932272.43 | CH85: 2932272 | CI85: 0.05378039264 | CJ85: 2988957.4 | CL85: 2988957 | CM85: 0.01933141321
A86: 2474 | B86: St Paul's Infant School | D86: St Paul's Infant School | E86: 0 | F86: 1 | H86: 867926.05 | I86: 867926.0498 | J86: 0.0001898990013 | L86: 101797.35 | M86: 101797.3544 | N86: -0.004384312051 | P86: 48572.38 | Q86: 48572.38352 | R86: -0.003523317595 | T86: 107593.13 | U86: 107593.1342 | V86: -0.004159128017 | X86: 0 | Y86: 0 | Z86: 0 | AB86: 125894.71 | AC86: 125894.7077 | AD86: 0.002290411983 | AF86: 0 | AG86: 0 | AH86: 0 | AJ86: 0 | AK86: 0 | AL86: 0 | AN86: 0 | AO86: 0 | AP86: 0 | AR86: 11477 | AS86: 11477 | AT86: 0 | AV86: 0 | AW86: 0 | AX86: 0 | AZ86: 0 | BA86: 0 | BB86: 0 | BD86: 0 | BE86: 0 | BF86: 0 | BH86: 1263260.63 | BI86: 1263260.63 | BJ86: 0.0004135530908 | BL86: 0 | BM86: 0 | BN86: 0 | BP86: 1263260.63 | BQ86: 1263260.63 | BR86: 0.0004135530908 | BV86: 0 | BX86: 230980.23 | BY86: 230980.2308 | BZ86: 0 | CB86: 7300.8 | CC86: 7300.8 | CD86: 0 | CF86: 1332093.06 | CH86: 1332093 | CI86: 0.05448790915 | CJ86: 1358505.38 | CL86: 1358505 | CM86: 0.01982768381
A87: 2482 | B87: Langton Green Primary School | D87: Langton Green Primary School | E87: 0 | F87: 1 | H87: 1371990.79 | I87: 1371990.794 | J87: -0.004122890299 | L87: 27382.01 | M87: 27382.01401 | N87: -0.004008199921 | P87: 7347.7 | Q87: 7347.702121 | R87: -0.002120790106 | T87: 63354.79 | U87: 63354.78552 | V87: 0.004478543306 | X87: 0 | Y87: 0 | Z87: 0 | AB87: 125894.71 | AC87: 125894.7077 | AD87: 0.002290411983 | AF87: 0 | AG87: 0 | AH87: 0 | AJ87: 0 | AK87: 0 | AL87: 0 | AN87: 0 | AO87: 0 | AP87: 0 | AR87: 39168 | AS87: 39168 | AT87: 0 | AV87: 0 | AW87: 0 | AX87: 0 | AZ87: 0 | BA87: 0 | BB87: 0 | BD87: 205854 | BE87: 205853.9965 | BF87: 0.003482925036 | BH87: 1840992 | BI87: 1840992 | BJ87: 0 | BL87: 0 | BM87: 0 | BN87: 0 | BP87: 1840992 | BQ87: 1840992 | BR87: 0 | BV87: 0 | BX87: 301033.18 | BY87: 301033.1796 | BZ87: 0 | CB87: 11540.88 | CC87: 11540.88 | CD87: 0 | CF87: 1907541.12 | CH87: 1907541 | CI87: 0.03614851124 | CJ87: 1916882.99 | CL87: 1916883 | CM87: 0.004897336106
A88: 2490 | B88: Bishops Down Primary School | D88: Bishops Down Primary School | E88: 0 | F88: 1 | H88: 684326.31 | I88: 684326.3085 | J88: 0.001495881937 | L88: 37020.75 | M88: 37020.7509 | N88: -0.0009045581392 | P88: 9197.84 | Q88: 9197.844125 | R88: -0.00412494543 | T88: 66537.32 | U88: 66537.31725 | V88: 0.00274903464 | X88: 0 | Y88: 0 | Z88: 0 | AB88: 125894.71 | AC88: 125894.7077 | AD88: 0.002290411983 | AF88: 0 | AG88: 0 | AH88: 0 | AJ88: 0 | AK88: 0 | AL88: 0 | AN88: 0 | AO88: 0 | AP88: 0 | AR88: 31232 | AS88: 31232 | AT88: 0 | AV88: 0 | AW88: 0 | AX88: 0 | AZ88: 0 | BA88: 0 | BB88: 0 | BD88: 0 | BE88: 0 | BF88: 0 | BH88: 954208.93 | BI88: 954208.9285 | BJ88: 0.00150582497 | BL88: 0 | BM88: 0 | BN88: 0 | BP88: 954208.93 | BQ88: 954208.9285 | BR88: 0.00150582497 | BV88: 0 | BX88: 107962.18 | BY88: 107962.1763 | BZ88: 0 | CB88: 5756.4 | CC88: 5756.4 | CD88: 0 | CF88: 1004697.49 | CH88: 1004697 | CI88: 0.0529114327 | CJ88: 1024166.8 | CL88: 1024167 | CM88: 0.01937828072
A89: 2509 | B89: Singlewell Primary School | D89: Singlewell Primary School | E89: 0 | F89: 1 | H89: 1311903.61 | I89: 1311903.606 | J89: 0.003940885887 | L89: 122234.84 | M89: 122234.8444 | N89: -0.00439792301 | P89: 22943.45 | Q89: 22943.44558 | R89: 0.004417471308 | T89: 114610.83 | U89: 114610.8317 | V89: -0.001737436571 | X89: 0 | Y89: 0 | Z89: 0 | AB89: 125894.71 | AC89: 125894.7077 | AD89: 0.002290411983 | AF89: 0 | AG89: 0 | AH89: 0 | AJ89: 0 | AK89: 0 | AL89: 0 | AN89: 0 | AO89: 0 | AP89: 0 | AR89: 51712 | AS89: 51712 | AT89: 0 | AV89: 0 | AW89: 0 | AX89: 0 | AZ89: 0 | BA89: 0 | BB89: 0 | BD89: 25324.56 | BE89: 25324.56451 | BF89: -0.00451340948 | BH89: 1774624 | BI89: 1774624 | BJ89: 0 | BL89: 0 | BM89: 0 | BN89: 0 | BP89: 1774624 | BQ89: 1774624 | BR89: 0 | BV89: 0 | BX89: 256714.73 | BY89: 256714.7318 | BZ89: 0 | CB89: 11035.44 | CC89: 11035.44 | CD89: 0 | CF89: 1843934.04 | CH89: 1843934 | CI89: 0.03905618317 | CJ89: 1879778.49 | CL89: 1879778 | CM89: 0.01943911725
A90: 2510 | B90: Cheriton Primary School | D90: Cheriton Primary School | E90: 0 | F90: 1 | H90: 1275183.66 | I90: 1275183.658 | J90: 0.002202082193 | L90: 133251.33 | M90: 133251.3349 | N90: -0.004905981419 | P90: 43852.9 | Q90: 43852.90298 | R90: -0.00298139856 | T90: 120816.5 | U90: 120816.4985 | V90: 0.001522658116 | X90: 0 | Y90: 0 | Z90: 0 | AB90: 125894.71 | AC90: 125894.7077 | AD90: 0.002290411983 | AF90: 0 | AG90: 0 | AH90: 0 | AJ90: 0 | AK90: 0 | AL90: 0 | AN90: 0 | AO90: 0 | AP90: 0 | AR90: 8909 | AS90: 8909 | AT90: 0 | AV90: 0 | AW90: 0 | AX90: 0 | AZ90: 0 | BA90: 0 | BB90: 0 | BD90: 0 | BE90: 0 | BF90: 0 | BH90: 1707908.1 | BI90: 1707908.102 | BJ90: -0.001872227527 | BL90: 0 | BM90: 0 | BN90: 0 | BP90: 1707908.1 | BQ90: 1707908.102 | BR90: -0.001872227527 | BV90: 0 | BX90: 261023.9 | BY90: 261023.9034 | BZ90: 0 | CB90: 10726.56 | CC90: 10726.56 | CD90: 0 | CF90: 1803039.12 | CH90: 1803039 | CI90: 0.05570031433 | CJ90: 1838921.73 | CL90: 1838922 | CM90: 0.01990118218
A91: 2514 | B91: Brookfield Infant School | D91: Brookfield Infant School | E91: 0 | F91: 1 | H91: 600871.88 | I91: 600871.8806 | J91: -0.0006377622485 | L91: 56627.85 | M91: 56627.85447 | N91: -0.004465386613 | P91: 7701.19 | Q91: 7701.19144 | R91: -0.001439806229 | T91: 55584.08 | U91: 55584.07869 | V91: 0.001306859514 | X91: 0 | Y91: 0 | Z91: 0 | AB91: 125894.71 | AC91: 125894.7077 | AD91: 0.002290411983 | AF91: 0 | AG91: 0 | AH91: 0 | AJ91: 0 | AK91: 0 | AL91: 0 | AN91: 0 | AO91: 0 | AP91: 0 | AR91: 20210 | AS91: 20210 | AT91: 0 | AV91: 0 | AW91: 0 | AX91: 0 | AZ91: 0 | BA91: 0 | BB91: 0 | BD91: 0 | BE91: 0 | BF91: 0 | BH91: 866889.71 | BI91: 866889.7129 | BJ91: -0.002945683664 | BL91: 0 | BM91: 0 | BN91: 0 | BP91: 866889.71 | BQ91: 866889.7129 | BR91: -0.002945683664 | BV91: 0 | BX91: 110870.45 | BY91: 110870.4493 | BZ91: 0 | CB91: 5054.4 | CC91: 5054.4 | CD91: 0 | CF91: 913772.55 | CH91: 913773 | CI91: 0.0540816627 | CJ91: 931643.8 | CL91: 931644 | CM91: 0.01955765688
A92: 2519 | B92: Vigo Village School | D92: Vigo Village School | E92: 0 | F92: 1 | H92: 480697.5 | I92: 480697.5045 | J92: -0.004510209779 | L92: 26875.53 | M92: 26875.52939 | N92: 0.0006125389773 | P92: 646.82 | Q92: 646.8192285 | R92: 0.0007714598441 | T92: 45089.82 | U92: 45089.81709 | V92: 0.00291082781 | X92: 3122.97 | Y92: 3122.972456 | Z92: -0.002455849151 | AB92: 125894.71 | AC92: 125894.7077 | AD92: 0.002290411983 | AF92: 4287.97 | AG92: 4287.973096 | AH92: -0.003096052549 | AJ92: 0 | AK92: 0 | AL92: 0 | AN92: 0 | AO92: 0 | AP92: 0 | AR92: 22081 | AS92: 22081 | AT92: 0 | AV92: 0 | AW92: 0 | AX92: 0 | AZ92: 0 | BA92: 0 | BB92: 0 | BD92: 0 | BE92: 0 | BF92: 0 | BH92: 708696.32 | BI92: 708696.3235 | BJ92: -0.003476872924 | BL92: 0 | BM92: 0 | BN92: 0 | BP92: 708696.32 | BQ92: 708696.3235 | BR92: -0.003476872924 | BV92: 0 | BX92: 69234.74 | BY92: 69234.7428 | BZ92: 0 | CB92: 4043.52 | CC92: 4043.52 | CD92: 0 | CF92: 746735.23 | CH92: 746735 | CI92: 0.05367447983 | CJ92: 761228.31 | CL92: 761228 | CM92: 0.01940859279
A93: 2520 | B93: Madginford Primary School | D93: Madginford Primary School | E93: 0 | F93: 1 | H93: 2119742.47 | I93: 2119742.468 | J93: 0.002194561064 | L93: 127660.17 | M93: 127660.1746 | N93: -0.004568192686 | P93: 22515.91 | Q93: 22515.90808 | R93: 0.001924244483 | T93: 130933.76 | U93: 130933.7627 | V93: -0.002745258491 | X93: 0 | Y93: 0 | Z93: 0 | AB93: 125894.71 | AC93: 125894.7077 | AD93: 0.002290411983 | AF93: 0 | AG93: 0 | AH93: 0 | AJ93: 0 | AK93: 0 | AL93: 0 | AN93: 0 | AO93: 0 | AP93: 0 | AR93: 58880 | AS93: 58880 | AT93: 0 | AV93: 0 | AW93: 0 | AX93: 0 | AZ93: 0 | BA93: 0 | BB93: 0 | BD93: 257092.98 | BE93: 257092.9791 | BF93: 0.0009042338352 | BH93: 2842720 | BI93: 2842720 | BJ93: 0 | BL93: 0 | BM93: 0 | BN93: 0 | BP93: 2842720 | BQ93: 2842720 | BR93: 0 | BV93: 0 | BX93: 518301.75 | BY93: 518301.7487 | BZ93: 0 | CB93: 17830.8 | CC93: 17830.8 | CD93: 0 | CF93: 2945539.2 | CH93: 2945539 | CI93: 0.03616930264 | CJ93: 2959972.5 | CL93: 2959973 | CM93: 0.004900053613
A94: 2524 | B94: Palmarsh Primary School | D94: Palmarsh Primary School | E94: 0 | F94: 1 | H94: 654282.71 | I94: 654282.7145 | J94: -0.004472229979 | L94: 83355.93 | M94: 83355.92618 | N94: 0.00381937428 | P94: 3347.6 | Q94: 3347.601513 | R94: -0.001512978529 | T94: 66561.36 | U94: 66561.35964 | V94: 0.0003579773329 | X94: 6729.26 | Y94: 6729.262077 | Z94: -0.002077484496 | AB94: 125894.71 | AC94: 125894.7077 | AD94: 0.002290411983 | AF94: 0 | AG94: 0 | AH94: 0 | AJ94: 0 | AK94: 0 | AL94: 0 | AN94: 0 | AO94: 0 | AP94: 0 | AR94: 16218 | AS94: 16218 | AT94: 0 | AV94: 0 | AW94: 0 | AX94: 0 | AZ94: 0 | BA94: 0 | BB94: 0 | BD94: 0 | BE94: 0 | BF94: 0 | BH94: 956389.57 | BI94: 956389.5716 | BJ94: -0.001594929374 | BL94: 0 | BM94: 0 | BN94: 0 | BP94: 956389.57 | BQ94: 956389.5716 | BR94: -0.001594929374 | BV94: 0 | BX94: 132891.71 | BY94: 132891.7072 | BZ94: 0 | CB94: 5503.68 | CC94: 5503.68 | CD94: 0 | CF94: 1009736.32 | CH94: 1009736 | CI94: 0.05577930792 | CJ94: 1029606.69 | CL94: 1029607 | CM94: 0.01967877119
A95: 2525 | B95: Painters Ash Primary School | D95: Painters Ash Primary School | E95: 0 | F95: 1 | H95: 1338609.02 | I95: 1338609.023 | J95: -0.002976348158 | L95: 175318 | M95: 175318.0022 | N95: -0.002238770452 | P95: 28010.68 | Q95: 28010.6827 | R95: -0.002697163756 | T95: 109446.04 | U95: 109446.0408 | V95: -0.0007850434049 | X95: 0 | Y95: 0 | Z95: 0 | AB95: 125894.71 | AC95: 125894.7077 | AD95: 0.002290411983 | AF95: 0 | AG95: 0 | AH95: 0 | AJ95: 0 | AK95: 0 | AL95: 0 | AN95: 0 | AO95: 0 | AP95: 0 | AR95: 41728 | AS95: 41728 | AT95: 0 | AV95: 0 | AW95: 0 | AX95: 0 | AZ95: 0 | BA95: 0 | BB95: 0 | BD95: 0 | BE95: 0 | BF95: 0 | BH95: 1819006.46 | BI95: 1819006.456 | BJ95: 0.003593086032 | BL95: 0 | BM95: 0 | BN95: 0 | BP95: 1819006.46 | BQ95: 1819006.456 | BR95: 0.003593086032 | BV95: 0 | BX95: 275405.79 | BY95: 275405.7883 | BZ95: 0 | CB95: 11260.08 | CC95: 11260.08 | CD95: 0 | CF95: 1918221.45 | CH95: 1918221 | CI95: 0.05454350821 | CJ95: 1955751.31 | CL95: 1955751 | CM95: 0.01956492562
A96: 2530 | B96: Tunbury Primary School | D96: Tunbury Primary School | E96: 0 | F96: 1 | H96: 1949495.44 | I96: 1949495.435 | J96: 0.005041926866 | L96: 81295.4 | M96: 81295.40105 | N96: -0.001045097641 | P96: 5810.72 | Q96: 5810.718089 | R96: 0.001911050591 | T96: 101809.84 | U96: 101809.842 | V96: -0.001987626703 | X96: 0 | Y96: 0 | Z96: 0 | AB96: 125894.71 | AC96: 125894.7077 | AD96: 0.002290411983 | AF96: 0 | AG96: 0 | AH96: 0 | AJ96: 0 | AK96: 0 | AL96: 0 | AN96: 0 | AO96: 0 | AP96: 0 | AR96: 46336 | AS96: 46336 | AT96: 0 | AV96: 0 | AW96: 0 | AX96: 0 | AZ96: 0 | BA96: 0 | BB96: 0 | BD96: 295949.9 | BE96: 295949.8962 | BF96: 0.003789334791 | BH96: 2606592 | BI96: 2606592 | BJ96: 0 | BL96: 0 | BM96: 0 | BN96: 0 | BP96: 2606592 | BQ96: 2606592 | BR96: 0 | BV96: 0 | BX96: 472046.35 | BY96: 472046.3471 | BZ96: 0 | CB96: 16398.72 | CC96: 16398.72 | CD96: 0 | CF96: 2701153.28 | CH96: 2701153 | CI96: 0.03627774504 | CJ96: 2714427.37 | CL96: 2714427 | CM96: 0.004914230562
A97: 2532 | B97: St Margaret's-at-Cliffe Primary School | D97: St Margaret's-at-Cliffe Primary School | E97: 0 | F97: 1 | H97: 644268.18 | I97: 644268.1831 | J97: -0.003128267243 | L97: 31562.09 | M97: 31562.09453 | N97: -0.004525164721 | P97: 4699.33 | Q97: 4699.326845 | R97: 0.003154842721 | T97: 33866.07 | U97: 33866.07448 | V97: -0.004477019611 | X97: 0 | Y97: 0 | Z97: 0 | AB97: 125894.71 | AC97: 125894.7077 | AD97: 0.002290411983 | AF97: 0 | AG97: 0 | AH97: 0 | AJ97: 0 | AK97: 0 | AL97: 0 | AN97: 0 | AO97: 0 | AP97: 0 | AR97: 18713 | AS97: 18713 | AT97: 0 | AV97: 0 | AW97: 0 | AX97: 0 | AZ97: 0 | BA97: 0 | BB97: 0 | BD97: 5821.61 | BE97: 5821.613315 | BF97: -0.003314803079 | BH97: 864825 | BI97: 864825 | BJ97: 0 | BL97: 3945.58 | BM97: 3945.578856 | BN97: 0.001143697225 | BP97: 868770.58 | BQ97: 868770.5789 | BR97: 0.001143697184 | BV97: 0 | BX97: 78405.68 | BY97: 78405.68259 | BZ97: 0 | CB97: 5419.44 | CC97: 5419.44 | CD97: 0 | CF97: 905745.17 | CH97: 905745 | CI97: 0.0425596723 | CJ97: 923485.82 | CL97: 923486 | CM97: 0.01958680056
A98: 2539 | B98: Stocks Green Primary School | D98: Stocks Green Primary School | E98: 0 | F98: 1 | H98: 721046.26 | I98: 721046.2568 | J98: 0.003234685282 | L98: 13022.18 | M98: 13022.18429 | N98: -0.004292839811 | P98: 4637.28 | Q98: 4637.276566 | R98: 0.003434095179 | T98: 38601.51 | U98: 38601.51027 | V98: -0.0002651855611 | X98: 0 | Y98: 0 | Z98: 0 | AB98: 125894.71 | AC98: 125894.7077 | AD98: 0.002290411983 | AF98: 0 | AG98: 0 | AH98: 0 | AJ98: 0 | AK98: 0 | AL98: 0 | AN98: 0 | AO98: 0 | AP98: 0 | AR98: 23204 | AS98: 23204 | AT98: 0 | AV98: 0 | AW98: 0 | AX98: 0 | AZ98: 0 | BA98: 0 | BB98: 0 | BD98: 43742.06 | BE98: 43742.0644 | BF98: -0.004401167069 | BH98: 970148 | BI98: 970148 | BJ98: 0 | BL98: 0 | BM98: 0 | BN98: 0 | BP98: 970148 | BQ98: 970148 | BR98: 0 | BV98: 0 | BX98: 102762.97 | BY98: 102762.9694 | BZ98: 0 | CB98: 6065.28 | CC98: 6065.28 | CD98: 0 | CF98: 1005418.89 | CH98: 1005419 | CI98: 0.03635619514 | CJ98: 1010032.31 | CL98: 1010032 | CM98: 0.004588555125
A99: 2545 | B99: Sandgate Primary School | D99: Sandgate Primary School | E99: 0 | F99: 1 | H99: 1398696.21 | I99: 1398696.211 | J99: -0.001040124334 | L99: 67097.76 | M99: 67097.76199 | N99: -0.001992072241 | P99: 6658 | Q99: 6657.998996 | R99: 0.001004273584 | T99: 82203.58 | U99: 82203.58036 | V99: -0.0003574908478 | X99: 0 | Y99: 0 | Z99: 0 | AB99: 125894.71 | AC99: 125894.7077 | AD99: 0.002290411983 | AF99: 0 | AG99: 0 | AH99: 0 | AJ99: 0 | AK99: 0 | AL99: 0 | AN99: 0 | AO99: 0 | AP99: 0 | AR99: 46592 | AS99: 46592 | AT99: 0 | AV99: 0 | AW99: 0 | AX99: 0 | AZ99: 0 | BA99: 0 | BB99: 0 | BD99: 156345.74 | BE99: 156345.7399 | BF99: 9.500180022e-05 | BH99: 1883488 | BI99: 1883488 | BJ99: 0 | BL99: 0 | BM99: 0 | BN99: 0 | BP99: 1883488 | BQ99: 1883488 | BR99: 0 | BV99: 0 | BX99: 299485.57 | BY99: 299485.571 | BZ99: 0 | CB99: 11765.52 | CC99: 11765.52 | CD99: 0 | CF99: 1951332.48 | CH99: 1951332 | CI99: 0.03602065954 | CJ99: 1960856.18 | CL99: 1960856 | CM99: 0.004880613682
A100: 2552 | B100: Sandling Primary School | D100: Sandling Primary School | E100: 0 | F100: 1 | H100: 1402034.39 | I100: 1402034.388 | J100: 0.001845221268 | L100: 32265.31 | M100: 32265.30732 | N100: 0.002681917809 | P100: 12013 | Q100: 12013.00057 | R100: -0.0005746280967 | T100: 106966.04 | U100: 106966.0404 | V100: -0.0003572106652 | X100: 0 | Y100: 0 | Z100: 0 | AB100: 125894.71 | AC100: 125894.7077 | AD100: 0.002290411983 | AF100: 0 | AG100: 0 | AH100: 0 | AJ100: 0 | AK100: 0 | AL100: 0 | AN100: 0 | AO100: 0 | AP100: 0 | AR100: 30720 | AS100: 30720 | AT100: 0 | AV100: 0 | AW100: 0 | AX100: 0 | AZ100: 0 | BA100: 0 | BB100: 0 | BD100: 162106.56 | BE100: 162106.5559 | BF100: 0.004114287643 | BH100: 1872000 | BI100: 1872000 | BJ100: 0 | BL100: 0 | BM100: 0 | BN100: 0 | BP100: 1872000 | BQ100: 1872000 | BR100: 0 | BV100: 0 | BX100: 310445.59 | BY100: 310445.5856 | BZ100: 0 | CB100: 11793.6 | CC100: 11793.6 | CD100: 0 | CF100: 1940006.4 | CH100: 1940006 | CI100: 0.03632820513 | CJ100: 1949552.83 | CL100: 1949553 | CM100: 0.004920823973
A101: 2559 | B101: Capel-le-Ferne Primary School | D101: Capel-le-Ferne Primary School | E101: 0 | F101: 1 | H101: 594195.53 | I101: 594195.5264 | J101: 0.003591546207 | L101: 71641.81 | M101: 71641.81322 | N101: -0.003216077326 | P101: 0 | Q101: 0 | R101: 0 | T101: 45603.91 | U101: 45603.90789 | V101: 0.002112702088 | X101: 0 | Y101: 0 | Z101: 0 | AB101: 125894.71 | AC101: 125894.7077 | AD101: 0.002290411983 | AF101: 0 | AG101: 0 | AH101: 0 | AJ101: 0 | AK101: 0 | AL101: 0 | AN101: 0 | AO101: 0 | AP101: 0 | AR101: 19336 | AS101: 19336 | AT101: 0 | AV101: 0 | AW101: 0 | AX101: 0 | AZ101: 0 | BA101: 0 | BB101: 0 | BD101: 0 | BE101: 0 | BF101: 0 | BH101: 856671.96 | BI101: 856671.9552 | BJ101: 0.004778582952 | BL101: 0 | BM101: 0 | BN101: 0 | BP101: 856671.96 | BQ101: 856671.9552 | BR101: 0.004778582952 | BV101: 0 | BX101: 105370.42 | BY101: 105370.4196 | BZ101: 0 | CB101: 4998.24 | CC101: 4998.24 | CD101: 0 | CF101: 903867.71 | CH101: 903868 | CI101: 0.05509198065 | CJ101: 921558.35 | CL101: 921558 | CM101: 0.0195721562
A102: 2562 | B102: Lunsford Primary School | D102: Lunsford Primary School | E102: 0 | F102: 1 | H102: 697679.02 | I102: 697679.017 | J102: 0.003037265036 | L102: 63060.28 | M102: 63060.28385 | N102: -0.003845717874 | P102: 4662.46 | Q102: 4662.463512 | R102: -0.003511871093 | T102: 62448.79 | U102: 62448.7864 | V102: 0.003597767653 | X102: 0 | Y102: 0 | Z102: 0 | AB102: 125894.71 | AC102: 125894.7077 | AD102: 0.002290411983 | AF102: 0 | AG102: 0 | AH102: 0 | AJ102: 0 | AK102: 0 | AL102: 0 | AN102: 0 | AO102: 0 | AP102: 0 | AR102: 19087 | AS102: 19087 | AT102: 0 | AV102: 0 | AW102: 0 | AX102: 0 | AZ102: 0 | BA102: 0 | BB102: 0 | BD102: 0 | BE102: 0 | BF102: 0 | BH102: 972832.26 | BI102: 972832.2584 | BJ102: 0.00156785571 | BL102: 0 | BM102: 0 | BN102: 0 | BP102: 972832.26 | BQ102: 972832.2584 | BR102: 0.00156785571 | BV102: 0 | BX102: 118296.23 | BY102: 118296.2322 | BZ102: 0 | CB102: 5868.72 | CC102: 5868.72 | CD102: 0 | CF102: 1026012.9 | CH102: 1026013 | CI102: 0.05466578756 | CJ102: 1046151.42 | CL102: 1046151 | CM102: 0.01962794035
A103: 2574 | B103: Downs View Infant School | D103: Downs View Infant School | E103: 0 | F103: 1 | H103: 851235.16 | I103: 851235.1642 | J103: -0.004236829816 | L103: 73687.64 | M103: 73687.64468 | N103: -0.004675675722 | P103: 10515.68 | Q103: 10515.68309 | R103: -0.00309049846 | T103: 71857.54 | U103: 71857.53935 | V103: 0.0006500510062 | X103: 0 | Y103: 0 | Z103: 0 | AB103: 125894.71 | AC103: 125894.7077 | AD103: 0.002290411983 | AF103: 0 | AG103: 0 | AH103: 0 | AJ103: 0 | AK103: 0 | AL103: 0 | AN103: 0 | AO103: 0 | AP103: 0 | AR103: 27648 | AS103: 27648 | AT103: 0 | AV103: 0 | AW103: 0 | AX103: 0 | AZ103: 0 | BA103: 0 | BB103: 0 | BD103: 0 | BE103: 0 | BF103: 0 | BH103: 1160838.74 | BI103: 1160838.739 | BJ103: 0.0009374588262 | BL103: 0 | BM103: 0 | BN103: 0 | BP103: 1160838.74 | BQ103: 1160838.739 | BR103: 0.0009374588262 | BV103: 0 | BX103: 145601.88 | BY103: 145601.8787 | BZ103: 0 | CB103: 7160.4 | CC103: 7160.4 | CD103: 0 | CF103: 1222873.53 | CH103: 1222874 | CI103: 0.05343962848 | CJ103: 1246778.04 | CL103: 1246778 | CM103: 0.01954781865
A104: 2578 | B104: Kingswood Primary School | D104: Kingswood Primary School | E104: 0 | F104: 1 | H104: 430624.85 | I104: 430624.8478 | J104: 0.002209603728 | L104: 19100.01 | M104: 19100.00903 | N104: 0.0009714791122 | P104: 2700.52 | Q104: 2700.51973 | R104: 0.0002698334952 | T104: 39604.3 | U104: 39604.29825 | V104: 0.001752979115 | X104: 1171.11 | Y104: 1171.114671 | Z104: -0.004670943433 | AB104: 125894.71 | AC104: 125894.7077 | AD104: 0.002290411983 | AF104: 8803.65 | AG104: 8803.65235 | AH104: -0.002349619645 | AJ104: 0 | AK104: 0 | AL104: 0 | AN104: 0 | AO104: 0 | AP104: 0 | AR104: 16093 | AS104: 16093 | AT104: 0 | AV104: 0 | AW104: 0 | AX104: 0 | AZ104: 0 | BA104: 0 | BB104: 0 | BD104: 0 | BE104: 0 | BF104: 0 | BH104: 643992.15 | BI104: 643992.1495 | BJ104: 0.0004737443523 | BL104: 0 | BM104: 0 | BN104: 0 | BP104: 643992.15 | BQ104: 643992.1495 | BR104: 0.0004737443523 | BV104: 0 | BX104: 61804.24 | BY104: 61804.23904 | BZ104: 0 | CB104: 3622.32 | CC104: 3622.32 | CD104: 0 | CF104: 678505.63 | CH104: 678506 | CI104: 0.05359301429 | CJ104: 691753.89 | CL104: 691754 | CM104: 0.01952564491
A105: 2586 | B105: Senacre Wood Primary School | D105: Senacre Wood Primary School | E105: 0 | F105: 1 | H105: 701017.19 | I105: 701017.1941 | J105: -0.004077389371 | L105: 133989 | M105: 133988.9968 | N105: 0.003248169145 | P105: 10648.56 | Q105: 10648.561 | R105: -0.001003188861 | T105: 53749.17 | U105: 53749.16945 | V105: 0.0005523908476 | X105: 1301.24 | Y105: 1301.238523 | Z105: 0.001476729513 | AB105: 125894.71 | AC105: 125894.7077 | AD105: 0.002290411983 | AF105: 0 | AG105: 0 | AH105: 0 | AJ105: 0 | AK105: 0 | AL105: 0 | AN105: 0 | AO105: 0 | AP105: 0 | AR105: 21332 | AS105: 21332 | AT105: 0 | AV105: 0 | AW105: 0 | AX105: 0 | AZ105: 0 | BA105: 0 | BB105: 0 | BD105: 0 | BE105: 0 | BF105: 0 | BH105: 1047931.87 | BI105: 1047931.868 | BJ105: 0.002487123362 | BL105: 0 | BM105: 0 | BN105: 0 | BP105: 1047931.87 | BQ105: 1047931.868 | BR105: 0.002487123362 | BV105: 0 | BX105: 173764.61 | BY105: 173764.6078 | BZ105: 0 | CB105: 5896.8 | CC105: 5896.8 | CD105: 0 | CF105: 1105767.3 | CH105: 1105767 | CI105: 0.05519006939 | CJ105: 1127456.01 | CL105: 1127456 | CM105: 0.01961417199
A106: 2603 | B106: Bromstone Primary School, Broadstairs | D106: Bromstone Primary School, Broadstairs | E106: 0 | F106: 1 | H106: 1355299.91 | I106: 1355299.909 | J106: 0.001450380543 | L106: 280238.19 | M106: 280238.1903 | N106: -0.0002998655546 | P106: 16065.17 | Q106: 16065.17007 | R106: -6.839475827e-05 | T106: 161915.46 | U106: 161915.4603 | V106: -0.000315418758 | X106: 5242.13 | Y106: 5242.132337 | Z106: -0.002336603962 | AB106: 125894.71 | AC106: 125894.7077 | AD106: 0.002290411983 | AF106: 0 | AG106: 0 | AH106: 0 | AJ106: 0 | AK106: 0 | AL106: 0 | AN106: 0 | AO106: 0 | AP106: 0 | AR106: 45056 | AS106: 45056 | AT106: 0 | AV106: 0 | AW106: 0 | AX106: 0 | AZ106: 0 | BA106: 0 | BB106: 0 | BD106: 0 | BE106: 0 | BF106: 0 | BH106: 1989711.57 | BI106: 1989711.569 | BJ106: 0.0007205095608 | BL106: 0 | BM106: 0 | BN106: 0 | BP106: 1989711.57 | BQ106: 1989711.569 | BR106: 0.0007205095608 | BV106: 0 | BX106: 391107.31 | BY106: 391107.3082 | BZ106: 0 | CB106: 11400.48 | CC106: 11400.48 | CD106: 0 | CF106: 2099564.04 | CH106: 2099564 | CI106: 0.05521024877 | CJ106: 2140654.2 | CL106: 2140654 | CM106: 0.01957080576
A107: 2607 | B107: Parkside Community Primary School | D107: Parkside Community Primary School | E107: 0 | F107: 1 | H107: 547461.05 | I107: 547461.0468 | J107: 0.003196705598 | L107: 192028.5 | M107: 192028.4958 | N107: 0.004239142465 | P107: 40731.52 | Q107: 40731.52197 | R107: -0.001971381302 | T107: 88918.05 | U107: 88918.05124 | V107: -0.001235381074 | X107: 30820.76 | Y107: 30820.76388 | Z107: -0.003879749496 | AB107: 125894.71 | AC107: 125894.7077 | AD107: 0.002290411983 | AF107: 0 | AG107: 0 | AH107: 0 | AJ107: 0 | AK107: 0 | AL107: 0 | AN107: 0 | AO107: 0 | AP107: 0 | AR107: 20958 | AS107: 20958 | AT107: 0 | AV107: 0 | AW107: 0 | AX107: 0 | AZ107: 0 | BA107: 0 | BB107: 0 | BD107: 0 | BE107: 0 | BF107: 0 | BH107: 1046812.59 | BI107: 1046812.587 | BJ107: 0.002639748156 | BL107: 0 | BM107: 0 | BN107: 0 | BP107: 1046812.59 | BQ107: 1046812.587 | BR107: 0.002639748156 | BV107: 0 | BX107: 271090.21 | BY107: 271090.2093 | BZ107: 0 | CB107: 4605.12 | CC107: 4605.12 | CD107: 0 | CF107: 1104990.12 | CH107: 1104990 | CI107: 0.05557588182 | CJ107: 1126670.76 | CL107: 1126671 | CM107: 0.01962066412
A108: 2615 | B108: High Firs Primary School | D108: High Firs Primary School | E108: 0 | F108: 1 | H108: 650944.54 | I108: 650944.5374 | J108: 0.002642424311 | L108: 65757.45 | M108: 65757.44692 | N108: 0.003077365327 | P108: 9991.57 | Q108: 9991.56574 | R108: 0.004259732441 | T108: 66209.81 | U108: 66209.81209 | V108: -0.002089650836 | X108: 0 | Y108: 0 | Z108: 0 | AB108: 125894.71 | AC108: 125894.7077 | AD108: 0.002290411983 | AF108: 0 | AG108: 0 | AH108: 0 | AJ108: 34638.69 | AK108: 34638.68723 | AL108: 0.002767796679 | AN108: 0 | AO108: 0 | AP108: 0 | AR108: 24950 | AS108: 24950 | AT108: 0 | AV108: 0 | AW108: 0 | AX108: 0 | AZ108: 0 | BA108: 0 | BB108: 0 | BD108: 0 | BE108: 0 | BF108: 0 | BH108: 978386.76 | BI108: 978386.7571 | BJ108: 0.00294807984 | BL108: 0 | BM108: 0 | BN108: 0 | BP108: 978386.76 | BQ108: 978386.7571 | BR108: 0.00294807984 | BV108: 0 | BX108: 142336.21 | BY108: 142336.2126 | BZ108: 0 | CB108: 5682.03 | CC108: 5682.03012 | CD108: 0 | CF108: 1029762.68 | CH108: 1029763 | CI108: 0.05251085277 | CJ108: 1049858.94 | CL108: 1049859 | CM108: 0.01951542855
A109: 2627 | B109: Sandwich Junior School | D109: Sandwich Junior School | E109: 0 | F109: 1 | H109: 674311.78 | I109: 674311.7772 | J109: 0.002839844674 | L109: 66030.66 | M109: 66030.65712 | N109: 0.002879519307 | P109: 5134.13 | Q109: 5134.127627 | R109: 0.002373462509 | T109: 59170.29 | U109: 59170.29121 | V109: -0.00121055558 | X109: 817.92 | Y109: 817.9213575 | Z109: -0.001357484312 | AB109: 125894.71 | AC109: 125894.7077 | AD109: 0.002290411983 | AF109: 0 | AG109: 0 | AH109: 0 | AJ109: 0 | AK109: 0 | AL109: 0 | AN109: 0 | AO109: 0 | AP109: 0 | AR109: 28160 | AS109: 28160 | AT109: 0 | AV109: 0 | AW109: 0 | AX109: 0 | AZ109: 0 | BA109: 0 | BB109: 0 | BD109: 0 | BE109: 0 | BF109: 0 | BH109: 959519.48 | BI109: 959519.4822 | BJ109: -0.002184801386 | BL109: 0 | BM109: 0 | BN109: 0 | BP109: 959519.48 | BQ109: 959519.4822 | BR109: -0.002184801386 | BV109: 0 | BX109: 114682.94 | BY109: 114682.9395 | BZ109: 0 | CB109: 5672.16 | CC109: 5672.16 | CD109: 0 | CF109: 1012251.39 | CH109: 1012251 | CI109: 0.05495657857 | CJ109: 1031933.22 | CL109: 1031933 | CM109: 0.01944361864
A110: 2632 | B110: Sevenoaks Primary School | D110: Sevenoaks Primary School | E110: 0 | F110: 1 | H110: 1976200.85 | I110: 1976200.852 | J110: -0.001875306712 | L110: 105977.63 | M110: 105977.6315 | N110: -0.001472192424 | P110: 41012.4 | Q110: 41012.40302 | R110: -0.00301797445 | T110: 121900.97 | U110: 121900.9694 | V110: 0.0005710787373 | X110: 446.14 | Y110: 446.1389223 | Z110: 0.001077735838 | AB110: 125894.71 | AC110: 125894.7077 | AD110: 0.002290411983 | AF110: 0 | AG110: 0 | AH110: 0 | AJ110: 89403.01 | AK110: 89403.01288 | AL110: -0.002881469525 | AN110: 0 | AO110: 0 | AP110: 0 | AR110: 75264 | AS110: 75264 | AT110: 0 | AV110: 0 | AW110: 0 | AX110: 0 | AZ110: 0 | BA110: 0 | BB110: 0 | BD110: 134492.28 | BE110: 134492.2847 | BF110: -0.004692283313 | BH110: 2670592 | BI110: 2670592 | BJ110: 0 | BL110: 2371.52 | BM110: 2371.516095 | BN110: 0.003904515859 | BP110: 2672963.52 | BQ110: 2672963.516 | BR110: 0.003904515877 | BV110: 0 | BX110: 380543.57 | BY110: 380543.5682 | BZ110: 0 | CB110: 17250.06 | CC110: 17250.06067 | CD110: 0 | CF110: 2769792.43 | CH110: 2769792 | CI110: 0.03622530323 | CJ110: 2782586.7 | CL110: 2782587 | CM110: 0.004619216177
A111: 2643 | B111: Swalecliffe Community Primary School | D111: Swalecliffe Community Primary School | E111: 0 | F111: 1 | H111: 1912775.49 | I111: 1912775.487 | J111: 0.003303123638 | L111: 146450.6 | M111: 146450.6001 | N111: -0.0001080008224 | P111: 4641.2 | Q111: 4641.195833 | R111: 0.004167220693 | T111: 153387.81 | U111: 153387.8052 | V111: 0.004792377265 | X111: 0 | Y111: 0 | Z111: 0 | AB111: 125894.71 | AC111: 125894.7077 | AD111: 0.002290411983 | AF111: 0 | AG111: 0 | AH111: 0 | AJ111: 0 | AK111: 0 | AL111: 0 | AN111: 0 | AO111: 0 | AP111: 0 | AR111: 11981 | AS111: 11981 | AT111: 0 | AV111: 0 | AW111: 0 | AX111: 0 | AZ111: 0 | BA111: 0 | BB111: 0 | BD111: 168882.2 | BE111: 168882.2044 | BF111: -0.004445132829 | BH111: 2524013 | BI111: 2524013 | BJ111: 0 | BL111: 2097.67 | BM111: 2097.666804 | BN111: 0.003195710089 | BP111: 2526110.67 | BQ111: 2526110.667 | BR111: 0.003195709549 | BV111: 0 | BX111: 436674.22 | BY111: 436674.2219 | BZ111: 0 | CB111: 16089.84 | CC111: 16089.84 | CD111: 0 | CF111: 2621737.78 | CH111: 2621738 | CI111: 0.03785547263 | CJ111: 2634108.19 | CL111: 2634108 | CM111: 0.004718400938
A112: 2648 | B112: Aylesham Primary School | D112: Aylesham Primary School | E112: 0 | F112: 1 | H112: 1308565.43 | I112: 1308565.429 | J112: 0.001055540051 | L112: 271159.71 | M112: 271159.71 | N112: 1.833483111e-06 | P112: 10923.95 | Q112: 10923.95482 | R112: -0.004822236851 | T112: 121145.89 | U112: 121145.8894 | V112: 0.0006300014647 | X112: 10670.16 | Y112: 10670.15589 | Z112: 0.00410918204 | AB112: 125894.71 | AC112: 125894.7077 | AD112: 0.002290411983 | AF112: 0 | AG112: 0 | AH112: 0 | AJ112: 0 | AK112: 0 | AL112: 0 | AN112: 0 | AO112: 0 | AP112: 0 | AR112: 27136 | AS112: 27136 | AT112: 0 | AV112: 0 | AW112: 0 | AX112: 0 | AZ112: 0 | BA112: 0 | BB112: 0 | BD112: 0 | BE112: 0 | BF112: 0 | BH112: 1875495.85 | BI112: 1875495.847 | BJ112: 0.003264732193 | BL112: 0 | BM112: 0 | BN112: 0 | BP112: 1875495.85 | BQ112: 1875495.847 | BR112: 0.003264732193 | BV112: 0 | BX112: 336590.15 | BY112: 336590.146 | BZ112: 0 | CB112: 11007.36 | CC112: 11007.36 | CD112: 0 | CF112: 1981723.08 | CH112: 1981723 | CI112: 0.05663954599 | CJ112: 2020814.83 | CL112: 2020815 | CM112: 0.01972614156
A113: 2651 | B113: Broadwater Down Primary School | D113: Broadwater Down Primary School | E113: 0 | F113: 1 | H113: 510741.1 | I113: 510741.0985 | J113: 0.001457902079 | L113: 74892.34 | M113: 74892.33936 | N113: 0.0006404659653 | P113: 24846.18 | Q113: 24846.17968 | R113: 0.0003182894252 | T113: 64601.37 | U113: 64601.37286 | V113: -0.002859549473 | X113: 15633.45 | Y113: 15633.4514 | Z113: -0.001401006813 | AB113: 125894.71 | AC113: 125894.7077 | AD113: 0.002290411983 | AF113: 0 | AG113: 0 | AH113: 0 | AJ113: 0 | AK113: 0 | AL113: 0 | AN113: 0 | AO113: 0 | AP113: 0 | AR113: 18837 | AS113: 18837 | AT113: 0 | AV113: 0 | AW113: 0 | AX113: 0 | AZ113: 0 | BA113: 0 | BB113: 0 | BD113: 0 | BE113: 0 | BF113: 0 | BH113: 835446.15 | BI113: 835446.1496 | BJ113: 0.0004465132952 | BL113: 0 | BM113: 0 | BN113: 0 | BP113: 835446.15 | BQ113: 835446.1496 | BR113: 0.0004465132952 | BV113: 0 | BX113: 146799.34 | BY113: 146799.338 | BZ113: 0 | CB113: 4296.24 | CC113: 4296.24 | CD113: 0 | CF113: 880571.91 | CH113: 880572 | CI113: 0.05401396663 | CJ113: 897806.61 | CL113: 897807 | CM113: 0.01957216646
A114: 2653 | B114: West Borough Primary School | D114: West Borough Primary School | E114: 0 | F114: 1 | H114: 1502179.7 | I114: 1502179.702 | J114: -0.001594405621 | L114: 148737.39 | M114: 148737.3882 | N114: 0.001804246625 | P114: 49366.61 | Q114: 49366.61179 | R114: -0.001793629592 | T114: 116375.22 | U114: 116375.2232 | V114: -0.003175245569 | X114: 0 | Y114: 0 | Z114: 0 | AB114: 125894.71 | AC114: 125894.7077 | AD114: 0.002290411983 | AF114: 0 | AG114: 0 | AH114: 0 | AJ114: 0 | AK114: 0 | AL114: 0 | AN114: 0 | AO114: 0 | AP114: 0 | AR114: 58368 | AS114: 58368 | AT114: 0 | AV114: 0 | AW114: 0 | AX114: 0 | AZ114: 0 | BA114: 0 | BB114: 0 | BD114: 30246.37 | BE114: 30246.36753 | BF114: 0.002468622148 | BH114: 2031168 | BI114: 2031168 | BJ114: 0 | BL114: 3669.6 | BM114: 3669.603187 | BN114: -0.00318676848 | BP114: 2034837.6 | BQ114: 2034837.603 | BR114: -0.003186768387 | BV114: 0 | BX114: 307721.53 | BY114: 307721.5259 | BZ114: 0 | CB114: 12636 | CC114: 12636 | CD114: 0 | CF114: 2112961.71 | CH114: 2112962 | CI114: 0.03839328833 | CJ114: 2150734.78 | CL114: 2150735 | CM114: 0.01787683602
A115: 2662 | B115: Long Mead Community Primary School | D115: Long Mead Community Primary School | E115: 0 | F115: 1 | H115: 383890.37 | I115: 383890.3682 | J115: 0.001814763003 | L115: 110860.8 | M115: 110860.797 | N115: 0.002989020461 | P115: 4885.31 | Q115: 4885.310567 | R115: -0.0005666225497 | T115: 53181.8 | U115: 53181.79714 | V115: 0.002856887433 | X115: 1951.86 | Y115: 1951.857785 | Z115: 0.002215094276 | AB115: 125894.71 | AC115: 125894.7077 | AD115: 0.002290411983 | AF115: 0 | AG115: 0 | AH115: 0 | AJ115: 0 | AK115: 0 | AL115: 0 | AN115: 0 | AO115: 0 | AP115: 0 | AR115: 18463 | AS115: 18463 | AT115: 0 | AV115: 0 | AW115: 0 | AX115: 0 | AZ115: 0 | BA115: 0 | BB115: 0 | BD115: 0 | BE115: 0 | BF115: 0 | BH115: 699127.84 | BI115: 699127.8384 | BJ115: 0.001599554671 | BL115: 0 | BM115: 0 | BN115: 0 | BP115: 699127.84 | BQ115: 699127.8384 | BR115: 0.001599554671 | BV115: 0 | BX115: 142417.37 | BY115: 142417.3678 | BZ115: 0 | CB115: 3229.2 | CC115: 3229.2 | CD115: 0 | CF115: 738831.72 | CH115: 738832 | CI115: 0.05679058881 | CJ115: 753239.09 | CL115: 753239 | CM115: 0.019500205
A116: 2674 | B116: King's Farm Primary School | D116: King's Farm Primary School | E116: 0 | F116: 1 | H116: 1255154.6 | I116: 1255154.595 | J116: 0.004890007898 | L116: 359964.84 | M116: 359964.8375 | N116: 0.002502847346 | P116: 20975.6 | Q116: 20975.60169 | R116: -0.001687669443 | T116: 135744.51 | U116: 135744.5136 | V116: -0.003576305666 | X116: 5985.7 | Y116: 5985.697207 | Z116: 0.002792955775 | AB116: 125894.71 | AC116: 125894.7077 | AD116: 0.002290411983 | AF116: 0 | AG116: 0 | AH116: 0 | AJ116: 0 | AK116: 0 | AL116: 0 | AN116: 0 | AO116: 0 | AP116: 0 | AR116: 43264 | AS116: 43264 | AT116: 0 | AV116: 0 | AW116: 0 | AX116: 0 | AZ116: 0 | BA116: 0 | BB116: 0 | BD116: 0 | BE116: 0 | BF116: 0 | BH116: 1946983.95 | BI116: 1946983.953 | BJ116: -0.00278775231 | BL116: 106325.87 | BM116: 106325.8652 | BN116: 0.004811906838 | BP116: 2053309.82 | BQ116: 2053309.818 | BR116: 0.002024154644 | BV116: 0 | BX116: 533710.4 | BY116: 533710.4001 | BZ116: 0 | CB116: 10558.08 | CC116: 10558.08 | CD116: 0 | CF116: 2134248.97 | CH116: 2134249 | CI116: 0.03941886963 | CJ116: 2144025.53 | CL116: 2144026 | CM116: 0.004580796401
A117: 2680 | B117: Kings Hill School Primary and Nursery | D117: Kings Hill School Primary and Nursery | E117: 0 | F117: 1 | H117: 1402034.39 | I117: 1402034.388 | J117: 0.001845221268 | L117: 51670.83 | M117: 51670.82741 | N117: 0.002594879479 | P117: 9983.03 | Q117: 9983.02594 | R117: 0.004059510436 | T117: 73408.63 | U117: 73408.63191 | V117: -0.001912547028 | X117: 0 | Y117: 0 | Z117: 0 | AB117: 125894.71 | AC117: 125894.7077 | AD117: 0.002290411983 | AF117: 0 | AG117: 0 | AH117: 0 | AJ117: 0 | AK117: 0 | AL117: 0 | AN117: 0 | AO117: 0 | AP117: 0 | AR117: 52224 | AS117: 52224 | AT117: 0 | AV117: 0 | AW117: 0 | AX117: 0 | AZ117: 0 | BA117: 0 | BB117: 0 | BD117: 178288.42 | BE117: 178288.4189 | BF117: 0.001122523798 | BH117: 1893504 | BI117: 1893504 | BJ117: 0 | BL117: 0 | BM117: 0 | BN117: 0 | BP117: 1893504 | BQ117: 1893504 | BR117: 0 | BV117: 0 | BX117: 302419.81 | BY117: 302419.8114 | BZ117: 0 | CB117: 11793.6 | CC117: 11793.6 | CD117: 0 | CF117: 1961510.4 | CH117: 1961510 | CI117: 0.03591563577 | CJ117: 1971056.83 | CL117: 1971057 | CM117: 0.004866877076
A118: 2682 | B118: New Ash Green Primary School | D118: New Ash Green Primary School | E118: 0 | F118: 1 | H118: 1378667.15 | I118: 1378667.148 | J118: 0.001647800906 | L118: 63689.84 | M118: 63689.84152 | N118: -0.001516617631 | P118: 4658.75 | Q118: 4658.745439 | R118: 0.004561104882 | T118: 152505.85 | U118: 152505.8502 | V118: -0.0002354531898 | X118: 0 | Y118: 0 | Z118: 0 | AB118: 125894.71 | AC118: 125894.7077 | AD118: 0.002290411983 | AF118: 0 | AG118: 0 | AH118: 0 | AJ118: 65048.19 | AK118: 65048.19426 | AL118: -0.004255628788 | AN118: 0 | AO118: 0 | AP118: 0 | AR118: 33792 | AS118: 33792 | AT118: 0 | AV118: 0 | AW118: 0 | AX118: 0 | AZ118: 0 | BA118: 0 | BB118: 0 | BD118: 20127.51 | BE118: 20127.51249 | BF118: -0.002491618234 | BH118: 1844384 | BI118: 1844384 | BJ118: 0 | BL118: 0 | BM118: 0 | BN118: 0 | BP118: 1844384 | BQ118: 1844384 | BR118: 0 | BV118: 0 | BX118: 231106.33 | BY118: 231106.3292 | BZ118: 0 | CB118: 12034.25 | CC118: 12034.24841 | CD118: 0 | CF118: 1922693.44 | CH118: 1922693 | CI118: 0.04245831671 | CJ118: 1960471.47 | CL118: 1960471 | CM118: 0.01964849373
A119: 2689 | B119: The Craylands School | D119: The Craylands School | E119: 0 | F119: 1 | H119: 1375328.97 | I119: 1375328.971 | J119: -0.001237544697 | L119: 184169.68 | M119: 184169.679 | N119: 0.0009817719401 | P119: 9347.74 | Q119: 9347.742472 | R119: -0.002471549318 | T119: 145094.3 | U119: 145094.3 | V119: 3.866368206e-05 | X119: 0 | Y119: 0 | Z119: 0 | AB119: 125894.71 | AC119: 125894.7077 | AD119: 0.002290411983 | AF119: 0 | AG119: 0 | AH119: 0 | AJ119: 69361.79 | AK119: 69361.7946 | AL119: -0.004595013888 | AN119: 0 | AO119: 0 | AP119: 0 | AR119: 61952 | AS119: 61952 | AT119: 0 | AV119: 89570.7 | AW119: 89570.69769 | AX119: 0.002314221958 | AZ119: 0 | BA119: 0 | BB119: 0 | BD119: 0 | BE119: 0 | BF119: 0 | BH119: 2060719.89 | BI119: 2060719.893 | BJ119: -0.00267903856 | BL119: 0 | BM119: 0 | BN119: 0 | BP119: 2060719.89 | BQ119: 2060719.893 | BR119: -0.00267903856 | BV119: 0 | BX119: 310640.03 | BY119: 310640.0262 | BZ119: 0 | CB119: 12005.11 | CC119: 12005.10979 | CD119: 0 | CF119: 2166359.11 | CH119: 2166359 | CI119: 0.05126325887 | CJ119: 2206655.84 | CL119: 2206656 | CM119: 0.01860113119
A120: 2692 | B120: The Churchill School | D120: The Churchill School | E120: 0 | F120: 1 | H120: 1211758.29 | I120: 1211758.293 | J120: -0.002619487233 | L120: 141567.18 | M120: 141567.179 | N120: 0.000972976326 | P120: 7074.04 | Q120: 7074.041274 | R120: -0.001274245747 | T120: 77779.55 | U120: 77779.55178 | V120: -0.001784165463 | X120: 3922.3 | Y120: 3922.304692 | Z120: -0.004691572462 | AB120: 125894.71 | AC120: 125894.7077 | AD120: 0.002290411983 | AF120: 0 | AG120: 0 | AH120: 0 | AJ120: 0 | AK120: 0 | AL120: 0 | AN120: 0 | AO120: 0 | AP120: 0 | AR120: 12595 | AS120: 12595 | AT120: 0 | AV120: 0 | AW120: 0 | AX120: 0 | AZ120: 0 | BA120: 0 | BB120: 0 | BD120: 23395.92 | BE120: 23395.92289 | BF120: -0.002893917372 | BH120: 1603987 | BI120: 1603987 | BJ120: 0 | BL120: 7514.52 | BM120: 7514.518746 | BN120: 0.001254381361 | BP120: 1611501.52 | BQ120: 1611501.519 | BR120: 0.001254381146 | BV120: 0 | BX120: 222322.8 | BY120: 222322.7982 | BZ120: 0 | CB120: 10193.04 | CC120: 10193.04 | CD120: 0 | CF120: 1676078.8 | CH120: 1676079 | CI120: 0.04007273993 | CJ120: 1703202.42 | CL120: 1703202 | CM120: 0.01618278329
A121: 3010 | B121: St Pauls' Church of England Voluntary Controlled Primary School | D121: St Pauls' Church of England Voluntary Controlled Primary School | E121: 0 | F121: 1 | H121: 363861.31 | I121: 363861.3055 | J121: 0.004502688418 | L121: 25937.69 | M121: 25937.68991 | N121: 8.611283556e-05 | P121: 2645.96 | Q121: 2645.957027 | R121: 0.002972611887 | T121: 16151 | U121: 16150.99885 | V121: 0.001146610841 | X121: 0 | Y121: 0 | Z121: 0 | AB121: 125894.71 | AC121: 125894.7077 | AD121: 0.002290411983 | AF121: 0 | AG121: 0 | AH121: 0 | AJ121: 20150.3 | AK121: 20150.29784 | AL121: 0.002155641036 | AN121: 0 | AO121: 0 | AP121: 0 | AR121: 10729 | AS121: 10729 | AT121: 0 | AV121: 0 | AW121: 0 | AX121: 0 | AZ121: 0 | BA121: 0 | BB121: 0 | BD121: 0 | BE121: 0 | BF121: 0 | BH121: 565369.96 | BI121: 565369.9568 | BJ121: 0.003154076985 | BL121: 0 | BM121: 0 | BN121: 0 | BP121: 565369.96 | BQ121: 565369.9568 | BR121: 0.003154076985 | BV121: 0 | BX121: 47325.51 | BY121: 47325.51452 | BZ121: 0 | CB121: 3176.11 | CC121: 3176.109144 | CD121: 0 | CF121: 596286.56 | CH121: 596287 | CI121: 0.05468384512 | CJ121: 607997.71 | CL121: 607998 | CM121: 0.01964013745
A122: 3015 | B122: Fawkham Church of England Voluntary Controlled Primary School | D122: Fawkham Church of England Voluntary Controlled Primary School | E122: 0 | F122: 1 | H122: 347170.42 | I122: 347170.4199 | J122: 7.595960051e-05 | L122: 8133.97 | M122: 8133.966882 | N122: 0.003118474391 | P122: 0 | Q122: 0 | R122: 0 | T122: 28635.3 | U122: 28635.29817 | V122: 0.001833127924 | X122: 0 | Y122: 0 | Z122: 0 | AB122: 125894.71 | AC122: 125894.7077 | AD122: 0.002290411983 | AF122: 4825.08 | AG122: 4825.078692 | AH122: 0.001308381547 | AJ122: 19402.66 | AK122: 19402.66207 | AL122: -0.002070786395 | AN122: 0 | AO122: 0 | AP122: 0 | AR122: 21083 | AS122: 21083 | AT122: 0 | AV122: 0 | AW122: 0 | AX122: 0 | AZ122: 0 | BA122: 0 | BB122: 0 | BD122: 0 | BE122: 0 | BF122: 0 | BH122: 555145.13 | BI122: 555145.1334 | BJ122: -0.003444430884 | BL122: 0 | BM122: 0 | BN122: 0 | BP122: 555145.13 | BQ122: 555145.1334 | BR122: -0.003444430884 | BV122: 0 | BX122: 41999.26 | BY122: 41999.25513 | BZ122: 0 | CB122: 3030.42 | CC122: 3030.416064 | CD122: 0 | CF122: 584359.91 | CH122: 584360 | CI122: 0.05262547539 | CJ122: 595625.44 | CL122: 595625 | CM122: 0.01927841012
A123: 3022 | B123: Benenden Church of England Primary School | D123: Benenden Church of England Primary School | E123: 0 | F123: 1 | H123: 701017.19 | I123: 701017.1941 | J123: -0.004077389371 | L123: 35621.22 | M123: 35621.2243 | N123: -0.004299483888 | P123: 1996.61 | Q123: 1996.605188 | R123: 0.004811902085 | T123: 37585.47 | U123: 37585.46994 | V123: 6.018636486e-05 | X123: 0 | Y123: 0 | Z123: 0 | AB123: 125894.71 | AC123: 125894.7077 | AD123: 0.002290411983 | AF123: 0 | AG123: 0 | AH123: 0 | AJ123: 0 | AK123: 0 | AL123: 0 | AN123: 0 | AO123: 0 | AP123: 0 | AR123: 34431 | AS123: 34431 | AT123: 0 | AV123: 0 | AW123: 0 | AX123: 0 | AZ123: 0 | BA123: 0 | BB123: 0 | BD123: 18524.8 | BE123: 18524.79879 | BF123: 0.001214372762 | BH123: 955071 | BI123: 955071 | BJ123: 0 | BL123: 0 | BM123: 0 | BN123: 0 | BP123: 955071 | BQ123: 955071 | BR123: 0 | BV123: 0 | BX123: 88934.36 | BY123: 88934.36221 | BZ123: 0 | CB123: 5896.8 | CC123: 5896.8 | CD123: 0 | CF123: 991165.12 | CH123: 991165 | CI123: 0.03779208038 | CJ123: 1006280.29 | CL123: 1006280 | CM123: 0.01524990105
A124: 3023 | B124: Bidborough Church of England Voluntary Controlled Primary School | D124: Bidborough Church of England Voluntary Controlled Primary School | E124: 0 | F124: 1 | H124: 687664.49 | I124: 687664.4856 | J124: 0.004381227656 | L124: 20541.41 | M124: 20541.40512 | N124: 0.004878055435 | P124: 8680.05 | Q124: 8680.046581 | R124: 0.003419275636 | T124: 57534.72 | U124: 57534.72035 | V124: -0.0003549218745 | X124: 0 | Y124: 0 | Z124: 0 | AB124: 125894.71 | AC124: 125894.7077 | AD124: 0.002290411983 | AF124: 0 | AG124: 0 | AH124: 0 | AJ124: 0 | AK124: 0 | AL124: 0 | AN124: 0 | AO124: 0 | AP124: 0 | AR124: 14970 | AS124: 14970 | AT124: 0 | AV124: 0 | AW124: 0 | AX124: 0 | AZ124: 0 | BA124: 0 | BB124: 0 | BD124: 2788.63 | BE124: 2788.634614 | BF124: -0.004614048846 | BH124: 918074 | BI124: 918074 | BJ124: 0 | BL124: 0 | BM124: 0 | BN124: 0 | BP124: 918074 | BQ124: 918074 | BR124: 0 | BV124: 0 | BX124: 89944.22 | BY124: 89944.21871 | BZ124: 0 | CB124: 5784.48 | CC124: 5784.48 | CD124: 0 | CF124: 964275.19 | CH124: 964275 | CI124: 0.05032403706 | CJ124: 983261.3 | CL124: 983261 | CM124: 0.01968951415
A125: 3027 | B125: Cranbrook Church of England Primary School | D125: Cranbrook Church of England Primary School | E125: 0 | F125: 1 | H125: 677649.95 | I125: 677649.9543 | J125: -0.004274809733 | L125: 104005.36 | M125: 104005.3568 | N125: 0.003150846271 | P125: 4658.75 | Q125: 4658.745439 | R125: 0.004561104871 | T125: 51146.46 | U125: 51146.46111 | V125: -0.001106699383 | X125: 4479.98 | Y125: 4479.978344 | Z125: 0.001655597343 | AB125: 125894.71 | AC125: 125894.7077 | AD125: 0.002290411983 | AF125: 0 | AG125: 0 | AH125: 0 | AJ125: 0 | AK125: 0 | AL125: 0 | AN125: 0 | AO125: 0 | AP125: 0 | AR125: 26112 | AS125: 26112 | AT125: 0 | AV125: 0 | AW125: 0 | AX125: 0 | AZ125: 0 | BA125: 0 | BB125: 0 | BD125: 0 | BE125: 0 | BF125: 0 | BH125: 993947.2 | BI125: 993947.2037 | BJ125: -0.003723548609 | BL125: 0 | BM125: 0 | BN125: 0 | BP125: 993947.2 | BQ125: 993947.2037 | BR125: -0.003723548609 | BV125: 0 | BX125: 133772.13 | BY125: 133772.1308 | BZ125: 0 | CB125: 5700.24 | CC125: 5700.24 | CD125: 0 | CF125: 1050288.09 | CH125: 1050288 | CI125: 0.05668398288 | CJ125: 1070771.61 | CL125: 1070772 | CM125: 0.01950276328
A126: 3029 | B126: Goudhurst and Kilndown Church of England Primary School | D126: Goudhurst and Kilndown Church of England Primary School | E126: 0 | F126: 1 | H126: 707693.55 | I126: 707693.5483 | J126: 0.0016933023 | L126: 41515.68 | M126: 41515.67906 | N126: 0.0009432066508 | P126: 1993.47 | Q126: 1993.4708 | R126: -0.0008000475239 | T126: 33341.6 | U126: 33341.59622 | V126: 0.003783669425 | X126: 0 | Y126: 0 | Z126: 0 | AB126: 125894.71 | AC126: 125894.7077 | AD126: 0.002290411983 | AF126: 0 | AG126: 0 | AH126: 0 | AJ126: 0 | AK126: 0 | AL126: 0 | AN126: 0 | AO126: 0 | AP126: 0 | AR126: 27904 | AS126: 27904 | AT126: 0 | AV126: 0 | AW126: 0 | AX126: 0 | AZ126: 0 | BA126: 0 | BB126: 0 | BD126: 18969 | BE126: 18968.99791 | BF126: 0.002089457208 | BH126: 957312 | BI126: 957312 | BJ126: 0 | BL126: 419.67 | BM126: 419.6690099 | BN126: 0.0009900927125 | BP126: 957731.67 | BQ126: 957731.669 | BR126: 0.0009900928708 | BV126: 0 | BX126: 88140.95 | BY126: 88140.94641 | BZ126: 0 | CB126: 5952.96 | CC126: 5952.96 | CD126: 0 | CF126: 994947.07 | CH126: 994947 | CI126: 0.03885785778 | CJ126: 1009526.6 | CL126: 1009527 | CM126: 0.01465357348
A127: 3032 | B127: Hawkhurst Church of England Primary School | D127: Hawkhurst Church of England Primary School | E127: 0 | F127: 1 | H127: 607548.23 | I127: 607548.2349 | J127: -0.004867070704 | L127: 88544.17 | M127: 88544.16978 | N127: 0.0002198144211 | P127: 3165.35 | Q127: 3165.349688 | R127: 0.0003115520899 | T127: 40455.91 | U127: 40455.90603 | V127: 0.003965365759 | X127: 1003.81 | Y127: 1003.812575 | Z127: -0.002575094365 | AB127: 125894.71 | AC127: 125894.7077 | AD127: 0.002290411983 | AF127: 0 | AG127: 0 | AH127: 0 | AJ127: 0 | AK127: 0 | AL127: 0 | AN127: 0 | AO127: 0 | AP127: 0 | AR127: 34560 | AS127: 34560 | AT127: 0 | AV127: 0 | AW127: 0 | AX127: 0 | AZ127: 0 | BA127: 0 | BB127: 0 | BD127: 0 | BE127: 0 | BF127: 0 | BH127: 901172.18 | BI127: 901172.1807 | BJ127: -0.0006550207036 | BL127: 0 | BM127: 0 | BN127: 0 | BP127: 901172.18 | BQ127: 901172.1807 | BR127: -0.0006550207036 | BV127: 0 | BX127: 104238.58 | BY127: 104238.5755 | BZ127: 0 | CB127: 5110.56 | CC127: 5110.56 | CD127: 0 | CF127: 952939.62 | CH127: 952940 | CI127: 0.05744455994 | CJ127: 971307.22 | CL127: 971307 | CM127: 0.01927467346
A128: 3033 | B128: Hildenborough Church of England Primary School | D128: Hildenborough Church of England Primary School | E128: 0 | F128: 1 | H128: 627577.3 | I128: 627577.2976 | J128: 0.002445003949 | L128: 24785.41 | M128: 24785.4105 | N128: -0.0005006125029 | P128: 3289.76 | Q128: 3289.761397 | R128: -0.001396690689 | T128: 41318.42 | U128: 41318.41701 | V128: 0.002986074251 | X128: 0 | Y128: 0 | Z128: 0 | AB128: 125894.71 | AC128: 125894.7077 | AD128: 0.002290411983 | AF128: 0 | AG128: 0 | AH128: 0 | AJ128: 0 | AK128: 0 | AL128: 0 | AN128: 0 | AO128: 0 | AP128: 0 | AR128: 22580 | AS128: 22580 | AT128: 0 | AV128: 0 | AW128: 0 | AX128: 0 | AZ128: 0 | BA128: 0 | BB128: 0 | BD128: 1326.41 | BE128: 1326.405824 | BF128: 0.004175813065 | BH128: 846772 | BI128: 846772 | BJ128: 0 | BL128: 0 | BM128: 0 | BN128: 0 | BP128: 846772 | BQ128: 846772 | BR128: 0 | BV128: 0 | BX128: 71119.41 | BY128: 71119.40677 | BZ128: 0 | CB128: 5279.04 | CC128: 5279.04 | CD128: 0 | CF128: 890807.67 | CH128: 890808 | CI128: 0.05200416405 | CJ128: 908172.22 | CL128: 908172 | CM128: 0.01949304051
A129: 3034 | B129: Lamberhurst St Mary's CofE (Voluntary Controlled) Primary School | D129: Lamberhurst St Mary's CofE (Voluntary Controlled) Primary School | E129: 0 | F129: 1 | H129: 680988.13 | I129: 680988.1314 | J129: -0.001389463898 | L129: 19651.35 | M129: 19651.35167 | N129: -0.001673895411 | P129: 7399.47 | Q129: 7399.474884 | R129: -0.004883718761 | T129: 46917.62 | U129: 46917.6199 | V129: 9.674555622e-05 | X129: 10000.95 | Y129: 10000.94751 | Z129: 0.002492578236 | AB129: 125894.71 | AC129: 125894.7077 | AD129: 0.002290411983 | AF129: 0 | AG129: 0 | AH129: 0 | AJ129: 0 | AK129: 0 | AL129: 0 | AN129: 0 | AO129: 0 | AP129: 0 | AR129: 27904 | AS129: 27904 | AT129: 0 | AV129: 0 | AW129: 0 | AX129: 0 | AZ129: 0 | BA129: 0 | BB129: 0 | BD129: 3483.77 | BE129: 3483.766933 | BF129: 0.0030673423 | BH129: 922240 | BI129: 922240 | BJ129: 0 | BL129: 0 | BM129: 0 | BN129: 0 | BP129: 922240 | BQ129: 922240 | BR129: 0 | BV129: 0 | BX129: 76435.31 | BY129: 76435.31233 | BZ129: 0 | CB129: 5728.32 | CC129: 5728.32 | CD129: 0 | CF129: 967632.28 | CH129: 967632 | CI129: 0.04921959577 | CJ129: 986426.84 | CL129: 986427 | CM129: 0.01942324619
A130: 3035 | B130: Seal Church of England Voluntary Controlled Primary School | D130: Seal Church of England Voluntary Controlled Primary School | E130: 0 | F130: =IF(E130=D130,0,1) -> 1 | H130: 1175038.34 | I130: 1175038.344 | J130: =H130-I130 -> -0.004358290462 | L130: 95242.17 | M130: 95242.16647 | N130: =L130-M130 -> 0.003532715389 | P130: 4638.98 | Q130: 4638.977071 | R130: =P130-Q130 -> 0.002929303863 | T130: 82356.19 | U130: 82356.1942 | V130: =T130-U130 -> -0.004197340808 | X130: 5465.2 | Y130: 5465.201798 | Z130: =X130-Y130 -> -0.00179773604 | AB130: 125894.71 | AC130: 125894.7077 | AD130: =AB130-AC130 -> 0.002290411983 | AF130: 0 | AG130: 0 | AH130: =AF130-AG130 -> 0 | AJ130: 56121.56 | AK130: 56121.5618 | AL130: =AJ130-AK130 -> -0.001803355299 | AN130: 0 | AO130: 0 | AP130: =AN130-AO130 -> 0 | AR130: 17839 | AS130: 17839 | AT130: =AR130-AS130 -> 0 | AV130: 0 | AW130: 0 | AX130: =AV130-AW130 -> 0 | AZ130: 0 | BA130: 0 | BB130: =AZ130-BA130 -> 0 | BD130: 0 | BE130: 0 | BF130: =BD130-BE130 -> 0 | BH130: 1562596.15 | BI130: 1562596.153 | BJ130: =BH130-BI130 -> -0.003404291812 | BL130: 2943.31 | BM130: 2943.310384 | BN130: =BL130-BM130 -> -0.0003843398858 | BP130: 1565539.46 | BQ130: 1565539.464 | BR130: =BP130-BQ130 -> -0.003788631642 | BV130: =BT130-BU130 -> 0 | BX130: 161111.69 | BY130: 161111.6927 | BZ130: =ROUND(BX130-BY130,0) -> 0 | CB130: 10256.79 | CC130: 10256.79283 | CD130: 0 | CF130: 1651517.86 | CH130: =ROUND(CF130-CG130,0) -> 1651518 | CI130: 0.05491934135 | CJ130: 1684191.44 | CL130: =ROUND(CJ130-CK130,0) -> 1684191 | CM130: 0.01978397012
A131: 3037 | B131: St John's Church of England Primary School, Sevenoaks | D131: St John's Church of England Primary School, Sevenoaks | E131: 0 | F131: 1 | H131: 670973.6 | I131: 670973.6 | J131: -4.550116137e-05 | L131: 23310.17 | M131: 23310.16544 | N131: 0.004562720162 | P131: 7730.03 | Q131: 7730.034853 | R131: -0.004853438469 | T131: 33722.82 | U131: 33722.82116 | V131: -0.001160377185 | X131: 0 | Y131: 0 | Z131: 0 | AB131: 125894.71 | AC131: 125894.7077 | AD131: 0.002290411983 | AF131: 0 | AG131: 0 | AH131: 0 | AJ131: 32483.5 | AK131: 32483.50111 | AL131: -0.001111073161 | AN131: 0 | AO131: 0 | AP131: 0 | AR131: 22330 | AS131: 22330 | AT131: 0 | AV131: 0 | AW131: 0 | AX131: 0 | AZ131: 0 | BA131: 0 | BB131: 0 | BD131: 0 | BE131: 0 | BF131: 0 | BH131: 916444.83 | BI131: 916444.8303 | BJ131: -0.0003172579454 | BL131: 15269.76 | BM131: 15269.7628 | BN131: -0.002796935276 | BP131: 931714.59 | BQ131: 931714.5931 | BR131: -0.003114193212 | BV131: 0 | BX131: 79459.5 | BY131: 79459.50111 | BZ131: 0 | CB131: 5856.86 | CC131: 5856.861816 | CD131: =IF(E131="Recoupment Academy",0,ROUND(CB131-CC131,0)) -> 0 | CF131: 966619.5 | CH131: 966620 | CI131: 0.03746308917 | CJ131: 985505.29 | CL131: 985505 | CM131: 0.01953797746
A132: 3042 | B132: Speldhurst Church of England Voluntary Aided Primary School | D132: Speldhurst Church of England Voluntary Aided Primary School | E132: 0 | F132: 1 | H132: 701017.19 | I132: 701017.1941 | J132: -0.004077389371 | L132: 19326.77 | M132: 19326.77378 | N132: -0.00377831054 | P132: 5989.82 | Q132: 5989.815564 | R132: 0.004435706266 | T132: 29126.59 | U132: 29126.58797 | V132: 0.002031518685 | X132: 0 | Y132: 0 | Z132: 0 | AB132: 125894.71 | AC132: 125894.7077 | AD132: 0.002290411983 | AF132: 0 | AG132: 0 | AH132: 0 | AJ132: 0 | AK132: 0 | AL132: 0 | AN132: 0 | AO132: 0 | AP132: 0 | AR132: 3840 | AS132: 3840 | AT132: 0 | AV132: 0 | AW132: 0 | AX132: 0 | AZ132: 0 | BA132: 0 | BB132: 0 | BD132: 39284.92 | BE132: 39284.9209 | BF132: -0.0009019370627 | BH132: 924480 | BI132: =I132+M132+Q132+U132+Y132+AC132+AG132+AK132+AO132+AS132+AW132+BA132+BE132 -> 924480 | BJ132: 0 | BL132: 1241.11 | BM132: 1241.114478 | BN132: -0.00447839241 | BP132: 925721.11 | BQ132: 925721.1145 | BR132: -0.004478392424 | BV132: 0 | BX132: 93952.31 | BY132: 93952.31163 | BZ132: 0 | CB132: 5896.8 | CC132: 5896.8 | CD132: 0 | CF132: 960985.28 | CH132: 960985 | CI132: =(CF132-BQ132)/BQ132 -> 0.03809372496 | CJ132: 965092.64 | CL132: 965093 | CM132: =(CJ132-CF132)/CF132 -> 0.004274113335
A133: 3043 | B133: Sundridge and Brasted Church of England Voluntary Controlled Primary School | D133: Sundridge and Brasted Church of England Voluntary Controlled Primary School | E133: 0 | F133: 1 | H133: 193614.27 | I133: 193614.2726 | J133: -0.002649945614 | L133: 29162.26 | M133: 29162.2585 | N133: 0.001496060999 | P133: 661.73 | Q133: 661.7320052 | R133: -0.002005198165 | T133: 16929.6 | U133: 16929.59993 | V133: 7.208668831e-05 | X133: 0 | Y133: 0 | Z133: 0 | AB133: 125894.71 | AC133: 125894.7077 | AD133: 0.002290411983 | AF133: 55374 | AG133: 55373.9974 | AH133: 0.002604424626 | AJ133: 15895.7 | AK133: 15895.69862 | AL133: 0.001379155588 | AN133: 0 | AO133: 0 | AP133: 0 | AR133: 7485 | AS133: 7485 | AT133: 0 | AV133: 0 | AW133: 0 | AX133: 0 | AZ133: 0 | BA133: 0 | BB133: 0 | BD133: 0 | BE133: 0 | BF133: 0 | BH133: 445017.27 | BI133: 445017.2668 | BJ133: 0.003186996095 | BL133: 0 | BM133: 0 | BN133: 0 | BP133: 445017.27 | BQ133: 445017.2668 | BR133: 0.003186996095 | BV133: 0 | BX133: 45011.45 | BY133: 45011.44905 | BZ133: 0 | CB133: 1690.04 | CC133: 1690.039728 | CD133: 0 | CF133: 468268.73 | CH133: 468269 | CI133: 0.05224845174 | CJ133: 477484.41 | CL133: 477484 | CM133: 0.0196803233
A134: 3050 | B134: St John's Church of England Primary School | D134: St John's Church of England Primary School | E134: 0 | F134: 1 | H134: 2099713.41 | I134: 2099713.405 | J134: 0.004882486537 | L134: 111490.29 | M134: 111490.2859 | N134: 0.004117941309 | P134: 37418.69 | Q134: 37418.68643 | R134: 0.003569800188 | T134: 182698.13 | U134: 182698.1296 | V134: 0.0003558855678 | X134: 0 | Y134: 0 | Z134: 0 | AB134: 125894.71 | AC134: 125894.7077 | AD134: 0.002290411983 | AF134: 0 | AG134: 0 | AH134: 0 | AJ134: 0 | AK134: 0 | AL134: 0 | AN134: 0 | AO134: 0 | AP134: 0 | AR134: 73216 | AS134: 73216 | AT134: 0 | AV134: 0 | AW134: 0 | AX134: 0 | AZ134: 0 | BA134: 0 | BB134: 0 | BD134: 200320.79 | BE134: 200320.7852 | BF134: 0.004783474607 | BH134: 2830752 | BI134: 2830752 | BJ134: 0 | BL134: 0 | BM134: 0 | BN134: 0 | BP134: 2830752 | BQ134: 2830752 | BR134: 0 | BV134: 0 | BX134: 503528.93 | BY134: 503528.9328 | BZ134: 0 | CB134: 17662.32 | CC134: 17662.32 | CD134: 0 | CF134: 2932599.68 | CH134: 2932600 | CI134: 0.035979019 | CJ134: 2946896.6 | CL134: 2946897 | CM134: 0.004875169324
A135: 3052 | B135: St Mark's Church of England Primary School | D135: St Mark's Church of England Primary School | E135: 0 | F135: 1 | H135: 1165023.81 | I135: 1165023.813 | J135: -0.003014327725 | L135: 119476.61 | M135: 119476.6083 | N135: 0.001651007013 | P135: 34218.6 | Q135: 34218.60409 | R135: -0.004094231612 | T135: 94211.57 | U135: 94211.57338 | V135: -0.003383519841 | X135: 8420.87 | Y135: 8420.872158 | Z135: -0.002157736128 | AB135: 125894.71 | AC135: 125894.7077 | AD135: 0.002290411983 | AF135: 0 | AG135: 0 | AH135: 0 | AJ135: 0 | AK135: 0 | AL135: 0 | AN135: 0 | AO135: 0 | AP135: 0 | AR135: 45568 | AS135: 45568 | AT135: 0 | AV135: 0 | AW135: 0 | AX135: 0 | AZ135: 0 | BA135: 0 | BB135: 0 | BD135: 0 | BE135: 0 | BF135: 0 | BH135: 1592814.18 | BI135: 1592814.179 | BJ135: 0.001291603548 | BL135: 0 | BM135: 0 | BN135: 0 | BP135: 1592814.18 | BQ135: 1592814.179 | BR135: 0.001291603548 | BV135: 0 | BX135: 216675.21 | BY135: 216675.2052 | BZ135: 0 | CB135: 9799.92 | CC135: 9799.92 | CD135: 0 | CF135: 1679313.4 | CH135: 1679313 | CI135: 0.05430590865 | CJ135: 1711988.31 | CL135: 1711988 | CM135: 0.0194573032
A136: 3053 | B136: St Peter's Church of England Primary School | D136: St Peter's Church of England Primary School | E136: 0 | F136: 1 | H136: 707693.55 | I136: 707693.5483 | J136: 0.0016933023 | L136: 32127.69 | M136: 32127.68802 | N136: 0.001979821707 | P136: 24053.81 | Q136: 24053.81341 | R136: -0.003410518118 | T136: 42847.52 | U136: 42847.52335 | V136: -0.003345990546 | X136: 0 | Y136: 0 | Z136: 0 | AB136: 125894.71 | AC136: 125894.7077 | AD136: 0.002290411983 | AF136: 0 | AG136: 0 | AH136: 0 | AJ136: 0 | AK136: 0 | AL136: 0 | AN136: 0 | AO136: 0 | AP136: 0 | AR136: 36677 | AS136: 36677 | AT136: 0 | AV136: 0 | AW136: 0 | AX136: 0 | AZ136: 0 | BA136: 0 | BB136: 0 | BD136: 0 | BE136: 0 | BF136: 0 | BH136: 969294.28 | BI136: 969294.2808 | BJ136: -0.0007929727435 | BL136: 0 | BM136: 0 | BN136: 0 | BP136: 969294.28 | BQ136: 969294.2808 | BR136: -0.0007929727435 | BV136: 0 | BX136: 93291.08 | BY136: 93291.08004 | BZ136: 0 | CB136: 5952.96 | CC136: 5952.96 | CD136: 0 | CF136: 1021143.55 | CH136: 1021144 | CI136: 0.05349177255 | CJ136: 1040832.88 | CL136: 1040833 | CM136: 0.01928164752
A137: 3054 | B137: Crockham Hill Church of England Voluntary Controlled Primary School | D137: Crockham Hill Church of England Voluntary Controlled Primary School | E137: 0 | F137: 1 | H137: 460668.44 | I137: 460668.4418 | J137: -0.001822284365 | L137: 7991.6 | M137: 7991.597742 | N137: 0.002258411119 | P137: 1334.29 | Q137: 1334.293055 | R137: -0.00305548432 | T137: 28371.75 | U137: 28371.75303 | V137: -0.003032517579 | X137: 0 | Y137: 0 | Z137: 0 | AB137: 125894.71 | AC137: 125894.7077 | AD137: 0.002290411983 | AF137: 8723.81 | AG137: 8723.807333 | AH137: 0.002666651688 | AJ137: 23863.52 | AK137: 23863.51945 | AL137: 0.0005538056103 | AN137: 0 | AO137: 0 | AP137: 0 | AR137: 17964 | AS137: 17964 | AT137: 0 | AV137: 0 | AW137: 0 | AX137: 0 | AZ137: 15600 | BA137: 15600 | BB137: 0 | BD137: 0 | BE137: 0 | BF137: 0 | BH137: 690412.12 | BI137: 690412.1201 | BJ137: -0.0001410058467 | BL137: 0 | BM137: 0 | BN137: 0 | BP137: 690412.12 | BQ137: 690412.1201 | BR137: -0.0001410058467 | BV137: 0 | BX137: 45412.15 | BY137: 45412.1473 | BZ137: 0 | CB137: 4021.13 | CC137: 4021.129008 | CD137: 0 | CF137: 725814.72 | CH137: 725815 | CI137: 0.05127748895 | CJ137: 739659.74 | CL137: 739660 | CM137: 0.01907514358
A138: 3055 | B138: Churchill Church of England Voluntary Controlled Primary School | D138: Churchill Church of England Voluntary Controlled Primary School | E138: 0 | F138: 1 | H138: 684326.31 | I138: 684326.3085 | J138: 0.001495881937 | L138: 91573.24 | M138: 91573.23913 | N138: 0.0008696994191 | P138: 2004.75 | Q138: 2004.754597 | R138: -0.004597028918 | T138: 58897.13 | U138: 58897.13111 | V138: -0.001113136488 | X138: 3438.99 | Y138: 3438.987526 | Z138: 0.002474213718 | AB138: 125894.71 | AC138: 125894.7077 | AD138: 0.002290411983 | AF138: 0 | AG138: 0 | AH138: 0 | AJ138: 36423.29 | AK138: 36423.29435 | AL138: -0.004347464434 | AN138: 0 | AO138: 0 | AP138: 0 | AR138: 28928 | AS138: 28928 | AT138: 0 | AV138: 0 | AW138: 0 | AX138: 0 | AZ138: 0 | BA138: 0 | BB138: 0 | BD138: 0 | BE138: 0 | BF138: 0 | BH138: 1031486.42 | BI138: 1031486.423 | BJ138: -0.002927422873 | BL138: 0 | BM138: 0 | BN138: 0 | BP138: 1031486.42 | BQ138: 1031486.423 | BR138: -0.002927422873 | BV138: 0 | BX138: 137082.19 | BY138: 137082.188 | BZ138: 0 | CB138: 5973.42 | CC138: 5973.41628 | CD138: 0 | CF138: 1088406.72 | CH138: 1088407 | CI138: 0.05518278846 | CJ138: 1109596.29 | CL138: 1109596 | CM138: 0.01946842996
A139: 3057 | B139: St Peter's Church of England Primary School | D139: St Peter's Church of England Primary School | E139: 0 | F139: 1 | H139: 644268.18 | I139: 644268.1831 | J139: -0.003128267243 | L139: 60130.73 | M139: 60130.7276 | N139: 0.002399878598 | P139: 3377.26 | Q139: 3377.255051 | R139: 0.004949142005 | T139: 39083.44 | U139: 39083.44157 | V139: -0.001567849693 | X139: 0 | Y139: 0 | Z139: 0 | AB139: 125894.71 | AC139: 125894.7077 | AD139: 0.002290411983 | AF139: 0 | AG139: 0 | AH139: 0 | AJ139: 0 | AK139: 0 | AL139: 0 | AN139: 0 | AO139: 0 | AP139: 0 | AR139: 16342 | AS139: 16342 | AT139: 0 | AV139: 0 | AW139: 0 | AX139: 0 | AZ139: 8680 | BA139: 8680 | BB139: 0 | BD139: 0 | BE139: 0 | BF139: 0 | BH139: 897776.32 | BI139: 897776.3151 | BJ139: 0.004943315522 | BL139: 0 | BM139: 0 | BN139: 0 | BP139: 897776.32 | BQ139: 897776.3151 | BR139: 0.004943315522 | BV139: 0 | BX139: 95437.17 | BY139: 95437.16638 | BZ139: 0 | CB139: 5419.44 | CC139: 5419.44 | CD139: 0 | CF139: 946546.42 | CH139: 946546 | CI139: 0.0543232252 | CJ139: 964976.91 | CL139: 964977 | CM139: 0.01947130073
A140: 3061 | B140: Bredhurst Church of England Voluntary Controlled Primary School | D140: Bredhurst Church of England Voluntary Controlled Primary School | E140: 0 | F140: 1 | H140: 423948.49 | I140: 423948.4936 | J140: -0.003561087826 | L140: 9358.49 | M140: 9358.485742 | N140: 0.004257793425 | P140: 2733.9 | Q140: 2733.896053 | R140: 0.003947294503 | T140: 27547.15 | U140: 27547.15311 | V140: -0.003107035969 | X140: 0 | Y140: 0 | Z140: 0 | AB140: 125894.71 | AC140: 125894.7077 | AD140: 0.002290411983 | AF140: 0 | AG140: 0 | AH140: 0 | AJ140: 0 | AK140: 0 | AL140: 0 | AN140: 0 | AO140: 0 | AP140: 0 | AR140: 15220 | AS140: 15220 | AT140: 0 | AV140: 0 | AW140: 0 | AX140: 0 | AZ140: 0 | BA140: 0 | BB140: 0 | BD140: 0 | BE140: 0 | BF140: 0 | BH140: 604702.74 | BI140: 604702.7362 | BJ140: 0.003827376175 | BL140: 0 | BM140: 0 | BN140: 0 | BP140: 604702.74 | BQ140: 604702.7362 | BR140: 0.003827376175 | BV140: 0 | BX140: 42871.57 | BY140: 42871.57315 | BZ140: 0 | CB140: 3566.16 | CC140: 3566.16 | CD140: 0 | CF140: 637250.41 | CH140: 637250 | CI140: 0.05382425427 | CJ140: 649691.02 | CL140: 649691 | CM140: 0.01952232561
A141: 3062 | B141: Burham Church of England Primary School | D141: Burham Church of England Primary School | E141: 0 | F141: 1 | H141: 480697.5 | I141: 480697.5045 | J141: -0.004510209779 | L141: 18855.71 | M141: 18855.70931 | N141: 0.0006879353896 | P141: 2036.68 | Q141: 2036.678728 | R141: 0.001272117358 | T141: 30517.43 | U141: 30517.43125 | V141: -0.001246468604 | X141: 1264.06 | Y141: 1264.06028 | Z141: -0.0002797484628 | AB141: 125894.71 | AC141: 125894.7077 | AD141: 0.002290411983 | AF141: 0 | AG141: 0 | AH141: 0 | AJ141: 0 | AK141: 0 | AL141: 0 | AN141: 0 | AO141: 0 | AP141: 0 | AR141: 22081 | AS141: 22081 | AT141: 0 | AV141: 0 | AW141: 0 | AX141: 0 | AZ141: 0 | BA141: 0 | BB141: 0 | BD141: 0 | BE141: 0 | BF141: 0 | BH141: 681347.09 | BI141: 681347.0918 | BJ141: -0.001785962144 | BL141: 0 | BM141: 0 | BN141: 0 | BP141: 681347.09 | BQ141: 681347.0918 | BR141: -0.001785962144 | BV141: 0 | BX141: 53225.54 | BY141: 53225.54443 | BZ141: 0 | CB141: 4043.52 | CC141: 4043.52 | CD141: 0 | CF141: 717884.29 | CH141: 717884 | CI141: 0.0536249419 | CJ141: 731800.36 | CL141: 731800 | CM141: 0.01938483707
A142: 3067 | B142: Harrietsham Church of England Primary School | D142: Harrietsham Church of England Primary School | E142: 0 | F142: 1 | H142: 1011467.67 | I142: 1011467.666 | J142: 0.004259766894 | L142: 63252.18 | M142: 63252.17637 | N142: 0.003626623336 | P142: 7485.59 | Q142: 7485.58503 | R142: 0.004969707162 | T142: 84562.14 | U142: 84562.14371 | V142: -0.00371468316 | X142: 8197.8 | Y142: 8197.802697 | Z142: -0.002696604039 | AB142: 125894.71 | AC142: 125894.7077 | AD142: 0.002290411983 | AF142: 0 | AG142: 0 | AH142: 0 | AJ142: 0 | AK142: 0 | AL142: 0 | AN142: 0 | AO142: 0 | AP142: 0 | AR142: 31232 | AS142: 31232 | AT142: 0 | AV142: 0 | AW142: 0 | AX142: 0 | AZ142: 0 | BA142: 0 | BB142: 0 | BD142: 27491.92 | BE142: 27491.91874 | BF142: 0.001264777853 | BH142: 1359584 | BI142: 1359584 | BJ142: 0 | BL142: 0 | BM142: 0 | BN142: 0 | BP142: 1359584 | BQ142: 1359584 | BR142: 0 | BV142: 0 | BX142: 164779.17 | BY142: 164779.1656 | BZ142: 0 | CB142: 8508.24 | CC142: 8508.24 | CD142: 0 | CF142: 1411765.57 | CH142: 1411766 | CI142: 0.0383805414 | CJ142: 1432479.22 | CL142: 1432479 | CM142: 0.01467215977
A143: 3069 | B143: Leeds and Broomfield Church of England Primary School | D143: Leeds and Broomfield Church of England Primary School | E143: 0 | F143: 1 | H143: 273730.52 | I143: 273730.5234 | J143: -0.003401647205 | L143: 30063.35 | M143: 30063.35042 | N143: -0.0004169464155 | P143: 3598.28 | Q143: 3598.277482 | R143: 0.002518153216 | T143: 28980.7 | U143: 28980.69818 | V143: 0.001819579513 | X143: 13086.74 | Y143: 13086.74172 | Z143: -0.001719748869 | AB143: 125894.71 | AC143: 125894.7077 | AD143: 0.002290411983 | AF143: 27318.09 | AG143: 27318.08515 | AH143: 0.004849614077 | AJ143: 0 | AK143: 0 | AL143: 0 | AN143: 0 | AO143: 0 | AP143: 0 | AR143: 5489 | AS143: 5489 | AT143: 0 | AV143: 0 | AW143: 0 | AX143: 0 | AZ143: 0 | BA143: 0 | BB143: 0 | BD143: 0 | BE143: 0 | BF143: 0 | BH143: 508161.38 | BI143: 508161.3841 | BJ143: -0.004060583713 | BL143: 0 | BM143: 0 | BN143: 0 | BP143: 508161.38 | BQ143: 508161.3841 | BR143: -0.004060583771 | BV143: 0 | BX143: 59737.01 | BY143: 59737.00754 | BZ143: 0 | CB143: 2302.56 | CC143: 2302.56 | CD143: 0 | CF143: 535101.95 | CH143: 535102 | CI143: 0.05301576779 | CJ143: 545694.21 | CL143: 545694 | CM143: 0.0197948447
A144: 3072 | B144: Maidstone, St Michael's Church of England Junior School | D144: Maidstone, St Michael's Church of England Junior School | E144: 0 | F144: 1 | H144: 590857.35 | I144: 590857.3493 | J144: 0.0007062004879 | L144: 44309.22 | M144: 44309.21948 | N144: 0.0005185310729 | P144: 14261.47 | Q144: 14261.46563 | R144: 0.004370729243 | T144: 49580.45 | U144: 49580.44627 | V144: 0.003733696161 | X144: 353.19 | Y144: 353.1933135 | Z144: -0.003313459127 | AB144: 125894.71 | AC144: 125894.7077 | AD144: 0.002290411983 | AF144: 0 | AG144: 0 | AH144: 0 | AJ144: 0 | AK144: 0 | AL144: 0 | AN144: 0 | AO144: 0 | AP144: 0 | AR144: 10230 | AS144: 10230 | AT144: 0 | AV144: 0 | AW144: 0 | AX144: 0 | AZ144: 0 | BA144: 0 | BB144: 0 | BD144: 0 | BE144: 0 | BF144: 0 | BH144: 835486.38 | BI144: 835486.3817 | BJ144: -0.001693890197 | BL144: 0 | BM144: 0 | BN144: 0 | BP144: 835486.38 | BQ144: 835486.3817 | BR144: -0.001693890197 | BV144: 0 | BX144: 99580.56 | BY144: 99580.56043 | BZ144: 0 | CB144: 4970.16 | CC144: 4970.16 | CD144: 0 | CF144: 881470.53 | CH144: 881471 | CI144: 0.05503877659 | CJ144: 898895.34 | CL144: 898895 | CM144: 0.01976788719
A145: 3073 | B145: St Michael's Church of England Infant School Maidstone | D145: St Michael's Church of England Infant School Maidstone | E145: 0 | F145: 1 | H145: 400581.25 | I145: 400581.2538 | J145: -0.00375850813 | L145: 22356.11 | M145: 22356.1085 | N145: 0.001500838625 | P145: 23959.26 | Q145: 23959.26226 | R145: -0.002257174936 | T145: 37056.05 | U145: 37056.05246 | V145: -0.00246209366 | X145: 0 | Y145: 0 | Z145: 0 | AB145: 125894.71 | AC145: 125894.7077 | AD145: 0.002290411983 | AF145: 0 | AG145: 0 | AH145: 0 | AJ145: 0 | AK145: 0 | AL145: 0 | AN145: 0 | AO145: 0 | AP145: 0 | AR145: 10105 | AS145: 10105 | AT145: 0 | AV145: 0 | AW145: 0 | AX145: 0 | AZ145: 0 | BA145: 0 | BB145: 0 | BD145: 0 | BE145: 0 | BF145: 0 | BH145: 619952.38 | BI145: 619952.3847 | BJ145: -0.004686526139 | BL145: 0 | BM145: 0 | BN145: 0 | BP145: 619952.38 | BQ145: 619952.3847 | BR145: -0.004686526139 | BV145: 0 | BX145: 81410.31 | BY145: 81410.31342 | BZ145: 0 | CB145: 3369.6 | CC145: 3369.6 | CD145: 0 | CF145: 653224.57 | CH145: 653225 | CI145: 0.05366893674 | CJ145: 666086.96 | CL145: 666087 | CM145: 0.01969060962
A146: 3081 | B146: Thurnham Church of England Infant School | D146: Thurnham Church of England Infant School | E146: 0 | F146: 1 | H146: 901307.82 | I146: 901307.821 | J146: -0.0009566433728 | L146: 9149.27 | M146: 9149.26684 | N146: 0.003159766911 | P146: 12907.02 | Q146: 12907.02476 | R146: -0.004759451773 | T146: 81672.11 | U146: 81672.11357 | V146: -0.003573527501 | X146: 0 | Y146: 0 | Z146: 0 | AB146: 125894.71 | AC146: 125894.7077 | AD146: 0.002290411983 | AF146: 0 | AG146: 0 | AH146: 0 | AJ146: 0 | AK146: 0 | AL146: 0 | AN146: 0 | AO146: 0 | AP146: 0 | AR146: 26368 | AS146: 26368 | AT146: 0 | AV146: 0 | AW146: 0 | AX146: 0 | AZ146: 0 | BA146: 0 | BB146: 0 | BD146: 52749.07 | BE146: 52749.06616 | BF146: 0.003839443751 | BH146: 1210048 | BI146: 1210048 | BJ146: 0 | BL146: 0 | BM146: 0 | BN146: 0 | BP146: 1210048 | BQ146: 1210048 | BR146: 0 | BV146: 0 | BX146: 160653.72 | BY146: 160653.7183 | BZ146: 0 | CB146: 7581.6 | CC146: 7581.6 | CD146: 0 | CF146: 1253766.4 | CH146: 1253766 | CI146: 0.03612947586 | CJ146: 1259903.39 | CL146: 1259903 | CM146: 0.00489484325
A147: 3082 | B147: Trottiscliffe Church of England Primary School | D147: Trottiscliffe Church of England Primary School | E147: 0 | F147: 1 | H147: 280406.88 | I147: 280406.8776 | J147: 0.00236904429 | L147: 5807.86 | M147: 5807.864611 | N147: -0.004610683783 | P147: 2662.14 | Q147: 2662.140251 | R147: -0.0002507972172 | T147: 20874.05 | U147: 20874.05471 | V147: -0.00471074495 | X147: 0 | Y147: 0 | Z147: 0 | AB147: 125894.71 | AC147: 125894.7077 | AD147: 0.002290411983 | AF147: 48646.32 | AG147: 48646.31547 | AH147: 0.004530989863 | AJ147: 0 | AK147: 0 | AL147: 0 | AN147: 0 | AO147: 0 | AP147: 0 | AR147: 6362 | AS147: 6362 | AT147: 0 | AV147: 0 | AW147: 0 | AX147: 0 | AZ147: 0 | BA147: 0 | BB147: 0 | BD147: 0 | BE147: 0 | BF147: 0 | BH147: 490653.96 | BI147: 490653.9604 | BJ147: -0.0003817797988 | BL147: 0 | BM147: 0 | BN147: 0 | BP147: 490653.96 | BQ147: 490653.9604 | BR147: -0.0003817797988 | BV147: 0 | BX147: 33992.41 | BY147: 33992.41092 | BZ147: 0 | CB147: 2358.72 | CC147: 2358.72 | CD147: 0 | CF147: 515666.32 | CH147: 515666 | CI147: 0.05097759651 | CJ147: 525852.41 | CL147: 525852 | CM147: 0.01975325827
A148: 3083 | B148: Ulcombe Church of England Primary School | D148: Ulcombe Church of England Primary School | E148: 0 | F148: 1 | H148: 233672.4 | I148: 233672.398 | J148: 0.001974203566 | L148: 49590.63 | M148: 49590.62552 | N148: 0.004479043819 | P148: 0 | Q148: 0 | R148: 0 | T148: 33525.53 | U148: 33525.53166 | V148: -0.001657155874 | X148: 6621.01 | Y148: 6621.00778 | Z148: 0.002219829603 | AB148: 125894.71 | AC148: 125894.7077 | AD148: 0.002290411983 | AF148: 55374 | AG148: 55373.9974 | AH148: 0.002604424626 | AJ148: 0 | AK148: 0 | AL148: 0 | AN148: 0 | AO148: 0 | AP148: 0 | AR148: 7236 | AS148: 7236 | AT148: 0 | AV148: 0 | AW148: 0 | AX148: 0 | AZ148: 0 | BA148: 0 | BB148: 0 | BD148: 0 | BE148: 0 | BF148: 0 | BH148: 511914.27 | BI148: 511914.2681 | BJ148: 0.001910757623 | BL148: 0 | BM148: 0 | BN148: 0 | BP148: 511914.27 | BQ148: 511914.2681 | BR148: 0.001910757623 | BV148: 0 | BX148: 72657.17 | BY148: 72657.16876 | BZ148: 0 | CB148: 1965.6 | CC148: 1965.6 | CD148: 0 | CF148: 538923.51 | CH148: 538924 | CI148: 0.05276126022 | CJ148: 549557.26 | CL148: 549557 | CM148: 0.0197314643
A149: 3084 | B149: Wateringbury Church of England Primary School | D149: Wateringbury Church of England Primary School | E149: 0 | F149: 1 | H149: 577504.64 | I149: 577504.6408 | J149: -0.0008351826109 | L149: 40972.22 | M149: 40972.21956 | N149: 0.0004381872131 | P149: 3267.86 | Q149: 3267.859012 | R149: 0.0009882598006 | T149: 41338.76 | U149: 41338.75662 | V149: 0.003375558728 | X149: 2435.18 | Y149: 2435.174951 | Z149: 0.005049308103 | AB149: 125894.71 | AC149: 125894.7077 | AD149: 0.002290411983 | AF149: 0 | AG149: 0 | AH149: 0 | AJ149: 0 | AK149: 0 | AL149: 0 | AN149: 0 | AO149: 0 | AP149: 0 | AR149: 4890 | AS149: 4890 | AT149: 0 | AV149: 0 | AW149: 0 | AX149: 0 | AZ149: 0 | BA149: 0 | BB149: 0 | BD149: 0 | BE149: 0 | BF149: 0 | BH149: 796303.36 | BI149: 796303.3587 | BJ149: 0.001306543243 | BL149: 0 | BM149: 0 | BN149: 0 | BP149: 796303.36 | BQ149: 796303.3587 | BR149: 0.001306543243 | BV149: 0 | BX149: 77952.47 | BY149: 77952.47299 | BZ149: 0 | CB149: 4857.84 | CC149: 4857.84 | CD149: 0 | CF149: 841019.05 | CH149: 841019 | CI149: 0.05615409105 | CJ149: 857741.63 | CL149: 857742 | CM149: 0.01988371131
A150: 3088 | B150: Wouldham, All Saints Church of England Voluntary Controlled Primary School | D150: Wouldham, All Saints Church of England Voluntary Controlled Primary School | E150: 0 | F150: 1 | H150: 1345285.38 | I150: 1345285.377 | J150: 0.00279434328 | L150: 97623.21 | M150: 97623.2095 | N150: 0.0004978271754 | P150: 7204.68 | Q150: 7204.681155 | R150: -0.00115493531 | T150: 146250.36 | U150: 146250.3598 | V150: 0.0002082870051 | X150: 0 | Y150: 0 | Z150: 0 | AB150: 125894.71 | AC150: 125894.7077 | AD150: 0.002290411983 | AF150: 0 | AG150: 0 | AH150: 0 | AJ150: 0 | AK150: 0 | AL150: 0 | AN150: 0 | AO150: 0 | AP150: 0 | AR150: 70656 | AS150: 70656 | AT150: 0 | AV150: 0 | AW150: 0 | AX150: 0 | AZ150: 0 | BA150: 0 | BB150: 0 | BD150: 44493.66 | BE150: 44493.66464 | BF150: -0.004635934223 | BH150: 1837408 | BI150: 1837408 | BJ150: 0 | BL150: 5810.72 | BM150: 5810.718836 | BN150: 0.001164072687 | BP150: 1843218.72 | BQ150: 1843218.719 | BR150: 0.001164072426 | BV150: 0 | BX150: 283369.98 | BY150: 283369.9756 | BZ150: 0 | CB150: 11316.24 | CC150: 11316.24 | CD150: 0 | CF150: 1910626.04 | CH150: 1910626 | CI150: 0.03657044087 | CJ150: 1923788.74 | CL150: 1923789 | CM150: 0.006889207895
A151: 3089 | B151: St George's Church of England Voluntary Controlled Primary School | D151: St George's Church of England Voluntary Controlled Primary School | E151: 0 | F151: 1 | H151: 670973.6 | I151: 670973.6 | J151: -4.550116137e-05 | L151: 46890.77 | M151: 46890.77314 | N151: -0.003140030676 | P151: 670.54 | Q151: 670.5390857 | R151: 0.0009142728818 | T151: 63128.35 | U151: 63128.35369 | V151: -0.003694248087 | X151: 0 | Y151: 0 | Z151: 0 | AB151: 125894.71 | AC151: 125894.7077 | AD151: 0.002290411983 | AF151: 0 | AG151: 0 | AH151: 0 | AJ151: 0 | AK151: 0 | AL151: 0 | AN151: 0 | AO151: 0 | AP151: 0 | AR151: 18214 | AS151: 18214 | AT151: 0 | AV151: 0 | AW151: 0 | AX151: 0 | AZ151: 0 | BA151: 0 | BB151: 0 | BD151: 0 | BE151: 0 | BF151: 0 | BH151: 925771.97 | BI151: 925771.9737 | BJ151: -0.003675095038 | BL151: 0 | BM151: 0 | BN151: 0 | BP151: 925771.97 | BQ151: 925771.9737 | BR151: -0.003675095038 | BV151: 0 | BX151: 99758.57 | BY151: 99758.57314 | BZ151: 0 | CB151: 5644.08 | CC151: 5644.08 | CD151: 0 | CF151: 976845.67 | CH151: 976846 | CI151: =(CF151-BQ151)/BQ151 -> 0.05516876485 | CJ151: 996018.31 | CL151: 996018 | CM151: 0.01962709217
A152: 3090 | B152: St Margaret's, Collier Street Church of England Voluntary Controlled School | D152: St Margaret's, Collier Street Church of England Voluntary Controlled School | E152: 0 | F152: 1 | H152: 410595.79 | I152: 410595.7851 | J152: 0.004897529143 | L152: 9978.14 | M152: 9978.136239 | N152: 0.003761032176 | P152: 2673.01 | Q152: 2673.006129 | R152: 0.003870628103 | T152: 46967.52 | U152: 46967.51806 | V152: 0.001940494971 | X152: 0 | Y152: 0 | Z152: 0 | AB152: 125894.71 | AC152: 125894.7077 | AD152: 0.002290411983 | AF152: 19813.39 | AG152: 19813.39293 | AH152: -0.002926587702 | AJ152: 0 | AK152: 0 | AL152: 0 | AN152: 0 | AO152: 0 | AP152: 0 | AR152: 13972 | AS152: 13972 | AT152: 0 | AV152: 0 | AW152: 0 | AX152: 0 | AZ152: 0 | BA152: 0 | BB152: 0 | BD152: 0 | BE152: 0 | BF152: 0 | BH152: 629894.55 | BI152: 629894.5462 | BJ152: 0.003833508701 | BL152: 0 | BM152: 0 | BN152: 0 | BP152: 629894.55 | BQ152: 629894.5462 | BR152: 0.003833508701 | BV152: 0 | BX152: 63794.91 | BY152: 63794.90741 | BZ152: 0 | CB152: 3453.84 | CC152: 3453.84 | CD152: 0 | CF152: 662273.34 | CH152: 662273 | CI152: 0.05140351513 | CJ152: 675239.36 | CL152: 675239 | CM152: 0.01957804915
A153: 3091 | B153: Laddingford St Mary's Church of England Voluntary Controlled Primary School | D153: Laddingford St Mary's Church of England Voluntary Controlled Primary School | E153: 0 | F153: 1 | H153: 277068.7 | I153: 277068.7005 | J153: -0.0005163014866 | L153: 25655.92 | M153: 25655.9248 | N153: -0.00479966628 | P153: 2785.18 | Q153: 2785.180346 | R153: -0.0003464222959 | T153: 33777.99 | U153: 33777.98743 | V153: 0.002567042735 | X153: 1877.5 | Y153: 1877.501298 | Z153: -0.001297861699 | AB153: 125894.71 | AC153: 125894.7077 | AD153: 0.002290411983 | AF153: 25063.2 | AG153: 25063.20275 | AH153: -0.002746427228 | AJ153: 0 | AK153: 0 | AL153: 0 | AN153: 0 | AO153: 0 | AP153: 0 | AR153: 5240 | AS153: 5240 | AT153: 0 | AV153: 0 | AW153: 0 | AX153: 0 | AZ153: 8673 | BA153: 8673 | BB153: 0 | BD153: 0 | BE153: 0 | BF153: 0 | BH153: 506036.2 | BI153: 506036.2048 | BJ153: -0.004849224235 | BL153: 0 | BM153: 0 | BN153: 0 | BP153: 506036.2 | BQ153: 506036.2048 | BR153: -0.004849224235 | BV153: 0 | BX153: 59313.77 | BY153: 59313.77404 | BZ153: 0 | CB153: 2330.64 | CC153: 2330.64 | CD153: 0 | CF153: 532781.09 | CH153: 532781 | CI153: 0.05285172265 | CJ153: 543158.45 | CL153: 543158 | CM153: 0.01947771833
A154: 3092 | B154: Yalding, St Peter and St Paul Church of England Voluntary Controlled Primary School | D154: Yalding, St Peter and St Paul Church of England Voluntary Controlled Primary School | E154: 0 | F154: 1 | H154: 574166.46 | I154: 574166.4637 | J154: -0.003720528446 | L154: 23374.07 | M154: 23374.07064 | N154: -0.000641891409 | P154: 2002.43 | Q154: 2002.426194 | R154: 0.003805522797 | T154: 47851.23 | U154: 47851.22746 | V154: 0.002541466041 | X154: 0 | Y154: 0 | Z154: 0 | AB154: 125894.71 | AC154: 125894.7077 | AD154: 0.002290411983 | AF154: 0 | AG154: 0 | AH154: 0 | AJ154: 0 | AK154: 0 | AL154: 0 | AN154: 0 | AO154: 0 | AP154: 0 | AR154: 14222 | AS154: 14222 | AT154: 0 | AV154: 0 | AW154: 0 | AX154: 0 | AZ154: 0 | BA154: 0 | BB154: 0 | BD154: 0 | BE154: 0 | BF154: 0 | BH154: 787510.9 | BI154: 787510.8957 | BJ154: 0.00427498098 | BL154: 0 | BM154: 0 | BN154: 0 | BP154: 787510.9 | BQ154: 787510.8957 | BR154: 0.00427498098 | BV154: 0 | BX154: 71738.72 | BY154: 71738.71886 | BZ154: 0 | CB154: 4829.76 | CC154: 4829.76 | CD154: 0 | CF154: 830257.59 | CH154: 830258 | CI154: 0.05428076552 | CJ154: 846578.31 | CL154: 846578 | CM154: 0.0196574174
A155: 3108 | B155: Ospringe Church of England Primary School | D155: Ospringe Church of England Primary School | E155: 0 | F155: 1 | H155: 701017.19 | I155: 701017.1941 | J155: -0.004077389371 | L155: 126779.53 | M155: 126779.5324 | N155: -0.002371286289 | P155: 4607.55 | Q155: 4607.550434 | R155: -0.0004340721071 | T155: 60409.55 | U155: 60409.5466 | V155: 0.003402350456 | X155: 2230.69 | Y155: 2230.694611 | Z155: -0.00461132082 | AB155: 125894.71 | AC155: 125894.7077 | AD155: 0.002290411983 | AF155: 0 | AG155: 0 | AH155: 0 | AJ155: 0 | AK155: 0 | AL155: 0 | AN155: 0 | AO155: 0 | AP155: 0 | AR155: 23079 | AS155: 23079 | AT155: 0 | AV155: 0 | AW155: 0 | AX155: 0 | AZ155: 0 | BA155: 0 | BB155: 0 | BD155: 0 | BE155: 0 | BF155: 0 | BH155: 1044018.23 | BI155: 1044018.226 | BJ155: 0.004198693787 | BL155: 0 | BM155: 0 | BN155: 0 | BP155: 1044018.23 | BQ155: 1044018.226 | BR155: 0.004198693787 | BV155: 0 | BX155: 167646.61 | BY155: 167646.6143 | BZ155: 0 | CB155: 5896.8 | CC155: 5896.8 | CD155: 0 | CF155: 1101528.29 | CH155: 1101528 | CI155: 0.05508530673 | CJ155: 1123097.28 | CL155: 1123097 | CM155: 0.01958096782
A156: 3109 | B156: Hernhill Church of England Primary School | D156: Hernhill Church of England Primary School | E156: 0 | F156: 1 | H156: 701017.19 | I156: 701017.1941 | J156: -0.004077389371 | L156: 41166.51 | M156: 41166.51014 | N156: -0.0001396862208 | P156: 1996.61 | Q156: 1996.605188 | R156: 0.004811902085 | T156: 69642.5 | U156: 69642.50228 | V156: -0.002281706111 | X156: 0 | Y156: 0 | Z156: 0 | AB156: 125894.71 | AC156: 125894.7077 | AD156: 0.002290411983 | AF156: 0 | AG156: 0 | AH156: 0 | AJ156: 0 | AK156: 0 | AL156: 0 | AN156: 0 | AO156: 0 | AP156: 0 | AR156: 31744 | AS156: 31744 | AT156: 0 | AV156: 0 | AW156: 0 | AX156: 0 | AZ156: 0 | BA156: 0 | BB156: 0 | BD156: 0 | BE156: 0 | BF156: 0 | BH156: 971461.52 | BI156: 971461.5194 | BJ156: 0.000603532535 | BL156: 0 | BM156: 0 | BN156: 0 | BP156: 971461.52 | BQ156: 971461.5194 | BR156: 0.000603532535 | BV156: 0 | BX156: 108956.09 | BY156: 108956.0903 | BZ156: 0 | CB156: 5896.8 | CC156: 5896.8 | CD156: 0 | CF156: 1022785.71 | CH156: 1022786 | CI156: 0.05283193372 | CJ156: 1042606.54 | CL156: 1042607 | CM156: 0.01937925981
A157: 3111 | B157: Newington Church of England Primary School | D157: Newington Church of England Primary School | E157: 0 | F157: 1 | H157: 684326.31 | I157: 684326.3085 | J157: 0.001495881937 | L157: 134223.15 | M157: 134223.1497 | N157: 0.000334467768 | P157: 0 | Q157: 0 | R157: 0 | T157: 62246.94 | U157: 62246.94011 | V157: -0.0001071170409 | X157: 17380.83 | Y157: 17380.82885 | Z157: 0.001153458554 | AB157: 125894.71 | AC157: 125894.7077 | AD157: 0.002290411983 | AF157: 0 | AG157: 0 | AH157: 0 | AJ157: 0 | AK157: 0 | AL157: 0 | AN157: 0 | AO157: 0 | AP157: 0 | AR157: 34048 | AS157: 34048 | AT157: 0 | AV157: 0 | AW157: 0 | AX157: 0 | AZ157: 0 | BA157: 0 | BB157: 0 | BD157: 0 | BE157: 0 | BF157: 0 | BH157: 1058119.93 | BI157: 1058119.935 | BJ157: -0.00483289687 | BL157: 0 | BM157: 0 | BN157: 0 | BP157: 1058119.93 | BQ157: 1058119.935 | BR157: -0.00483289687 | BV157: 0 | BX157: 165238.51 | BY157: 165238.5092 | BZ157: 0 | CB157: 5756.4 | CC157: 5756.4 | CD157: 0 | CF157: 1116889.11 | CH157: 1116889 | CI157: 0.0555411284 | CJ157: 1138545.94 | CL157: 1138546 | CM157: 0.01939031351
A158: 3117 | B158: Teynham Parochial Church of England Primary School | D158: Teynham Parochial Church of England Primary School | E158: 0 | F158: 1 | H158: 667635.42 | I158: 667635.4229 | J158: -0.00293084688 | L158: 112296.56 | M158: 112296.5608 | N158: -0.0008059448592 | P158: 3934.2 | Q158: 3934.197415 | R158: 0.002585028741 | T158: 68545.26 | U158: 68545.2644 | V158: -0.004402400067 | X158: 0 | Y158: 0 | Z158: 0 | AB158: 125894.71 | AC158: 125894.7077 | AD158: 0.002290411983 | AF158: 0 | AG158: 0 | AH158: 0 | AJ158: 0 | AK158: 0 | AL158: 0 | AN158: 0 | AO158: 0 | AP158: 0 | AR158: 23827 | AS158: 23827 | AT158: 0 | AV158: 0 | AW158: 0 | AX158: 0 | AZ158: 0 | BA158: 0 | BB158: 0 | BD158: 0 | BE158: 0 | BF158: 0 | BH158: 1002133.15 | BI158: 1002133.153 | BJ158: -0.003263751045 | BL158: 0 | BM158: 0 | BN158: 0 | BP158: 1002133.15 | BQ158: 1002133.153 | BR158: -0.003263751045 | BV158: 0 | BX158: 162514.43 | BY158: 162514.425 | BZ158: 0 | CB158: 5616 | CC158: 5616 | CD158: 0 | CF158: 1057470.68 | CH158: 1057471 | CI158: 0.05521973458 | CJ158: 1078143.55 | CL158: 1078144 | CM158: 0.01954935526
A159: 3120 | B159: Barham Church of England Primary School | D159: Barham Church of England Primary School | E159: 0 | F159: 1 | H159: 701017.19 | I159: 701017.1941 | J159: -0.004077389371 | L159: 46782.5 | M159: 46782.50188 | N159: -0.001879802789 | P159: 5989.82 | Q159: 5989.815564 | R159: 0.004435706266 | T159: 49811.82 | U159: 49811.81595 | V159: 0.004050335738 | X159: 0 | Y159: 0 | Z159: 0 | AB159: 125894.71 | AC159: 125894.7077 | AD159: 0.002290411983 | AF159: 0 | AG159: 0 | AH159: 0 | AJ159: 0 | AK159: 0 | AL159: 0 | AN159: 0 | AO159: 0 | AP159: 0 | AR159: 28672 | AS159: 28672 | AT159: 0 | AV159: 0 | AW159: 0 | AX159: 0 | AZ159: 0 | BA159: 0 | BB159: 0 | BD159: 0 | BE159: 0 | BF159: 0 | BH159: 958168.04 | BI159: 958168.0352 | BJ159: 0.004819261958 | BL159: 0 | BM159: 0 | BN159: 0 | BP159: 958168.04 | BQ159: 958168.0352 | BR159: 0.004819261958 | BV159: 0 | BX159: 97318.29 | BY159: 97318.29302 | BZ159: 0 | CB159: 5896.8 | CC159: 5896.8 | CD159: 0 | CF159: 1009499.96 | CH159: 1009500 | CI159: 0.05357298818 | CJ159: 1029116.52 | CL159: 1029117 | CM159: 0.01943195718
A160: 3122 | B160: Bridge and Patrixbourne Church of England Primary School | D160: Bridge and Patrixbourne Church of England Primary School | E160: 0 | F160: 1 | H160: 1341947.2 | I160: 1341947.2 | J160: -9.100232273e-05 | L160: 28557.41 | M160: 28557.4098 | N160: 0.0002028891686 | P160: 19941.25 | Q160: 19941.24933 | R160: 0.0006679413673 | T160: 70915.03 | U160: 70915.0338 | V160: -0.003803952568 | X160: 0 | Y160: 0 | Z160: 0 | AB160: 125894.71 | AC160: 125894.7077 | AD160: 0.002290411983 | AF160: 0 | AG160: 0 | AH160: 0 | AJ160: 0 | AK160: 0 | AL160: 0 | AN160: 0 | AO160: 0 | AP160: 0 | AR160: 35072 | AS160: 35072 | AT160: 0 | AV160: 0 | AW160: 0 | AX160: 0 | AZ160: 0 | BA160: 0 | BB160: 0 | BD160: 175112.4 | BE160: 175112.3993 | BF160: 0.0007337123388 | BH160: 1797440 | BI160: 1797440 | BJ160: 0 | BL160: 0 | BM160: 0 | BN160: 0 | BP160: 1797440 | BQ160: 1797440 | BR160: 0 | BV160: 0 | BX160: 296813.92 | BY160: 296813.9217 | BZ160: 0 | CB160: 11288.16 | CC160: 11288.16 | CD160: 0 | CF160: 1862531.84 | CH160: 1862532 | CI160: 0.03621363717 | CJ160: 1871669.14 | CL160: 1871669 | CM160: 0.004905849019
A161: 3123 | B161: Chislet Church of England Primary School | D161: Chislet Church of England Primary School | E161: 0 | F161: 1 | H161: 320465 | I161: 320465.003 | J161: -0.003006806539 | L161: 25990.28 | M161: 25990.2821 | N161: -0.00209829459 | P161: 0 | Q161: 0 | R161: 0 | T161: 32626.01 | U161: 32626.00551 | V161: 0.004487477814 | X161: 0 | Y161: 0 | Z161: 0 | AB161: 125894.71 | AC161: 125894.7077 | AD161: 0.002290411983 | AF161: 23268.17 | AG161: 23268.16849 | AH161: 0.001508265101 | AJ161: 0 | AK161: 0 | AL161: 0 | AN161: 0 | AO161: 0 | AP161: 0 | AR161: 6113 | AS161: 6113 | AT161: 0 | AV161: 0 | AW161: 0 | AX161: 0 | AZ161: 0 | BA161: 0 | BB161: 0 | BD161: 0 | BE161: 0 | BF161: 0 | BH161: 534357.17 | BI161: 534357.1668 | BJ161: 0.003181053791 | BL161: 0 | BM161: 0 | BN161: 0 | BP161: 534357.17 | BQ161: 534357.1668 | BR161: 0.003181053791 | BV161: 0 | BX161: 58543.6 | BY161: 58543.59528 | BZ161: 0 | CB161: 2695.68 | CC161: 2695.68 | CD161: 0 | CF161: 562765.93 | CH161: 562766 | CI161: 0.05316437197 | CJ161: 573898.99 | CL161: 573899 | CM161: 0.01978275408
